Workbook

Sheet Cover page
B9: ECONOMIC-FINANCIAL ANALYSIS TOOL FOR THE IMPLEMENTATION OF ELECTRIC BUSES
B10: April 2021
B11: Santiago, Chile
B14: Product developed within the framework of the Moving Chile project and the consultancy, "Development of a Global Tool for the financial and economic evaluation of the implementation of electromobility in public transport systems", carried out by E2BIZ for the Ministry of Transport and Telecommunications and Deutsche Gesellschaft für Internationale Zusammenarbeit (GIZ).
B19: Authors: Ana María Pereira V., Juan Pablo San Martín M., Jacques Clerc P.

Sheet Overview
B1: Tool Overview | F1: How to Use the Tool | J1: Output results
B2: This tool corresponds to a financial-economic evaluation model that allows contrasting the introduction of buses of different technologies. It allows users to use their own information if they have it or, alternatively, to use default values offered by the same tool. These default factors will depend on the selection of different variables, such as the country of evaluation, or the bus technologies to be evaluated. The details of the sources of information used have been indicated in the document "Bus Purchase Financial-Economic Analysis Tool User Manual". The model provides information that can help users make more informed decisions for the transition to electric buses. This information includes financial and economic indicators that consider the evaluation of externalities. The tool's spreadsheets and their content are detailed below: | F2: The variables required for the evaluation are presented on the "Input Data" sheet. This information is arranged in six modules: 1) "General Information"; 2) "Parameters for Projection"; 3) "Socioeconomic Evaluation Parameters"; 4) "Fleet 1" / "Fleet 2"; 5) "Financial Parameters" and 6) "Alternative Mechanism Parameters". In each one of them, the user must choose the values that they wish to use for the evaluation. Some parameters must be selected through drop-down lists that will appear when positioning on the cells. Other parameters must be entered manually by the user. A more detailed description is presented in the explanatory notes on the same sheet. The tool allows contrasting two bus technologies (Fleet 1 and Fleet 2) with different financial parameters for each one. The parameters contained in these modules (Fleet 1, Fleet 2, and Financial Parameters) refer to each technology, while the rest of the modules present common information for both fleets. | J2: The sheet "Results Outputs" presents the results of the evaluation in both fleets. These results are presented through graphs and tables. 1. A first graph indicates the Total Cost of Ownership (TCO) of each fleet, broken down into its different components. Buttons are available to include or exclude externalities. 2. A second group of graphs includes results regarding other financial and economic indicators. These indicators are calculated for each fleet. Indicators are included for Net Present Value; Payback Period; Internal rate of return; Levelized cost per km traveled; Profit/Loss per km and Profit/Loss per passenger. 3. A third group of graphs presents the results regarding externalities. The present value of the cost associated with noise and greenhouse gas emissions is included; while the emissions of different pollutants are also included for each fleet throughout the evaluation period.
B13: Spreadsheet | C13: Description
B14: Cover page | C14: Allows you to change the language of the tool, available in Spanish, English and French.
B15: Overview | C15: An overview of the tool and the detail of the content of each spreadsheet is presented.
B16: Traditional Mech. Structure | C16: The operation of the traditional financing mechanism and the associated information flows are described in detail. The types of parameters used and the relationships between them are described.
B17: Leasing Mech. Structure | C17: The operation of the financing leasing mechanism and the associated information flows are described in detail. The types of parameters used and the relationships between them are described.
B18: Input Data | C18: Presents the variables required for the evaluation. The user has the possibility to choose different technological, operational and financial parameters, being able to use default values or values input manually. Clarifying notes are included for the information requested.
B19: Output results | C19: Presents the results of the evaluation in graphical form and by means of tables. Results of Total Cost of Ownership, Economic Indicators and Costs of Externalities are included.
B20: MT Economical Ev. | C20: Presents the economic evaluation of the traditional mechanism. It includes the different costs and revenues associated to the evaluation (Personnel Costs, Fixed Operating Costs, Fuel Costs, Electricity Costs, Maintenance Costs, Battery Costs, Financial Costs, Investment Costs, Income from Ticket Sales, Other Socio-Environmental Revenues and Costs). The calculation of the Total Cost of Ownership and the economic indicators are presented.
B21: CDM Economic Ev. | C21: Presents the economic evaluation of the leasing mechanism. It includes the different costs and revenues associated to the evaluation (Personnel Costs, Fixed Operating Costs, Fuel Costs, Electricity Costs, Maintenance Costs, Battery Costs, Financial Costs, Investment Costs, Income from Ticket Sales, Other Socio-Environmental Revenues and Costs). The calculation of the Total Cost of Ownership and the economic indicators are presented, the latter in a differentiated way at the level of Fleet Operator and Provider.
B22: Financial Ev. | C22: Presents the financial evaluation of both fleets when external financing (credit) is used.
B23: Energy Projections | C23: Presents the price projections of the different energy sources according to percentage growth and values entered by the user.
B24: Energy Prices | C24: Prices for diesel, electricity and natural gas are presented for each country according to Global Petrol Prices and OECD-FAO for biodiesel. Average prices by continent, region and zone are also calculated for those countries where no information is available.
B25: Batteries | C25: Battery life is calculated for each fleet based on annual degradation, number of cycles, service life, energy performance, battery capacity, and activity level.
B26: Database | C26: Possible technologies to select and their respective characteristics are presented.
B27: Pollutant Externalities | C27: Presents the emissions of Greenhouse Gases and other gases associated with the energy consumption of both fleets. It also presents the costs associated with Greenhouse Gases based on the cost selected by the user in the Input Data.
B28: EF Technologies | C28: Presents the emissions factors used for the available technologies and their respective sources.
B29: EF Energy Matrix | C29: Presents the emissions factors of the electricity matrix by country. By default these factors are kept constant over time.
B30: Noise externalities | C30: Presents the calculations to estimate the externalities associated with the noise emissions of each fleet.
B31: Countries | C31: The list of countries that can be selected in the tool is presented with their respective continent, region and zone in the three languages that can be chosen.
B32: Formulas | C32: Presents the different formulas used for the calculation.
B33: Aux_Lang | C33: Presents the cells on which the language is modified, with their respective transcripts in Spanish, English and French.
B34: Aux_Tab | C34: Presents auxiliary indicators for calculation and language change.

Sheet Traditional Mech. Structure

Sheet Leasing Mech. Structure

Sheet Input Data
B1: Input Data
B3: General Information | G3: Clarifications
B4: Parameter | C4: Value | E4: Unit | G4: 1. The general information data refers to the characteristics of the transport systems in the location that one wishes to evaluate. These data must be input by the user according to local reality. 2. The "Parameters for Projection" data refer to the projection of energy prices and the parameters needed to calculate the present value of the evaluation's economic flows. The tool includes default prices for all energy sources by country for 2020. The projection of these prices will be given according to possible growth rates input by the user or alternatively they can be input manually until 2050. In the latter, the "User Values" box must be selected, clicking on the link highlighted in yellow and modifying the values. 3. The "Socioeconomic Evaluation Parameters" data refer to the social costs of GHG emissions and the Willingness to Pay (WTP) for noise reduction in each bus. The tool presents a default value for the CO2eq and an estimate of the WTP for the country based on reference information from the case of Germany. The WTP estimation uses default values for the speed and duration of an average trip, established at 40 [km/h] and 30 minutes respectively (these values can be modified in the "Noise Externalities" spreadsheet according to the reality of the evaluated location). Alternatively, the user can use their own values by activating the "User Values" box and inputting these values. The values used by the tool are highlighted depending on the selection of "Default Values" or "User Values". 4. The data of "Fleet 1" and "Fleet 2" allows selecting the types of technologies to be evaluated (FI, Hybrids or Electric). Depending on the choice of these parameters, the tool will offer different options for bus energy, sizes and emissions standards / battery capacity. The tool, associated to these parameters, offers default values for investment costs, bus performance, and variable operational costs. Alternatively the user can input and use other values by activating the "User Value" box. The "Financial Parameters" data for each fleet must be input to estimate the financial costs associated with the use of credit. As can be seen, each fleet has its own evaluation parameters. The values used by the tool are highlighted depending on the selection of "Default Values" or "User Values". 5. Finally, the tool allows evaluating two financing mechanisms (Traditional Mechanism and Leasing Mechanism). When selecting Leasing Mechanism, the tool requests the input of two additional parameters. A further explanation about this mechanism is detailed on the sheet "Leasing Mechanism Structure".
B5: Country | E5: -
B6: Activity level | C6: 65705 | E6: km/year/bus
B7: Fleet size | C7: 1 | E7: bus
B8: Average passenger flow | C8: 94556 | E8: pass/year/bus
B9: Average fare | C9: 0.7 | E9: USD/pass
B10: Average number of drivers | C10: 1 | E10: drivers/bus
B11: Purchase tax | C11: 0 | E11: %
B13: Parameters for Projection
B14: Parameter | C14: Value | E14: Unit
B15: Discount rate | C15: 0.06 | E15: %
B16: Years of evaluation | C16: 14 | E16: year
B17: Parameter | C17: Value | D17: User Values * | E17: Unit
B18: Annual variation in fuel prices | C18: 0.02 | E18: /year
B19: Annual Electricity Price Variation | C19: 0 | E19: /year
B20: * Values must be modified on the "Energy Projections" sheet. Click here to change values.
B22: Socioeconomic Evaluation Parameters
B23: Parameter | C23: Default Values | D23: User Values | E23: Unit
B24: GHG externality
B25: CO2eq Social Cost | C25: =+'Pollutant Externalities'!$B$7 -> 54.7 | D25: 33.5 | E25: USD / t CO2eq
B26: Noise externality
B27: Willingness to pay for noise reduction in average journey
B28: Internal Combustion Engine | C28: =+'Noise externalities'!$Z$27 ->  | D28: 4 | E28: USD/pass
B29: Electric Bus | C29: =+'Noise externalities'!$Z$29 ->  | D29: 2.1 | E29: USD/pass
B31: Fleet 1 | G31: Fleet 2
B32: Parameter | C32: Value | E32: Unit | G32: Parameter | H32: Value | J32: Unit
B33: Engine type | E33: - | G33: Engine type | J33: -
B34: Energy source | E34: - | G34: energy source | J34: -
B35: Bus size | E35: m | G35: Bus size | J35: m
B36: Emission Abatement Technology / Battery Capacity | E36: =+IFERROR(IF(Code_ener_1=4,"kWh",""),"") ->  | G36: Emission Abatement Technology / Battery Capacity | J36: =+IFERROR(IF(Code_ener_2=4,"kWh",""),"") -> 
B37: Parameter | C37: Default Values | D37: User Value | E37: Unit | G37: Parameter | H37: Default Value | I37: User Value | J37: Unit
B38: Investment Parameters | G38: Investment Parameters
B39: Price Per Bus | C39: =+IFERROR(VLOOKUP(_xlfn.CONCAT(C33,Ener1,Size1,C36),Database!$F$8:$N$47,2,FALSE),"") ->  | D39: 190000 | E39: USD/bus | G39: Unit Price | H39: =+IFERROR(VLOOKUP(_xlfn.CONCAT(H33,Ener2,Size2,H36),Database!$F$8:$N$47,2,FALSE),"") ->  | I39: 330000 | J39: USD/bus
B40: Residual value of the bus | C40: =+IF(Code_motor_1=3,5%,10%) ->  | D40: 0.05 | G40: Residual value of the bus | H40: =+IF(Code_motor_2=3,5%,10%) -> 
B41: Residual Battery Value (electric vehicles) | C41: 0 | E41: % | G41: Residual Battery Value (electric vehicles) | H41: 0 | I41: 0.1 | J41: %
B42: Energy Consumption | G42: Energy Consumption
B43: Fuel Consumption | C43: =+IFERROR(VLOOKUP(_xlfn.CONCAT(C33,Ener1,Size1,C36),Database!$F$8:$N$47,3,FALSE),"") ->  | D43: 70 | E43: =+IFERROR(VLOOKUP(_xlfn.CONCAT(Motor1,Ener1,Size1,CAPA1),Database!$F$8:$N$47,4,FALSE),"") ->  | G43: Fuel Consumption | H43: =+IFERROR(VLOOKUP(_xlfn.CONCAT(H33,Ener2,Size2,H36),Database!$F$8:$N$47,3,FALSE),"") ->  | J43: =+IFERROR(VLOOKUP(_xlfn.CONCAT(Motor2,Ener2,Size2,CAPA2),Database!$F$8:$N$47,4,FALSE),"") -> 
B44: Electricity Consumption | C44: =+IFERROR(VLOOKUP(_xlfn.CONCAT(C33,Ener1,Size1,C36),Database!$F$8:$N$47,5,FALSE),"") ->  | E44: =+IFERROR(VLOOKUP(_xlfn.CONCAT(Motor1,Ener1,Size1,CAPA1),Database!$F$8:$N$47,6,FALSE),"") ->  | G44: Electricity Consumption | H44: =+IFERROR(VLOOKUP(_xlfn.CONCAT(H33,Ener2,Size2,H36),Database!$F$8:$N$47,5,FALSE),"") ->  | I44: 1.1 | J44: =+IFERROR(VLOOKUP(_xlfn.CONCAT(Motor2,Ener2,Size2,CAPA2),Database!$F$8:$N$47,6,FALSE),"") -> 
B45: Operating Costs | G45: Operating Costs
B46: Variable Operating Costs | G46: Variable Operating Costs
B47: Lubricant Costs | C47: =+IFERROR(VLOOKUP(_xlfn.CONCAT(C33,Ener1,Size1,C36),Database!$F$8:$N$47,7,FALSE),"") ->  | D47: 0.02 | E47: USD / km | G47: Lubricant Costs | H47: =+IFERROR(VLOOKUP(_xlfn.CONCAT(H33,Ener2,Size2,H36),Database!$F$8:$N$47,7,FALSE),"") ->  | J47: USD / km
B48: Tyre Costs | C48: =+IFERROR(VLOOKUP(_xlfn.CONCAT(C33,Ener1,Size1,C36),Database!$F$8:$N$47,8,FALSE),"") ->  | D48: 0.04 | E48: USD / km | G48: Tyre Costs | H48: =+IFERROR(VLOOKUP(_xlfn.CONCAT(H33,Ener2,Size2,H36),Database!$F$8:$N$47,8,FALSE),"") ->  | J48: USD / km
B49: General Maintenance Costs | C49: =+IFERROR(VLOOKUP(_xlfn.CONCAT(C33,Ener1,Size1,C36),Database!$F$8:$N$47,9,FALSE),"") ->  | D49: 0.09 | E49: USD / km | G49: General Maintenance Costs | H49: =+IFERROR(VLOOKUP(_xlfn.CONCAT(H33,Ener2,Size2,H36),Database!$F$8:$N$47,9,FALSE),"") ->  | J49: USD / km
B50: Fixed Operating Costs | G50: Fixed Operating Costs
B51: Remunerations | D51: 600 | E51: USD/month/driver | G51: Remunerations | I51: 600 | J51: USD/month/driver
B52: Administrative Costs | D52: 20 | E52: USD/month/bus | G52: Administrative Costs | I52: 20 | J52: USD/month/bus
B53: Insurance | D53: 1000 | E53: USD/year/bus | G53: Insurance | I53: 1850 | J53: USD/year/bus
B54: Infrastructure Costs | G54: Infrastructure Costs
B55: Total Infrastructure Costs | C55: =+C56+C57+C58+C59*FSize ->  | D55: =+D56+D57+D58+D59*FSize -> 0 | E55: USD | G55: Total Infrastructure Costs | H55: =+H56+H57+H58+H59*FSize ->  | I55: =+I56+I57+I58+I59*FSize -> 15000 | J55: USD
B56: Land | C56: 0 | E56: USD | G56: Land | H56: 0 | J56: USD
B57: Construction | C57: 0 | E57: USD | G57: Construction | H57: 0 | J57: USD
B58: Service Infrastructure | C58: 0 | E58: USD | G58: Service Infrastructure | H58: 0 | J58: USD
B59: Charging Infrastructure | C59: =+IF(Code_ener_1=4,14000,0) ->  | E59: USD/bus | G59: Charging Infrastructure | H59: =+IF(Code_ener_2=4,14000,0) ->  | I59: 15000 | J59: USD/bus
B60: Fleet 1 Financial Parameters | G60: Fleet 2 Financial Parameters
B61: Parameter | C61: Value | E61: Unit | G61: Parameter | H61: Value | J61: Unit
B62: Equity (% of total investment financed with own resources) | C62: 0.4 | E62: % | G62: Equity (% of total investment financed with own resources) | H62: 0.5 | J62: %
B63: Annual Interest Rate | C63: 0.09 | E63: % | G63: Annual Interest Rate | H63: 0.08 | J63: %
B64: Loan Period | C64: 5 | E64: Years | G64: Loan Period | H64: 6 | J64: Years
B66: Financing Mechanism Parameters
B67: Parameter | C67: Value | E67: Unit
B68: Selection of financing mechanism | E68: -
B69: Asset lease payment (only Leasing Mech.) | C69: 20000 | E69: USD/bus/year
B70: Monthly Personnel Costs (only Leasing Mech.) | C70: 1500 | E70: USD/month

Sheet Output results
A1: TOTAL COST OF OWNERSHIP (TCO)
J3: =+IF(Code_Mecanismo=1,'MT Economical Ev.'!B97,'CDM Economic Ev.'!B120) -> Leasing Mechanism TCO per unit
J4: Component | K4: =+IF(Code_Mecanismo=1,'MT Economical Ev.'!B98,'CDM Economic Ev.'!B121) -> | | | M | L4: =+IF(Code_Mecanismo=1,'MT Economical Ev.'!B99,'CDM Economic Ev.'!B122) -> | | | M
J5: =+IF(Code_Mecanismo=1,'MT Economical Ev.'!C97,'CDM Economic Ev.'!C120) -> Personnel Costs | K5: =+IF(Code_Mecanismo=1,'MT Economical Ev.'!C98,'CDM Economic Ev.'!C121) -> 234233.595 | L5: =+IF(Code_Mecanismo=1,'MT Economical Ev.'!C99,'CDM Economic Ev.'!C122) -> 234233.595
J6: =+IF(Code_Mecanismo=1,'MT Economical Ev.'!D97,'CDM Economic Ev.'!D120) -> Fixed Operating Costs | K6: =+IF(Code_Mecanismo=1,'MT Economical Ev.'!D98,'CDM Economic Ev.'!D121) -> 11525.78007 | L6: =+IF(Code_Mecanismo=1,'MT Economical Ev.'!D99,'CDM Economic Ev.'!D122) -> 11525.78007
J7: =+IF(Code_Mecanismo=1,'MT Economical Ev.'!E97,'CDM Economic Ev.'!E120) -> Fuel costs | K7: =+IF(Code_Mecanismo=1,'MT Economical Ev.'!E98,'CDM Economic Ev.'!E121) ->  | L7: =+IF(Code_Mecanismo=1,'MT Economical Ev.'!E99,'CDM Economic Ev.'!E122) -> 
J8: =+IF(Code_Mecanismo=1,'MT Economical Ev.'!F97,'CDM Economic Ev.'!F120) -> Electricity Cost | K8: =+IF(Code_Mecanismo=1,'MT Economical Ev.'!F98,'CDM Economic Ev.'!F121) ->  | L8: =+IF(Code_Mecanismo=1,'MT Economical Ev.'!F99,'CDM Economic Ev.'!F122) -> 
J9: =+IF(Code_Mecanismo=1,'MT Economical Ev.'!G97,'CDM Economic Ev.'!G120) -> Maintenance Costs | K9: =+IF(Code_Mecanismo=1,'MT Economical Ev.'!G98,'CDM Economic Ev.'!G121) -> 91609.03784 | L9: =+IF(Code_Mecanismo=1,'MT Economical Ev.'!G99,'CDM Economic Ev.'!G122) -> 0
J10: =+IF(Code_Mecanismo=1,'MT Economical Ev.'!H97,'CDM Economic Ev.'!H120) -> Battery Costs | K10: =+IF(Code_Mecanismo=1,'MT Economical Ev.'!H98,'CDM Economic Ev.'!H121) ->  | L10: =+IF(Code_Mecanismo=1,'MT Economical Ev.'!H99,'CDM Economic Ev.'!H122) -> 
J11: =+IF(Code_Mecanismo=1,'MT Economical Ev.'!I97,'CDM Economic Ev.'!I120) -> Financial Costs | K11: =+IF(Code_Mecanismo=1,'MT Economical Ev.'!I98,'CDM Economic Ev.'!I121) -> 118640.4534 | L11: =+IF(Code_Mecanismo=1,'MT Economical Ev.'!I99,'CDM Economic Ev.'!I122) -> 177084.1586
J12: =+IF(Code_Mecanismo=1,'MT Economical Ev.'!J97,'CDM Economic Ev.'!J120) -> Investment Costs | K12: =+IF(Code_Mecanismo=1,'MT Economical Ev.'!J98,'CDM Economic Ev.'!J121) -> 76000 | L12: =+IF(Code_Mecanismo=1,'MT Economical Ev.'!J99,'CDM Economic Ev.'!J122) -> 172500
J13: =+IF(Code_Mecanismo=1,'MT Economical Ev.'!K97,'CDM Economic Ev.'!K120) -> Socio-Environmental Costs | K13: =+IF(Code_Mecanismo=1,'MT Economical Ev.'!K98,'CDM Economic Ev.'!K121) ->  | L13: =+IF(Code_Mecanismo=1,'MT Economical Ev.'!K99,'CDM Economic Ev.'!K122) -> 
J14: =+IF(Code_Mecanismo=1,'MT Economical Ev.'!L97,'CDM Economic Ev.'!L120) -> Total | K14: =+IF(Code_Mecanismo=1,'MT Economical Ev.'!L98,'CDM Economic Ev.'!L121) ->  | L14: =+IF(Code_Mecanismo=1,'MT Economical Ev.'!L99,'CDM Economic Ev.'!L122) -> 
J16: Annualized TCO | K16: =-PMT('Input Data'!$C$15,Year,'Output results'!K14) ->  | L16: =-PMT('Input Data'!$C$15,Year,'Output results'!L14) -> 
A18: NET PRESENT VALUE (NPV), PAYBACK, INTERNAL RATE OF RETURN (IRR)
J20: =+IF(Code_Mecanismo=1,'MT Economical Ev.'!B1,'CDM Economic Ev.'!B1) -> Leasing Mechanism
J21: =+'MT Economical Ev.'!B89 -> Economic Indicators | K21: ='MT Economical Ev.'!B98 -> | | | M | L21: ='MT Economical Ev.'!B99 -> | | | M
J22: =+'MT Economical Ev.'!$B$90 -> NPV | K22: =+IF(Code_Mecanismo=1,'MT Economical Ev.'!$B$91,'CDM Economic Ev.'!$B$117+'CDM Economic Ev.'!$B$113) ->  | L22: =+IF(Code_Mecanismo=1,'MT Economical Ev.'!$S$91,'CDM Economic Ev.'!$S$117+'CDM Economic Ev.'!$S$113) -> 
J23: =+'MT Economical Ev.'!$C$90 -> Payback Period | K23: =+IF(Code_Mecanismo=1,'MT Economical Ev.'!$C$91,'CDM Economic Ev.'!$C$117) ->  | L23: =+IF(Code_Mecanismo=1,'MT Economical Ev.'!$T$91,'CDM Economic Ev.'!$T$117) -> 
J24: =+'MT Economical Ev.'!$D$90 -> IRR | K24: =+IF(Code_Mecanismo=1,'MT Economical Ev.'!$D$91,'CDM Economic Ev.'!$D$117) ->  | L24: =+IF(Code_Mecanismo=1,'MT Economical Ev.'!$U$91,'CDM Economic Ev.'!$U$117) -> 
J25: =+'MT Economical Ev.'!$E$90 -> Levelized cost per kilometre travelled (USD/km) | K25: =+IF(Code_Mecanismo=1,'MT Economical Ev.'!$E$91,'CDM Economic Ev.'!$E$117) ->  | L25: =+IF(Code_Mecanismo=1,'MT Economical Ev.'!$V$91,'CDM Economic Ev.'!$V$117) -> 
J26: Annualized NPV | K26: =-PMT('Input Data'!$C$15,Year,'Output results'!K22) ->  | L26: =-PMT('Input Data'!$C$15,Year,'Output results'!L22) -> 
J27: Profit/Loss per km (USD/km) | K27: =+K26/(AL*FSize) ->  | L27: =+L26/(AL*FSize) -> 
J28: Profit/Loss per passenger (USD/passenger) | K28: =+K26/(PAX*FSize) ->  | L28: =+L26/(PAX*FSize) -> 
J30: In the case of the leasing mechanism, the IRR and Return Period indicators are estimated for the fleet provider.
A46: EXTERNAL PRESENT VALUE AND POLLUTANT EMISSIONS
J48: =+'Pollutant Externalities'!$E$4 -> GHG Emissions Costs | K48: =+'MT Economical Ev.'!B98 -> | | | M | L48: =+'MT Economical Ev.'!B99 -> | | | M
J49: =+'MT Economical Ev.'!P67 -> GHG | K49: =+'MT Economical Ev.'!P85 ->  | L49: =+'MT Economical Ev.'!AG85 -> 
J50: =+'MT Economical Ev.'!Q67 -> Noise | K50: =+'MT Economical Ev.'!Q85 ->  | L50: =+'MT Economical Ev.'!AH85 -> 
J51: =+'MT Economical Ev.'!M67 -> Total | K51: =SUM(K49:K50) ->  | L51: =SUM(L49:L50) -> 
J53: Accumulated Emissions | K53: =+K48 -> | | | M | L53: =+L48 -> | | | M
J54: NOx [kg] | K54: =+'Pollutant Externalities'!$T$27 ->  | L54: =+'Pollutant Externalities'!$T$57 -> 
J55: NO [kg] | K55: =+'Pollutant Externalities'!$U$27 ->  | L55: =+'Pollutant Externalities'!$U$57 -> 
J56: MP [kg] | K56: =+'Pollutant Externalities'!$V$27 ->  | L56: =+'Pollutant Externalities'!$V$57 -> 
J57: CO [kg] | K57: =+'Pollutant Externalities'!$W$27 ->  | L57: =+'Pollutant Externalities'!$W$57 -> 
J58: THC [kg] | K58: =+'Pollutant Externalities'!$X$27 ->  | L58: =+'Pollutant Externalities'!$X$57 -> 
J59: HCNM [kg] | K59: =+'Pollutant Externalities'!$Y$27 ->  | L59: =+'Pollutant Externalities'!$Y$57 -> 

Sheet MT Economical Ev.
B1: Traditional Mechanism
B2: The economic evaluation of both fleets is presented considering the different costs and revenues and the Traditional Mechanism.
B4: Fleet 1 | S4: Fleet 2
B5: =+_xlfn.CONCAT(Motor1," |",Ener1) -> | | S5: =+_xlfn.CONCAT(Motor2," |",Ener2) -> |
B6: =+_xlfn.CONCAT(Ener1," | ", 'Input Data'!C36, " | ", Size1, " M") -> | | M | S6: =+_xlfn.CONCAT(Ener2," | ", CAPA2, " | ", Size2, " M") -> | | M
C8: Operation & Maintenance Costs | F8: Fixed Operating Costs | I8: Revenues | T8: Operation & Maintenance Costs | W8: Fixed Operating Costs | Z8: Revenues
B9: Years of evaluation | C9: =Year -> 14 | D9: Years | E9: Energy source 1 | F9: =+Code_ener_1 ->  | G9: - | H9: Passengers | I9: =PAX -> 94556 | J9: =+'Input Data'!E8 -> pass/year/bus | S9: Years of evaluation | T9: =Year -> 14 | U9: Years | V9: Energy source 1 | W9: =+Code_ener_2 ->  | X9: - | Y9: Passengers | Z9: =PAX -> 94556 | AA9: =+'Input Data'!E8 -> pass/year/bus
B11: Activity level | C11: =+AL -> 65705 | D11: km/year-bus | E11: Energy source 2 | F11: =+IF(Code_motor_1=2,4,"") ->  | G11: - | H11: Fare | I11: =+TAR -> 0.7 | J11: =+'Input Data'!E9 -> USD/pass | S11: Activity level | T11: =+AL -> 65705 | U11: km/year-bus | V11: Energy source 2 | W11: =+IF(Code_motor_2=2,4,"") ->  | X11: - | Y11: Fare | Z11: =+TAR -> 0.7 | AA11: =+'Input Data'!E9 -> USD/pass
B13: Fuel consumption | C13: =IF($F$9=4,0,IF(Aux_Tab!$E$47=FALSE,'Input Data'!C43,'Input Data'!D43)) ->  | D13: =+'Input Data'!E43 ->  | E13: =+'Input Data'!B51 -> Remunerations | F13: =+IF(Aux_Tab!$E$47=FALSE,'Input Data'!C51,'Input Data'!D51) -> 600 | G13: =+'Input Data'!E51 -> USD/month/driver | H13: Vehicle Residual Value | I13: =+IF(Aux_Tab!$E$47=FALSE,PreUD1*'Input Data'!C40,PreUU1*'Input Data'!D40) -> 9500 | J13: =+'Input Data'!E39 -> USD/bus | S13: Fuel consumption | T13: =IF($W$9=4,0,IF(Aux_Tab!$E$48=FALSE,'Input Data'!H43,'Input Data'!I43)) ->  | U13: =+'Input Data'!J43 ->  | V13: =+'Input Data'!G51 -> Remunerations | W13: =+IF(Aux_Tab!$E$48=FALSE,'Input Data'!H51,'Input Data'!I51) -> 600 | X13: =+'Input Data'!J51 -> USD/month/driver | Y13: Vehicle Residual Value | Z13: =+IF(Aux_Tab!$E$48=FALSE,PreUD2*'Input Data'!H40,PreUU2*'Input Data'!I40) -> 0 | AA13: =+'Input Data'!J39 -> USD/bus
B15: Energy Consumption | C15: =IF(Code_motor_1=1,0,IF(Aux_Tab!$E$47=FALSE,'Input Data'!C44,'Input Data'!D44)) ->  | D15: =+'Input Data'!E44 ->  | E15: =+'Input Data'!B52 -> Administrative Costs | F15: =+IF(Aux_Tab!$E$47=FALSE,'Input Data'!C52,'Input Data'!D52) -> 20 | G15: =+'Input Data'!E52 -> USD/month/bus | H15: Battery Residual Value | I15: =+IF(Aux_Tab!$E$47=FALSE,'Input Data'!C41,'Input Data'!D41) -> 0 | S15: Energy Consumption | T15: =IF(Code_motor_2=1,0,IF(Aux_Tab!$E$48=FALSE,'Input Data'!H44,'Input Data'!I44)) ->  | U15: =+'Input Data'!J44 ->  | V15: =+'Input Data'!G52 -> Administrative Costs | W15: =+IF(Aux_Tab!$E$48=FALSE,'Input Data'!H52,'Input Data'!I52) -> 20 | X15: =+'Input Data'!J52 -> USD/month/bus | Y15: Battery Residual Value | Z15: =+IF(Aux_Tab!$E$48=FALSE,'Input Data'!I41,'Input Data'!H41) -> 0
B17: Performance Reduction Rate | C17: 0 | D17: /year | E17: =+'Input Data'!B53 -> Insurance | F17: =+IF(Aux_Tab!$E$47=FALSE,'Input Data'!C53,'Input Data'!D53) -> 1000 | G17: =+'Input Data'!E53 -> USD/year/bus | S17: Performance Reduction Rate | T17: =+C17 -> 0 | U17: /year | V17: =+'Input Data'!G53 -> Insurance | W17: =+IF(Aux_Tab!$E$48=FALSE,'Input Data'!H53,'Input Data'!I53) -> 1850 | X17: =+'Input Data'!J53 -> USD/year/bus
B19: Tyre Costs | C19: =+IF(Aux_Tab!$E$47=FALSE,'Input Data'!C48,'Input Data'!D48) -> 0.04 | D19: =+'Input Data'!E47 -> USD / km | E19: Battery capacity | F19: =+IF(Code_ener_1=4,CAPA1,"0") ->  | G19: kWh | S19: Tyre Costs | T19: =+IF(Aux_Tab!$E$48=FALSE,'Input Data'!H48,'Input Data'!I48) -> 0 | U19: =+'Input Data'!J47 -> USD / km | V19: Battery capacity | W19: =+IF(Code_ener_2=4,CAPA2,"0") ->  | X19: kWh
B21: Maintenance costs | C21: =+IF(Aux_Tab!$E$47=FALSE,'Input Data'!C49,'Input Data'!D49) -> 0.09 | D21: =+'Input Data'!E48 -> USD / km | E21: Battery Life | F21: =+IF($F$9=4,COUNTIF(Batteries!C18:Q18,"<1")+((Batteries!$D$10-(HLOOKUP(COUNTIF(Batteries!C18:Q18,"<1"),Batteries!$C$14:$Q$17,4,FALSE)))/(HLOOKUP(COUNTIF(Batteries!C18:Q18,"<1")+1,Batteries!$C$14:$Q$17,3,FALSE))),"") ->  | G21: Years | S21: Maintenance costs | T21: =+IF(Aux_Tab!$E$48=FALSE,'Input Data'!H49,'Input Data'!I49) -> 0 | U21: =+'Input Data'!J49 -> USD / km | V21: Battery Life | W21: =+IF($W$9=4,COUNTIF(Batteries!$C$24:$Q$24,"<1")+((Batteries!$D$10-(HLOOKUP(COUNTIF(Batteries!$C$24:$Q$24,"<1"),Batteries!$C$20:$Q$24,4,FALSE)))/(HLOOKUP(COUNTIF(Batteries!$C$24:$Q$24,"<1")+1,Batteries!$C$20:$Q$24,3,FALSE))),"") ->  | X21: Years
B23: Lubricant Costs | C23: =+IF(Aux_Tab!$E$47=FALSE,'Input Data'!C47,'Input Data'!D47) -> 0.02 | D23: =+'Input Data'!E49 -> USD / km | S23: Lubricant Costs | T23: =+IF(Aux_Tab!$E$48=FALSE,'Input Data'!H47,'Input Data'!I47) -> 0 | U23: =+'Input Data'!J47 -> USD / km
B26: Fuel and Energy Consumption | S26: Fuel and Energy Consumption
B27: Assessment Period | C27: Year of Assessment | D27: =+IF(Code_language=1,_xlfn.CONCAT("Consumo Combustibles (",IF(F9=3,"Nm3/año","L/año"),")"), IF(Code_language=2,_xlfn.CONCAT("Fuel Consumption (",IF(F9=3,"Nm3/year","L/year"),")"), IF(Code_language=3,_xlfn.CONCAT("Consommation de Carburant (",IF(F9=3,"Nm3/an","L/an"),")"),))) ->  | E27: Energy Consumption (kWh/year) | F27: Annualized activity level (km) | S27: Assessment Period | T27: Year of Assessment | U27: =IF(Code_language=1,_xlfn.CONCAT("Consumo Combustibles (",IF(W9=3,"Nm3/año","L/año"),")"), IF(Code_language=2,_xlfn.CONCAT("Fuel Consumption (",IF(W9=3,"Nm3/year","L/year"),")"), IF(Code_language=3,_xlfn.CONCAT("Consommation de Carburant (",IF(W9=3,"Nm3/an","L/an"),")"),))) ->  | V27: Energy Consumption (kWh/year) | W27: Annualized activity level (km)
B28: 0 | C28: 2021 | S28: 0 | T28: 2021
B29: =ROW()-ROW(28:28) -> 1 | C29: =+IF(B29<>"",C28+1,"") -> 2022 | D29: =+IF(B29<>"",$C$11*FSize*$C$13*(1+$C$17*B28)/100,"") ->  | E29: =+IF(B29<>"",$C$11*FSize*$C$15,"") ->  | F29: =+IF(B29<>"",$C$11*FSize/((1+'Input Data'!$C$15)^B29),"") -> 61985.84906 | S29: =ROW()-ROW(28:28) -> 1 | T29: =+IF(S29<>"",T28+1,"") -> 2022 | U29: =+IF(S29<>"",$T$11*FSize*$T$13*(1+$T$17*S28)/100,"") ->  | V29: =+IF(S29<>"",$T$11*FSize*$T$15,"") ->  | W29: =+IF(S29<>"",$T$11*FSize/((1+'Input Data'!$C$15)^S29),"") -> 61985.84906
B30: =IF(B29<$C$9,B29+1,"") -> 2 | C30: 2023 | F30: =+IF(B30<>"",$C$11*FSize/((1+'Input Data'!$C$15)^B30),"") -> 58477.21609 | S30: =IF(S29<$C$9,S29+1,"") -> 2 | T30: 2023 | W30: =+IF(S30<>"",$T$11*FSize/((1+'Input Data'!$C$15)^S30),"") -> 58477.21609
B31: 3 | C31: 2024 | F31: =+IF(B31<>"",$C$11*FSize/((1+'Input Data'!$C$15)^B31),"") -> 55167.18499 | S31: 3 | T31: 2024 | W31: =+IF(S31<>"",$T$11*FSize/((1+'Input Data'!$C$15)^S31),"") -> 55167.18499
B32: 4 | C32: 2025 | F32: =+IF(B32<>"",$C$11*FSize/((1+'Input Data'!$C$15)^B32),"") -> 52044.51414 | S32: 4 | T32: 2025 | W32: =+IF(S32<>"",$T$11*FSize/((1+'Input Data'!$C$15)^S32),"") -> 52044.51414
B33: 5 | C33: 2026 | F33: =+IF(B33<>"",$C$11*FSize/((1+'Input Data'!$C$15)^B33),"") -> 49098.59825 | S33: 5 | T33: 2026 | W33: =+IF(S33<>"",$T$11*FSize/((1+'Input Data'!$C$15)^S33),"") -> 49098.59825
B34: 6 | C34: 2027 | F34: =+IF(B34<>"",$C$11*FSize/((1+'Input Data'!$C$15)^B34),"") -> 46319.43231 | S34: 6 | T34: 2027 | W34: =+IF(S34<>"",$T$11*FSize/((1+'Input Data'!$C$15)^S34),"") -> 46319.43231
B35: 7 | C35: 2028 | F35: =+IF(B35<>"",$C$11*FSize/((1+'Input Data'!$C$15)^B35),"") -> 43697.57765 | S35: 7 | T35: 2028 | W35: =+IF(S35<>"",$T$11*FSize/((1+'Input Data'!$C$15)^S35),"") -> 43697.57765
B36: 8 | C36: 2029 | F36: =+IF(B36<>"",$C$11*FSize/((1+'Input Data'!$C$15)^B36),"") -> 41224.12986 | S36: 8 | T36: 2029 | W36: =+IF(S36<>"",$T$11*FSize/((1+'Input Data'!$C$15)^S36),"") -> 41224.12986
B37: 9 | C37: 2030 | F37: =+IF(B37<>"",$C$11*FSize/((1+'Input Data'!$C$15)^B37),"") -> 38890.68855 | S37: 9 | T37: 2030 | W37: =+IF(S37<>"",$T$11*FSize/((1+'Input Data'!$C$15)^S37),"") -> 38890.68855
B38: =IF(B37<$C$9,B37+1,"") -> 10 | C38: 2031 | F38: =+IF(B38<>"",$C$11*FSize/((1+'Input Data'!$C$15)^B38),"") -> 36689.32882 | S38: =IF(S37<$C$9,S37+1,"") -> 10 | T38: 2031 | W38: =+IF(S38<>"",$T$11*FSize/((1+'Input Data'!$C$15)^S38),"") -> 36689.32882
B39: 11 | C39: =+IF(B39<>"",C38+1,"") -> 2032 | D39: =+IF(B39<>"",$C$11*FSize*$C$13*(1+$C$17*B38)/100,"") ->  | E39: =+IF(B39<>"",$C$11*FSize*$C$15,"") ->  | F39: =+IF(B39<>"",$C$11*FSize/((1+'Input Data'!$C$15)^B39),"") -> 34612.57436 | S39: 11 | T39: =+IF(S39<>"",T38+1,"") -> 2032 | U39: =+IF(S39<>"",$T$11*FSize*$T$13*(1+$T$17*S38)/100,"") ->  | V39: =+IF(S39<>"",$T$11*FSize*$T$15,"") ->  | W39: =+IF(S39<>"",$T$11*FSize/((1+'Input Data'!$C$15)^S39),"") -> 34612.57436
B40: 12 | C40: =+IF(B40<>"",C39+1,"") -> 2033 | F40: =+IF(B40<>"",$C$11*FSize/((1+'Input Data'!$C$15)^B40),"") -> 32653.37203 | S40: 12 | T40: =+IF(S40<>"",T39+1,"") -> 2033 | W40: =+IF(S40<>"",$T$11*FSize/((1+'Input Data'!$C$15)^S40),"") -> 32653.37203
B41: 13 | C41: =+IF(B41<>"",C40+1,"") -> 2034 | F41: =+IF(B41<>"",$C$11*FSize/((1+'Input Data'!$C$15)^B41),"") -> 30805.06796 | S41: 13 | T41: =+IF(S41<>"",T40+1,"") -> 2034 | W41: =+IF(S41<>"",$T$11*FSize/((1+'Input Data'!$C$15)^S41),"") -> 30805.06796
B42: 14 | C42: =+IF(B42<>"",C41+1,"") -> 2035 | F42: =+IF(B42<>"",$C$11*FSize/((1+'Input Data'!$C$15)^B42),"") -> 29061.38486 | S42: 14 | T42: =+IF(S42<>"",T41+1,"") -> 2035 | W42: =+IF(S42<>"",$T$11*FSize/((1+'Input Data'!$C$15)^S42),"") -> 29061.38486
C43: =+IF(B43<>"",C42+1,"") ->  | F43: =+IF(B43<>"",$C$11*FSize/((1+'Input Data'!$C$15)^B43),"") ->  | T43: =+IF(S43<>"",T42+1,"") ->  | W43: =+IF(S43<>"",$T$11*FSize/((1+'Input Data'!$C$15)^S43),"") -> 
B45: Cash Flow | S45: Cash Flow
B46: Assessment Period | C46: Year of Assessment | D46: Personnel Costs | E46: Fixed Operating Costs | F46: Fuel costs | G46: Electricity Cost | H46: Maintenance Costs | I46: Battery Costs | J46: Financial Costs | K46: Investment Costs | L46: Income from ticket sales | M46: Other Revenues | N46: Socio-Environmental Costs | O46: Annual Flow | P46: Annualized Flows | Q46: Cumulative Annualized Flows | S46: Assessment Period | T46: Year of Assessment | U46: Personnel Costs | V46: Fixed Operating Costs | W46: Fuel costs | X46: Electricity Cost | Y46: Maintenance Costs | Z46: Battery Costs | AA46: Financial Costs | AB46: Investment Costs | AC46: Income from ticket sales | AD46: Other Revenues | AE46: Socio-Environmental Costs | AF46: Annual Flow | AG46: Annualized Flows | AH46: Cumulative Annualized Flows
B47: =+B28 -> 0 | C47: =+C28 -> 2021 | D47: 0 | E47: 0 | F47: 0 | G47: 0 | H47: 0 | I47: 0 | J47: 0 | K47: =-(IF(Aux_Tab!E47=FALSE,FSize*PreUD1+PrID1,FSize*PreUU1+PrIU1))*(1+VAT)*'Input Data'!C62 -> -76000 | L47: 0 | M47: 0 | N47: 0 | O47: =IF($B47<>"",SUM(D47:M47),"") -> -76000 | P47: =IF($B47<>"",O47/((1+'Input Data'!$C$15)^'MT Economical Ev.'!B47),"") -> -76000 | Q47: =+P47 -> -76000 | S47: =+S28 -> 0 | T47: =+T28 -> 2021 | U47: 0 | V47: 0 | W47: 0 | X47: 0 | Y47: 0 | Z47: 0 | AA47: 0 | AB47: =-+(IF(Aux_Tab!E48=FALSE,FSize*PreUD2+PrID2,FSize*PreUU2+PrIU2))*(1+VAT)*'Input Data'!H62 -> -172500 | AC47: 0 | AD47: 0 | AE47: 0 | AF47: =IF($S47<>"",SUM(U47:AD47),"") -> -172500 | AG47: =IF($B47<>"",AF47/((1+'Input Data'!$C$15)^'MT Economical Ev.'!S47),"") -> -172500 | AH47: =+AG47 -> -172500
B48: =+B29 -> 1 | C48: =+C29 -> 2022 | D48: =IF($B48<>"",-Drivers*FSize*$F$13*12,"") -> -7200 | E48: =IF($B48<>"",-FSize*$F$15*12-FSize*$F$17,"") -> -1240 | F48: =IF($B48<>"",-D29*HLOOKUP(C48,IF(Code_ener_1=4,Price.E,IF(Code_ener_1=3,Price.NG,IF(Code_ener_1=2,Price.D,Price.BD))),2,FALSE),"") ->  | G48: =IF($B48<>"",-E29*HLOOKUP(C48,Price.E,2,FALSE),"") ->  | H48: =IF($B48<>"",-FSize*$C$11*($C$21+$C$19+$C$23),"") -> -9855.75 | I48: =+IF(B48<>"",-FSize*IF(Motor1="Eléctrico",IF(B48/ROUND($F$21,0)-INT(B48/ROUND($F$21,0))=0,HLOOKUP(C48,Bat.Price,2,FALSE),0),0)*$F$19,"") ->  | J48: =IF($B48<>"",-SUM('Financial Ev.'!$D$27:$D$38),"") -> -28164.81658 | L48: =IF($B48<>"",FSize*TAR*PAX,"") -> 66189.2 | M48: =+IF(B48<>"",-I48*$I$15+IF(B48=$C$9,$I$13,0),"") ->  | N48: =+IF(B48<>"",-('Pollutant Externalities'!M12+'Noise externalities'!AQ12),"") ->  | O48: =IF($B48<>"",SUM(D48:M48),"") ->  | P48: =IF($B48<>"",O48/((1+'Input Data'!$C$15)^'MT Economical Ev.'!B48),"") ->  | Q48: =IF($B48<>"",Q47+P48,"") ->  | S48: =+S29 -> 1 | T48: =+T29 -> 2022 | U48: =IF($S48<>"",-Drivers*FSize*$W$13*12,"") -> -7200 | V48: =IF($S48<>"",-FSize*$W$15*12-FSize*$W$17,"") -> -2090 | W48: =IF($S48<>"",-U29*HLOOKUP(T48,IF(Code_ener_2=4,Price.E,IF(Code_ener_2=3,Price.NG,IF(Code_ener_2=2,Price.D,Price.BD))),2,FALSE),"") ->  | X48: =IF($S48<>"",-V29*HLOOKUP(T48,Price.E,2,FALSE),"") ->  | Y48: =IF($S48<>"",-FSize*$T$11*($T$21+$T$19+$T$23),"") -> 0 | Z48: =+IF(S48<>"",-FSize*IF(Motor2="Eléctrico",IF(S48/ROUND($W$21,0)-INT(S48/ROUND($W$21,0))=0,HLOOKUP(T48,Bat.Price,2,FALSE),0),0)*$W$19,"") ->  | AA48: =IF($S48<>"",-SUM('Financial Ev.'!$K$27:$K$38),"") -> -36012.29995 | AC48: =IF($S48<>"",FSize*TAR*PAX,"") -> 66189.2 | AD48: =+IF(S48<>"",-Z48*$Z$15+IF(S48=$T$9,$Z$13,0),"") ->  | AE48: =IF($S48<>"",-('Pollutant Externalities'!M42+'Noise externalities'!AQ36),"") ->  | AF48: =IF($S48<>"",SUM(U48:AD48),"") ->  | AG48: =IF($S48<>"",AF48/((1+'Input Data'!$C$15)^'MT Economical Ev.'!S48),"") ->  | AH48: =IF($S48<>"",AH47+AG48,"") -> 
B49: =IF(B48<$C$9,B48+1,"") -> 2 | C49: 2023 | D49: -7200 | E49: -1240 | G49: =IF($B49<>"",-E30*HLOOKUP(C49,Price.E,2,FALSE),"") ->  | H49: -9855.75 | J49: =IF($B49<>"",-SUM('Financial Ev.'!$D$39:$D$50),"") -> -28164.81658 | L49: 66189.2 | M49: =+IF(B49<>"",-I49*$I$15+IF(B49=$C$9,$I$13,0),"") ->  | N49: =+IF(B49<>"",-('Pollutant Externalities'!M13+'Noise externalities'!AQ13),"") ->  | P49: =IF($B49<>"",O49/((1+'Input Data'!$C$15)^'MT Economical Ev.'!B49),"") ->  | Q49: =IF($B49<>"",Q48+P49,"") ->  | S49: =IF(S48<$C$9,S48+1,"") -> 2 | T49: 2023 | U49: -7200 | V49: -2090 | Y49: 0 | AA49: =IF($S49<>"",-SUM('Financial Ev.'!$K$39:$K$50),"") -> -36012.29995 | AC49: =IF($S49<>"",FSize*TAR*PAX,"") -> 66189.2 | AE49: =IF($S49<>"",-('Pollutant Externalities'!M43+'Noise externalities'!AQ37),"") ->  | AG49: =IF($S49<>"",AF49/((1+'Input Data'!$C$15)^'MT Economical Ev.'!S49),"") ->  | AH49: =IF($S49<>"",AH48+AG49,"") -> 
B50: =IF(B49<$C$9,B49+1,"") -> 3 | C50: 2024 | D50: -7200 | E50: -1240 | H50: -9855.75 | J50: =IF($B50<>"",-SUM('Financial Ev.'!$D$51:$D$62),"") -> -28164.81658 | L50: 66189.2 | N50: =+IF(B50<>"",-('Pollutant Externalities'!M14+'Noise externalities'!AQ14),"") ->  | P50: =IF($B50<>"",O50/((1+'Input Data'!$C$15)^'MT Economical Ev.'!B50),"") ->  | S50: =IF(S49<$C$9,S49+1,"") -> 3 | T50: 2024 | U50: -7200 | V50: -2090 | Y50: 0 | AA50: =IF($S50<>"",-SUM('Financial Ev.'!$K$51:$K$62),"") -> -36012.29995 | AC50: 66189.2 | AE50: =IF($S50<>"",-('Pollutant Externalities'!M44+'Noise externalities'!AQ38),"") ->  | AG50: =IF($S50<>"",AF50/((1+'Input Data'!$C$15)^'MT Economical Ev.'!S50),"") -> 
B51: 4 | C51: 2025 | D51: -7200 | E51: -1240 | H51: -9855.75 | J51: =IF($B51<>"",-SUM('Financial Ev.'!$D$63:$D$74),"") -> -28164.81658 | L51: 66189.2 | N51: =+IF(B51<>"",-('Pollutant Externalities'!M15+'Noise externalities'!AQ15),"") ->  | P51: =IF($B51<>"",O51/((1+'Input Data'!$C$15)^'MT Economical Ev.'!B51),"") ->  | S51: 4 | T51: 2025 | U51: -7200 | V51: -2090 | Y51: 0 | AA51: =IF($S51<>"",-SUM('Financial Ev.'!$K$63:$K$74),"") -> -36012.29995 | AC51: 66189.2 | AE51: =IF($S51<>"",-('Pollutant Externalities'!M45+'Noise externalities'!AQ39),"") ->  | AG51: =IF($S51<>"",AF51/((1+'Input Data'!$C$15)^'MT Economical Ev.'!S51),"") -> 
B52: 5 | C52: 2026 | D52: -7200 | E52: -1240 | H52: -9855.75 | J52: =IF($B52<>"",-SUM('Financial Ev.'!$D$75:$D$86),"") -> -28164.81658 | L52: 66189.2 | N52: =+IF(B52<>"",-('Pollutant Externalities'!M16+'Noise externalities'!AQ16),"") ->  | P52: =IF($B52<>"",O52/((1+'Input Data'!$C$15)^'MT Economical Ev.'!B52),"") ->  | S52: 5 | T52: 2026 | U52: -7200 | V52: -2090 | Y52: 0 | AA52: =IF($S52<>"",-SUM('Financial Ev.'!$K$75:$K$86),"") -> -36012.29995 | AC52: 66189.2 | AE52: =IF($S52<>"",-('Pollutant Externalities'!M46+'Noise externalities'!AQ40),"") ->  | AG52: =IF($S52<>"",AF52/((1+'Input Data'!$C$15)^'MT Economical Ev.'!S52),"") -> 
B53: 6 | C53: 2027 | D53: -7200 | E53: -1240 | H53: -9855.75 | J53: =IF($B53<>"",-SUM('Financial Ev.'!$D$87:$D$98),"") -> 0 | L53: 66189.2 | N53: =+IF(B53<>"",-('Pollutant Externalities'!M17+'Noise externalities'!AQ17),"") ->  | P53: =IF($B53<>"",O53/((1+'Input Data'!$C$15)^'MT Economical Ev.'!B53),"") ->  | S53: 6 | T53: 2027 | U53: -7200 | V53: -2090 | Y53: 0 | AA53: =IF($S53<>"",-SUM('Financial Ev.'!$K$87:$K$98),"") -> -36012.29995 | AC53: 66189.2 | AE53: =IF($S53<>"",-('Pollutant Externalities'!M47+'Noise externalities'!AQ41),"") ->  | AG53: =IF($S53<>"",AF53/((1+'Input Data'!$C$15)^'MT Economical Ev.'!S53),"") -> 
B54: 7 | C54: 2028 | D54: -7200 | E54: -1240 | H54: -9855.75 | J54: =IF($B54<>"",-SUM('Financial Ev.'!$D$99:$D$110),"") -> 0 | L54: 66189.2 | N54: =+IF(B54<>"",-('Pollutant Externalities'!M18+'Noise externalities'!AQ18),"") ->  | P54: =IF($B54<>"",O54/((1+'Input Data'!$C$15)^'MT Economical Ev.'!B54),"") ->  | S54: 7 | T54: 2028 | U54: -7200 | V54: -2090 | Y54: 0 | AA54: =IF($S54<>"",-SUM('Financial Ev.'!$K$99:$K$110),"") -> 0 | AC54: 66189.2 | AE54: =IF($S54<>"",-('Pollutant Externalities'!M48+'Noise externalities'!AQ42),"") ->  | AG54: =IF($S54<>"",AF54/((1+'Input Data'!$C$15)^'MT Economical Ev.'!S54),"") -> 
B55: 8 | C55: 2029 | D55: -7200 | E55: -1240 | H55: -9855.75 | J55: =IF($B55<>"",-SUM('Financial Ev.'!$D$111:$D$122),"") -> 0 | L55: 66189.2 | N55: =+IF(B55<>"",-('Pollutant Externalities'!M19+'Noise externalities'!AQ19),"") ->  | P55: =IF($B55<>"",O55/((1+'Input Data'!$C$15)^'MT Economical Ev.'!B55),"") ->  | S55: 8 | T55: 2029 | U55: -7200 | V55: -2090 | Y55: 0 | AA55: =IF($S55<>"",-SUM('Financial Ev.'!$K$111:$K$122),"") -> 0 | AC55: 66189.2 | AE55: =IF($S55<>"",-('Pollutant Externalities'!M49+'Noise externalities'!AQ43),"") ->  | AG55: =IF($S55<>"",AF55/((1+'Input Data'!$C$15)^'MT Economical Ev.'!S55),"") -> 
B56: 9 | C56: 2030 | D56: -7200 | E56: -1240 | H56: -9855.75 | J56: =IF($B56<>"",-SUM('Financial Ev.'!$D$123:$D$134),"") -> 0 | L56: 66189.2 | N56: =+IF(B56<>"",-('Pollutant Externalities'!M20+'Noise externalities'!AQ20),"") ->  | P56: =IF($B56<>"",O56/((1+'Input Data'!$C$15)^'MT Economical Ev.'!B56),"") ->  | S56: 9 | T56: 2030 | U56: -7200 | V56: -2090 | Y56: 0 | AA56: =IF($S56<>"",-SUM('Financial Ev.'!$K$123:$K$134),"") -> 0 | AC56: 66189.2 | AE56: =IF($S56<>"",-('Pollutant Externalities'!M50+'Noise externalities'!AQ44),"") ->  | AG56: =IF($S56<>"",AF56/((1+'Input Data'!$C$15)^'MT Economical Ev.'!S56),"") -> 
B57: 10 | C57: 2031 | D57: -7200 | E57: -1240 | H57: -9855.75 | J57: =IF($B57<>"",-SUM('Financial Ev.'!$D$135:$D$146),"") -> 0 | L57: 66189.2 | N57: =+IF(B57<>"",-('Pollutant Externalities'!M21+'Noise externalities'!AQ21),"") ->  | P57: =IF($B57<>"",O57/((1+'Input Data'!$C$15)^'MT Economical Ev.'!B57),"") ->  | S57: 10 | T57: 2031 | U57: -7200 | V57: -2090 | Y57: 0 | AA57: =IF($S57<>"",-SUM('Financial Ev.'!$K$135:$K$146),"") -> 0 | AC57: 66189.2 | AE57: =IF($S57<>"",-('Pollutant Externalities'!M51+'Noise externalities'!AQ45),"") ->  | AG57: =IF($S57<>"",AF57/((1+'Input Data'!$C$15)^'MT Economical Ev.'!S57),"") -> 
B58: =IF(B57<$C$9,B57+1,"") -> 11 | C58: 2032 | D58: -7200 | E58: -1240 | H58: -9855.75 | J58: =IF($B58<>"",-SUM('Financial Ev.'!$D$147:$D$158),"") -> 0 | L58: 66189.2 | N58: =+IF(B58<>"",-('Pollutant Externalities'!M22+'Noise externalities'!AQ22),"") ->  | P58: =IF($B58<>"",O58/((1+'Input Data'!$C$15)^'MT Economical Ev.'!B58),"") ->  | S58: =IF(S57<$C$9,S57+1,"") -> 11 | T58: 2032 | U58: -7200 | V58: -2090 | Y58: 0 | AA58: =IF($S58<>"",-SUM('Financial Ev.'!$K$147:$K$158),"") -> 0 | AC58: 66189.2 | AE58: =IF($S58<>"",-('Pollutant Externalities'!M52+'Noise externalities'!AQ46),"") ->  | AG58: =IF($S58<>"",AF58/((1+'Input Data'!$C$15)^'MT Economical Ev.'!S58),"") -> 
B59: 12 | C59: 2033 | D59: -7200 | E59: -1240 | H59: -9855.75 | J59: =IF($B59<>"",-SUM('Financial Ev.'!$D$159:$D$170),"") -> 0 | L59: 66189.2 | N59: =+IF(B59<>"",-('Pollutant Externalities'!M23+'Noise externalities'!AQ23),"") ->  | P59: =IF($B59<>"",O59/((1+'Input Data'!$C$15)^'MT Economical Ev.'!B59),"") ->  | S59: =IF(S58<$C$9,S58+1,"") -> 12 | T59: 2033 | U59: -7200 | V59: -2090 | Y59: 0 | AA59: =IF($S59<>"",-SUM('Financial Ev.'!$K$159:$K$170),"") -> 0 | AC59: 66189.2 | AE59: =IF($S59<>"",-('Pollutant Externalities'!M53+'Noise externalities'!AQ47),"") ->  | AG59: =IF($S59<>"",AF59/((1+'Input Data'!$C$15)^'MT Economical Ev.'!S59),"") -> 
B60: 13 | C60: 2034 | D60: -7200 | E60: -1240 | H60: -9855.75 | J60: =IF($B60<>"",-SUM('Financial Ev.'!$D$171:$D$182),"") -> 0 | L60: 66189.2 | N60: =+IF(B60<>"",-('Pollutant Externalities'!M24+'Noise externalities'!AQ24),"") ->  | P60: =IF($B60<>"",O60/((1+'Input Data'!$C$15)^'MT Economical Ev.'!B60),"") ->  | S60: =IF(S59<$C$9,S59+1,"") -> 13 | T60: 2034 | U60: -7200 | V60: -2090 | Y60: 0 | AA60: =IF($S60<>"",-SUM('Financial Ev.'!$K$171:$K$182),"") -> 0 | AC60: 66189.2 | AE60: =IF($S60<>"",-('Pollutant Externalities'!M54+'Noise externalities'!AQ48),"") ->  | AG60: =IF($S60<>"",AF60/((1+'Input Data'!$C$15)^'MT Economical Ev.'!S60),"") -> 
B61: 14 | C61: 2035 | D61: -7200 | E61: -1240 | H61: -9855.75 | J61: =IF($B61<>"",-SUM('Financial Ev.'!$D$183:$D$294),"") -> 0 | L61: 66189.2 | N61: =+IF(B61<>"",-('Pollutant Externalities'!M25+'Noise externalities'!AQ25),"") ->  | P61: =IF($B61<>"",O61/((1+'Input Data'!$C$15)^'MT Economical Ev.'!B61),"") ->  | S61: =IF(S60<$C$9,S60+1,"") -> 14 | T61: 2035 | U61: -7200 | V61: -2090 | Y61: 0 | AA61: =IF($S61<>"",-SUM('Financial Ev.'!$K$183:$K$294),"") -> 0 | AC61: 66189.2 | AE61: =IF($S61<>"",-('Pollutant Externalities'!M55+'Noise externalities'!AQ49),"") ->  | AG61: =IF($S61<>"",AF61/((1+'Input Data'!$C$15)^'MT Economical Ev.'!S61),"") -> 
J62: =IF($B62<>"",-SUM('Financial Ev.'!$D$195:$D$206),"") ->  | N62: =+IF(B62<>"",-('Pollutant Externalities'!M26+'Noise externalities'!AQ26),"") ->  | P62: =IF($B62<>"",O62/((1+'Input Data'!$C$15)^'MT Economical Ev.'!B62),"") ->  | S62: =IF(S61<$C$9,S61+1,"") ->  | AA62: =IF($S62<>"",-SUM('Financial Ev.'!$K$195:$K$206),"") ->  | AE62: =IF($S62<>"",-('Pollutant Externalities'!M56+'Noise externalities'!AQ50),"") ->  | AG62: =IF($S62<>"",AF62/((1+'Input Data'!$C$15)^'MT Economical Ev.'!S62),"") -> 
B64: Total | D64: =+SUM(D47:D62) -> -100800 | E64: -17360 | H64: -137980.5 | J64: -140824.0829 | K64: -76000 | L64: 926648.8 | S64: Total | U64: =+SUM(U47:U62) -> -100800 | V64: -29260 | Y64: 0 | AA64: -216073.7997 | AB64: -172500 | AC64: 926648.8
B66: Total Cost of Ownership (TCO) | D66: =+$B$6 -> | | M | P66: Externalities | S66: Total Cost of Ownership (TCO) | U66: =+S6 -> | | M | AG66: Externalities
B67: Assessment Period | C67: Year of Assessment | D67: Personnel Costs | E67: Fixed Operating Costs | F67: Fuel costs | G67: Electricity Cost | H67: Maintenance Costs | I67: Battery Costs | J67: Financial Costs | K67: Investment Costs | L67: Socio-Environmental Costs | M67: Total | P67: GHG | Q67: Noise | S67: Assessment Period | T67: Year of Assessment | U67: Personnel Costs | V67: Fixed Operating Costs | W67: Fuel costs | X67: Electricity Cost | Y67: Maintenance Costs | Z67: Battery Costs | AA67: Financial Costs | AB67: Investment Costs | AC67: Socio-Environmental Costs | AD67: Total | AG67: GHG | AH67: Noise
B68: =+B47 -> 0 | C68: =+C47 -> 2021 | D68: =-D47 -> 0 | E68: 0 | F68: 0 | G68: 0 | H68: 0 | I68: 0 | J68: 0 | K68: =IF($B68<>"",-K47,"") -> 76000 | L68: 0 | M68: =IF($B68<>"",SUM(D68:L68),"") -> 76000 | P68: =+'Pollutant Externalities'!M11 ->  | Q68: =+'Noise externalities'!AQ11 -> 0 | S68: =+S47 -> 0 | T68: =+T47 -> 2021 | U68: =-U47 -> 0 | V68: 0 | W68: 0 | X68: 0 | Y68: 0 | Z68: 0 | AA68: 0 | AB68: =IF($B68<>"",-AB47,"") -> 172500 | AC68: 0 | AD68: =IF($B68<>"",SUM(U68:AC68),"") -> 172500 | AG68: =+'Pollutant Externalities'!M41 ->  | AH68: =+'Noise externalities'!AQ35 -> 0
B69: =+B48 -> 1 | C69: =+C48 -> 2022 | D69: =IF($B69<>"",-D48/((1+'Input Data'!$C$15)^$B69),"") -> 6792.45283 | E69: =IF($B69<>"",-E48/((1+'Input Data'!$C$15)^$B69),"") -> 1169.811321 | F69: =IF($B69<>"",-F48/((1+'Input Data'!$C$15)^$B69),"") ->  | G69: =IF($B69<>"",-G48/((1+'Input Data'!$C$15)^$B69),"") ->  | H69: =IF($B69<>"",-H48/((1+'Input Data'!$C$15)^$B69),"") -> 9297.877358 | I69: =IF($B69<>"",-I48/((1+'Input Data'!$C$15)^$B69),"") ->  | J69: =IF($B69<>"",-J48/((1+'Input Data'!$C$15)^$B69),"") -> 26570.58168 | K69: =IF($B69<>"",-K48/((1+'Input Data'!$C$15)^$B69),"") -> 0 | L69: =IF($B69<>"",-N48/((1+'Input Data'!$C$15)^$B69),"") ->  | M69: =IF($B69<>"",SUM(D69:L69),"") ->  | P69: =+'Pollutant Externalities'!M12 ->  | Q69: =+'Noise externalities'!AQ12 ->  | S69: =+S48 -> 1 | T69: =+T48 -> 2022 | U69: =IF($S69<>"",-U48/((1+'Input Data'!$C$15)^$S69),"") -> 6792.45283 | V69: =IF($S69<>"",-V48/((1+'Input Data'!$C$15)^$S69),"") -> 1971.698113 | W69: =IF($S69<>"",-W48/((1+'Input Data'!$C$15)^$S69),"") ->  | X69: =IF($S69<>"",-X48/((1+'Input Data'!$C$15)^$S69),"") ->  | Y69: =IF($S69<>"",-Y48/((1+'Input Data'!$C$15)^$S69),"") -> 0 | Z69: =IF($S69<>"",-Z48/((1+'Input Data'!$C$15)^$S69),"") ->  | AA69: =IF($S69<>"",-AA48/((1+'Input Data'!$C$15)^$S69),"") -> 33973.86788 | AB69: =IF($S69<>"",-AB48/((1+'Input Data'!$C$15)^$S69),"") -> 0 | AC69: =IF($S69<>"",-AE48/((1+'Input Data'!$C$15)^$S69),"") ->  | AD69: =IF($B69<>"",SUM(U69:AC69),"") ->  | AG69: =+'Pollutant Externalities'!M42 ->  | AH69: =+'Noise externalities'!AQ36 -> 
B70: =IF(B69<$C$9,B69+1,"") -> 2 | C70: =+C49 -> 2023 | D70: =IF($B70<>"",-D49/((1+'Input Data'!$C$15)^$B70),"") -> 6407.974368 | E70: =IF($B70<>"",-E49/((1+'Input Data'!$C$15)^$B70),"") -> 1103.595586 | F70: =IF($B70<>"",-F49/((1+'Input Data'!$C$15)^$B70),"") ->  | G70: =IF($B70<>"",-G49/((1+'Input Data'!$C$15)^$B70),"") ->  | H70: =IF($B70<>"",-H49/((1+'Input Data'!$C$15)^$B70),"") -> 8771.582414 | I70: =IF($B70<>"",-I49/((1+'Input Data'!$C$15)^$B70),"") ->  | J70: =IF($B70<>"",-J49/((1+'Input Data'!$C$15)^$B70),"") -> 25066.58649 | K70: =IF($B70<>"",-K49/((1+'Input Data'!$C$15)^$B70),"") -> 0 | L70: =IF($B70<>"",-N49/((1+'Input Data'!$C$15)^$B70),"") ->  | P70: =+'Pollutant Externalities'!M13 ->  | Q70: =+'Noise externalities'!AQ13 ->  | S70: =IF(S69<$C$9,S69+1,"") -> 2 | T70: =+T49 -> 2023 | U70: =IF($S70<>"",-U49/((1+'Input Data'!$C$15)^$S70),"") -> 6407.974368 | V70: =IF($S70<>"",-V49/((1+'Input Data'!$C$15)^$S70),"") -> 1860.09256 | W70: =IF($S70<>"",-W49/((1+'Input Data'!$C$15)^$S70),"") ->  | X70: =IF($S70<>"",-X49/((1+'Input Data'!$C$15)^$S70),"") ->  | Y70: =IF($S70<>"",-Y49/((1+'Input Data'!$C$15)^$S70),"") -> 0 | Z70: =IF($S70<>"",-Z49/((1+'Input Data'!$C$15)^$S70),"") ->  | AA70: =IF($S70<>"",-AA49/((1+'Input Data'!$C$15)^$S70),"") -> 32050.81875 | AB70: =IF($S70<>"",-AB49/((1+'Input Data'!$C$15)^$S70),"") -> 0 | AC70: =IF($S70<>"",-AE49/((1+'Input Data'!$C$15)^$S70),"") ->  | AG70: =+'Pollutant Externalities'!M43 ->  | AH70: =+'Noise externalities'!AQ37 -> 
B71: =IF(B70<$C$9,B70+1,"") -> 3 | C71: 2024 | D71: =IF($B71<>"",-D50/((1+'Input Data'!$C$15)^$B71),"") -> 6045.258838 | E71: =IF($B71<>"",-E50/((1+'Input Data'!$C$15)^$B71),"") -> 1041.127911 | F71: =IF($B71<>"",-F50/((1+'Input Data'!$C$15)^$B71),"") ->  | G71: =IF($B71<>"",-G50/((1+'Input Data'!$C$15)^$B71),"") ->  | H71: =IF($B71<>"",-H50/((1+'Input Data'!$C$15)^$B71),"") -> 8275.077749 | I71: =IF($B71<>"",-I50/((1+'Input Data'!$C$15)^$B71),"") ->  | J71: =IF($B71<>"",-J50/((1+'Input Data'!$C$15)^$B71),"") -> 23647.72311 | K71: =IF($B71<>"",-K50/((1+'Input Data'!$C$15)^$B71),"") -> 0 | L71: =IF($B71<>"",-N50/((1+'Input Data'!$C$15)^$B71),"") ->  | P71: =+'Pollutant Externalities'!M14 ->  | Q71: =+'Noise externalities'!AQ14 ->  | S71: 3 | T71: 2024 | U71: =IF($S71<>"",-U50/((1+'Input Data'!$C$15)^$S71),"") -> 6045.258838 | V71: =IF($S71<>"",-V50/((1+'Input Data'!$C$15)^$S71),"") -> 1754.804302 | W71: =IF($S71<>"",-W50/((1+'Input Data'!$C$15)^$S71),"") ->  | X71: =IF($S71<>"",-X50/((1+'Input Data'!$C$15)^$S71),"") ->  | Y71: =IF($S71<>"",-Y50/((1+'Input Data'!$C$15)^$S71),"") -> 0 | Z71: =IF($S71<>"",-Z50/((1+'Input Data'!$C$15)^$S71),"") ->  | AA71: =IF($S71<>"",-AA50/((1+'Input Data'!$C$15)^$S71),"") -> 30236.62147 | AB71: =IF($S71<>"",-AB50/((1+'Input Data'!$C$15)^$S71),"") -> 0 | AC71: =IF($S71<>"",-AE50/((1+'Input Data'!$C$15)^$S71),"") ->  | AG71: =+'Pollutant Externalities'!M44 ->  | AH71: =+'Noise externalities'!AQ38 -> 
B72: 4 | C72: 2025 | D72: =IF($B72<>"",-D51/((1+'Input Data'!$C$15)^$B72),"") -> 5703.074375 | E72: =IF($B72<>"",-E51/((1+'Input Data'!$C$15)^$B72),"") -> 982.1961424 | F72: =IF($B72<>"",-F51/((1+'Input Data'!$C$15)^$B72),"") ->  | G72: =IF($B72<>"",-G51/((1+'Input Data'!$C$15)^$B72),"") ->  | H72: =IF($B72<>"",-H51/((1+'Input Data'!$C$15)^$B72),"") -> 7806.677121 | I72: =IF($B72<>"",-I51/((1+'Input Data'!$C$15)^$B72),"") ->  | J72: =IF($B72<>"",-J51/((1+'Input Data'!$C$15)^$B72),"") -> 22309.17274 | K72: =IF($B72<>"",-K51/((1+'Input Data'!$C$15)^$B72),"") -> 0 | L72: =IF($B72<>"",-N51/((1+'Input Data'!$C$15)^$B72),"") ->  | P72: =+'Pollutant Externalities'!M15 ->  | Q72: =+'Noise externalities'!AQ15 ->  | S72: 4 | T72: 2025 | U72: =IF($S72<>"",-U51/((1+'Input Data'!$C$15)^$S72),"") -> 5703.074375 | V72: =IF($S72<>"",-V51/((1+'Input Data'!$C$15)^$S72),"") -> 1655.475756 | W72: =IF($S72<>"",-W51/((1+'Input Data'!$C$15)^$S72),"") ->  | X72: =IF($S72<>"",-X51/((1+'Input Data'!$C$15)^$S72),"") ->  | Y72: =IF($S72<>"",-Y51/((1+'Input Data'!$C$15)^$S72),"") -> 0 | Z72: =IF($S72<>"",-Z51/((1+'Input Data'!$C$15)^$S72),"") ->  | AA72: =IF($S72<>"",-AA51/((1+'Input Data'!$C$15)^$S72),"") -> 28525.11459 | AB72: =IF($S72<>"",-AB51/((1+'Input Data'!$C$15)^$S72),"") -> 0 | AC72: =IF($S72<>"",-AE51/((1+'Input Data'!$C$15)^$S72),"") ->  | AG72: =+'Pollutant Externalities'!M45 ->  | AH72: =+'Noise externalities'!AQ39 -> 
B73: =IF(B72<$C$9,B72+1,"") -> 5 | C73: 2026 | D73: =IF($B73<>"",-D52/((1+'Input Data'!$C$15)^$B73),"") -> 5380.258845 | E73: =IF($B73<>"",-E52/((1+'Input Data'!$C$15)^$B73),"") -> 926.6001344 | F73: =IF($B73<>"",-F52/((1+'Input Data'!$C$15)^$B73),"") ->  | G73: =IF($B73<>"",-G52/((1+'Input Data'!$C$15)^$B73),"") ->  | H73: =IF($B73<>"",-H52/((1+'Input Data'!$C$15)^$B73),"") -> 7364.789737 | I73: =IF($B73<>"",-I52/((1+'Input Data'!$C$15)^$B73),"") ->  | J73: =IF($B73<>"",-J52/((1+'Input Data'!$C$15)^$B73),"") -> 21046.38938 | K73: =IF($B73<>"",-K52/((1+'Input Data'!$C$15)^$B73),"") -> 0 | L73: =IF($B73<>"",-N52/((1+'Input Data'!$C$15)^$B73),"") ->  | P73: =+'Pollutant Externalities'!M16 ->  | Q73: =+'Noise externalities'!AQ16 ->  | S73: 5 | T73: 2026 | U73: =IF($S73<>"",-U52/((1+'Input Data'!$C$15)^$S73),"") -> 5380.258845 | V73: =IF($S73<>"",-V52/((1+'Input Data'!$C$15)^$S73),"") -> 1561.769581 | W73: =IF($S73<>"",-W52/((1+'Input Data'!$C$15)^$S73),"") ->  | X73: =IF($S73<>"",-X52/((1+'Input Data'!$C$15)^$S73),"") ->  | Y73: =IF($S73<>"",-Y52/((1+'Input Data'!$C$15)^$S73),"") -> 0 | Z73: =IF($S73<>"",-Z52/((1+'Input Data'!$C$15)^$S73),"") ->  | AA73: =IF($S73<>"",-AA52/((1+'Input Data'!$C$15)^$S73),"") -> 26910.48546 | AB73: =IF($S73<>"",-AB52/((1+'Input Data'!$C$15)^$S73),"") -> 0 | AC73: =IF($S73<>"",-AE52/((1+'Input Data'!$C$15)^$S73),"") ->  | AG73: =+'Pollutant Externalities'!M46 ->  | AH73: =+'Noise externalities'!AQ40 -> 
B74: 6 | C74: 2027 | D74: =IF($B74<>"",-D53/((1+'Input Data'!$C$15)^$B74),"") -> 5075.715891 | E74: =IF($B74<>"",-E53/((1+'Input Data'!$C$15)^$B74),"") -> 874.1510701 | F74: =IF($B74<>"",-F53/((1+'Input Data'!$C$15)^$B74),"") ->  | G74: =IF($B74<>"",-G53/((1+'Input Data'!$C$15)^$B74),"") ->  | H74: =IF($B74<>"",-H53/((1+'Input Data'!$C$15)^$B74),"") -> 6947.914846 | I74: =IF($B74<>"",-I53/((1+'Input Data'!$C$15)^$B74),"") ->  | J74: =IF($B74<>"",-J53/((1+'Input Data'!$C$15)^$B74),"") -> 0 | K74: =IF($B74<>"",-K53/((1+'Input Data'!$C$15)^$B74),"") -> 0 | L74: =IF($B74<>"",-N53/((1+'Input Data'!$C$15)^$B74),"") ->  | P74: =+'Pollutant Externalities'!M17 ->  | Q74: =+'Noise externalities'!AQ17 ->  | S74: 6 | T74: 2027 | U74: =IF($S74<>"",-U53/((1+'Input Data'!$C$15)^$S74),"") -> 5075.715891 | V74: =IF($S74<>"",-V53/((1+'Input Data'!$C$15)^$S74),"") -> 1473.36753 | W74: =IF($S74<>"",-W53/((1+'Input Data'!$C$15)^$S74),"") ->  | X74: =IF($S74<>"",-X53/((1+'Input Data'!$C$15)^$S74),"") ->  | Y74: =IF($S74<>"",-Y53/((1+'Input Data'!$C$15)^$S74),"") -> 0 | Z74: =IF($S74<>"",-Z53/((1+'Input Data'!$C$15)^$S74),"") ->  | AA74: =IF($S74<>"",-AA53/((1+'Input Data'!$C$15)^$S74),"") -> 25387.25044 | AB74: =IF($S74<>"",-AB53/((1+'Input Data'!$C$15)^$S74),"") -> 0 | AC74: =IF($S74<>"",-AE53/((1+'Input Data'!$C$15)^$S74),"") ->  | AG74: =+'Pollutant Externalities'!M47 ->  | AH74: =+'Noise externalities'!AQ41 -> 
B75: 7 | C75: 2028 | D75: =IF($B75<>"",-D54/((1+'Input Data'!$C$15)^$B75),"") -> 4788.411218 | E75: =IF($B75<>"",-E54/((1+'Input Data'!$C$15)^$B75),"") -> 824.6708209 | F75: =IF($B75<>"",-F54/((1+'Input Data'!$C$15)^$B75),"") ->  | G75: =IF($B75<>"",-G54/((1+'Input Data'!$C$15)^$B75),"") ->  | H75: =IF($B75<>"",-H54/((1+'Input Data'!$C$15)^$B75),"") -> 6554.636648 | I75: =IF($B75<>"",-I54/((1+'Input Data'!$C$15)^$B75),"") ->  | J75: =IF($B75<>"",-J54/((1+'Input Data'!$C$15)^$B75),"") -> 0 | K75: =IF($B75<>"",-K54/((1+'Input Data'!$C$15)^$B75),"") -> 0 | L75: =IF($B75<>"",-N54/((1+'Input Data'!$C$15)^$B75),"") ->  | P75: =+'Pollutant Externalities'!M18 ->  | Q75: =+'Noise externalities'!AQ18 ->  | S75: 7 | T75: 2028 | U75: =IF($S75<>"",-U54/((1+'Input Data'!$C$15)^$S75),"") -> 4788.411218 | V75: =IF($S75<>"",-V54/((1+'Input Data'!$C$15)^$S75),"") -> 1389.969367 | W75: =IF($S75<>"",-W54/((1+'Input Data'!$C$15)^$S75),"") ->  | X75: =IF($S75<>"",-X54/((1+'Input Data'!$C$15)^$S75),"") ->  | Y75: =IF($S75<>"",-Y54/((1+'Input Data'!$C$15)^$S75),"") -> 0 | Z75: =IF($S75<>"",-Z54/((1+'Input Data'!$C$15)^$S75),"") ->  | AA75: =IF($S75<>"",-AA54/((1+'Input Data'!$C$15)^$S75),"") -> 0 | AB75: =IF($S75<>"",-AB54/((1+'Input Data'!$C$15)^$S75),"") -> 0 | AC75: =IF($S75<>"",-AE54/((1+'Input Data'!$C$15)^$S75),"") ->  | AG75: =+'Pollutant Externalities'!M48 ->  | AH75: =+'Noise externalities'!AQ42 -> 
B76: 8 | C76: 2029 | D76: =IF($B76<>"",-D55/((1+'Input Data'!$C$15)^$B76),"") -> 4517.369074 | E76: =IF($B76<>"",-E55/((1+'Input Data'!$C$15)^$B76),"") -> 777.9913405 | F76: =IF($B76<>"",-F55/((1+'Input Data'!$C$15)^$B76),"") ->  | G76: =IF($B76<>"",-G55/((1+'Input Data'!$C$15)^$B76),"") ->  | H76: =IF($B76<>"",-H55/((1+'Input Data'!$C$15)^$B76),"") -> 6183.619479 | I76: =IF($B76<>"",-I55/((1+'Input Data'!$C$15)^$B76),"") ->  | J76: =IF($B76<>"",-J55/((1+'Input Data'!$C$15)^$B76),"") -> 0 | K76: =IF($B76<>"",-K55/((1+'Input Data'!$C$15)^$B76),"") -> 0 | L76: =IF($B76<>"",-N55/((1+'Input Data'!$C$15)^$B76),"") ->  | P76: =+'Pollutant Externalities'!M19 ->  | Q76: =+'Noise externalities'!AQ19 ->  | S76: 8 | T76: 2029 | U76: =IF($S76<>"",-U55/((1+'Input Data'!$C$15)^$S76),"") -> 4517.369074 | V76: =IF($S76<>"",-V55/((1+'Input Data'!$C$15)^$S76),"") -> 1311.291856 | W76: =IF($S76<>"",-W55/((1+'Input Data'!$C$15)^$S76),"") ->  | X76: =IF($S76<>"",-X55/((1+'Input Data'!$C$15)^$S76),"") ->  | Y76: =IF($S76<>"",-Y55/((1+'Input Data'!$C$15)^$S76),"") -> 0 | Z76: =IF($S76<>"",-Z55/((1+'Input Data'!$C$15)^$S76),"") ->  | AA76: =IF($S76<>"",-AA55/((1+'Input Data'!$C$15)^$S76),"") -> 0 | AB76: =IF($S76<>"",-AB55/((1+'Input Data'!$C$15)^$S76),"") -> 0 | AC76: =IF($S76<>"",-AE55/((1+'Input Data'!$C$15)^$S76),"") ->  | AG76: =+'Pollutant Externalities'!M49 ->  | AH76: =+'Noise externalities'!AQ43 -> 
B77: 9 | C77: =+C56 -> 2030 | D77: =IF($B77<>"",-D56/((1+'Input Data'!$C$15)^$B77),"") -> 4261.668937 | E77: =IF($B77<>"",-E56/((1+'Input Data'!$C$15)^$B77),"") -> 733.9540948 | F77: =IF($B77<>"",-F56/((1+'Input Data'!$C$15)^$B77),"") ->  | G77: =IF($B77<>"",-G56/((1+'Input Data'!$C$15)^$B77),"") ->  | H77: =IF($B77<>"",-H56/((1+'Input Data'!$C$15)^$B77),"") -> 5833.603282 | I77: =IF($B77<>"",-I56/((1+'Input Data'!$C$15)^$B77),"") ->  | J77: =IF($B77<>"",-J56/((1+'Input Data'!$C$15)^$B77),"") -> 0 | K77: =IF($B77<>"",-K56/((1+'Input Data'!$C$15)^$B77),"") -> 0 | L77: =IF($B77<>"",-N56/((1+'Input Data'!$C$15)^$B77),"") ->  | P77: =+'Pollutant Externalities'!M20 ->  | Q77: =+'Noise externalities'!AQ20 ->  | S77: 9 | T77: =+T56 -> 2030 | U77: =IF($S77<>"",-U56/((1+'Input Data'!$C$15)^$S77),"") -> 4261.668937 | V77: =IF($S77<>"",-V56/((1+'Input Data'!$C$15)^$S77),"") -> 1237.067789 | W77: =IF($S77<>"",-W56/((1+'Input Data'!$C$15)^$S77),"") ->  | X77: =IF($S77<>"",-X56/((1+'Input Data'!$C$15)^$S77),"") ->  | Y77: =IF($S77<>"",-Y56/((1+'Input Data'!$C$15)^$S77),"") -> 0 | Z77: =IF($S77<>"",-Z56/((1+'Input Data'!$C$15)^$S77),"") ->  | AA77: =IF($S77<>"",-AA56/((1+'Input Data'!$C$15)^$S77),"") -> 0 | AB77: =IF($S77<>"",-AB56/((1+'Input Data'!$C$15)^$S77),"") -> 0 | AC77: =IF($S77<>"",-AE56/((1+'Input Data'!$C$15)^$S77),"") ->  | AG77: =+'Pollutant Externalities'!M50 ->  | AH77: =+'Noise externalities'!AQ44 -> 
B78: 10 | C78: 2031 | D78: =IF($B78<>"",-D57/((1+'Input Data'!$C$15)^$B78),"") -> 4020.442394 | E78: =IF($B78<>"",-E57/((1+'Input Data'!$C$15)^$B78),"") -> 692.4095234 | F78: =IF($B78<>"",-F57/((1+'Input Data'!$C$15)^$B78),"") ->  | G78: =IF($B78<>"",-G57/((1+'Input Data'!$C$15)^$B78),"") ->  | H78: =IF($B78<>"",-H57/((1+'Input Data'!$C$15)^$B78),"") -> 5503.399323 | I78: =IF($B78<>"",-I57/((1+'Input Data'!$C$15)^$B78),"") ->  | J78: =IF($B78<>"",-J57/((1+'Input Data'!$C$15)^$B78),"") -> 0 | K78: =IF($B78<>"",-K57/((1+'Input Data'!$C$15)^$B78),"") -> 0 | L78: =IF($B78<>"",-N57/((1+'Input Data'!$C$15)^$B78),"") ->  | P78: =+'Pollutant Externalities'!M21 ->  | Q78: =+'Noise externalities'!AQ21 ->  | S78: 10 | T78: 2031 | U78: =IF($S78<>"",-U57/((1+'Input Data'!$C$15)^$S78),"") -> 4020.442394 | V78: =IF($S78<>"",-V57/((1+'Input Data'!$C$15)^$S78),"") -> 1167.045084 | W78: =IF($S78<>"",-W57/((1+'Input Data'!$C$15)^$S78),"") ->  | X78: =IF($S78<>"",-X57/((1+'Input Data'!$C$15)^$S78),"") ->  | Y78: =IF($S78<>"",-Y57/((1+'Input Data'!$C$15)^$S78),"") -> 0 | Z78: =IF($S78<>"",-Z57/((1+'Input Data'!$C$15)^$S78),"") ->  | AA78: =IF($S78<>"",-AA57/((1+'Input Data'!$C$15)^$S78),"") -> 0 | AB78: =IF($S78<>"",-AB57/((1+'Input Data'!$C$15)^$S78),"") -> 0 | AC78: =IF($S78<>"",-AE57/((1+'Input Data'!$C$15)^$S78),"") ->  | AG78: =+'Pollutant Externalities'!M51 ->  | AH78: =+'Noise externalities'!AQ45 -> 
B79: =IF(B78<$C$9,B78+1,"") -> 11 | C79: 2032 | D79: =IF($B79<>"",-D58/((1+'Input Data'!$C$15)^$B79),"") -> 3792.870183 | E79: =IF($B79<>"",-E58/((1+'Input Data'!$C$15)^$B79),"") -> 653.2165315 | F79: =IF($B79<>"",-F58/((1+'Input Data'!$C$15)^$B79),"") ->  | G79: =IF($B79<>"",-G58/((1+'Input Data'!$C$15)^$B79),"") ->  | H79: =IF($B79<>"",-H58/((1+'Input Data'!$C$15)^$B79),"") -> 5191.886153 | I79: =IF($B79<>"",-I58/((1+'Input Data'!$C$15)^$B79),"") ->  | J79: =IF($B79<>"",-J58/((1+'Input Data'!$C$15)^$B79),"") -> 0 | K79: =IF($B79<>"",-K58/((1+'Input Data'!$C$15)^$B79),"") -> 0 | L79: =IF($B79<>"",-N58/((1+'Input Data'!$C$15)^$B79),"") ->  | P79: =+'Pollutant Externalities'!M22 ->  | Q79: =+'Noise externalities'!AQ22 ->  | S79: 11 | T79: 2032 | U79: =IF($S79<>"",-U58/((1+'Input Data'!$C$15)^$S79),"") -> 3792.870183 | V79: =IF($S79<>"",-V58/((1+'Input Data'!$C$15)^$S79),"") -> 1100.985928 | W79: =IF($S79<>"",-W58/((1+'Input Data'!$C$15)^$S79),"") ->  | X79: =IF($S79<>"",-X58/((1+'Input Data'!$C$15)^$S79),"") ->  | Y79: =IF($S79<>"",-Y58/((1+'Input Data'!$C$15)^$S79),"") -> 0 | Z79: =IF($S79<>"",-Z58/((1+'Input Data'!$C$15)^$S79),"") ->  | AA79: =IF($S79<>"",-AA58/((1+'Input Data'!$C$15)^$S79),"") -> 0 | AB79: =IF($S79<>"",-AB58/((1+'Input Data'!$C$15)^$S79),"") -> 0 | AC79: =IF($S79<>"",-AE58/((1+'Input Data'!$C$15)^$S79),"") ->  | AG79: =+'Pollutant Externalities'!M52 ->  | AH79: =+'Noise externalities'!AQ46 -> 
B80: =IF(B79<$C$9,B79+1,"") -> 12 | C80: 2033 | D80: =IF($B80<>"",-D59/((1+'Input Data'!$C$15)^$B80),"") -> 3578.179418 | E80: =IF($B80<>"",-E59/((1+'Input Data'!$C$15)^$B80),"") -> 616.2420108 | F80: =IF($B80<>"",-F59/((1+'Input Data'!$C$15)^$B80),"") ->  | G80: =IF($B80<>"",-G59/((1+'Input Data'!$C$15)^$B80),"") ->  | H80: =IF($B80<>"",-H59/((1+'Input Data'!$C$15)^$B80),"") -> 4898.005805 | I80: =IF($B80<>"",-I59/((1+'Input Data'!$C$15)^$B80),"") ->  | J80: =IF($B80<>"",-J59/((1+'Input Data'!$C$15)^$B80),"") -> 0 | K80: =IF($B80<>"",-K59/((1+'Input Data'!$C$15)^$B80),"") -> 0 | L80: =IF($B80<>"",-N59/((1+'Input Data'!$C$15)^$B80),"") ->  | P80: =+'Pollutant Externalities'!M23 ->  | Q80: =+'Noise externalities'!AQ23 ->  | S80: 12 | T80: 2033 | U80: =IF($S80<>"",-U59/((1+'Input Data'!$C$15)^$S80),"") -> 3578.179418 | V80: =IF($S80<>"",-V59/((1+'Input Data'!$C$15)^$S80),"") -> 1038.66597 | W80: =IF($S80<>"",-W59/((1+'Input Data'!$C$15)^$S80),"") ->  | X80: =IF($S80<>"",-X59/((1+'Input Data'!$C$15)^$S80),"") ->  | Y80: =IF($S80<>"",-Y59/((1+'Input Data'!$C$15)^$S80),"") -> 0 | Z80: =IF($S80<>"",-Z59/((1+'Input Data'!$C$15)^$S80),"") ->  | AA80: =IF($S80<>"",-AA59/((1+'Input Data'!$C$15)^$S80),"") -> 0 | AB80: =IF($S80<>"",-AB59/((1+'Input Data'!$C$15)^$S80),"") -> 0 | AC80: =IF($S80<>"",-AE59/((1+'Input Data'!$C$15)^$S80),"") ->  | AG80: =+'Pollutant Externalities'!M53 ->  | AH80: =+'Noise externalities'!AQ47 -> 
B81: =IF(B80<$C$9,B80+1,"") -> 13 | C81: 2034 | D81: =IF($B81<>"",-D60/((1+'Input Data'!$C$15)^$B81),"") -> 3375.64096 | E81: =IF($B81<>"",-E60/((1+'Input Data'!$C$15)^$B81),"") -> 581.3603876 | F81: =IF($B81<>"",-F60/((1+'Input Data'!$C$15)^$B81),"") ->  | G81: =IF($B81<>"",-G60/((1+'Input Data'!$C$15)^$B81),"") ->  | H81: =IF($B81<>"",-H60/((1+'Input Data'!$C$15)^$B81),"") -> 4620.760193 | I81: =IF($B81<>"",-I60/((1+'Input Data'!$C$15)^$B81),"") ->  | J81: =IF($B81<>"",-J60/((1+'Input Data'!$C$15)^$B81),"") -> 0 | K81: =IF($B81<>"",-K60/((1+'Input Data'!$C$15)^$B81),"") -> 0 | L81: =IF($B81<>"",-N60/((1+'Input Data'!$C$15)^$B81),"") ->  | P81: =+'Pollutant Externalities'!M24 ->  | Q81: =+'Noise externalities'!AQ24 ->  | S81: 13 | T81: 2034 | U81: =IF($S81<>"",-U60/((1+'Input Data'!$C$15)^$S81),"") -> 3375.64096 | V81: =IF($S81<>"",-V60/((1+'Input Data'!$C$15)^$S81),"") -> 979.8735565 | W81: =IF($S81<>"",-W60/((1+'Input Data'!$C$15)^$S81),"") ->  | X81: =IF($S81<>"",-X60/((1+'Input Data'!$C$15)^$S81),"") ->  | Y81: =IF($S81<>"",-Y60/((1+'Input Data'!$C$15)^$S81),"") -> 0 | Z81: =IF($S81<>"",-Z60/((1+'Input Data'!$C$15)^$S81),"") ->  | AA81: =IF($S81<>"",-AA60/((1+'Input Data'!$C$15)^$S81),"") -> 0 | AB81: =IF($S81<>"",-AB60/((1+'Input Data'!$C$15)^$S81),"") -> 0 | AC81: =IF($S81<>"",-AE60/((1+'Input Data'!$C$15)^$S81),"") ->  | AG81: =+'Pollutant Externalities'!M54 ->  | AH81: =+'Noise externalities'!AQ48 -> 
B82: =IF(B81<$C$9,B81+1,"") -> 14 | C82: 2035 | D82: =IF($B82<>"",-D61/((1+'Input Data'!$C$15)^$B82),"") -> 3184.566944 | E82: =IF($B82<>"",-E61/((1+'Input Data'!$C$15)^$B82),"") -> 548.4531958 | F82: =IF($B82<>"",-F61/((1+'Input Data'!$C$15)^$B82),"") ->  | G82: =IF($B82<>"",-G61/((1+'Input Data'!$C$15)^$B82),"") ->  | H82: =IF($B82<>"",-H61/((1+'Input Data'!$C$15)^$B82),"") -> 4359.20773 | I82: =IF($B82<>"",-I61/((1+'Input Data'!$C$15)^$B82),"") ->  | J82: =IF($B82<>"",-J61/((1+'Input Data'!$C$15)^$B82),"") -> 0 | K82: =IF($B82<>"",-K61/((1+'Input Data'!$C$15)^$B82),"") -> 0 | L82: =IF($B82<>"",-N61/((1+'Input Data'!$C$15)^$B82),"") ->  | P82: =+'Pollutant Externalities'!M25 ->  | Q82: =+'Noise externalities'!AQ25 ->  | S82: 14 | T82: 2035 | U82: =IF($S82<>"",-U61/((1+'Input Data'!$C$15)^$S82),"") -> 3184.566944 | V82: =IF($S82<>"",-V61/((1+'Input Data'!$C$15)^$S82),"") -> 924.4090156 | W82: =IF($S82<>"",-W61/((1+'Input Data'!$C$15)^$S82),"") ->  | X82: =IF($S82<>"",-X61/((1+'Input Data'!$C$15)^$S82),"") ->  | Y82: =IF($S82<>"",-Y61/((1+'Input Data'!$C$15)^$S82),"") -> 0 | Z82: =IF($S82<>"",-Z61/((1+'Input Data'!$C$15)^$S82),"") ->  | AA82: =IF($S82<>"",-AA61/((1+'Input Data'!$C$15)^$S82),"") -> 0 | AB82: =IF($S82<>"",-AB61/((1+'Input Data'!$C$15)^$S82),"") -> 0 | AC82: =IF($S82<>"",-AE61/((1+'Input Data'!$C$15)^$S82),"") ->  | AG82: =+'Pollutant Externalities'!M55 ->  | AH82: =+'Noise externalities'!AQ49 -> 
B83: =IF(B82<$C$9,B82+1,"") ->  | D83: =IF($B83<>"",-D62/((1+'Input Data'!$C$15)^$B83),"") ->  | E83: =IF($B83<>"",-E62/((1+'Input Data'!$C$15)^$B83),"") ->  | F83: =IF($B83<>"",-F62/((1+'Input Data'!$C$15)^$B83),"") ->  | G83: =IF($B83<>"",-G62/((1+'Input Data'!$C$15)^$B83),"") ->  | H83: =IF($B83<>"",-H62/((1+'Input Data'!$C$15)^$B83),"") ->  | I83: =IF($B83<>"",-I62/((1+'Input Data'!$C$15)^$B83),"") ->  | J83: =IF($B83<>"",-J62/((1+'Input Data'!$C$15)^$B83),"") ->  | K83: =IF($B83<>"",-K62/((1+'Input Data'!$C$15)^$B83),"") ->  | L83: =IF($B83<>"",-N62/((1+'Input Data'!$C$15)^$B83),"") ->  | P83: =+'Pollutant Externalities'!M26 ->  | Q83: =+'Noise externalities'!AQ26 ->  | U83: =IF($S83<>"",-U62/((1+'Input Data'!$C$15)^$S83),"") ->  | V83: =IF($S83<>"",-V62/((1+'Input Data'!$C$15)^$S83),"") ->  | W83: =IF($S83<>"",-W62/((1+'Input Data'!$C$15)^$S83),"") ->  | X83: =IF($S83<>"",-X62/((1+'Input Data'!$C$15)^$S83),"") ->  | Y83: =IF($S83<>"",-Y62/((1+'Input Data'!$C$15)^$S83),"") ->  | Z83: =IF($S83<>"",-Z62/((1+'Input Data'!$C$15)^$S83),"") ->  | AA83: =IF($S83<>"",-AA62/((1+'Input Data'!$C$15)^$S83),"") ->  | AB83: =IF($S83<>"",-AB62/((1+'Input Data'!$C$15)^$S83),"") ->  | AC83: =IF($S83<>"",-AE62/((1+'Input Data'!$C$15)^$S83),"") ->  | AG83: =+'Pollutant Externalities'!M56 ->  | AH83: =+'Noise externalities'!AQ50 -> 
B85: Total | D85: =+SUM(D68:D83) -> 66923.88427 | E85: 11525.78007 | H85: 91609.03784 | J85: 118640.4534 | K85: 76000 | M85: =+SUM(D85:L85) ->  | P85: =+SUM(P68:P83) ->  | Q85: =+SUM(Q68:Q83) ->  | S85: Total | U85: =+SUM(U68:U83) -> 66923.88427 | V85: 19426.51641 | Y85: 0 | AA85: 177084.1586 | AB85: 172500 | AD85: =+SUM(U85:AC85) ->  | AG85: =+SUM(AG68:AG83) ->  | AH85: =+SUM(AH68:AH83) -> 
B86: Unit Total | D86: =+D85/FSize -> 66923.88427 | E86: 11525.78007 | H86: 91609.03784 | J86: 118640.4534 | K86: 76000 | S86: Unit Total | U86: =+U85/FSize -> 66923.88427 | V86: 19426.51641 | Y86: 0 | AA86: 177084.1586 | AB86: 172500
B89: Economic Indicators | D89: =+$B$6 -> | | M | S89: Economic Indicators | U89: =+$S$6 -> | | M
B90: NPV | C90: Payback Period | D90: IRR | E90: Levelized cost per kilometre travelled (USD/km) | S90: NPV | T90: Payback Period | U90: IRR | V90: Levelized cost per kilometre travelled (USD/km)
B91: =+IF(OR(Motor1="",Ener1="",Size1="",CAPA1=""),"",SUM(P47:P62)) ->  | C91: =+IF(OR(Motor1="",Ener1="",Size1="",CAPA1=""),"",IFERROR(COUNTIF($Q$48:$Q$62,"<0")+(ABS(INDEX(Q48:Q62,COUNTIF($Q$48:$Q$62,"<0"),1))/INDEX(P48:P62,COUNTIF($Q$48:$Q$62,"<0")+1,1)),Aux_Tab!$D$128)) ->  | D91: =IF(OR(Motor1="",Ener1="",Size1="",CAPA1=""),"",IFERROR(IRR(O47:O62),INDEX(Aux_Tab!$D$123:$D$125,Code_language,1))) ->  | E91: =+IF(OR(Motor1="",Ener1="",Size1="",CAPA1=""),"",SUM(D85:K85)/SUM(F28:F43)) ->  | S91: =+IF(OR(Motor2="",Ener2="",Size2="",CAPA2=""),"",SUM(AG47:AG62)) ->  | T91: =+IF(OR(Motor2="",Ener2="",Size2="",CAPA2=""),"",IFERROR(COUNTIF($AH$48:$AH$62,"<0")+(ABS(INDEX(AH48:AH62,COUNTIF($AH$48:$AH$62,"<0"),1))/INDEX(AG48:AG62,COUNTIF($AH$48:$AH$62,"<0")+1,1)),Aux_Tab!$D$128)) ->  | U91: =IF(OR(Motor2="",Ener2="",Size2="",CAPA2=""),"",IFERROR(IRR(AF47:AF62),INDEX(Aux_Tab!$D$123:$D$125,Code_language,1))) ->  | V91: =+IF(OR(Motor2="",Ener2="",Size2="",CAPA2=""),"",SUM(U85:AB85)/SUM(W28:W43)) -> 
B96: Fleet Summary
B97: Traditional Mechanism TCO per unit | C97: =+'MT Economical Ev.'!D67 -> Personnel Costs | D97: =+'MT Economical Ev.'!E67 -> Fixed Operating Costs | E97: =+'MT Economical Ev.'!F67 -> Fuel costs | F97: =+'MT Economical Ev.'!G67 -> Electricity Cost | G97: =+'MT Economical Ev.'!H67 -> Maintenance Costs | H97: =+'MT Economical Ev.'!I67 -> Battery Costs | I97: =+'MT Economical Ev.'!J67 -> Financial Costs | J97: =+'MT Economical Ev.'!K67 -> Investment Costs | K97: =+'MT Economical Ev.'!L67 -> Socio-Environmental Costs | L97: =+'MT Economical Ev.'!M67 -> Total
B98: =Motor1&" | "&'MT Economical Ev.'!B6 -> | | | M | C98: =+'MT Economical Ev.'!D86 -> 66923.88427 | D98: =+'MT Economical Ev.'!E86 -> 11525.78007 | E98: =+'MT Economical Ev.'!F86 ->  | F98: =+'MT Economical Ev.'!G86 ->  | G98: =+'MT Economical Ev.'!H86 -> 91609.03784 | H98: =+'MT Economical Ev.'!I86 ->  | I98: =+'MT Economical Ev.'!J86 -> 118640.4534 | J98: =+'MT Economical Ev.'!K86 -> 76000 | K98: =+'MT Economical Ev.'!L86 ->  | L98: =+'MT Economical Ev.'!M86 -> 
B99: =Motor2&" | "&'MT Economical Ev.'!S6 -> | | | M | C99: =+'MT Economical Ev.'!U86 -> 66923.88427 | D99: =+'MT Economical Ev.'!V86 -> 19426.51641 | E99: =+'MT Economical Ev.'!W86 ->  | F99: =+'MT Economical Ev.'!X86 ->  | G99: =+'MT Economical Ev.'!Y86 -> 0 | H99: =+'MT Economical Ev.'!Z86 ->  | I99: =+'MT Economical Ev.'!AA86 -> 177084.1586 | J99: =+'MT Economical Ev.'!AB86 -> 172500 | K99: =+'MT Economical Ev.'!AC86 ->  | L99: =+'MT Economical Ev.'!AD86 -> 

Sheet CDM Economic Ev.
B1: Leasing Mechanism
B2: The economic evaluation of both fleets is presented considering the different costs and revenues and the Leasing Mechanism.
B4: Fleet 1 | S4: Fleet 2
B5: =+_xlfn.CONCAT(Motor1," |",Ener1) -> | | S5: =+_xlfn.CONCAT(Motor2," |",Ener2) -> |
B6: =+_xlfn.CONCAT(Ener1," | ", 'Input Data'!C36, " | ", Size1, " M") -> | | M | S6: =+_xlfn.CONCAT(Ener2," | ", CAPA2, " | ", Size2, " M") -> | | M
C8: Operation & Maintenance Costs | F8: Fixed Operating Costs | I8: Revenues | T8: Operation & Maintenance Costs | W8: Fixed Operating Costs | Z8: Revenues
B9: Years of evaluation | C9: =Year -> 14 | D9: Years | E9: Energy source 1 | F9: =+Code_ener_1 ->  | G9: - | H9: Passengers | I9: =PAX -> 94556 | J9: =+'Input Data'!E8 -> pass/year/bus | S9: Years of evaluation | T9: =Year -> 14 | U9: Years | V9: Energy source 1 | W9: =+Code_ener_2 ->  | X9: - | Y9: Passengers | Z9: =PAX -> 94556 | AA9: =+'Input Data'!E8 -> pass/year/bus
B11: Activity level | C11: =+AL -> 65705 | D11: km/year-bus | E11: Energy source 2 | F11: =+IF(Code_motor_1=2,4,"") ->  | G11: - | H11: Fare | I11: =+TAR -> 0.7 | J11: =+'Input Data'!E9 -> USD/pass | S11: Activity level | T11: =+AL -> 65705 | U11: km/year-bus | V11: Energy source 2 | W11: =+IF(Code_motor_2=2,4,"") ->  | X11: - | Y11: Fare | Z11: =+TAR -> 0.7 | AA11: =+'Input Data'!E9 -> USD/pass
B13: Fuel consumption | C13: =IF($F$9=4,0,IF(Aux_Tab!$E$47=FALSE,'Input Data'!C43,'Input Data'!D43)) ->  | D13: =+'Input Data'!E43 ->  | E13: =+'Input Data'!B51 -> Remunerations | F13: =+IF(Aux_Tab!$E$47=FALSE,'Input Data'!C51,'Input Data'!D51) -> 600 | G13: =+'Input Data'!E51 -> USD/month/driver | H13: Vehicle Residual Value | I13: =+IF(Aux_Tab!$E$47=FALSE,PreUD1*'Input Data'!C40,PreUU1*'Input Data'!D40) -> 9500 | J13: =+'Input Data'!E39 -> USD/bus | S13: Fuel consumption | T13: =IF($W$9=4,0,IF(Aux_Tab!$E$48=FALSE,'Input Data'!H43,'Input Data'!I43)) ->  | U13: =+'Input Data'!J43 ->  | V13: =+'Input Data'!G51 -> Remunerations | W13: =+IF(Aux_Tab!$E$48=FALSE,'Input Data'!H51,'Input Data'!I51) -> 600 | X13: =+'Input Data'!J51 -> USD/month/driver | Y13: Vehicle Residual Value | Z13: =+IF(Aux_Tab!$E$48=FALSE,PreUD2*'Input Data'!H40,PreUU2*'Input Data'!I40) -> 0 | AA13: =+'Input Data'!J39 -> USD/bus
B15: Energy Consumption | C15: =IF(Code_motor_1=1,0,IF(Aux_Tab!$E$47=FALSE,'Input Data'!C44,'Input Data'!D44)) ->  | D15: =+'Input Data'!E44 ->  | E15: =+'Input Data'!B52 -> Administrative Costs | F15: =+IF(Aux_Tab!$E$47=FALSE,'Input Data'!C52,'Input Data'!D52) -> 20 | G15: =+'Input Data'!E52 -> USD/month/bus | H15: Battery Residual Value | I15: =+'MT Economical Ev.'!I15 -> 0 | S15: Energy Consumption | T15: =IF(Code_motor_2=1,0,IF(Aux_Tab!$E$48=FALSE,'Input Data'!H44,'Input Data'!I44)) ->  | U15: =+'Input Data'!J44 ->  | V15: =+'Input Data'!G52 -> Administrative Costs | W15: =+IF(Aux_Tab!$E$48=FALSE,'Input Data'!H52,'Input Data'!I52) -> 20 | X15: =+'Input Data'!J52 -> USD/month/bus | Y15: Battery Residual Value | Z15: =+'MT Economical Ev.'!Z15 -> 0
B17: Performance Reduction Rate | C17: =+'MT Economical Ev.'!C17 -> 0 | D17: /year | E17: =+'Input Data'!B53 -> Insurance | F17: =+IF(Aux_Tab!$E$47=FALSE,'Input Data'!C53,'Input Data'!D53) -> 1000 | G17: =+'Input Data'!E53 -> USD/year/bus | S17: Performance Reduction Rate | T17: =+'MT Economical Ev.'!T17 -> 0 | U17: /year | V17: =+'Input Data'!G53 -> Insurance | W17: =+IF(Aux_Tab!$E$48=FALSE,'Input Data'!H53,'Input Data'!I53) -> 1850 | X17: =+'Input Data'!J53 -> USD/year/bus
B19: Tyre Costs | C19: =+IF(Aux_Tab!$E$47=FALSE,'Input Data'!C48,'Input Data'!D48) -> 0.04 | D19: =+'Input Data'!E47 -> USD / km | E19: Battery capacity | F19: =+IF(Code_ener_1=4,CAPA1,"0") ->  | G19: kWh | S19: Tyre Costs | T19: =+IF(Aux_Tab!$E$48=FALSE,'Input Data'!H48,'Input Data'!I48) -> 0 | U19: =+'Input Data'!J47 -> USD / km | V19: Battery capacity | W19: =+IF(Code_ener_2=4,CAPA2,"0") ->  | X19: kWh
B21: Maintenance costs | C21: =+IF(Aux_Tab!$E$47=FALSE,'Input Data'!C49,'Input Data'!D49) -> 0.09 | D21: =+'Input Data'!E48 -> USD / km | E21: Battery Life | F21: =+IF($F$9="Electricidad",COUNTIF(Batteries!C18:Q18,"<1")+((Batteries!$D$10-(HLOOKUP(COUNTIF(Batteries!C18:Q18,"<1"),Batteries!$C$14:$Q$17,4,FALSE)))/(HLOOKUP(COUNTIF(Batteries!C18:Q18,"<1")+1,Batteries!$C$14:$Q$17,3,FALSE))),"") ->  | G21: Years | S21: Maintenance costs | T21: =+IF(Aux_Tab!$E$48=FALSE,'Input Data'!H49,'Input Data'!I49) -> 0 | U21: =+'Input Data'!J49 -> USD / km | V21: Battery Life | W21: =+IF($W$9=4,COUNTIF(Batteries!$C$24:$Q$24,"<1")+((Batteries!$D$10-(HLOOKUP(COUNTIF(Batteries!$C$24:$Q$24,"<1"),Batteries!$C$20:$Q$24,4,FALSE)))/(HLOOKUP(COUNTIF(Batteries!$C$24:$Q$24,"<1")+1,Batteries!$C$20:$Q$24,3,FALSE))),"") ->  | X21: Years
B23: Lubricant Costs | C23: =+IF(Aux_Tab!$E$47=FALSE,'Input Data'!C47,'Input Data'!D47) -> 0.02 | D23: =+'Input Data'!E49 -> USD / km | E23: Assets Lease | F23: =+'Input Data'!C69 -> 20000 | G23: USD / bus | S23: Lubricant Costs | T23: =+IF(Aux_Tab!$E$48=FALSE,'Input Data'!H47,'Input Data'!I47) -> 0 | U23: =+'Input Data'!J47 -> USD / km | V23: Assets Lease | W23: =+'Input Data'!C69 -> 20000 | X23: USD / bus
B26: Fuel and Energy Consumption | S26: Fuel and Energy Consumption
B27: Assessment Period | C27: Year of Assessment | D27: =+IF(Code_language=1,_xlfn.CONCAT("Consumo Combustibles (",IF(F9=3,"Nm3/año","L/año"),")"), IF(Code_language=2,_xlfn.CONCAT("Fuel Consumption (",IF(F9=3,"Nm3/year","L/year"),")"), IF(Code_language=3,_xlfn.CONCAT("Consommation de Carburant (",IF(F9=3,"Nm3/an","L/an"),")"),))) ->  | E27: Energy Consumption (kWh/year) | F27: Annualized activity level (km) | S27: Assessment Period | T27: Year of Assessment | U27: =IF(Code_language=1,_xlfn.CONCAT("Consumo Combustibles (",IF(W9=3,"Nm3/año","L/año"),")"), IF(Code_language=2,_xlfn.CONCAT("Fuel Consumption (",IF(W9=3,"Nm3/year","L/year"),")"), IF(Code_language=3,_xlfn.CONCAT("Consommation de Carburant (",IF(W9=3,"Nm3/an","L/an"),")"),))) ->  | V27: Energy Consumption (kWh/year) | W27: Annualized activity level (km)
B28: 0 | C28: 2021 | S28: 0 | T28: 2021
B29: =ROW()-ROW(28:28) -> 1 | C29: =+IF(B29<>"",C28+1,"") -> 2022 | D29: =+IF(B29<>"",$C$11*FSize*$C$13*(1+$C$17*B28)/100,"") ->  | E29: =+IF(B29<>"",$C$11*FSize*$C$15,"") ->  | F29: =+IF(B29<>"",$C$11*FSize/((1+'Input Data'!$C$15)^B29),"") -> 61985.84906 | S29: =ROW()-ROW(28:28) -> 1 | T29: =+IF(S29<>"",T28+1,"") -> 2022 | U29: =+IF(S29<>"",$T$11*FSize*$T$13*(1+$T$17*S28)/100,"") ->  | V29: =+IF(S29<>"",$T$11*FSize*$T$15,"") ->  | W29: =+IF(S29<>"",$T$11*FSize/((1+'Input Data'!$C$15)^S29),"") -> 61985.84906
B30: =IF(B29<$C$9,B29+1,"") -> 2 | C30: 2023 | F30: =+IF(B30<>"",$C$11*FSize/((1+'Input Data'!$C$15)^B30),"") -> 58477.21609 | S30: =IF(S29<$C$9,S29+1,"") -> 2 | T30: 2023 | W30: =+IF(S30<>"",$T$11*FSize/((1+'Input Data'!$C$15)^S30),"") -> 58477.21609
B31: 3 | C31: 2024 | F31: =+IF(B31<>"",$C$11*FSize/((1+'Input Data'!$C$15)^B31),"") -> 55167.18499 | S31: 3 | T31: 2024 | W31: =+IF(S31<>"",$T$11*FSize/((1+'Input Data'!$C$15)^S31),"") -> 55167.18499
B32: 4 | C32: 2025 | F32: =+IF(B32<>"",$C$11*FSize/((1+'Input Data'!$C$15)^B32),"") -> 52044.51414 | S32: 4 | T32: 2025 | W32: =+IF(S32<>"",$T$11*FSize/((1+'Input Data'!$C$15)^S32),"") -> 52044.51414
B33: 5 | C33: 2026 | F33: =+IF(B33<>"",$C$11*FSize/((1+'Input Data'!$C$15)^B33),"") -> 49098.59825 | S33: 5 | T33: 2026 | W33: =+IF(S33<>"",$T$11*FSize/((1+'Input Data'!$C$15)^S33),"") -> 49098.59825
B34: 6 | C34: 2027 | F34: =+IF(B34<>"",$C$11*FSize/((1+'Input Data'!$C$15)^B34),"") -> 46319.43231 | S34: 6 | T34: 2027 | W34: =+IF(S34<>"",$T$11*FSize/((1+'Input Data'!$C$15)^S34),"") -> 46319.43231
B35: 7 | C35: 2028 | F35: =+IF(B35<>"",$C$11*FSize/((1+'Input Data'!$C$15)^B35),"") -> 43697.57765 | S35: 7 | T35: 2028 | W35: =+IF(S35<>"",$T$11*FSize/((1+'Input Data'!$C$15)^S35),"") -> 43697.57765
B36: 8 | C36: 2029 | F36: =+IF(B36<>"",$C$11*FSize/((1+'Input Data'!$C$15)^B36),"") -> 41224.12986 | S36: 8 | T36: 2029 | W36: =+IF(S36<>"",$T$11*FSize/((1+'Input Data'!$C$15)^S36),"") -> 41224.12986
B37: 9 | C37: 2030 | F37: =+IF(B37<>"",$C$11*FSize/((1+'Input Data'!$C$15)^B37),"") -> 38890.68855 | S37: 9 | T37: 2030 | W37: =+IF(S37<>"",$T$11*FSize/((1+'Input Data'!$C$15)^S37),"") -> 38890.68855
B38: 10 | C38: 2031 | F38: =+IF(B38<>"",$C$11*FSize/((1+'Input Data'!$C$15)^B38),"") -> 36689.32882 | S38: 10 | T38: 2031 | W38: =+IF(S38<>"",$T$11*FSize/((1+'Input Data'!$C$15)^S38),"") -> 36689.32882
B39: 11 | C39: =+IF(B39<>"",C38+1,"") -> 2032 | D39: =+IF(B39<>"",$C$11*FSize*$C$13*(1+$C$17*B38)/100,"") ->  | E39: =+IF(B39<>"",$C$11*FSize*$C$15,"") ->  | F39: =+IF(B39<>"",$C$11*FSize/((1+'Input Data'!$C$15)^B39),"") -> 34612.57436 | S39: 11 | T39: =+IF(S39<>"",T38+1,"") -> 2032 | U39: =+IF(S39<>"",$T$11*FSize*$T$13*(1+$T$17*S38)/100,"") ->  | V39: =+IF(S39<>"",$T$11*FSize*$T$15,"") ->  | W39: =+IF(S39<>"",$T$11*FSize/((1+'Input Data'!$C$15)^S39),"") -> 34612.57436
B40: 12 | C40: =+IF(B40<>"",C39+1,"") -> 2033 | F40: =+IF(B40<>"",$C$11*FSize/((1+'Input Data'!$C$15)^B40),"") -> 32653.37203 | S40: 12 | T40: =+IF(S40<>"",T39+1,"") -> 2033 | W40: =+IF(S40<>"",$T$11*FSize/((1+'Input Data'!$C$15)^S40),"") -> 32653.37203
B41: 13 | C41: =+IF(B41<>"",C40+1,"") -> 2034 | F41: =+IF(B41<>"",$C$11*FSize/((1+'Input Data'!$C$15)^B41),"") -> 30805.06796 | S41: 13 | T41: =+IF(S41<>"",T40+1,"") -> 2034 | W41: =+IF(S41<>"",$T$11*FSize/((1+'Input Data'!$C$15)^S41),"") -> 30805.06796
B42: 14 | C42: =+IF(B42<>"",C41+1,"") -> 2035 | F42: =+IF(B42<>"",$C$11*FSize/((1+'Input Data'!$C$15)^B42),"") -> 29061.38486 | S42: 14 | T42: =+IF(S42<>"",T41+1,"") -> 2035 | W42: =+IF(S42<>"",$T$11*FSize/((1+'Input Data'!$C$15)^S42),"") -> 29061.38486
C43: =+IF(B43<>"",C42+1,"") ->  | F43: =+IF(B43<>"",$C$11*FSize/((1+'Input Data'!$C$15)^B43),"") ->  | T43: =+IF(S43<>"",T42+1,"") ->  | W43: =+IF(S43<>"",$T$11*FSize/((1+'Input Data'!$C$15)^S43),"") -> 
B45: Cash Flow - Operator | S45: Cash Flow - Operator
B46: Assessment Period | C46: Year of Assessment | D46: Personnel Costs | E46: Fixed Operating Costs | F46: Fuel costs | G46: Electricity Cost | H46: Maintenance Costs | I46: Leasing of Assets | J46: Income from ticket sales | K46: Socio-Environmental Costs | L46: Annual Flow | M46: Annualized Flows | N46: Cumulative Annualized Flows | S46: Assessment Period | T46: Year of Assessment | U46: Personnel Costs | V46: Fixed Operating Costs | W46: Fuel costs | X46: Electricity Cost | Y46: Maintenance Costs | Z46: Leasing of Assets | AA46: Income from ticket sales | AB46: Socio-Environmental Costs | AC46: Annual Flow | AD46: Annualized Flows | AE46: Cumulative Annualized Flows
B47: =+B28 -> 0 | C47: =+C28 -> 2021 | D47: 0 | E47: 0 | F47: 0 | G47: 0 | H47: 0 | I47: 0 | J47: 0 | K47: 0 | L47: =IF($B47<>"",SUM(D47:J47),"") -> 0 | M47: =IF($B47<>"",L47/((1+'Input Data'!$C$15)^'CDM Economic Ev.'!B47),"") -> 0 | N47: =+M47 -> 0 | S47: =+S28 -> 0 | T47: =+T28 -> 2021 | U47: 0 | V47: 0 | W47: 0 | X47: 0 | Y47: 0 | Z47: 0 | AA47: 0 | AB47: 0 | AC47: =IF($B47<>"",SUM(U47:AA47),"") -> 0 | AD47: =IF($B47<>"",AC47/((1+'Input Data'!$C$15)^'CDM Economic Ev.'!S47),"") -> 0 | AE47: =+AD47 -> 0
B48: =+B29 -> 1 | C48: =+C29 -> 2022 | D48: =IF($B48<>"",-Drivers*FSize*$F$13*12,"") -> -7200 | E48: =IF($B48<>"",-FSize*$F$15*12-FSize*$F$17,"") -> -1240 | F48: =IF($B48<>"",-D29*HLOOKUP(C48,IF(Code_ener_1=4,Price.E,IF(Code_ener_1=3,Price.NG,IF(Code_ener_1=2,Price.D,Price.BD))),2,FALSE),"") ->  | G48: =IF($B48<>"",-E29*HLOOKUP(C48,Price.E,2,FALSE),"") ->  | H48: =IF($B48<>"",-FSize*$C$11*($C$21+$C$19+$C$23),"") -> -9855.75 | I48: =IF($B48<>"",-FSize*$F$23,"") -> -20000 | J48: =IF($B48<>"",FSize*TAR*PAX,"") -> 66189.2 | K48: =+IF(B48<>"",-('Pollutant Externalities'!M12+'Noise externalities'!AQ12),"") ->  | L48: =IF($B48<>"",SUM(D48:J48),"") ->  | M48: =IF($B48<>"",L48/((1+'Input Data'!$C$15)^'CDM Economic Ev.'!B48),"") ->  | N48: =IF($B48<>"",N47+M48,"") ->  | S48: =+S29 -> 1 | T48: =+T29 -> 2022 | U48: =IF($S48<>"",-Drivers*FSize*$F$13*12,"") -> -7200 | V48: =IF($S48<>"",-FSize*$F$15*12-FSize*$F$17,"") -> -1240 | W48: =IF($S48<>"",-U29*HLOOKUP(T48,IF(Code_ener_2=4,Price.E,IF(Code_ener_2=3,Price.NG,IF(Code_ener_2=2,Price.D,Price.BD))),2,FALSE),"") ->  | X48: =IF($S48<>"",-V29*HLOOKUP(T48,Price.E,2,FALSE),"") ->  | Y48: =IF($S48<>"",-FSize*$T$11*($T$21+$T$19+$T$23),"") -> 0 | Z48: =IF($S48<>"",-FSize*$W$23,"") -> -20000 | AA48: =IF($S48<>"",FSize*TAR*PAX,"") -> 66189.2 | AB48: =IF($S48<>"",-('Pollutant Externalities'!M42+'Noise externalities'!AQ36),"") ->  | AC48: =IF($B48<>"",SUM(U48:AA48),"") ->  | AD48: =IF($B48<>"",AC48/((1+'Input Data'!$C$15)^'CDM Economic Ev.'!S48),"") ->  | AE48: =IF($B48<>"",AE47+AD48,"") -> 
B49: =IF(B48<$C$9,B48+1,"") -> 2 | C49: 2023 | D49: -7200 | E49: -1240 | H49: -9855.75 | I49: -20000 | J49: 66189.2 | K49: =+IF(B49<>"",-('Pollutant Externalities'!M13+'Noise externalities'!AQ13),"") ->  | M49: =IF($B49<>"",L49/((1+'Input Data'!$C$15)^'CDM Economic Ev.'!B49),"") ->  | S49: =IF(S48<$C$9,S48+1,"") -> 2 | T49: 2023 | U49: -7200 | V49: -1240 | Y49: 0 | Z49: -20000 | AA49: 66189.2 | AB49: =IF($S49<>"",-('Pollutant Externalities'!M43+'Noise externalities'!AQ37),"") ->  | AD49: =IF($B49<>"",AC49/((1+'Input Data'!$C$15)^'CDM Economic Ev.'!S49),"") -> 
B50: =IF(B49<$C$9,B49+1,"") -> 3 | C50: 2024 | D50: -7200 | E50: -1240 | H50: -9855.75 | I50: -20000 | J50: 66189.2 | K50: =+IF(B50<>"",-('Pollutant Externalities'!M14+'Noise externalities'!AQ14),"") ->  | M50: =IF($B50<>"",L50/((1+'Input Data'!$C$15)^'CDM Economic Ev.'!B50),"") ->  | S50: =IF(S49<$C$9,S49+1,"") -> 3 | T50: 2024 | U50: -7200 | V50: -1240 | Y50: 0 | Z50: -20000 | AA50: 66189.2 | AB50: =IF($S50<>"",-('Pollutant Externalities'!M44+'Noise externalities'!AQ38),"") ->  | AD50: =IF($B50<>"",AC50/((1+'Input Data'!$C$15)^'CDM Economic Ev.'!S50),"") -> 
B51: 4 | C51: 2025 | D51: -7200 | E51: -1240 | H51: -9855.75 | I51: -20000 | J51: 66189.2 | K51: =+IF(B51<>"",-('Pollutant Externalities'!M15+'Noise externalities'!AQ15),"") ->  | M51: =IF($B51<>"",L51/((1+'Input Data'!$C$15)^'CDM Economic Ev.'!B51),"") ->  | S51: 4 | T51: 2025 | U51: -7200 | V51: -1240 | Y51: 0 | Z51: -20000 | AA51: 66189.2 | AB51: =IF($S51<>"",-('Pollutant Externalities'!M45+'Noise externalities'!AQ39),"") ->  | AD51: =IF($B51<>"",AC51/((1+'Input Data'!$C$15)^'CDM Economic Ev.'!S51),"") -> 
B52: 5 | C52: 2026 | D52: -7200 | E52: -1240 | H52: -9855.75 | I52: -20000 | J52: 66189.2 | K52: =+IF(B52<>"",-('Pollutant Externalities'!M16+'Noise externalities'!AQ16),"") ->  | M52: =IF($B52<>"",L52/((1+'Input Data'!$C$15)^'CDM Economic Ev.'!B52),"") ->  | S52: 5 | T52: 2026 | U52: -7200 | V52: -1240 | Y52: 0 | Z52: -20000 | AA52: 66189.2 | AB52: =IF($S52<>"",-('Pollutant Externalities'!M46+'Noise externalities'!AQ40),"") ->  | AD52: =IF($B52<>"",AC52/((1+'Input Data'!$C$15)^'CDM Economic Ev.'!S52),"") -> 
B53: 6 | C53: 2027 | D53: -7200 | E53: -1240 | H53: -9855.75 | I53: -20000 | J53: 66189.2 | K53: =+IF(B53<>"",-('Pollutant Externalities'!M17+'Noise externalities'!AQ17),"") ->  | M53: =IF($B53<>"",L53/((1+'Input Data'!$C$15)^'CDM Economic Ev.'!B53),"") ->  | S53: 6 | T53: 2027 | U53: -7200 | V53: -1240 | Y53: 0 | Z53: -20000 | AA53: 66189.2 | AB53: =IF($S53<>"",-('Pollutant Externalities'!M47+'Noise externalities'!AQ41),"") ->  | AD53: =IF($B53<>"",AC53/((1+'Input Data'!$C$15)^'CDM Economic Ev.'!S53),"") -> 
B54: 7 | C54: 2028 | D54: -7200 | E54: -1240 | H54: -9855.75 | I54: -20000 | J54: 66189.2 | K54: =+IF(B54<>"",-('Pollutant Externalities'!M18+'Noise externalities'!AQ18),"") ->  | M54: =IF($B54<>"",L54/((1+'Input Data'!$C$15)^'CDM Economic Ev.'!B54),"") ->  | S54: 7 | T54: 2028 | U54: -7200 | V54: -1240 | Y54: 0 | Z54: -20000 | AA54: 66189.2 | AB54: =IF($S54<>"",-('Pollutant Externalities'!M48+'Noise externalities'!AQ42),"") ->  | AD54: =IF($B54<>"",AC54/((1+'Input Data'!$C$15)^'CDM Economic Ev.'!S54),"") -> 
B55: 8 | C55: 2029 | D55: -7200 | E55: -1240 | H55: -9855.75 | I55: -20000 | J55: 66189.2 | K55: =+IF(B55<>"",-('Pollutant Externalities'!M19+'Noise externalities'!AQ19),"") ->  | M55: =IF($B55<>"",L55/((1+'Input Data'!$C$15)^'CDM Economic Ev.'!B55),"") ->  | S55: 8 | T55: 2029 | U55: -7200 | V55: -1240 | Y55: 0 | Z55: -20000 | AA55: 66189.2 | AB55: =IF($S55<>"",-('Pollutant Externalities'!M49+'Noise externalities'!AQ43),"") ->  | AD55: =IF($B55<>"",AC55/((1+'Input Data'!$C$15)^'CDM Economic Ev.'!S55),"") -> 
B56: 9 | C56: 2030 | D56: -7200 | E56: -1240 | H56: -9855.75 | I56: -20000 | J56: 66189.2 | K56: =+IF(B56<>"",-('Pollutant Externalities'!M20+'Noise externalities'!AQ20),"") ->  | M56: =IF($B56<>"",L56/((1+'Input Data'!$C$15)^'CDM Economic Ev.'!B56),"") ->  | S56: 9 | T56: 2030 | U56: -7200 | V56: -1240 | Y56: 0 | Z56: -20000 | AA56: 66189.2 | AB56: =IF($S56<>"",-('Pollutant Externalities'!M50+'Noise externalities'!AQ44),"") ->  | AD56: =IF($B56<>"",AC56/((1+'Input Data'!$C$15)^'CDM Economic Ev.'!S56),"") -> 
B57: 10 | C57: 2031 | D57: -7200 | E57: -1240 | H57: -9855.75 | I57: -20000 | J57: 66189.2 | K57: =+IF(B57<>"",-('Pollutant Externalities'!M21+'Noise externalities'!AQ21),"") ->  | M57: =IF($B57<>"",L57/((1+'Input Data'!$C$15)^'CDM Economic Ev.'!B57),"") ->  | S57: 10 | T57: 2031 | U57: -7200 | V57: -1240 | Y57: 0 | Z57: -20000 | AA57: 66189.2 | AB57: =IF($S57<>"",-('Pollutant Externalities'!M51+'Noise externalities'!AQ45),"") ->  | AD57: =IF($B57<>"",AC57/((1+'Input Data'!$C$15)^'CDM Economic Ev.'!S57),"") -> 
B58: =IF(B57<$C$9,B57+1,"") -> 11 | C58: 2032 | D58: -7200 | E58: -1240 | H58: -9855.75 | I58: -20000 | J58: 66189.2 | K58: =+IF(B58<>"",-('Pollutant Externalities'!M22+'Noise externalities'!AQ22),"") ->  | M58: =IF($B58<>"",L58/((1+'Input Data'!$C$15)^'CDM Economic Ev.'!B58),"") ->  | S58: =IF(S57<$C$9,S57+1,"") -> 11 | T58: 2032 | U58: -7200 | V58: -1240 | Y58: 0 | Z58: -20000 | AA58: 66189.2 | AB58: =IF($S58<>"",-('Pollutant Externalities'!M52+'Noise externalities'!AQ46),"") ->  | AD58: =IF($B58<>"",AC58/((1+'Input Data'!$C$15)^'CDM Economic Ev.'!S58),"") -> 
B59: 12 | C59: 2033 | D59: -7200 | E59: -1240 | H59: -9855.75 | I59: -20000 | J59: 66189.2 | K59: =+IF(B59<>"",-('Pollutant Externalities'!M23+'Noise externalities'!AQ23),"") ->  | M59: =IF($B59<>"",L59/((1+'Input Data'!$C$15)^'CDM Economic Ev.'!B59),"") ->  | S59: 12 | T59: 2033 | U59: -7200 | V59: -1240 | Y59: 0 | Z59: -20000 | AA59: 66189.2 | AB59: =IF($S59<>"",-('Pollutant Externalities'!M53+'Noise externalities'!AQ47),"") ->  | AD59: =IF($B59<>"",AC59/((1+'Input Data'!$C$15)^'CDM Economic Ev.'!S59),"") -> 
B60: 13 | C60: 2034 | D60: -7200 | E60: -1240 | H60: -9855.75 | I60: -20000 | J60: 66189.2 | K60: =+IF(B60<>"",-('Pollutant Externalities'!M24+'Noise externalities'!AQ24),"") ->  | M60: =IF($B60<>"",L60/((1+'Input Data'!$C$15)^'CDM Economic Ev.'!B60),"") ->  | S60: 13 | T60: 2034 | U60: -7200 | V60: -1240 | Y60: 0 | Z60: -20000 | AA60: 66189.2 | AB60: =IF($S60<>"",-('Pollutant Externalities'!M54+'Noise externalities'!AQ48),"") ->  | AD60: =IF($B60<>"",AC60/((1+'Input Data'!$C$15)^'CDM Economic Ev.'!S60),"") -> 
B61: 14 | C61: 2035 | D61: -7200 | E61: -1240 | H61: -9855.75 | I61: -20000 | J61: 66189.2 | K61: =+IF(B61<>"",-('Pollutant Externalities'!M25+'Noise externalities'!AQ25),"") ->  | M61: =IF($B61<>"",L61/((1+'Input Data'!$C$15)^'CDM Economic Ev.'!B61),"") ->  | S61: 14 | T61: 2035 | U61: -7200 | V61: -1240 | Y61: 0 | Z61: -20000 | AA61: 66189.2 | AB61: =IF($S61<>"",-('Pollutant Externalities'!M55+'Noise externalities'!AQ49),"") ->  | AD61: =IF($B61<>"",AC61/((1+'Input Data'!$C$15)^'CDM Economic Ev.'!S61),"") -> 
K62: =+IF(B62<>"",-('Pollutant Externalities'!M26+'Noise externalities'!AQ26),"") ->  | M62: =IF($B62<>"",L62/((1+'Input Data'!$C$15)^'CDM Economic Ev.'!B62),"") ->  | AB62: =IF($S62<>"",-('Pollutant Externalities'!M56+'Noise externalities'!AQ50),"") ->  | AD62: =IF($B62<>"",AC62/((1+'Input Data'!$C$15)^'CDM Economic Ev.'!S62),"") -> 
B64: Total | D64: =+SUM(D47:D62) -> -100800 | E64: -17360 | H64: -137980.5 | I64: =+SUM(I47:I62) -> -280000 | J64: =+SUM(J47:J62) -> 926648.8 | K64: =+SUM(K47:K62) ->  | L64: =+SUM(L47:L62) ->  | M64: =+SUM(M47:M62) ->  | S64: Total | U64: =+SUM(U47:U62) -> -100800 | V64: -17360 | Y64: 0 | Z64: =+SUM(Z47:Z62) -> -280000 | AA64: =+SUM(AA47:AA62) -> 926648.8 | AB64: =+SUM(AB47:AB62) ->  | AC64: =+SUM(AC47:AC62) ->  | AD64: =+SUM(AD47:AD62) -> 
B66: Cash Flow - Fleet Provider | S66: Cash Flow - Fleet Provider
B67: Assessment Period | C67: Year of Assessment | D67: Fixed Operating Costs | E67: Personnel Costs | F67: Financial Costs | G67: Investment Costs | H67: Battery Costs | I67: Asset Lease & Terminal Management Revenues | J67: Other Revenues | K67: Annual Flow | L67: Annualized Flows | M67: Cumulative Annualized Flows | S67: Assessment Period | T67: Year of Assessment | U67: Fixed Operating Costs | V67: Personnel Costs | W67: Financial Costs | X67: Investment Costs | Y67: Battery Costs | Z67: Asset Lease & Terminal Management Revenues | AA67: Other Revenues | AB67: Annual Flow | AC67: Annualized Flows | AD67: Cumulative Annualized Flows
B68: =+B47 -> 0 | C68: 2021 | D68: 0 | E68: 0 | F68: 0 | G68: =-(IF(Aux_Tab!E47=FALSE,FSize*PreUD1+PrID1,FSize*PreUU1+PrIU1))*(1+VAT)*'Input Data'!C62 -> -76000 | H68: 0 | I68: 0 | J68: 0 | K68: =IF($B68<>"",SUM(D68:J68),"") -> -76000 | L68: =IF($B68<>"",K68/((1+'Input Data'!$C$15)^'CDM Economic Ev.'!B68),"") -> -76000 | M68: =+L68 -> -76000 | S68: =+S47 -> 0 | T68: =+T47 -> 2021 | U68: 0 | V68: 0 | W68: 0 | X68: =-(IF(Aux_Tab!E48=FALSE,FSize*PreUD2+PrID2,FSize*PreUU2+PrIU2))*(1+VAT)*'Input Data'!H62 -> -172500 | Y68: 0 | Z68: 0 | AA68: 0 | AB68: =IF($B68<>"",SUM(U68:AA68),"") -> -172500 | AC68: =IF($B68<>"",AB68/((1+'Input Data'!$C$15)^'CDM Economic Ev.'!S68),"") -> -172500 | AD68: =+AC68 -> -172500
B69: 1 | C69: 2022 | D69: =IF($B69<>"",D48,"") -> -7200 | E69: =IF($B69<>"",-12*'Input Data'!$C$70,"") -> -18000 | F69: =IF($B69<>"",-SUM('Financial Ev.'!$D$27:$D$38),"") -> -28164.81658 | H69: =+IF(B69<>"",'MT Economical Ev.'!I48,"") ->  | I69: =IF($B69<>"",-D48-I48,"") -> 27200 | J69: =+IF(B69<>"",-H69*$I$15+IF(B69=$C$9,$I$13,0),"") ->  | L69: =IF($B69<>"",K69/((1+'Input Data'!$C$15)^'CDM Economic Ev.'!B69),"") ->  | M69: =IF($B69<>"",M68+L69,"") ->  | S69: =+S48 -> 1 | T69: =+T48 -> 2022 | U69: =IF($S69<>"",U48,"") -> -7200 | V69: =IF($S69<>"",-12*'Input Data'!$C$70,"") -> -18000 | W69: =IF($S69<>"",-SUM('Financial Ev.'!$K$27:$K$38),"") -> -36012.29995 | Y69: =+IF(S69<>"",'MT Economical Ev.'!Z48,"") ->  | Z69: =IF($S69<>"",-U48-Z48,"") -> 27200 | AA69: =+IF(S69<>"",-Y69*$Z$15+IF(S69=$C$9,$Z$13,0),"") ->  | AC69: =IF($B69<>"",AB69/((1+'Input Data'!$C$15)^'CDM Economic Ev.'!S69),"") ->  | AD69: =IF($B69<>"",AD68+AC69,"") -> 
B70: =+B49 -> 2 | C70: =+C49 -> 2023 | D70: =IF($B70<>"",D49,"") -> -7200 | E70: =IF($B70<>"",-12*'Input Data'!$C$70,"") -> -18000 | F70: =IF($B70<>"",-SUM('Financial Ev.'!$D$39:$D$50),"") -> -28164.81658 | H70: =+IF(B70<>"",'MT Economical Ev.'!I49,"") ->  | I70: 27200 | J70: =+IF(B70<>"",-H70*$I$15+IF(B70=$C$9,$I$13,0),"") ->  | L70: =IF($B70<>"",K70/((1+'Input Data'!$C$15)^'CDM Economic Ev.'!B70),"") ->  | S70: =+S49 -> 2 | T70: 2023 | U70: =IF($S70<>"",U49,"") -> -7200 | V70: =IF($S70<>"",-12*'Input Data'!$C$70,"") -> -18000 | W70: =IF($S70<>"",-SUM('Financial Ev.'!$K$39:$K$50),"") -> -36012.29995 | Y70: =+IF(S70<>"",'MT Economical Ev.'!Z49,"") ->  | Z70: =IF($S70<>"",-U49-Z49,"") -> 27200 | AA70: =+IF(S70<>"",-Y70*$Z$15+IF(S70=$C$9,$Z$13,0),"") ->  | AC70: =IF($B70<>"",AB70/((1+'Input Data'!$C$15)^'CDM Economic Ev.'!S70),"") -> 
B71: 3 | C71: 2024 | D71: -7200 | E71: =IF($B71<>"",-12*'Input Data'!$C$70,"") -> -18000 | F71: =IF($B71<>"",-SUM('Financial Ev.'!$D$51:$D$62),"") -> -28164.81658 | H71: =+IF(B71<>"",'MT Economical Ev.'!I50,"") ->  | I71: 27200 | L71: =IF($B71<>"",K71/((1+'Input Data'!$C$15)^'CDM Economic Ev.'!B71),"") ->  | S71: 3 | T71: 2024 | U71: -7200 | V71: =IF($S71<>"",-12*'Input Data'!$C$70,"") -> -18000 | W71: =IF($S71<>"",-SUM('Financial Ev.'!$K$51:$K$62),"") -> -36012.29995 | Y71: =+IF(S71<>"",'MT Economical Ev.'!Z50,"") ->  | Z71: 27200 | AC71: =IF($B71<>"",AB71/((1+'Input Data'!$C$15)^'CDM Economic Ev.'!S71),"") -> 
B72: 4 | C72: 2025 | D72: -7200 | E72: =IF($B72<>"",-12*'Input Data'!$C$70,"") -> -18000 | F72: =IF($B72<>"",-SUM('Financial Ev.'!$D$63:$D$74),"") -> -28164.81658 | H72: =+IF(B72<>"",'MT Economical Ev.'!I51,"") ->  | I72: 27200 | L72: =IF($B72<>"",K72/((1+'Input Data'!$C$15)^'CDM Economic Ev.'!B72),"") ->  | S72: 4 | T72: 2025 | U72: -7200 | V72: =IF($S72<>"",-12*'Input Data'!$C$70,"") -> -18000 | W72: =IF($S72<>"",-SUM('Financial Ev.'!$K$63:$K$74),"") -> -36012.29995 | Y72: =+IF(S72<>"",'MT Economical Ev.'!Z51,"") ->  | Z72: 27200 | AC72: =IF($B72<>"",AB72/((1+'Input Data'!$C$15)^'CDM Economic Ev.'!S72),"") -> 
B73: 5 | C73: 2026 | D73: -7200 | E73: =IF($B73<>"",-12*'Input Data'!$C$70,"") -> -18000 | F73: =IF($B73<>"",-SUM('Financial Ev.'!$D$75:$D$86),"") -> -28164.81658 | H73: =+IF(B73<>"",'MT Economical Ev.'!I52,"") ->  | I73: 27200 | L73: =IF($B73<>"",K73/((1+'Input Data'!$C$15)^'CDM Economic Ev.'!B73),"") ->  | S73: 5 | T73: 2026 | U73: -7200 | V73: =IF($S73<>"",-12*'Input Data'!$C$70,"") -> -18000 | W73: =IF($S73<>"",-SUM('Financial Ev.'!$K$75:$K$86),"") -> -36012.29995 | Y73: =+IF(S73<>"",'MT Economical Ev.'!Z52,"") ->  | Z73: 27200 | AC73: =IF($B73<>"",AB73/((1+'Input Data'!$C$15)^'CDM Economic Ev.'!S73),"") -> 
B74: 6 | C74: 2027 | D74: -7200 | E74: =IF($B74<>"",-12*'Input Data'!$C$70,"") -> -18000 | F74: =IF($B74<>"",-SUM('Financial Ev.'!$D$87:$D$98),"") -> 0 | H74: =+IF(B74<>"",'MT Economical Ev.'!I53,"") ->  | I74: 27200 | L74: =IF($B74<>"",K74/((1+'Input Data'!$C$15)^'CDM Economic Ev.'!B74),"") ->  | S74: 6 | T74: 2027 | U74: -7200 | V74: =IF($S74<>"",-12*'Input Data'!$C$70,"") -> -18000 | W74: =IF($S74<>"",-SUM('Financial Ev.'!$K$87:$K$98),"") -> -36012.29995 | Y74: =+IF(S74<>"",'MT Economical Ev.'!Z53,"") ->  | Z74: 27200 | AC74: =IF($B74<>"",AB74/((1+'Input Data'!$C$15)^'CDM Economic Ev.'!S74),"") -> 
B75: 7 | C75: 2028 | D75: -7200 | E75: =IF($B75<>"",-12*'Input Data'!$C$70,"") -> -18000 | F75: =IF($B75<>"",-SUM('Financial Ev.'!$D$99:$D$110),"") -> 0 | H75: =+IF(B75<>"",'MT Economical Ev.'!I54,"") ->  | I75: 27200 | L75: =IF($B75<>"",K75/((1+'Input Data'!$C$15)^'CDM Economic Ev.'!B75),"") ->  | S75: 7 | T75: 2028 | U75: -7200 | V75: =IF($S75<>"",-12*'Input Data'!$C$70,"") -> -18000 | W75: =IF($S75<>"",-SUM('Financial Ev.'!$K$99:$K$110),"") -> 0 | Y75: =+IF(S75<>"",'MT Economical Ev.'!Z54,"") ->  | Z75: 27200 | AC75: =IF($B75<>"",AB75/((1+'Input Data'!$C$15)^'CDM Economic Ev.'!S75),"") -> 
B76: 8 | C76: 2029 | D76: -7200 | E76: =IF($B76<>"",-12*'Input Data'!$C$70,"") -> -18000 | F76: =IF($B76<>"",-SUM('Financial Ev.'!$D$111:$D$122),"") -> 0 | H76: =+IF(B76<>"",'MT Economical Ev.'!I55,"") ->  | I76: 27200 | L76: =IF($B76<>"",K76/((1+'Input Data'!$C$15)^'CDM Economic Ev.'!B76),"") ->  | S76: 8 | T76: 2029 | U76: -7200 | V76: =IF($S76<>"",-12*'Input Data'!$C$70,"") -> -18000 | W76: =IF($S76<>"",-SUM('Financial Ev.'!$K$111:$K$122),"") -> 0 | Y76: =+IF(S76<>"",'MT Economical Ev.'!Z55,"") ->  | Z76: 27200 | AC76: =IF($B76<>"",AB76/((1+'Input Data'!$C$15)^'CDM Economic Ev.'!S76),"") -> 
B77: 9 | C77: 2030 | D77: -7200 | E77: =IF($B77<>"",-12*'Input Data'!$C$70,"") -> -18000 | F77: =IF($B77<>"",-SUM('Financial Ev.'!$D$123:$D$134),"") -> 0 | H77: =+IF(B77<>"",'MT Economical Ev.'!I56,"") ->  | I77: 27200 | L77: =IF($B77<>"",K77/((1+'Input Data'!$C$15)^'CDM Economic Ev.'!B77),"") ->  | S77: 9 | T77: 2030 | U77: -7200 | V77: =IF($S77<>"",-12*'Input Data'!$C$70,"") -> -18000 | W77: =IF($S77<>"",-SUM('Financial Ev.'!$K$123:$K$134),"") -> 0 | Y77: =+IF(S77<>"",'MT Economical Ev.'!Z56,"") ->  | Z77: 27200 | AC77: =IF($B77<>"",AB77/((1+'Input Data'!$C$15)^'CDM Economic Ev.'!S77),"") -> 
B78: 10 | C78: 2031 | D78: -7200 | E78: =IF($B78<>"",-12*'Input Data'!$C$70,"") -> -18000 | F78: =IF($B78<>"",-SUM('Financial Ev.'!$D$135:$D$146),"") -> 0 | H78: =+IF(B78<>"",'MT Economical Ev.'!I57,"") ->  | I78: 27200 | L78: =IF($B78<>"",K78/((1+'Input Data'!$C$15)^'CDM Economic Ev.'!B78),"") ->  | S78: 10 | T78: 2031 | U78: -7200 | V78: =IF($S78<>"",-12*'Input Data'!$C$70,"") -> -18000 | W78: =IF($S78<>"",-SUM('Financial Ev.'!$K$135:$K$146),"") -> 0 | Y78: =+IF(S78<>"",'MT Economical Ev.'!Z57,"") ->  | Z78: 27200 | AC78: =IF($B78<>"",AB78/((1+'Input Data'!$C$15)^'CDM Economic Ev.'!S78),"") -> 
B79: 11 | C79: 2032 | D79: -7200 | E79: =IF($B79<>"",-12*'Input Data'!$C$70,"") -> -18000 | F79: =IF($B79<>"",-SUM('Financial Ev.'!$D$147:$D$158),"") -> 0 | H79: =+IF(B79<>"",'MT Economical Ev.'!I58,"") ->  | I79: 27200 | L79: =IF($B79<>"",K79/((1+'Input Data'!$C$15)^'CDM Economic Ev.'!B79),"") ->  | S79: 11 | T79: 2032 | U79: -7200 | V79: =IF($S79<>"",-12*'Input Data'!$C$70,"") -> -18000 | W79: =IF($S79<>"",-SUM('Financial Ev.'!$K$147:$K$158),"") -> 0 | Y79: =+IF(S79<>"",'MT Economical Ev.'!Z58,"") ->  | Z79: 27200 | AC79: =IF($B79<>"",AB79/((1+'Input Data'!$C$15)^'CDM Economic Ev.'!S79),"") -> 
B80: 12 | C80: 2033 | D80: -7200 | E80: =IF($B80<>"",-12*'Input Data'!$C$70,"") -> -18000 | F80: =IF($B80<>"",-SUM('Financial Ev.'!$D$159:$D$170),"") -> 0 | H80: =+IF(B80<>"",'MT Economical Ev.'!I59,"") ->  | I80: 27200 | L80: =IF($B80<>"",K80/((1+'Input Data'!$C$15)^'CDM Economic Ev.'!B80),"") ->  | S80: 12 | T80: 2033 | U80: -7200 | V80: =IF($S80<>"",-12*'Input Data'!$C$70,"") -> -18000 | W80: =IF($S80<>"",-SUM('Financial Ev.'!$K$159:$K$170),"") -> 0 | Y80: =+IF(S80<>"",'MT Economical Ev.'!Z59,"") ->  | Z80: 27200 | AC80: =IF($B80<>"",AB80/((1+'Input Data'!$C$15)^'CDM Economic Ev.'!S80),"") -> 
B81: 13 | C81: 2034 | D81: -7200 | E81: =IF($B81<>"",-12*'Input Data'!$C$70,"") -> -18000 | F81: =IF($B81<>"",-SUM('Financial Ev.'!$D$171:$D$182),"") -> 0 | H81: =+IF(B81<>"",'MT Economical Ev.'!I60,"") ->  | I81: 27200 | L81: =IF($B81<>"",K81/((1+'Input Data'!$C$15)^'CDM Economic Ev.'!B81),"") ->  | S81: 13 | T81: 2034 | U81: -7200 | V81: =IF($S81<>"",-12*'Input Data'!$C$70,"") -> -18000 | W81: =IF($S81<>"",-SUM('Financial Ev.'!$K$171:$K$182),"") -> 0 | Y81: =+IF(S81<>"",'MT Economical Ev.'!Z60,"") ->  | Z81: 27200 | AC81: =IF($B81<>"",AB81/((1+'Input Data'!$C$15)^'CDM Economic Ev.'!S81),"") -> 
B82: 14 | C82: 2035 | D82: -7200 | E82: =IF($B82<>"",-12*'Input Data'!$C$70,"") -> -18000 | F82: =IF($B82<>"",-SUM('Financial Ev.'!$D$183:$D$294),"") -> 0 | H82: =+IF(B82<>"",'MT Economical Ev.'!I61,"") ->  | I82: 27200 | L82: =IF($B82<>"",K82/((1+'Input Data'!$C$15)^'CDM Economic Ev.'!B82),"") ->  | S82: 14 | T82: 2035 | U82: -7200 | V82: =IF($S82<>"",-12*'Input Data'!$C$70,"") -> -18000 | W82: =IF($S82<>"",-SUM('Financial Ev.'!$K$183:$K$294),"") -> 0 | Y82: =+IF(S82<>"",'MT Economical Ev.'!Z61,"") ->  | Z82: 27200 | AC82: =IF($B82<>"",AB82/((1+'Input Data'!$C$15)^'CDM Economic Ev.'!S82),"") -> 
E83: =IF($B83<>"",-12*'Input Data'!$C$70,"") ->  | F83: =IF($B83<>"",-SUM('Financial Ev.'!$D$195:$D$206),"") ->  | H83: =+IF(B83<>"",'MT Economical Ev.'!I62,"") ->  | L83: =IF($B83<>"",K83/((1+'Input Data'!$C$15)^'CDM Economic Ev.'!B83),"") ->  | V83: =IF($S83<>"",-12*'Input Data'!$C$70,"") ->  | W83: =IF($S83<>"",-SUM('Financial Ev.'!$K$195:$K$206),"") ->  | Y83: =+IF(S83<>"",'MT Economical Ev.'!Z62,"") ->  | AC83: =IF($B83<>"",AB83/((1+'Input Data'!$C$15)^'CDM Economic Ev.'!S83),"") -> 
B85: Total | D85: =+SUM(D68:D83) -> -100800 | E85: -252000 | F85: -140824.0829 | G85: -76000 | I85: 380800 | S85: Total | U85: =+SUM(U68:U83) -> -100800 | V85: -252000 | W85: -216073.7997 | X85: -172500 | Z85: 380800
B88: Total Cost of Ownership (TCO) | D88: =+$B$6 -> | | M | P88: Externalities | S88: Total Cost of Ownership (TCO) | U88: =+S6 -> | | M | AG88: Externalities
B89: Assessment Period | C89: Year of Assessment | D89: Personnel Costs | E89: Fixed Operating Costs | F89: Fuel costs | G89: Electricity Cost | H89: Maintenance Costs | I89: Financial Costs | J89: Investment Costs | K89: Battery Costs | L89: Socio-Environmental Costs | M89: Total | P89: GHG | Q89: Noise | S89: Assessment Period | T89: Year of Assessment | U89: Personnel Costs | V89: Fixed Operating Costs | W89: Fuel costs | X89: Electricity Cost | Y89: Maintenance Costs | Z89: Financial Costs | AA89: Investment Costs | AB89: Battery Costs | AC89: Socio-Environmental Costs | AD89: Total | AG89: GHG | AH89: Noise
B90: =+B47 -> 0 | C90: =+C47 -> 2021 | D90: =-D47 -> 0 | E90: 0 | F90: 0 | G90: 0 | H90: 0 | I90: 0 | J90: =-G68 -> 76000 | K90: =IF($B90<>"",-H68,"") -> 0 | L90: =IF($B90<>"",-K47,"") -> 0 | M90: =IF($B90<>"",SUM(D90:L90),"") -> 76000 | P90: =+'Pollutant Externalities'!M11 ->  | Q90: =+'Noise externalities'!AQ11 -> 0 | S90: =+S47 -> 0 | T90: =+T47 -> 2021 | U90: =-U47 -> 0 | V90: 0 | W90: 0 | X90: 0 | Y90: 0 | Z90: 0 | AA90: =-X68 -> 172500 | AB90: =IF($S90<>"",-Y68,"") -> 0 | AC90: =IF($S90<>"",-AB47/((1+'Input Data'!$C$15)^'CDM Economic Ev.'!S90),"") -> 0 | AD90: =IF($B90<>"",SUM(U90:AC90),"") -> 172500 | AG90: =+'Pollutant Externalities'!M41 ->  | AH90: =+'Noise externalities'!AQ35 -> 0
B91: =+B48 -> 1 | C91: =+C48 -> 2022 | D91: =IF($B91<>"",(-D48-E69)/((1+'Input Data'!$C$15)^'CDM Economic Ev.'!B91),"") -> 23773.58491 | E91: =IF($B91<>"",-E48/((1+'Input Data'!$C$15)^'CDM Economic Ev.'!B91),"") -> 1169.811321 | F91: =IF($B91<>"",-F48/((1+'Input Data'!$C$15)^'CDM Economic Ev.'!B91),"") ->  | G91: =IF($B91<>"",-G48/((1+'Input Data'!$C$15)^'CDM Economic Ev.'!B91),"") ->  | H91: =IF($B91<>"",-H48/((1+'Input Data'!$C$15)^'CDM Economic Ev.'!B91),"") -> 9297.877358 | I91: =IF($B91<>"",-F69/((1+'Input Data'!$C$15)^'CDM Economic Ev.'!B91),"") -> 26570.58168 | J91: =IF($B91<>"",0,"") -> 0 | K91: =IF($B91<>"",-H69/((1+'Input Data'!$C$15)^'CDM Economic Ev.'!B91),"") ->  | L91: =IF($B91<>"",-K48/((1+'Input Data'!$C$15)^'CDM Economic Ev.'!B91),"") ->  | P91: =+'Pollutant Externalities'!M12 ->  | Q91: =+'Noise externalities'!AQ12 ->  | S91: =+S48 -> 1 | T91: =+T48 -> 2022 | U91: =IF($S91<>"",(-U48-V69)/((1+'Input Data'!$C$15)^'CDM Economic Ev.'!S91),"") -> 23773.58491 | V91: =IF($S91<>"",-V48/((1+'Input Data'!$C$15)^'CDM Economic Ev.'!S91),"") -> 1169.811321 | W91: =IF($S91<>"",-W48/((1+'Input Data'!$C$15)^'CDM Economic Ev.'!S91),"") ->  | X91: =IF($S91<>"",-X48/((1+'Input Data'!$C$15)^'CDM Economic Ev.'!S91),"") ->  | Y91: =IF($S91<>"",-Y48/((1+'Input Data'!$C$15)^'CDM Economic Ev.'!S91),"") -> 0 | Z91: =IF($S91<>"",-W69/((1+'Input Data'!$C$15)^'CDM Economic Ev.'!S91),"") -> 33973.86788 | AA91: =IF($S91<>"",0,"") -> 0 | AB91: =IF($S91<>"",-Y69/((1+'Input Data'!$C$15)^'CDM Economic Ev.'!S91),"") ->  | AC91: =IF($S91<>"",-AB48/((1+'Input Data'!$C$15)^'CDM Economic Ev.'!S91),"") ->  | AG91: =+'Pollutant Externalities'!M42 ->  | AH91: =+'Noise externalities'!AQ36 -> 
B92: =IF(B91<$C$9,B91+1,"") -> 2 | C92: =+C49 -> 2023 | D92: =IF($B92<>"",(-D49-E70)/((1+'Input Data'!$C$15)^'CDM Economic Ev.'!B92),"") -> 22427.91029 | E92: =IF($B92<>"",-E49/((1+'Input Data'!$C$15)^'CDM Economic Ev.'!B92),"") -> 1103.595586 | F92: =IF($B92<>"",-F49/((1+'Input Data'!$C$15)^'CDM Economic Ev.'!B92),"") ->  | G92: =IF($B92<>"",-G49/((1+'Input Data'!$C$15)^'CDM Economic Ev.'!B92),"") ->  | H92: =IF($B92<>"",-H49/((1+'Input Data'!$C$15)^'CDM Economic Ev.'!B92),"") -> 8771.582414 | I92: =IF($B92<>"",-F70/((1+'Input Data'!$C$15)^'CDM Economic Ev.'!B92),"") -> 25066.58649 | J92: =IF($B92<>"",0,"") -> 0 | K92: =IF($B92<>"",-H70/((1+'Input Data'!$C$15)^'CDM Economic Ev.'!B92),"") ->  | L92: =IF($B92<>"",-K49/((1+'Input Data'!$C$15)^'CDM Economic Ev.'!B92),"") ->  | P92: =+'Pollutant Externalities'!M13 ->  | Q92: =+'Noise externalities'!AQ13 ->  | S92: =IF(S91<$C$9,S91+1,"") -> 2 | T92: =+T49 -> 2023 | U92: =IF($S92<>"",(-U49-V70)/((1+'Input Data'!$C$15)^'CDM Economic Ev.'!S92),"") -> 22427.91029 | V92: =IF($S92<>"",-V49/((1+'Input Data'!$C$15)^'CDM Economic Ev.'!S92),"") -> 1103.595586 | W92: =IF($S92<>"",-W49/((1+'Input Data'!$C$15)^'CDM Economic Ev.'!S92),"") ->  | X92: =IF($S92<>"",-X49/((1+'Input Data'!$C$15)^'CDM Economic Ev.'!S92),"") ->  | Y92: =IF($S92<>"",-Y49/((1+'Input Data'!$C$15)^'CDM Economic Ev.'!S92),"") -> 0 | Z92: =IF($S92<>"",-W70/((1+'Input Data'!$C$15)^'CDM Economic Ev.'!S92),"") -> 32050.81875 | AA92: =IF($S92<>"",0,"") -> 0 | AB92: =IF($S92<>"",-Y70/((1+'Input Data'!$C$15)^'CDM Economic Ev.'!S92),"") ->  | AC92: =IF($S92<>"",-AB49/((1+'Input Data'!$C$15)^'CDM Economic Ev.'!S92),"") ->  | AG92: =+'Pollutant Externalities'!M43 ->  | AH92: =+'Noise externalities'!AQ37 -> 
B93: =IF(B92<$C$9,B92+1,"") -> 3 | C93: 2024 | D93: =IF($B93<>"",(-D50-E71)/((1+'Input Data'!$C$15)^'CDM Economic Ev.'!B93),"") -> 21158.40593 | E93: =IF($B93<>"",-E50/((1+'Input Data'!$C$15)^'CDM Economic Ev.'!B93),"") -> 1041.127911 | F93: =IF($B93<>"",-F50/((1+'Input Data'!$C$15)^'CDM Economic Ev.'!B93),"") ->  | G93: =IF($B93<>"",-G50/((1+'Input Data'!$C$15)^'CDM Economic Ev.'!B93),"") ->  | H93: =IF($B93<>"",-H50/((1+'Input Data'!$C$15)^'CDM Economic Ev.'!B93),"") -> 8275.077749 | I93: =IF($B93<>"",-F71/((1+'Input Data'!$C$15)^'CDM Economic Ev.'!B93),"") -> 23647.72311 | J93: 0 | K93: =IF($B93<>"",-H71/((1+'Input Data'!$C$15)^'CDM Economic Ev.'!B93),"") ->  | L93: =IF($B93<>"",-K50/((1+'Input Data'!$C$15)^'CDM Economic Ev.'!B93),"") ->  | P93: =+'Pollutant Externalities'!M14 ->  | Q93: =+'Noise externalities'!AQ14 ->  | S93: 3 | T93: 2024 | U93: =IF($S93<>"",(-U50-V71)/((1+'Input Data'!$C$15)^'CDM Economic Ev.'!S93),"") -> 21158.40593 | V93: =IF($S93<>"",-V50/((1+'Input Data'!$C$15)^'CDM Economic Ev.'!S93),"") -> 1041.127911 | W93: =IF($S93<>"",-W50/((1+'Input Data'!$C$15)^'CDM Economic Ev.'!S93),"") ->  | X93: =IF($S93<>"",-X50/((1+'Input Data'!$C$15)^'CDM Economic Ev.'!S93),"") ->  | Y93: =IF($S93<>"",-Y50/((1+'Input Data'!$C$15)^'CDM Economic Ev.'!S93),"") -> 0 | Z93: =IF($S93<>"",-W71/((1+'Input Data'!$C$15)^'CDM Economic Ev.'!S93),"") -> 30236.62147 | AA93: 0 | AB93: =IF($S93<>"",-Y71/((1+'Input Data'!$C$15)^'CDM Economic Ev.'!S93),"") ->  | AC93: =IF($S93<>"",-AB50/((1+'Input Data'!$C$15)^'CDM Economic Ev.'!S93),"") ->  | AG93: =+'Pollutant Externalities'!M44 ->  | AH93: =+'Noise externalities'!AQ38 -> 
B94: 4 | C94: 2025 | D94: =IF($B94<>"",(-D51-E72)/((1+'Input Data'!$C$15)^'CDM Economic Ev.'!B94),"") -> 19960.76031 | E94: =IF($B94<>"",-E51/((1+'Input Data'!$C$15)^'CDM Economic Ev.'!B94),"") -> 982.1961424 | F94: =IF($B94<>"",-F51/((1+'Input Data'!$C$15)^'CDM Economic Ev.'!B94),"") ->  | G94: =IF($B94<>"",-G51/((1+'Input Data'!$C$15)^'CDM Economic Ev.'!B94),"") ->  | H94: =IF($B94<>"",-H51/((1+'Input Data'!$C$15)^'CDM Economic Ev.'!B94),"") -> 7806.677121 | I94: =IF($B94<>"",-F72/((1+'Input Data'!$C$15)^'CDM Economic Ev.'!B94),"") -> 22309.17274 | J94: 0 | K94: =IF($B94<>"",-H72/((1+'Input Data'!$C$15)^'CDM Economic Ev.'!B94),"") ->  | L94: =IF($B94<>"",-K51/((1+'Input Data'!$C$15)^'CDM Economic Ev.'!B94),"") ->  | P94: =+'Pollutant Externalities'!M15 ->  | Q94: =+'Noise externalities'!AQ15 ->  | S94: 4 | T94: 2025 | U94: =IF($S94<>"",(-U51-V72)/((1+'Input Data'!$C$15)^'CDM Economic Ev.'!S94),"") -> 19960.76031 | V94: =IF($S94<>"",-V51/((1+'Input Data'!$C$15)^'CDM Economic Ev.'!S94),"") -> 982.1961424 | W94: =IF($S94<>"",-W51/((1+'Input Data'!$C$15)^'CDM Economic Ev.'!S94),"") ->  | X94: =IF($S94<>"",-X51/((1+'Input Data'!$C$15)^'CDM Economic Ev.'!S94),"") ->  | Y94: =IF($S94<>"",-Y51/((1+'Input Data'!$C$15)^'CDM Economic Ev.'!S94),"") -> 0 | Z94: =IF($S94<>"",-W72/((1+'Input Data'!$C$15)^'CDM Economic Ev.'!S94),"") -> 28525.11459 | AA94: 0 | AB94: =IF($S94<>"",-Y72/((1+'Input Data'!$C$15)^'CDM Economic Ev.'!S94),"") ->  | AC94: =IF($S94<>"",-AB51/((1+'Input Data'!$C$15)^'CDM Economic Ev.'!S94),"") ->  | AG94: =+'Pollutant Externalities'!M45 ->  | AH94: =+'Noise externalities'!AQ39 -> 
B95: =IF(B94<$C$9,B94+1,"") -> 5 | C95: 2026 | D95: =IF($B95<>"",(-D52-E73)/((1+'Input Data'!$C$15)^'CDM Economic Ev.'!B95),"") -> 18830.90596 | E95: =IF($B95<>"",-E52/((1+'Input Data'!$C$15)^'CDM Economic Ev.'!B95),"") -> 926.6001344 | F95: =IF($B95<>"",-F52/((1+'Input Data'!$C$15)^'CDM Economic Ev.'!B95),"") ->  | G95: =IF($B95<>"",-G52/((1+'Input Data'!$C$15)^'CDM Economic Ev.'!B95),"") ->  | H95: =IF($B95<>"",-H52/((1+'Input Data'!$C$15)^'CDM Economic Ev.'!B95),"") -> 7364.789737 | I95: =IF($B95<>"",-F73/((1+'Input Data'!$C$15)^'CDM Economic Ev.'!B95),"") -> 21046.38938 | J95: 0 | K95: =IF($B95<>"",-H73/((1+'Input Data'!$C$15)^'CDM Economic Ev.'!B95),"") ->  | L95: =IF($B95<>"",-K52/((1+'Input Data'!$C$15)^'CDM Economic Ev.'!B95),"") ->  | P95: =+'Pollutant Externalities'!M16 ->  | Q95: =+'Noise externalities'!AQ16 ->  | S95: 5 | T95: 2026 | U95: =IF($S95<>"",(-U52-V73)/((1+'Input Data'!$C$15)^'CDM Economic Ev.'!S95),"") -> 18830.90596 | V95: =IF($S95<>"",-V52/((1+'Input Data'!$C$15)^'CDM Economic Ev.'!S95),"") -> 926.6001344 | W95: =IF($S95<>"",-W52/((1+'Input Data'!$C$15)^'CDM Economic Ev.'!S95),"") ->  | X95: =IF($S95<>"",-X52/((1+'Input Data'!$C$15)^'CDM Economic Ev.'!S95),"") ->  | Y95: =IF($S95<>"",-Y52/((1+'Input Data'!$C$15)^'CDM Economic Ev.'!S95),"") -> 0 | Z95: =IF($S95<>"",-W73/((1+'Input Data'!$C$15)^'CDM Economic Ev.'!S95),"") -> 26910.48546 | AA95: 0 | AB95: =IF($S95<>"",-Y73/((1+'Input Data'!$C$15)^'CDM Economic Ev.'!S95),"") ->  | AC95: =IF($S95<>"",-AB52/((1+'Input Data'!$C$15)^'CDM Economic Ev.'!S95),"") ->  | AG95: =+'Pollutant Externalities'!M46 ->  | AH95: =+'Noise externalities'!AQ40 -> 
B96: 6 | C96: 2027 | D96: =IF($B96<>"",(-D53-E74)/((1+'Input Data'!$C$15)^'CDM Economic Ev.'!B96),"") -> 17765.00562 | E96: =IF($B96<>"",-E53/((1+'Input Data'!$C$15)^'CDM Economic Ev.'!B96),"") -> 874.1510701 | F96: =IF($B96<>"",-F53/((1+'Input Data'!$C$15)^'CDM Economic Ev.'!B96),"") ->  | G96: =IF($B96<>"",-G53/((1+'Input Data'!$C$15)^'CDM Economic Ev.'!B96),"") ->  | H96: =IF($B96<>"",-H53/((1+'Input Data'!$C$15)^'CDM Economic Ev.'!B96),"") -> 6947.914846 | I96: =IF($B96<>"",-F74/((1+'Input Data'!$C$15)^'CDM Economic Ev.'!B96),"") -> 0 | J96: 0 | K96: =IF($B96<>"",-H74/((1+'Input Data'!$C$15)^'CDM Economic Ev.'!B96),"") ->  | L96: =IF($B96<>"",-K53/((1+'Input Data'!$C$15)^'CDM Economic Ev.'!B96),"") ->  | P96: =+'Pollutant Externalities'!M17 ->  | Q96: =+'Noise externalities'!AQ17 ->  | S96: 6 | T96: 2027 | U96: =IF($S96<>"",(-U53-V74)/((1+'Input Data'!$C$15)^'CDM Economic Ev.'!S96),"") -> 17765.00562 | V96: =IF($S96<>"",-V53/((1+'Input Data'!$C$15)^'CDM Economic Ev.'!S96),"") -> 874.1510701 | W96: =IF($S96<>"",-W53/((1+'Input Data'!$C$15)^'CDM Economic Ev.'!S96),"") ->  | X96: =IF($S96<>"",-X53/((1+'Input Data'!$C$15)^'CDM Economic Ev.'!S96),"") ->  | Y96: =IF($S96<>"",-Y53/((1+'Input Data'!$C$15)^'CDM Economic Ev.'!S96),"") -> 0 | Z96: =IF($S96<>"",-W74/((1+'Input Data'!$C$15)^'CDM Economic Ev.'!S96),"") -> 25387.25044 | AA96: 0 | AB96: =IF($S96<>"",-Y74/((1+'Input Data'!$C$15)^'CDM Economic Ev.'!S96),"") ->  | AC96: =IF($S96<>"",-AB53/((1+'Input Data'!$C$15)^'CDM Economic Ev.'!S96),"") ->  | AG96: =+'Pollutant Externalities'!M47 ->  | AH96: =+'Noise externalities'!AQ41 -> 
B97: 7 | C97: 2028 | D97: =IF($B97<>"",(-D54-E75)/((1+'Input Data'!$C$15)^'CDM Economic Ev.'!B97),"") -> 16759.43926 | E97: =IF($B97<>"",-E54/((1+'Input Data'!$C$15)^'CDM Economic Ev.'!B97),"") -> 824.6708209 | F97: =IF($B97<>"",-F54/((1+'Input Data'!$C$15)^'CDM Economic Ev.'!B97),"") ->  | G97: =IF($B97<>"",-G54/((1+'Input Data'!$C$15)^'CDM Economic Ev.'!B97),"") ->  | H97: =IF($B97<>"",-H54/((1+'Input Data'!$C$15)^'CDM Economic Ev.'!B97),"") -> 6554.636648 | I97: =IF($B97<>"",-F75/((1+'Input Data'!$C$15)^'CDM Economic Ev.'!B97),"") -> 0 | J97: 0 | K97: =IF($B97<>"",-H75/((1+'Input Data'!$C$15)^'CDM Economic Ev.'!B97),"") ->  | L97: =IF($B97<>"",-K54/((1+'Input Data'!$C$15)^'CDM Economic Ev.'!B97),"") ->  | P97: =+'Pollutant Externalities'!M18 ->  | Q97: =+'Noise externalities'!AQ18 ->  | S97: 7 | T97: 2028 | U97: =IF($S97<>"",(-U54-V75)/((1+'Input Data'!$C$15)^'CDM Economic Ev.'!S97),"") -> 16759.43926 | V97: =IF($S97<>"",-V54/((1+'Input Data'!$C$15)^'CDM Economic Ev.'!S97),"") -> 824.6708209 | W97: =IF($S97<>"",-W54/((1+'Input Data'!$C$15)^'CDM Economic Ev.'!S97),"") ->  | X97: =IF($S97<>"",-X54/((1+'Input Data'!$C$15)^'CDM Economic Ev.'!S97),"") ->  | Y97: =IF($S97<>"",-Y54/((1+'Input Data'!$C$15)^'CDM Economic Ev.'!S97),"") -> 0 | Z97: =IF($S97<>"",-W75/((1+'Input Data'!$C$15)^'CDM Economic Ev.'!S97),"") -> 0 | AA97: 0 | AB97: =IF($S97<>"",-Y75/((1+'Input Data'!$C$15)^'CDM Economic Ev.'!S97),"") ->  | AC97: =IF($S97<>"",-AB54/((1+'Input Data'!$C$15)^'CDM Economic Ev.'!S97),"") ->  | AG97: =+'Pollutant Externalities'!M48 ->  | AH97: =+'Noise externalities'!AQ42 -> 
B98: 8 | C98: 2029 | D98: =IF($B98<>"",(-D55-E76)/((1+'Input Data'!$C$15)^'CDM Economic Ev.'!B98),"") -> 15810.79176 | E98: =IF($B98<>"",-E55/((1+'Input Data'!$C$15)^'CDM Economic Ev.'!B98),"") -> 777.9913405 | F98: =IF($B98<>"",-F55/((1+'Input Data'!$C$15)^'CDM Economic Ev.'!B98),"") ->  | G98: =IF($B98<>"",-G55/((1+'Input Data'!$C$15)^'CDM Economic Ev.'!B98),"") ->  | H98: =IF($B98<>"",-H55/((1+'Input Data'!$C$15)^'CDM Economic Ev.'!B98),"") -> 6183.619479 | I98: =IF($B98<>"",-F76/((1+'Input Data'!$C$15)^'CDM Economic Ev.'!B98),"") -> 0 | J98: 0 | K98: =IF($B98<>"",-H76/((1+'Input Data'!$C$15)^'CDM Economic Ev.'!B98),"") ->  | L98: =IF($B98<>"",-K55/((1+'Input Data'!$C$15)^'CDM Economic Ev.'!B98),"") ->  | P98: =+'Pollutant Externalities'!M19 ->  | Q98: =+'Noise externalities'!AQ19 ->  | S98: 8 | T98: 2029 | U98: =IF($S98<>"",(-U55-V76)/((1+'Input Data'!$C$15)^'CDM Economic Ev.'!S98),"") -> 15810.79176 | V98: =IF($S98<>"",-V55/((1+'Input Data'!$C$15)^'CDM Economic Ev.'!S98),"") -> 777.9913405 | W98: =IF($S98<>"",-W55/((1+'Input Data'!$C$15)^'CDM Economic Ev.'!S98),"") ->  | X98: =IF($S98<>"",-X55/((1+'Input Data'!$C$15)^'CDM Economic Ev.'!S98),"") ->  | Y98: =IF($S98<>"",-Y55/((1+'Input Data'!$C$15)^'CDM Economic Ev.'!S98),"") -> 0 | Z98: =IF($S98<>"",-W76/((1+'Input Data'!$C$15)^'CDM Economic Ev.'!S98),"") -> 0 | AA98: 0 | AB98: =IF($S98<>"",-Y76/((1+'Input Data'!$C$15)^'CDM Economic Ev.'!S98),"") ->  | AC98: =IF($S98<>"",-AB55/((1+'Input Data'!$C$15)^'CDM Economic Ev.'!S98),"") ->  | AG98: =+'Pollutant Externalities'!M49 ->  | AH98: =+'Noise externalities'!AQ43 -> 
B99: 9 | C99: 2030 | D99: =IF($B99<>"",(-D56-E77)/((1+'Input Data'!$C$15)^'CDM Economic Ev.'!B99),"") -> 14915.84128 | E99: =IF($B99<>"",-E56/((1+'Input Data'!$C$15)^'CDM Economic Ev.'!B99),"") -> 733.9540948 | F99: =IF($B99<>"",-F56/((1+'Input Data'!$C$15)^'CDM Economic Ev.'!B99),"") ->  | G99: =IF($B99<>"",-G56/((1+'Input Data'!$C$15)^'CDM Economic Ev.'!B99),"") ->  | H99: =IF($B99<>"",-H56/((1+'Input Data'!$C$15)^'CDM Economic Ev.'!B99),"") -> 5833.603282 | I99: =IF($B99<>"",-F77/((1+'Input Data'!$C$15)^'CDM Economic Ev.'!B99),"") -> 0 | J99: 0 | K99: =IF($B99<>"",-H77/((1+'Input Data'!$C$15)^'CDM Economic Ev.'!B99),"") ->  | L99: =IF($B99<>"",-K56/((1+'Input Data'!$C$15)^'CDM Economic Ev.'!B99),"") ->  | P99: =+'Pollutant Externalities'!M20 ->  | Q99: =+'Noise externalities'!AQ20 ->  | S99: 9 | T99: 2030 | U99: =IF($S99<>"",(-U56-V77)/((1+'Input Data'!$C$15)^'CDM Economic Ev.'!S99),"") -> 14915.84128 | V99: =IF($S99<>"",-V56/((1+'Input Data'!$C$15)^'CDM Economic Ev.'!S99),"") -> 733.9540948 | W99: =IF($S99<>"",-W56/((1+'Input Data'!$C$15)^'CDM Economic Ev.'!S99),"") ->  | X99: =IF($S99<>"",-X56/((1+'Input Data'!$C$15)^'CDM Economic Ev.'!S99),"") ->  | Y99: =IF($S99<>"",-Y56/((1+'Input Data'!$C$15)^'CDM Economic Ev.'!S99),"") -> 0 | Z99: =IF($S99<>"",-W77/((1+'Input Data'!$C$15)^'CDM Economic Ev.'!S99),"") -> 0 | AA99: 0 | AB99: =IF($S99<>"",-Y77/((1+'Input Data'!$C$15)^'CDM Economic Ev.'!S99),"") ->  | AC99: =IF($S99<>"",-AB56/((1+'Input Data'!$C$15)^'CDM Economic Ev.'!S99),"") ->  | AG99: =+'Pollutant Externalities'!M50 ->  | AH99: =+'Noise externalities'!AQ44 -> 
B100: 10 | C100: 2031 | D100: =IF($B100<>"",(-D57-E78)/((1+'Input Data'!$C$15)^'CDM Economic Ev.'!B100),"") -> 14071.54838 | E100: =IF($B100<>"",-E57/((1+'Input Data'!$C$15)^'CDM Economic Ev.'!B100),"") -> 692.4095234 | F100: =IF($B100<>"",-F57/((1+'Input Data'!$C$15)^'CDM Economic Ev.'!B100),"") ->  | G100: =IF($B100<>"",-G57/((1+'Input Data'!$C$15)^'CDM Economic Ev.'!B100),"") ->  | H100: =IF($B100<>"",-H57/((1+'Input Data'!$C$15)^'CDM Economic Ev.'!B100),"") -> 5503.399323 | I100: =IF($B100<>"",-F78/((1+'Input Data'!$C$15)^'CDM Economic Ev.'!B100),"") -> 0 | J100: 0 | K100: =IF($B100<>"",-H78/((1+'Input Data'!$C$15)^'CDM Economic Ev.'!B100),"") ->  | L100: =IF($B100<>"",-K57/((1+'Input Data'!$C$15)^'CDM Economic Ev.'!B100),"") ->  | P100: =+'Pollutant Externalities'!M21 ->  | Q100: =+'Noise externalities'!AQ21 ->  | S100: 10 | T100: 2031 | U100: =IF($S100<>"",(-U57-V78)/((1+'Input Data'!$C$15)^'CDM Economic Ev.'!S100),"") -> 14071.54838 | V100: =IF($S100<>"",-V57/((1+'Input Data'!$C$15)^'CDM Economic Ev.'!S100),"") -> 692.4095234 | W100: =IF($S100<>"",-W57/((1+'Input Data'!$C$15)^'CDM Economic Ev.'!S100),"") ->  | X100: =IF($S100<>"",-X57/((1+'Input Data'!$C$15)^'CDM Economic Ev.'!S100),"") ->  | Y100: =IF($S100<>"",-Y57/((1+'Input Data'!$C$15)^'CDM Economic Ev.'!S100),"") -> 0 | Z100: =IF($S100<>"",-W78/((1+'Input Data'!$C$15)^'CDM Economic Ev.'!S100),"") -> 0 | AA100: 0 | AB100: =IF($S100<>"",-Y78/((1+'Input Data'!$C$15)^'CDM Economic Ev.'!S100),"") ->  | AC100: =IF($S100<>"",-AB57/((1+'Input Data'!$C$15)^'CDM Economic Ev.'!S100),"") ->  | AG100: =+'Pollutant Externalities'!M51 ->  | AH100: =+'Noise externalities'!AQ45 -> 
B101: =IF(B100<$C$9,B100+1,"") -> 11 | C101: 2032 | D101: =IF($B101<>"",(-D58-E79)/((1+'Input Data'!$C$15)^'CDM Economic Ev.'!B101),"") -> 13275.04564 | E101: =IF($B101<>"",-E58/((1+'Input Data'!$C$15)^'CDM Economic Ev.'!B101),"") -> 653.2165315 | F101: =IF($B101<>"",-F58/((1+'Input Data'!$C$15)^'CDM Economic Ev.'!B101),"") ->  | G101: =IF($B101<>"",-G58/((1+'Input Data'!$C$15)^'CDM Economic Ev.'!B101),"") ->  | H101: =IF($B101<>"",-H58/((1+'Input Data'!$C$15)^'CDM Economic Ev.'!B101),"") -> 5191.886153 | I101: =IF($B101<>"",-F79/((1+'Input Data'!$C$15)^'CDM Economic Ev.'!B101),"") -> 0 | J101: 0 | K101: =IF($B101<>"",-H79/((1+'Input Data'!$C$15)^'CDM Economic Ev.'!B101),"") ->  | L101: =IF($B101<>"",-K58/((1+'Input Data'!$C$15)^'CDM Economic Ev.'!B101),"") ->  | P101: =+'Pollutant Externalities'!M22 ->  | Q101: =+'Noise externalities'!AQ22 ->  | S101: 11 | T101: 2032 | U101: =IF($S101<>"",(-U58-V79)/((1+'Input Data'!$C$15)^'CDM Economic Ev.'!S101),"") -> 13275.04564 | V101: =IF($S101<>"",-V58/((1+'Input Data'!$C$15)^'CDM Economic Ev.'!S101),"") -> 653.2165315 | W101: =IF($S101<>"",-W58/((1+'Input Data'!$C$15)^'CDM Economic Ev.'!S101),"") ->  | X101: =IF($S101<>"",-X58/((1+'Input Data'!$C$15)^'CDM Economic Ev.'!S101),"") ->  | Y101: =IF($S101<>"",-Y58/((1+'Input Data'!$C$15)^'CDM Economic Ev.'!S101),"") -> 0 | Z101: =IF($S101<>"",-W79/((1+'Input Data'!$C$15)^'CDM Economic Ev.'!S101),"") -> 0 | AA101: 0 | AB101: =IF($S101<>"",-Y79/((1+'Input Data'!$C$15)^'CDM Economic Ev.'!S101),"") ->  | AC101: =IF($S101<>"",-AB58/((1+'Input Data'!$C$15)^'CDM Economic Ev.'!S101),"") ->  | AG101: =+'Pollutant Externalities'!M52 ->  | AH101: =+'Noise externalities'!AQ46 -> 
B102: =IF(B101<$C$9,B101+1,"") -> 12 | C102: 2033 | D102: =IF($B102<>"",(-D59-E80)/((1+'Input Data'!$C$15)^'CDM Economic Ev.'!B102),"") -> 12523.62796 | E102: =IF($B102<>"",-E59/((1+'Input Data'!$C$15)^'CDM Economic Ev.'!B102),"") -> 616.2420108 | F102: =IF($B102<>"",-F59/((1+'Input Data'!$C$15)^'CDM Economic Ev.'!B102),"") ->  | G102: =IF($B102<>"",-G59/((1+'Input Data'!$C$15)^'CDM Economic Ev.'!B102),"") ->  | H102: =IF($B102<>"",-H59/((1+'Input Data'!$C$15)^'CDM Economic Ev.'!B102),"") -> 4898.005805 | I102: =IF($B102<>"",-F80/((1+'Input Data'!$C$15)^'CDM Economic Ev.'!B102),"") -> 0 | J102: 0 | K102: =IF($B102<>"",-H80/((1+'Input Data'!$C$15)^'CDM Economic Ev.'!B102),"") ->  | L102: =IF($B102<>"",-K59/((1+'Input Data'!$C$15)^'CDM Economic Ev.'!B102),"") ->  | P102: =+'Pollutant Externalities'!M23 ->  | Q102: =+'Noise externalities'!AQ23 ->  | S102: 12 | T102: 2033 | U102: =IF($S102<>"",(-U59-V80)/((1+'Input Data'!$C$15)^'CDM Economic Ev.'!S102),"") -> 12523.62796 | V102: =IF($S102<>"",-V59/((1+'Input Data'!$C$15)^'CDM Economic Ev.'!S102),"") -> 616.2420108 | W102: =IF($S102<>"",-W59/((1+'Input Data'!$C$15)^'CDM Economic Ev.'!S102),"") ->  | X102: =IF($S102<>"",-X59/((1+'Input Data'!$C$15)^'CDM Economic Ev.'!S102),"") ->  | Y102: =IF($S102<>"",-Y59/((1+'Input Data'!$C$15)^'CDM Economic Ev.'!S102),"") -> 0 | Z102: =IF($S102<>"",-W80/((1+'Input Data'!$C$15)^'CDM Economic Ev.'!S102),"") -> 0 | AA102: 0 | AB102: =IF($S102<>"",-Y80/((1+'Input Data'!$C$15)^'CDM Economic Ev.'!S102),"") ->  | AC102: =IF($S102<>"",-AB59/((1+'Input Data'!$C$15)^'CDM Economic Ev.'!S102),"") ->  | AG102: =+'Pollutant Externalities'!M53 ->  | AH102: =+'Noise externalities'!AQ47 -> 
B103: =IF(B102<$C$9,B102+1,"") -> 13 | C103: 2034 | D103: =IF($B103<>"",(-D60-E81)/((1+'Input Data'!$C$15)^'CDM Economic Ev.'!B103),"") -> 11814.74336 | E103: =IF($B103<>"",-E60/((1+'Input Data'!$C$15)^'CDM Economic Ev.'!B103),"") -> 581.3603876 | F103: =IF($B103<>"",-F60/((1+'Input Data'!$C$15)^'CDM Economic Ev.'!B103),"") ->  | G103: =IF($B103<>"",-G60/((1+'Input Data'!$C$15)^'CDM Economic Ev.'!B103),"") ->  | H103: =IF($B103<>"",-H60/((1+'Input Data'!$C$15)^'CDM Economic Ev.'!B103),"") -> 4620.760193 | I103: =IF($B103<>"",-F81/((1+'Input Data'!$C$15)^'CDM Economic Ev.'!B103),"") -> 0 | J103: 0 | K103: =IF($B103<>"",-H81/((1+'Input Data'!$C$15)^'CDM Economic Ev.'!B103),"") ->  | L103: =IF($B103<>"",-K60/((1+'Input Data'!$C$15)^'CDM Economic Ev.'!B103),"") ->  | P103: =+'Pollutant Externalities'!M24 ->  | Q103: =+'Noise externalities'!AQ24 ->  | S103: 13 | T103: 2034 | U103: =IF($S103<>"",(-U60-V81)/((1+'Input Data'!$C$15)^'CDM Economic Ev.'!S103),"") -> 11814.74336 | V103: =IF($S103<>"",-V60/((1+'Input Data'!$C$15)^'CDM Economic Ev.'!S103),"") -> 581.3603876 | W103: =IF($S103<>"",-W60/((1+'Input Data'!$C$15)^'CDM Economic Ev.'!S103),"") ->  | X103: =IF($S103<>"",-X60/((1+'Input Data'!$C$15)^'CDM Economic Ev.'!S103),"") ->  | Y103: =IF($S103<>"",-Y60/((1+'Input Data'!$C$15)^'CDM Economic Ev.'!S103),"") -> 0 | Z103: =IF($S103<>"",-W81/((1+'Input Data'!$C$15)^'CDM Economic Ev.'!S103),"") -> 0 | AA103: 0 | AB103: =IF($S103<>"",-Y81/((1+'Input Data'!$C$15)^'CDM Economic Ev.'!S103),"") ->  | AC103: =IF($S103<>"",-AB60/((1+'Input Data'!$C$15)^'CDM Economic Ev.'!S103),"") ->  | AG103: =+'Pollutant Externalities'!M54 ->  | AH103: =+'Noise externalities'!AQ48 -> 
B104: =IF(B103<$C$9,B103+1,"") -> 14 | C104: 2035 | D104: =IF($B104<>"",(-D61-E82)/((1+'Input Data'!$C$15)^'CDM Economic Ev.'!B104),"") -> 11145.9843 | E104: =IF($B104<>"",-E61/((1+'Input Data'!$C$15)^'CDM Economic Ev.'!B104),"") -> 548.4531958 | F104: =IF($B104<>"",-F61/((1+'Input Data'!$C$15)^'CDM Economic Ev.'!B104),"") ->  | G104: =IF($B104<>"",-G61/((1+'Input Data'!$C$15)^'CDM Economic Ev.'!B104),"") ->  | H104: =IF($B104<>"",-H61/((1+'Input Data'!$C$15)^'CDM Economic Ev.'!B104),"") -> 4359.20773 | I104: =IF($B104<>"",-F82/((1+'Input Data'!$C$15)^'CDM Economic Ev.'!B104),"") -> 0 | J104: 0 | K104: =IF($B104<>"",-H82/((1+'Input Data'!$C$15)^'CDM Economic Ev.'!B104),"") ->  | L104: =IF($B104<>"",-K61/((1+'Input Data'!$C$15)^'CDM Economic Ev.'!B104),"") ->  | P104: =+'Pollutant Externalities'!M25 ->  | Q104: =+'Noise externalities'!AQ25 ->  | S104: 14 | T104: 2035 | U104: =IF($S104<>"",(-U61-V82)/((1+'Input Data'!$C$15)^'CDM Economic Ev.'!S104),"") -> 11145.9843 | V104: =IF($S104<>"",-V61/((1+'Input Data'!$C$15)^'CDM Economic Ev.'!S104),"") -> 548.4531958 | W104: =IF($S104<>"",-W61/((1+'Input Data'!$C$15)^'CDM Economic Ev.'!S104),"") ->  | X104: =IF($S104<>"",-X61/((1+'Input Data'!$C$15)^'CDM Economic Ev.'!S104),"") ->  | Y104: =IF($S104<>"",-Y61/((1+'Input Data'!$C$15)^'CDM Economic Ev.'!S104),"") -> 0 | Z104: =IF($S104<>"",-W82/((1+'Input Data'!$C$15)^'CDM Economic Ev.'!S104),"") -> 0 | AA104: 0 | AB104: =IF($S104<>"",-Y82/((1+'Input Data'!$C$15)^'CDM Economic Ev.'!S104),"") ->  | AC104: =IF($S104<>"",-AB61/((1+'Input Data'!$C$15)^'CDM Economic Ev.'!S104),"") ->  | AG104: =+'Pollutant Externalities'!M55 ->  | AH104: =+'Noise externalities'!AQ49 -> 
B105: =IF(B104<$C$9,B104+1,"") ->  | D105: =IF($B105<>"",(-D62-E83)/((1+'Input Data'!$C$15)^'CDM Economic Ev.'!B105),"") ->  | E105: =IF($B105<>"",-E62/((1+'Input Data'!$C$15)^'CDM Economic Ev.'!B105),"") ->  | F105: =IF($B105<>"",-F62/((1+'Input Data'!$C$15)^'CDM Economic Ev.'!B105),"") ->  | G105: =IF($B105<>"",-G62/((1+'Input Data'!$C$15)^'CDM Economic Ev.'!B105),"") ->  | H105: =IF($B105<>"",-H62/((1+'Input Data'!$C$15)^'CDM Economic Ev.'!B105),"") ->  | I105: =IF($B105<>"",-F83/((1+'Input Data'!$C$15)^'CDM Economic Ev.'!B105),"") ->  | K105: =IF($B105<>"",-H83/((1+'Input Data'!$C$15)^'CDM Economic Ev.'!B105),"") ->  | L105: =IF($B105<>"",-K62/((1+'Input Data'!$C$15)^'CDM Economic Ev.'!B105),"") ->  | P105: =+'Pollutant Externalities'!M26 ->  | Q105: =+'Noise externalities'!AQ26 ->  | U105: =IF($S105<>"",(-U62-V83)/((1+'Input Data'!$C$15)^'CDM Economic Ev.'!S105),"") ->  | V105: =IF($S105<>"",-V62/((1+'Input Data'!$C$15)^'CDM Economic Ev.'!S105),"") ->  | W105: =IF($S105<>"",-W62/((1+'Input Data'!$C$15)^'CDM Economic Ev.'!S105),"") ->  | X105: =IF($S105<>"",-X62/((1+'Input Data'!$C$15)^'CDM Economic Ev.'!S105),"") ->  | Y105: =IF($S105<>"",-Y62/((1+'Input Data'!$C$15)^'CDM Economic Ev.'!S105),"") ->  | Z105: =IF($S105<>"",-W83/((1+'Input Data'!$C$15)^'CDM Economic Ev.'!S105),"") ->  | AB105: =IF($S105<>"",-Y83/((1+'Input Data'!$C$15)^'CDM Economic Ev.'!S105),"") ->  | AC105: =IF($S105<>"",-AB62/((1+'Input Data'!$C$15)^'CDM Economic Ev.'!S105),"") ->  | AG105: =+'Pollutant Externalities'!M56 ->  | AH105: =+'Noise externalities'!AQ50 -> 
B107: Total | D107: =+SUM(D90:D105) -> 234233.595 | E107: 11525.78007 | H107: 91609.03784 | I107: 118640.4534 | J107: 76000 | M107: =+SUM(D107:L107) ->  | P107: =+SUM(P90:P105) ->  | Q107: =+SUM(Q90:Q105) ->  | S107: Total | U107: =+SUM(U90:U105) -> 234233.595 | V107: 11525.78007 | Y107: 0 | Z107: 177084.1586 | AA107: 172500 | AD107: =+SUM(U107:AC107) ->  | AG107: =+SUM(AG90:AG105) ->  | AH107: =+SUM(AH90:AH105) -> 
B108: Unit Total | D108: =+D107/FSize -> 234233.595 | E108: 11525.78007 | H108: 91609.03784 | I108: 118640.4534 | J108: 76000 | S108: Unit Total | U108: =+U107/FSize -> 234233.595 | V108: 11525.78007 | Y108: 0 | Z108: 177084.1586 | AA108: 172500
B111: Economic Indicators - Operator | E111: =+$B$6 -> | | M | S111: Economic Indicators - Operator | V111: =+$S$6 -> | | M
B112: NPV | S112: NPV
B113: =+IF(OR(Motor1="",Ener1="",Size1="",CAPA1=""),"",SUM(M47:M62)) ->  | S113: =+IF(OR(Motor2="",Ener2="",Size2="",CAPA2=""),"",SUM(AD47:AD62)) -> 
B115: Economic Indicators - Fleet Provider | E115: =+$B$6 -> | | M | S115: Economic Indicators - Fleet Provider | V115: =+$S$6 -> | | M
B116: NPV | C116: Payback Period | D116: IRR | E116: Levelized cost per kilometre travelled (USD/km) | S116: NPV | T116: Payback Period | U116: IRR | V116: Levelized cost per kilometre travelled (USD/km)
B117: =+IF(OR(Motor1="",Ener1="",Size1="",CAPA1=""),"",SUM(L68:L83)) ->  | C117: =+IF(OR(Motor1="",Ener1="",Size1="",CAPA1=""),"",IFERROR(COUNTIF($M$69:$M$83,"<0")+(ABS(INDEX(M69:M83,COUNTIF($M$69:$M$83,"<0"),1))/INDEX(L69:L83,COUNTIF($M$69:$M$83,"<0")+1,1)),Aux_Tab!$D$128)) ->  | D117: =IF(OR(Motor1="",Ener1="",Size1="",CAPA1=""),"",IFERROR(IRR(K68:K83),INDEX(Aux_Tab!$D$123:$D$125,Code_language,1))) ->  | E117: =+IF(OR(Motor1="",Ener1="",Size1="",CAPA1=""),"",SUM(D107:K107)/SUM(F28:F43)) ->  | S117: =+IF(OR(Motor1="",Ener1="",Size1="",CAPA1=""),"",SUM(AC68:AC83)) ->  | T117: =+IF(OR(Motor1="",Ener1="",Size1="",CAPA1=""),"",IFERROR(COUNTIF($AD$69:$AD$83,"<0")+(ABS(INDEX(AD69:AD83,COUNTIF($AD$69:$AD$83,"<0"),1))/INDEX(AC69:AC83,COUNTIF($AD$69:$AD$83,"<0")+1,1)),Aux_Tab!$D$128)) ->  | U117: =IF(OR(Motor1="",Ener1="",Size1="",CAPA1=""),"",IFERROR(IRR(AB68:AB83),INDEX(Aux_Tab!$D$123:$D$125,Code_language,1))) ->  | V117: =+IF(OR(Motor2="",Ener2="",Size2="",CAPA2=""),"",SUM(U107:AB107)/SUM(W28:W43)) -> 
B120: Leasing Mechanism TCO per unit | C120: =+D89 -> Personnel Costs | D120: =+E89 -> Fixed Operating Costs | E120: =+F89 -> Fuel costs | F120: =+G89 -> Electricity Cost | G120: =+H89 -> Maintenance Costs | H120: =+K89 -> Battery Costs | I120: =+I89 -> Financial Costs | J120: =+J89 -> Investment Costs | K120: =+L89 -> Socio-Environmental Costs | L120: =+M89 -> Total
B121: =Motor1&" | "&'CDM Economic Ev.'!E111 -> | | | M | C121: =+'CDM Economic Ev.'!D108 -> 234233.595 | D121: =+'CDM Economic Ev.'!E108 -> 11525.78007 | E121: =+'CDM Economic Ev.'!F108 ->  | F121: =+'CDM Economic Ev.'!G108 ->  | G121: =+'CDM Economic Ev.'!H108 -> 91609.03784 | H121: =+'CDM Economic Ev.'!K108 ->  | I121: =+'CDM Economic Ev.'!I108 -> 118640.4534 | J121: =+'CDM Economic Ev.'!J108 -> 76000 | K121: =+'CDM Economic Ev.'!L108 ->  | L121: =+'CDM Economic Ev.'!M108 -> 
B122: =Motor2&" | "&'CDM Economic Ev.'!V111 -> | | | M | C122: =+'CDM Economic Ev.'!U108 -> 234233.595 | D122: =+'CDM Economic Ev.'!V108 -> 11525.78007 | E122: =+'CDM Economic Ev.'!W108 ->  | F122: =+'CDM Economic Ev.'!X108 ->  | G122: =+'CDM Economic Ev.'!Y108 -> 0 | H122: =+'CDM Economic Ev.'!AB108 ->  | I122: =+'CDM Economic Ev.'!Z108 -> 177084.1586 | J122: =+'CDM Economic Ev.'!AA108 -> 172500 | K122: =+'CDM Economic Ev.'!AC108 ->  | L122: =+'CDM Economic Ev.'!AD108 -> 

Sheet Financial Ev.
B1: The financial capital costs for both fleets are presented according to the parameters entered in the "Input Data" tab.
B3: Fleet 1 | I3: Fleet 2
B4: =+Ener1 -> 0 | I4: =+Ener2 -> 0
B5: =CONCATENATE(Motor1," | ",Size1," m", " | ",'Input Data'!$C$36) -> | m | | I5: =CONCATENATE(Motor2," | ",Size2," m", " | ",'Input Data'!$H$36) -> | m |
B7: Financial Costs | I7: Financial Costs
B8: Investment cost | C8: =+(IF(Aux_Tab!E47=FALSE,FSize*PreUD1+PrID1,FSize*PreUU1+PrIU1))*(1+VAT) -> 190000 | I8: Investment cost | J8: =+(IF(Aux_Tab!E48=FALSE,FSize*PreUD2+PrID2,FSize*PreUU2+PrIU2))*(1+VAT) -> 345000
B10: Equity | C10: =+'Input Data'!C62 -> 0.4 | D10: % | I10: Equity | J10: =+'Input Data'!H62 -> 0.5 | K10: %
B12: Loan Amount | C12: =+C8*(1-C10) -> 114000 | I12: Loan Amount | J12: =+J8*(1-J10) -> 172500
B14: Credit Period | C14: =+'Input Data'!$C$64 -> 5 | D14: Years | I14: Credit Period | J14: =+'Input Data'!H64 -> 6 | K14: Years
B16: Annual Interest Rate | C16: =+'Input Data'!$C$63 -> 0.09 | D16: % | I16: Annual Interest Rate | J16: =+'Input Data'!H63 -> 0.08 | K16: %
B18: Monthly Interest Rate | C18: =+((1+C16)^(0.0833333333333333))-1 -> 0.007207323316 | D18: % | I18: Monthly Interest Rate | J18: =+((1+J16)^(0.0833333333333333))-1 -> 0.00643403011 | K18: %
B20: Number of instalments | C20: =+C14*12 -> 60 | D20: - | I20: Number of instalments | J20: =+J14*12 -> 72 | K20: -
B22: Monthly Instalment Value | C22: =+IFERROR(PMT(C18,C20,-C12),0) -> 2347.068049 | I22: Monthly Instalment Value | J22: =+IFERROR(PMT(J18,J20,-J12),0) -> 3001.024996
B25: Instalment No. | C25: Debt at Beginning of Period | D25: Instalment | E25: Interest | F25: Amortization | G25: Debt at the End of Period | I25: Instalment No. | J25: Debt at Beginning of Period | K25: Instalment | L25: Interest | M25: Amortization | N25: Debt at the End of Period
B26: 0 | I26: 0
B27: =ROW()-ROW(26:26) -> 1 | C27: =+IF(B27<>"",$C$12,"") -> 114000 | D27: =IF(B27<>"",$C$22,"") -> 2347.068049 | E27: =+IF($B27<>"",C27*$C$18,"") -> 821.634858 | F27: =IF($B27<>"",D27-E27,"") -> 1525.433191 | G27: =IF(B27<>"",C27-F27,"") -> 112474.5668 | I27: =ROW()-ROW(26:26) -> 1 | J27: =+IF(I27<>"",$J$12,"") -> 172500 | K27: =IF(I27<>"",$J$22,"") -> 3001.024996 | L27: =+IF($I27<>"",J27*$J$18,"") -> 1109.870194 | M27: =IF($I27<>"",K27-L27,"") -> 1891.154802 | N27: =IF(I27<>"",J27-M27,"") -> 170608.8452
B28: =IF(B27<$C$14*12,B27+1,"") -> 2 | C28: =+IF(B28<>"",G27,"") -> 112474.5668 | D28: 2347.068049 | E28: 810.6405678 | F28: 1536.427481 | G28: 110938.1393 | I28: =IF(I27<$J$14*12,I27+1,"") -> 2 | J28: =+IF(I28<>"",N27,"") -> 170608.8452 | K28: 3001.024996 | L28: 1097.702447 | M28: 1903.322549 | N28: 168705.5226
B29: =IF(B28<$C$14*12,B28+1,"") -> 3 | C29: 110938.1393 | D29: 2347.068049 | E29: 799.5670382 | F29: 1547.50101 | G29: 109390.6383 | I29: =IF(I28<$J$14*12,I28+1,"") -> 3 | J29: 168705.5226 | K29: 3001.024996 | L29: 1085.456412 | M29: 1915.568583 | N29: 166789.9541
B30: 4 | C30: 109390.6383 | D30: 2347.068049 | E30: 788.4136981 | F30: 1558.65435 | G30: 107831.984 | I30: 4 | J30: 166789.9541 | K30: 3001.024996 | L30: 1073.131587 | M30: 1927.893409 | N30: 164862.0607
B31: 5 | C31: 107831.984 | D31: 2347.068049 | E31: 777.1799723 | F31: 1569.888076 | G31: 106262.0959 | I31: 5 | J31: 164862.0607 | K31: 3001.024996 | L31: 1060.727462 | M31: 1940.297534 | N31: 162921.7631
B32: 6 | C32: 106262.0959 | D32: 2347.068049 | E32: 765.8652813 | F32: 1581.202767 | G32: 104680.8931 | I32: 6 | J32: 162921.7631 | K32: 3001.024996 | L32: 1048.24353 | M32: 1952.781466 | N32: 160968.9817
B33: 7 | C33: 104680.8931 | D33: 2347.068049 | E33: 754.4690418 | F33: 1592.599007 | G33: 103088.2941 | I33: 7 | J33: 160968.9817 | K33: 3001.024996 | L33: 1035.679275 | M33: 1965.345721 | N33: 159003.6359
B34: 8 | C34: 103088.2941 | D34: 2347.068049 | E34: 742.9906658 | F34: 1604.077383 | G34: 101484.2167 | I34: 8 | J34: 159003.6359 | K34: 3001.024996 | L34: 1023.034181 | M34: 1977.990815 | N34: 157025.6451
B35: 9 | C35: 101484.2167 | D35: 2347.068049 | E35: 731.4295615 | F35: 1615.638487 | G35: 99868.57825 | I35: 9 | J35: 157025.6451 | K35: 3001.024996 | L35: 1010.307729 | M35: 1990.717267 | N35: 155034.9279
B36: 10 | C36: 99868.57825 | D36: 2347.068049 | E36: 719.7851326 | F36: 1627.282916 | G36: 98241.29533 | I36: 10 | J36: 155034.9279 | K36: 3001.024996 | L36: 997.4993939 | M36: 2003.525602 | N36: 153031.4023
B37: 11 | C37: 98241.29533 | D37: 2347.068049 | E37: 708.0567784 | F37: 1639.01127 | G37: 96602.28406 | I37: 11 | J37: 153031.4023 | K37: 3001.024996 | L37: 984.6086499 | M37: 2016.416346 | N37: 151014.9859
B38: 12 | C38: 96602.28406 | D38: 2347.068049 | E38: 696.2438943 | F38: 1650.824154 | G38: 94951.45991 | I38: 12 | J38: 151014.9859 | K38: 3001.024996 | L38: 971.6349664 | M38: 2029.39003 | N38: 148985.5959
B39: 13 | C39: 94951.45991 | D39: 2347.068049 | E39: 684.3458709 | F39: 1662.722178 | G39: 93288.73773 | I39: 13 | J39: 148985.5959 | K39: 3001.024996 | L39: 958.5778098 | M39: 2042.447186 | N39: 146943.1487
B40: 14 | C40: 93288.73773 | D40: 2347.068049 | E40: 672.3620946 | F40: 1674.705954 | G40: 91614.03178 | I40: 14 | J40: 146943.1487 | K40: 3001.024996 | L40: 945.4366431 | M40: 2055.588353 | N40: 144887.5603
B41: 15 | C41: 91614.03178 | D41: 2347.068049 | E41: 660.2919473 | F41: 1686.776101 | G41: 89927.25567 | I41: 15 | J41: 144887.5603 | K41: 3001.024996 | L41: 932.2109258 | M41: 2068.81407 | N41: 142818.7463
B42: 16 | C42: 89927.25567 | D42: 2347.068049 | E42: 648.1348066 | F42: 1698.933242 | G42: 88228.32243 | I42: 16 | J42: 142818.7463 | K42: 3001.024996 | L42: 918.9001138 | M42: 2082.124882 | N42: 140736.6214
B43: 17 | C43: 88228.32243 | D43: 2347.068049 | E43: 635.8900454 | F43: 1711.178003 | G43: 86517.14443 | I43: 17 | J43: 140736.6214 | K43: 3001.024996 | L43: 905.5036596 | M43: 2095.521336 | N43: 138641.1
B44: 18 | C44: 86517.14443 | D44: 2347.068049 | E44: 623.5570323 | F44: 1723.511016 | G44: 84793.63341 | I44: 18 | J44: 138641.1 | K44: 3001.024996 | L44: 892.0210122 | M44: 2109.003984 | N44: 136532.0961
B45: 19 | C45: 84793.63341 | D45: 2347.068049 | E45: 611.1351312 | F45: 1735.932917 | G45: 83057.70049 | I45: 19 | J45: 136532.0961 | K45: 3001.024996 | L45: 878.4516171 | M45: 2122.573379 | N45: 134409.5227
B46: 20 | C46: 83057.70049 | D46: 2347.068049 | E46: 598.6237014 | F46: 1748.444347 | G46: 81309.25615 | I46: 20 | J46: 134409.5227 | K46: 3001.024996 | L46: 864.794916 | M46: 2136.23008 | N46: 132273.2926
B47: 21 | C47: 81309.25615 | D47: 2347.068049 | E47: 586.0220977 | F47: 1761.045951 | G47: 79548.2102 | I47: 21 | J47: 132273.2926 | K47: 3001.024996 | L47: 851.0503474 | M47: 2149.974649 | N47: 130123.318
B48: 22 | C48: 79548.2102 | D48: 2347.068049 | E48: 573.3296701 | F48: 1773.738379 | G48: 77774.47182 | I48: 22 | J48: 130123.318 | K48: 3001.024996 | L48: 837.2173457 | M48: 2163.80765 | N48: 127959.5103
B49: 23 | C49: 77774.47182 | D49: 2347.068049 | E49: 560.5457641 | F49: 1786.522284 | G49: 75987.94953 | I49: 23 | J49: 127959.5103 | K49: 3001.024996 | L49: 823.2953422 | M49: 2177.729654 | N49: 125781.7807
B50: 24 | C50: 75987.94953 | D50: 2347.068049 | E50: 547.6697204 | F50: 1799.398328 | G50: 74188.55121 | I50: 24 | J50: 125781.7807 | K50: 3001.024996 | L50: 809.283764 | M50: 2191.741232 | N50: 123590.0394
B51: 25 | C51: 74188.55121 | D51: 2347.068049 | E51: 534.7008749 | F51: 1812.367174 | G51: 72376.18403 | I51: 25 | J51: 123590.0394 | K51: 3001.024996 | L51: 795.1820349 | M51: 2205.842961 | N51: 121384.1965
B52: 26 | C52: 72376.18403 | D52: 2347.068049 | E52: 521.6385587 | F52: 1825.42949 | G52: 70550.75454 | I52: 26 | J52: 121384.1965 | K52: 3001.024996 | L52: 780.9895749 | M52: 2220.035421 | N52: 119164.161
B53: 27 | C53: 70550.75454 | D53: 2347.068049 | E53: 508.4820982 | F53: 1838.58595 | G53: 68712.16859 | I53: 27 | J53: 119164.161 | K53: 3001.024996 | L53: 766.7058002 | M53: 2234.319196 | N53: 116929.8418
B54: 28 | C54: 68712.16859 | D54: 2347.068049 | E54: 495.2308148 | F54: 1851.837234 | G54: 66860.33136 | I54: 28 | J54: 116929.8418 | K54: 3001.024996 | L54: 752.3301232 | M54: 2248.694873 | N54: 114681.147
B55: 29 | C55: 66860.33136 | D55: 2347.068049 | E55: 481.8840251 | F55: 1865.184023 | G55: 64995.14733 | I55: 29 | J55: 114681.147 | K55: 3001.024996 | L55: 737.8619527 | M55: 2263.163043 | N55: 112417.9839
B56: 30 | C56: 64995.14733 | D56: 2347.068049 | E56: 468.4410408 | F56: 1878.627008 | G56: 63116.52033 | I56: 30 | J56: 112417.9839 | K56: 3001.024996 | L56: 723.3006935 | M56: 2277.724302 | N56: 110140.2596
B57: 31 | C57: 63116.52033 | D57: 2347.068049 | E57: 454.9011686 | F57: 1892.16688 | G57: 61224.35345 | I57: 31 | J57: 110140.2596 | K57: 3001.024996 | L57: 708.6457467 | M57: 2292.379249 | N57: 107847.8804
B58: 32 | C58: 61224.35345 | D58: 2347.068049 | E58: 441.2637101 | F58: 1905.804338 | G58: 59318.54911 | I58: 32 | J58: 107847.8804 | K58: 3001.024996 | L58: 693.8965096 | M58: 2307.128486 | N58: 105540.7519
B59: 33 | C59: 59318.54911 | D59: 2347.068049 | E59: 427.5279621 | F59: 1919.540087 | G59: 57399.00902 | I59: 33 | J59: 105540.7519 | K59: 3001.024996 | L59: 679.0523755 | M59: 2321.97262 | N59: 103218.7793
B60: 34 | C60: 57399.00902 | D60: 2347.068049 | E60: 413.693216 | F60: 1933.374833 | G60: 55465.63419 | I60: 34 | J60: 103218.7793 | K60: 3001.024996 | L60: 664.1127337 | M60: 2336.912262 | N60: 100881.867
B61: 35 | C61: 55465.63419 | D61: 2347.068049 | E61: 399.7587585 | F61: 1947.30929 | G61: 53518.3249 | I61: 35 | J61: 100881.867 | K61: 3001.024996 | L61: 649.0769699 | M61: 2351.948026 | N61: 98529.91898
B62: 36 | C62: 53518.3249 | D62: 2347.068049 | E62: 385.7238709 | F62: 1961.344178 | G62: 51556.98072 | I62: 36 | J62: 98529.91898 | K62: 3001.024996 | L62: 633.9444655 | M62: 2367.08053 | N62: 96162.83845
B63: 37 | C63: 51556.98072 | D63: 2347.068049 | E63: 371.5878293 | F63: 1975.480219 | G63: 49581.5005 | I63: 37 | J63: 96162.83845 | K63: 3001.024996 | L63: 618.7145981 | M63: 2382.310398 | N63: 93780.52805
B64: 38 | C64: 49581.5005 | D64: 2347.068049 | E64: 357.3499046 | F64: 1989.718144 | G64: 47591.78236 | I64: 38 | J64: 93780.52805 | K64: 3001.024996 | L64: 603.3867412 | M64: 2397.638255 | N64: 91382.8898
B65: 39 | C65: 47591.78236 | D65: 2347.068049 | E65: 343.0093626 | F65: 2004.058686 | G65: 45587.72367 | I65: 39 | J65: 91382.8898 | K65: 3001.024996 | L65: 587.9602645 | M65: 2413.064731 | N65: 88969.82507
B66: 40 | C66: 45587.72367 | D66: 2347.068049 | E66: 328.5654637 | F66: 2018.502585 | G66: 43569.22109 | I66: 40 | J66: 88969.82507 | K66: 3001.024996 | L66: 572.4345334 | M66: 2428.590463 | N66: 86541.2346
B67: 41 | C67: 43569.22109 | D67: 2347.068049 | E67: 314.017463 | F67: 2033.050586 | G67: 41536.1705 | I67: 41 | J67: 86541.2346 | K67: 3001.024996 | L67: 556.8089092 | M67: 2444.216087 | N67: 84097.01852
B68: 42 | C68: 41536.1705 | D68: 2347.068049 | E68: 299.3646101 | F68: 2047.703438 | G68: 39488.46706 | I68: 42 | J68: 84097.01852 | K68: 3001.024996 | L68: 541.0827493 | M68: 2459.942247 | N68: 81637.07627
B69: 43 | C69: 39488.46706 | D69: 2347.068049 | E69: 284.6061494 | F69: 2062.461899 | G69: 37426.00516 | I69: 43 | J69: 81637.07627 | K69: 3001.024996 | L69: 525.2554068 | M69: 2475.769589 | N69: 79161.30668
B70: 44 | C70: 37426.00516 | D70: 2347.068049 | E70: 269.7413196 | F70: 2077.326729 | G70: 35348.67843 | I70: 44 | J70: 79161.30668 | K70: 3001.024996 | L70: 509.3262307 | M70: 2491.698765 | N70: 76669.60792
B71: 45 | C71: 35348.67843 | D71: 2347.068049 | E71: 254.7693543 | F71: 2092.298694 | G71: 33256.37974 | I71: 45 | J71: 76669.60792 | K71: 3001.024996 | L71: 493.2945659 | M71: 2507.73043 | N71: 74161.87749
B72: 46 | C72: 33256.37974 | D72: 2347.068049 | E72: 239.6894811 | F72: 2107.378567 | G72: 31149.00117 | I72: 46 | J72: 74161.87749 | K72: 3001.024996 | L72: 477.1597528 | M72: 2523.865243 | N72: 71638.01224
B73: 47 | C73: 31149.00117 | D73: 2347.068049 | E73: 224.5009224 | F73: 2122.567126 | G73: 29026.43405 | I73: 47 | J73: 71638.01224 | K73: 3001.024996 | L73: 460.9211278 | M73: 2540.103868 | N73: 69097.90837
B74: 48 | C74: 29026.43405 | D74: 2347.068049 | E74: 209.2028949 | F74: 2137.865154 | G74: 26888.56889 | I74: 48 | J74: 69097.90837 | K74: 3001.024996 | L74: 444.578023 | M74: 2556.446973 | N74: 66541.4614
B75: 49 | C75: 26888.56889 | D75: 2347.068049 | E75: 193.7946095 | F75: 2153.273439 | G75: 24735.29545 | I75: 49 | J75: 66541.4614 | K75: 3001.024996 | L75: 428.1297662 | M75: 2572.89523 | N75: 63968.56617
B76: 50 | C76: 24735.29545 | D76: 2347.068049 | E76: 178.2752717 | F76: 2168.792777 | G76: 22566.50268 | I76: 50 | J76: 63968.56617 | K76: 3001.024996 | L76: 411.5756808 | M76: 2589.449315 | N76: 61379.11686
B77: 51 | C77: 22566.50268 | D77: 2347.068049 | E77: 162.6440809 | F77: 2184.423968 | G77: 20382.07871 | I77: 51 | J77: 61379.11686 | K77: 3001.024996 | L77: 394.915086 | M77: 2606.10991 | N77: 58773.00695
B78: 52 | C78: 20382.07871 | D78: 2347.068049 | E78: 146.9002311 | F78: 2200.167817 | G78: 18181.91089 | I78: 52 | J78: 58773.00695 | K78: 3001.024996 | L78: 378.1472964 | M78: 2622.8777 | N78: 56150.12925
B79: 53 | C79: 18181.91089 | D79: 2347.068049 | E79: 131.0429103 | F79: 2216.025138 | G79: 15965.88575 | I79: 53 | J79: 56150.12925 | K79: 3001.024996 | L79: 361.2716223 | M79: 2639.753374 | N79: 53510.37587
B80: 54 | C80: 15965.88575 | D80: 2347.068049 | E80: 115.0713007 | F80: 2231.996748 | G80: 13733.88901 | I80: 54 | J80: 53510.37587 | K80: 3001.024996 | L80: 344.2873696 | M80: 2656.737626 | N80: 50853.63825
B81: 55 | C81: 13733.88901 | D81: 2347.068049 | E81: 98.98457845 | F81: 2248.08347 | G81: 11485.80554 | I81: 55 | J81: 50853.63825 | K81: 3001.024996 | L81: 327.1938397 | M81: 2673.831156 | N81: 48179.80709
B82: 56 | C82: 11485.80554 | D82: 2347.068049 | E82: 82.78191404 | F82: 2264.286135 | G82: 9221.5194 | I82: 56 | J82: 48179.80709 | K82: 3001.024996 | L82: 309.9903295 | M82: 2691.034666 | N82: 45488.77242
B83: 57 | C83: 9221.5194 | D83: 2347.068049 | E83: 66.46247179 | F83: 2280.605577 | G83: 6940.913824 | I83: 57 | J83: 45488.77242 | K83: 3001.024996 | L83: 292.6761314 | M83: 2708.348864 | N83: 42780.42356
B84: 58 | C84: 6940.913824 | D84: 2347.068049 | E84: 50.02541004 | F84: 2297.042639 | G84: 4643.871185 | I84: 58 | J84: 42780.42356 | K84: 3001.024996 | L84: 275.2505333 | M84: 2725.774463 | N84: 40054.6491
B85: 59 | C85: 4643.871185 | D85: 2347.068049 | E85: 33.46988107 | F85: 2313.598168 | G85: 2330.273018 | I85: 59 | J85: 40054.6491 | K85: 3001.024996 | L85: 257.7128183 | M85: 2743.312178 | N85: 37311.33692
B86: =IF(B85<$C$14*12,B85+1,"") -> 60 | C86: 2330.273018 | D86: 2347.068049 | E86: 16.79503105 | F86: 2330.273018 | G86: 1.591615728e-11 | I86: 60 | J86: 37311.33692 | K86: 3001.024996 | L86: 240.0622652 | M86: 2760.962731 | N86: 34550.37419
I87: 61 | J87: 34550.37419 | K87: 3001.024996 | L87: 222.2981478 | M87: 2778.726848 | N87: 31771.64734
I88: 62 | J88: 31771.64734 | K88: 3001.024996 | L88: 204.4197356 | M88: 2796.60526 | N88: 28975.04208
I89: 63 | J89: 28975.04208 | K89: 3001.024996 | L89: 186.4262932 | M89: 2814.598703 | N89: 26160.44338
I90: 64 | J90: 26160.44338 | K90: 3001.024996 | L90: 168.3170804 | M90: 2832.707916 | N90: 23327.73546
D91: =IF(B91<>"",$C$22,"") ->  | E91: =+IF($B91<>"",C91*$C$18,"") ->  | F91: =IF($B91<>"",D91-E91,"") ->  | G91: =IF(B91<>"",C91-F91,"") ->  | I91: 65 | J91: 23327.73546 | K91: =IF(I91<>"",$J$22,"") -> 3001.024996 | L91: =+IF($I91<>"",J91*$J$18,"") -> 150.0913524 | M91: =IF($I91<>"",K91-L91,"") -> 2850.933644 | N91: =IF(I91<>"",J91-M91,"") -> 20476.80182
C92: =+IF(B92<>"",G91,"") ->  | I92: 66 | J92: =+IF(I92<>"",N91,"") -> 20476.80182 | K92: 3001.024996 | L92: 131.7483595 | M92: 2869.276636 | N92: 17607.52518
B93: =IF(B92<$C$14*12,B92+1,"") ->  | I93: =IF(I92<$J$14*12,I92+1,"") -> 67 | J93: 17607.52518 | K93: 3001.024996 | L93: 113.2873472 | M93: 2887.737649 | N93: 14719.78753
I94: 68 | J94: 14719.78753 | K94: 3001.024996 | L94: 94.70755621 | M94: 2906.31744 | N94: 11813.47009
I95: 69 | J95: 11813.47009 | K95: 3001.024996 | L95: 76.00822229 | M95: 2925.016774 | N95: 8888.453321
I96: 70 | J96: 8888.453321 | K96: 3001.024996 | L96: 57.1885763 | M96: 2943.83642 | N96: 5944.616901
I97: 71 | J97: 5944.616901 | K97: 3001.024996 | L97: 38.24784413 | M97: 2962.777152 | N97: 2981.839749
I98: 72 | J98: 2981.839749 | K98: 3001.024996 | L98: 19.18524673 | M98: 2981.839749 | N98: 5.36601874e-11
D155: =IF(B155<>"",$C$22,"") ->  | E155: =+IF($B155<>"",C155*$C$18,"") ->  | F155: =IF($B155<>"",D155-E155,"") ->  | G155: =IF(B155<>"",C155-F155,"") ->  | K155: =IF(I155<>"",$J$22,"") ->  | L155: =+IF($I155<>"",J155*$J$18,"") ->  | M155: =IF($I155<>"",K155-L155,"") ->  | N155: =IF(I155<>"",J155-M155,"") -> 
C156: =+IF(B156<>"",G155,"") ->  | J156: =+IF(I156<>"",N155,"") -> 
B157: =IF(B156<$C$14*12,B156+1,"") ->  | I157: =IF(I156<$J$14*12,I156+1,"") -> 
C207: =+IF(B207<>"",#REF!+1,"") -> 

Sheet Energy Projections
B1: Presents the price projections of the different energy sources according to percentage growth and values entered by the user.
B2: Rows 40 and 50 show the values used by the tool based on the Control Panel's projection selection.
A4: I. | B4: Energy Price Projection
A6: I.a | B6: Projection Scenarios of International Fuel Prices with annual percentage variation determined by the user
B8: Country ID | C8: =INDEX(Countries!$A$4:$A$197,MATCH('Input Data'!$C$5,Countries!$O$4:$O$197,0),1) -> 
B9: =+'Energy Prices'!$S$6 -> Diesel | C9: 2020 | D9: 2021 | E9: 2022 | F9: 2023 | G9: 2024 | H9: 2025 | I9: 2026 | J9: 2027 | K9: 2028 | L9: 2029 | M9: 2030 | N9: 2031 | O9: 2032 | P9: 2033 | Q9: 2034 | R9: 2035 | S9: 2036 | T9: 2037 | U9: 2038 | V9: 2039 | W9: 2040 | X9: 2041 | Y9: 2042 | Z9: 2043 | AA9: 2044 | AB9: 2045 | AC9: 2046 | AD9: 2047 | AE9: 2048 | AF9: 2049 | AG9: 2050
B10: =+'Energy Prices'!S7 -> (USD/litre) | C10: =INDEX('Energy Prices'!$S$8:$U$201,MATCH($C$8,'Energy Prices'!$A$8:$A$201,0),MATCH($B$9,'Energy Prices'!$S$6:$U$6,0)) ->  | D10: =C10*(1+'Input Data'!$C$18) ->  | E10: =D10*(1+'Input Data'!$C$18) ->  | F10: =E10*(1+'Input Data'!$C$18) ->  | G10: =F10*(1+'Input Data'!$C$18) ->  | H10: =G10*(1+'Input Data'!$C$18) ->  | I10: =H10*(1+'Input Data'!$C$18) ->  | J10: =I10*(1+'Input Data'!$C$18) ->  | K10: =J10*(1+'Input Data'!$C$18) ->  | L10: =K10*(1+'Input Data'!$C$18) ->  | M10: =L10*(1+'Input Data'!$C$18) ->  | N10: =M10*(1+'Input Data'!$C$18) ->  | O10: =N10*(1+'Input Data'!$C$18) ->  | P10: =O10*(1+'Input Data'!$C$18) ->  | Q10: =P10*(1+'Input Data'!$C$18) ->  | R10: =Q10*(1+'Input Data'!$C$18) ->  | S10: =R10*(1+'Input Data'!$C$18) ->  | T10: =S10*(1+'Input Data'!$C$18) ->  | U10: =T10*(1+'Input Data'!$C$18) ->  | V10: =U10*(1+'Input Data'!$C$18) ->  | W10: =V10*(1+'Input Data'!$C$18) ->  | X10: =W10*(1+'Input Data'!$C$18) ->  | Y10: =X10*(1+'Input Data'!$C$18) ->  | Z10: =Y10*(1+'Input Data'!$C$18) ->  | AA10: =Z10*(1+'Input Data'!$C$18) ->  | AB10: =AA10*(1+'Input Data'!$C$18) ->  | AC10: =AB10*(1+'Input Data'!$C$18) ->  | AD10: =AC10*(1+'Input Data'!$C$18) ->  | AE10: =AD10*(1+'Input Data'!$C$18) ->  | AF10: =AE10*(1+'Input Data'!$C$18) ->  | AG10: =AF10*(1+'Input Data'!$C$18) -> 
B12: =+'Energy Prices'!$T$6 -> Natural Gas | C12: 2020 | D12: 2021 | E12: 2022 | F12: 2023 | G12: 2024 | H12: 2025 | I12: 2026 | J12: 2027 | K12: 2028 | L12: 2029 | M12: 2030 | N12: 2031 | O12: 2032 | P12: 2033 | Q12: 2034 | R12: 2035 | S12: 2036 | T12: 2037 | U12: 2038 | V12: 2039 | W12: 2040 | X12: 2041 | Y12: 2042 | Z12: 2043 | AA12: 2044 | AB12: 2045 | AC12: 2046 | AD12: 2047 | AE12: 2048 | AF12: 2049 | AG12: 2050
B13: (USD/m3) | C13: =+C14*$C$15 ->  | D13: =+C13*(1+'Input Data'!$C$18) ->  | E13: =+D13*(1+'Input Data'!$C$18) ->  | F13: =+E13*(1+'Input Data'!$C$18) ->  | G13: =+F13*(1+'Input Data'!$C$18) ->  | H13: =+G13*(1+'Input Data'!$C$18) ->  | I13: =+H13*(1+'Input Data'!$C$18) ->  | J13: =+I13*(1+'Input Data'!$C$18) ->  | K13: =+J13*(1+'Input Data'!$C$18) ->  | L13: =+K13*(1+'Input Data'!$C$18) ->  | M13: =+L13*(1+'Input Data'!$C$18) ->  | N13: =+M13*(1+'Input Data'!$C$18) ->  | O13: =+N13*(1+'Input Data'!$C$18) ->  | P13: =+O13*(1+'Input Data'!$C$18) ->  | Q13: =+P13*(1+'Input Data'!$C$18) ->  | R13: =+Q13*(1+'Input Data'!$C$18) ->  | S13: =+R13*(1+'Input Data'!$C$18) ->  | T13: =+S13*(1+'Input Data'!$C$18) ->  | U13: =+T13*(1+'Input Data'!$C$18) ->  | V13: =+U13*(1+'Input Data'!$C$18) ->  | W13: =+V13*(1+'Input Data'!$C$18) ->  | X13: =+W13*(1+'Input Data'!$C$18) ->  | Y13: =+X13*(1+'Input Data'!$C$18) ->  | Z13: =+Y13*(1+'Input Data'!$C$18) ->  | AA13: =+Z13*(1+'Input Data'!$C$18) ->  | AB13: =+AA13*(1+'Input Data'!$C$18) ->  | AC13: =+AB13*(1+'Input Data'!$C$18) ->  | AD13: =+AC13*(1+'Input Data'!$C$18) ->  | AE13: =+AD13*(1+'Input Data'!$C$18) ->  | AF13: =+AE13*(1+'Input Data'!$C$18) ->  | AG13: =+AF13*(1+'Input Data'!$C$18) -> 
B14: (USD/kWh) | C14: =INDEX('Energy Prices'!$S$8:$U$201,MATCH($C$8,'Energy Prices'!$A$8:$A$201,0),MATCH($B$12,'Energy Prices'!$S$6:$U$6,0)) ->  | D14: =+C14*(1+'Input Data'!$C$18) ->  | E14: =+D14*(1+'Input Data'!$C$18) ->  | F14: =+E14*(1+'Input Data'!$C$18) ->  | G14: =+F14*(1+'Input Data'!$C$18) ->  | H14: =+G14*(1+'Input Data'!$C$18) ->  | I14: =+H14*(1+'Input Data'!$C$18) ->  | J14: =+I14*(1+'Input Data'!$C$18) ->  | K14: =+J14*(1+'Input Data'!$C$18) ->  | L14: =+K14*(1+'Input Data'!$C$18) ->  | M14: =+L14*(1+'Input Data'!$C$18) ->  | N14: =+M14*(1+'Input Data'!$C$18) ->  | O14: =+N14*(1+'Input Data'!$C$18) ->  | P14: =+O14*(1+'Input Data'!$C$18) ->  | Q14: =+P14*(1+'Input Data'!$C$18) ->  | R14: =+Q14*(1+'Input Data'!$C$18) ->  | S14: =+R14*(1+'Input Data'!$C$18) ->  | T14: =+S14*(1+'Input Data'!$C$18) ->  | U14: =+T14*(1+'Input Data'!$C$18) ->  | V14: =+U14*(1+'Input Data'!$C$18) ->  | W14: =+V14*(1+'Input Data'!$C$18) ->  | X14: =+W14*(1+'Input Data'!$C$18) ->  | Y14: =+X14*(1+'Input Data'!$C$18) ->  | Z14: =+Y14*(1+'Input Data'!$C$18) ->  | AA14: =+Z14*(1+'Input Data'!$C$18) ->  | AB14: =+AA14*(1+'Input Data'!$C$18) ->  | AC14: =+AB14*(1+'Input Data'!$C$18) ->  | AD14: =+AC14*(1+'Input Data'!$C$18) ->  | AE14: =+AD14*(1+'Input Data'!$C$18) ->  | AF14: =+AE14*(1+'Input Data'!$C$18) ->  | AG14: =+AF14*(1+'Input Data'!$C$18) -> 
B15: (kWh/m3) | C15: =+C16/860 -> 10.86162791
B16: (kcal/m3) | C16: 9341
B18: =+'Energy Prices'!$U$6 -> Electricity | C18: 2020 | D18: 2021 | E18: 2022 | F18: 2023 | G18: 2024 | H18: 2025 | I18: 2026 | J18: 2027 | K18: 2028 | L18: 2029 | M18: 2030 | N18: 2031 | O18: 2032 | P18: 2033 | Q18: 2034 | R18: 2035 | S18: 2036 | T18: 2037 | U18: 2038 | V18: 2039 | W18: 2040 | X18: 2041 | Y18: 2042 | Z18: 2043 | AA18: 2044 | AB18: 2045 | AC18: 2046 | AD18: 2047 | AE18: 2048 | AF18: 2049 | AG18: 2050
B19: =+'Energy Prices'!U7 -> (USD/kWh) | C19: =INDEX('Energy Prices'!$S$8:$U$201,MATCH($C$8,'Energy Prices'!$A$8:$A$201,0),MATCH($B$18,'Energy Prices'!$S$6:$U$6,0)) ->  | D19: =+C19*('Input Data'!$C$19+1) ->  | E19: =+D19*('Input Data'!$C$19+1) ->  | F19: =+E19*('Input Data'!$C$19+1) ->  | G19: =+F19*('Input Data'!$C$19+1) ->  | H19: =+G19*('Input Data'!$C$19+1) ->  | I19: =+H19*('Input Data'!$C$19+1) ->  | J19: =+I19*('Input Data'!$C$19+1) ->  | K19: =+J19*('Input Data'!$C$19+1) ->  | L19: =+K19*('Input Data'!$C$19+1) ->  | M19: =+L19*('Input Data'!$C$19+1) ->  | N19: =+M19*('Input Data'!$C$19+1) ->  | O19: =+N19*('Input Data'!$C$19+1) ->  | P19: =+O19*('Input Data'!$C$19+1) ->  | Q19: =+P19*('Input Data'!$C$19+1) ->  | R19: =+Q19*('Input Data'!$C$19+1) ->  | S19: =+R19*('Input Data'!$C$19+1) ->  | T19: =+S19*('Input Data'!$C$19+1) ->  | U19: =+T19*('Input Data'!$C$19+1) ->  | V19: =+U19*('Input Data'!$C$19+1) ->  | W19: =+V19*('Input Data'!$C$19+1) ->  | X19: =+W19*('Input Data'!$C$19+1) ->  | Y19: =+X19*('Input Data'!$C$19+1) ->  | Z19: =+Y19*('Input Data'!$C$19+1) ->  | AA19: =+Z19*('Input Data'!$C$19+1) ->  | AB19: =+AA19*('Input Data'!$C$19+1) ->  | AC19: =+AB19*('Input Data'!$C$19+1) ->  | AD19: =+AC19*('Input Data'!$C$19+1) ->  | AE19: =+AD19*('Input Data'!$C$19+1) ->  | AF19: =+AE19*('Input Data'!$C$19+1) ->  | AG19: =+AF19*('Input Data'!$C$19+1) -> 
B21: =+'Energy Prices'!$V$6 -> Biodiesel | C21: 2020 | D21: 2021 | E21: 2022 | F21: 2023 | G21: 2024 | H21: 2025 | I21: 2026 | J21: 2027 | K21: 2028 | L21: 2029 | M21: 2030 | N21: 2031 | O21: 2032 | P21: 2033 | Q21: 2034 | R21: 2035 | S21: 2036 | T21: 2037 | U21: 2038 | V21: 2039 | W21: 2040 | X21: 2041 | Y21: 2042 | Z21: 2043 | AA21: 2044 | AB21: 2045 | AC21: 2046 | AD21: 2047 | AE21: 2048 | AF21: 2049 | AG21: 2050
B22: =+'Energy Prices'!V7 -> (USD/litre) | C22: =INDEX('Energy Prices'!$S$8:$V$201,MATCH($C$8,'Energy Prices'!$A$8:$A$201,0),MATCH($B$21,'Energy Prices'!$S$6:$V$6,0)) ->  | D22: =+C22*('Input Data'!$C$19+1) ->  | E22: =+D22*('Input Data'!$C$19+1) ->  | F22: =+E22*('Input Data'!$C$19+1) ->  | G22: =+F22*('Input Data'!$C$19+1) ->  | H22: =+G22*('Input Data'!$C$19+1) ->  | I22: =+H22*('Input Data'!$C$19+1) ->  | J22: =+I22*('Input Data'!$C$19+1) ->  | K22: =+J22*('Input Data'!$C$19+1) ->  | L22: =+K22*('Input Data'!$C$19+1) ->  | M22: =+L22*('Input Data'!$C$19+1) ->  | N22: =+M22*('Input Data'!$C$19+1) ->  | O22: =+N22*('Input Data'!$C$19+1) ->  | P22: =+O22*('Input Data'!$C$19+1) ->  | Q22: =+P22*('Input Data'!$C$19+1) ->  | R22: =+Q22*('Input Data'!$C$19+1) ->  | S22: =+R22*('Input Data'!$C$19+1) ->  | T22: =+S22*('Input Data'!$C$19+1) ->  | U22: =+T22*('Input Data'!$C$19+1) ->  | V22: =+U22*('Input Data'!$C$19+1) ->  | W22: =+V22*('Input Data'!$C$19+1) ->  | X22: =+W22*('Input Data'!$C$19+1) ->  | Y22: =+X22*('Input Data'!$C$19+1) ->  | Z22: =+Y22*('Input Data'!$C$19+1) ->  | AA22: =+Z22*('Input Data'!$C$19+1) ->  | AB22: =+AA22*('Input Data'!$C$19+1) ->  | AC22: =+AB22*('Input Data'!$C$19+1) ->  | AD22: =+AC22*('Input Data'!$C$19+1) ->  | AE22: =+AD22*('Input Data'!$C$19+1) ->  | AF22: =+AE22*('Input Data'!$C$19+1) ->  | AG22: =+AF22*('Input Data'!$C$19+1) -> 
A24: I.b | B24: User Price Projection Scenarios
B26: =+'Energy Prices'!$S$6 -> Diesel | C26: 2020 | D26: 2021 | E26: 2022 | F26: 2023 | G26: 2024 | H26: 2025 | I26: 2026 | J26: 2027 | K26: 2028 | L26: 2029 | M26: 2030 | N26: 2031 | O26: 2032 | P26: 2033 | Q26: 2034 | R26: 2035 | S26: 2036 | T26: 2037 | U26: 2038 | V26: 2039 | W26: 2040 | X26: 2041 | Y26: 2042 | Z26: 2043 | AA26: 2044 | AB26: 2045 | AC26: 2046 | AD26: 2047 | AE26: 2048 | AF26: 2049 | AG26: 2050
B27: =+B10 -> (USD/litre)
B29: =+'Energy Prices'!$T$6 -> Natural Gas | C29: 2020 | D29: 2021 | E29: 2022 | F29: 2023 | G29: 2024 | H29: 2025 | I29: 2026 | J29: 2027 | K29: 2028 | L29: 2029 | M29: 2030 | N29: 2031 | O29: 2032 | P29: 2033 | Q29: 2034 | R29: 2035 | S29: 2036 | T29: 2037 | U29: 2038 | V29: 2039 | W29: 2040 | X29: 2041 | Y29: 2042 | Z29: 2043 | AA29: 2044 | AB29: 2045 | AC29: 2046 | AD29: 2047 | AE29: 2048 | AF29: 2049 | AG29: 2050
B30: (USD/m3)
B32: =+'Energy Prices'!$U$6 -> Electricity | C32: 2020 | D32: 2021 | E32: 2022 | F32: 2023 | G32: 2024 | H32: 2025 | I32: 2026 | J32: 2027 | K32: 2028 | L32: 2029 | M32: 2030 | N32: 2031 | O32: 2032 | P32: 2033 | Q32: 2034 | R32: 2035 | S32: 2036 | T32: 2037 | U32: 2038 | V32: 2039 | W32: 2040 | X32: 2041 | Y32: 2042 | Z32: 2043 | AA32: 2044 | AB32: 2045 | AC32: 2046 | AD32: 2047 | AE32: 2048 | AF32: 2049 | AG32: 2050
B33: =+B19 -> (USD/kWh)
B35: =+'Energy Prices'!$V$6 -> Biodiesel | C35: 2020 | D35: 2021 | E35: 2022 | F35: 2023 | G35: 2024 | H35: 2025 | I35: 2026 | J35: 2027 | K35: 2028 | L35: 2029 | M35: 2030 | N35: 2031 | O35: 2032 | P35: 2033 | Q35: 2034 | R35: 2035 | S35: 2036 | T35: 2037 | U35: 2038 | V35: 2039 | W35: 2040 | X35: 2041 | Y35: 2042 | Z35: 2043 | AA35: 2044 | AB35: 2045 | AC35: 2046 | AD35: 2047 | AE35: 2048 | AF35: 2049 | AG35: 2050
B36: =+B22 -> (USD/litre)
A38: I.c | B38: Selected Price Projection
B40: =+'Energy Prices'!$S$6 -> Diesel | C40: 2020 | D40: 2021 | E40: 2022 | F40: 2023 | G40: 2024 | H40: 2025 | I40: 2026 | J40: 2027 | K40: 2028 | L40: 2029 | M40: 2030 | N40: 2031 | O40: 2032 | P40: 2033 | Q40: 2034 | R40: 2035 | S40: 2036 | T40: 2037 | U40: 2038 | V40: 2039 | W40: 2040 | X40: 2041 | Y40: 2042 | Z40: 2043 | AA40: 2044 | AB40: 2045 | AC40: 2046 | AD40: 2047 | AE40: 2048 | AF40: 2049 | AG40: 2050
B41: =+B27 -> (USD/litre) | D41: =+IF(Aux_Tab!$E$68=FALSE,'Energy Projections'!D10,'Energy Projections'!D27) ->  | E41: =+IF(Aux_Tab!$E$68=FALSE,'Energy Projections'!E10,'Energy Projections'!E27) ->  | F41: =+IF(Aux_Tab!$E$68=FALSE,'Energy Projections'!F10,'Energy Projections'!F27) ->  | G41: =+IF(Aux_Tab!$E$68=FALSE,'Energy Projections'!G10,'Energy Projections'!G27) ->  | H41: =+IF(Aux_Tab!$E$68=FALSE,'Energy Projections'!H10,'Energy Projections'!H27) ->  | I41: =+IF(Aux_Tab!$E$68=FALSE,'Energy Projections'!I10,'Energy Projections'!I27) ->  | J41: =+IF(Aux_Tab!$E$68=FALSE,'Energy Projections'!J10,'Energy Projections'!J27) ->  | K41: =+IF(Aux_Tab!$E$68=FALSE,'Energy Projections'!K10,'Energy Projections'!K27) ->  | L41: =+IF(Aux_Tab!$E$68=FALSE,'Energy Projections'!L10,'Energy Projections'!L27) ->  | M41: =+IF(Aux_Tab!$E$68=FALSE,'Energy Projections'!M10,'Energy Projections'!M27) ->  | N41: =+IF(Aux_Tab!$E$68=FALSE,'Energy Projections'!N10,'Energy Projections'!N27) ->  | O41: =+IF(Aux_Tab!$E$68=FALSE,'Energy Projections'!O10,'Energy Projections'!O27) ->  | P41: =+IF(Aux_Tab!$E$68=FALSE,'Energy Projections'!P10,'Energy Projections'!P27) ->  | Q41: =+IF(Aux_Tab!$E$68=FALSE,'Energy Projections'!Q10,'Energy Projections'!Q27) ->  | R41: =+IF(Aux_Tab!$E$68=FALSE,'Energy Projections'!R10,'Energy Projections'!R27) ->  | S41: =+IF(Aux_Tab!$E$68=FALSE,'Energy Projections'!S10,'Energy Projections'!S27) ->  | T41: =+IF(Aux_Tab!$E$68=FALSE,'Energy Projections'!T10,'Energy Projections'!T27) ->  | U41: =+IF(Aux_Tab!$E$68=FALSE,'Energy Projections'!U10,'Energy Projections'!U27) ->  | V41: =+IF(Aux_Tab!$E$68=FALSE,'Energy Projections'!V10,'Energy Projections'!V27) ->  | W41: =+IF(Aux_Tab!$E$68=FALSE,'Energy Projections'!W10,'Energy Projections'!W27) ->  | X41: =+IF(Aux_Tab!$E$68=FALSE,'Energy Projections'!X10,'Energy Projections'!X27) ->  | Y41: =+IF(Aux_Tab!$E$68=FALSE,'Energy Projections'!Y10,'Energy Projections'!Y27) ->  | Z41: =+IF(Aux_Tab!$E$68=FALSE,'Energy Projections'!Z10,'Energy Projections'!Z27) ->  | AA41: =+IF(Aux_Tab!$E$68=FALSE,'Energy Projections'!AA10,'Energy Projections'!AA27) ->  | AB41: =+IF(Aux_Tab!$E$68=FALSE,'Energy Projections'!AB10,'Energy Projections'!AB27) ->  | AC41: =+IF(Aux_Tab!$E$68=FALSE,'Energy Projections'!AC10,'Energy Projections'!AC27) ->  | AD41: =+IF(Aux_Tab!$E$68=FALSE,'Energy Projections'!AD10,'Energy Projections'!AD27) ->  | AE41: =+IF(Aux_Tab!$E$68=FALSE,'Energy Projections'!AE10,'Energy Projections'!AE27) ->  | AF41: =+IF(Aux_Tab!$E$68=FALSE,'Energy Projections'!AF10,'Energy Projections'!AF27) ->  | AG41: =+IF(Aux_Tab!$E$68=FALSE,'Energy Projections'!AG10,'Energy Projections'!AG27) -> 
B43: =+'Energy Prices'!$T$6 -> Natural Gas | C43: 2020 | D43: 2021 | E43: 2022 | F43: 2023 | G43: 2024 | H43: 2025 | I43: 2026 | J43: 2027 | K43: 2028 | L43: 2029 | M43: 2030 | N43: 2031 | O43: 2032 | P43: 2033 | Q43: 2034 | R43: 2035 | S43: 2036 | T43: 2037 | U43: 2038 | V43: 2039 | W43: 2040 | X43: 2041 | Y43: 2042 | Z43: 2043 | AA43: 2044 | AB43: 2045 | AC43: 2046 | AD43: 2047 | AE43: 2048 | AF43: 2049 | AG43: 2050
B44: (USD/m3) | D44: =+IF(Aux_Tab!$E$68=FALSE,'Energy Projections'!D13,'Energy Projections'!D30) ->  | E44: =+IF(Aux_Tab!$E$68=FALSE,'Energy Projections'!E13,'Energy Projections'!E30) ->  | F44: =+IF(Aux_Tab!$E$68=FALSE,'Energy Projections'!F13,'Energy Projections'!F30) ->  | G44: =+IF(Aux_Tab!$E$68=FALSE,'Energy Projections'!G13,'Energy Projections'!G30) ->  | H44: =+IF(Aux_Tab!$E$68=FALSE,'Energy Projections'!H13,'Energy Projections'!H30) ->  | I44: =+IF(Aux_Tab!$E$68=FALSE,'Energy Projections'!I13,'Energy Projections'!I30) ->  | J44: =+IF(Aux_Tab!$E$68=FALSE,'Energy Projections'!J13,'Energy Projections'!J30) ->  | K44: =+IF(Aux_Tab!$E$68=FALSE,'Energy Projections'!K13,'Energy Projections'!K30) ->  | L44: =+IF(Aux_Tab!$E$68=FALSE,'Energy Projections'!L13,'Energy Projections'!L30) ->  | M44: =+IF(Aux_Tab!$E$68=FALSE,'Energy Projections'!M13,'Energy Projections'!M30) ->  | N44: =+IF(Aux_Tab!$E$68=FALSE,'Energy Projections'!N13,'Energy Projections'!N30) ->  | O44: =+IF(Aux_Tab!$E$68=FALSE,'Energy Projections'!O13,'Energy Projections'!O30) ->  | P44: =+IF(Aux_Tab!$E$68=FALSE,'Energy Projections'!P13,'Energy Projections'!P30) ->  | Q44: =+IF(Aux_Tab!$E$68=FALSE,'Energy Projections'!Q13,'Energy Projections'!Q30) ->  | R44: =+IF(Aux_Tab!$E$68=FALSE,'Energy Projections'!R13,'Energy Projections'!R30) ->  | S44: =+IF(Aux_Tab!$E$68=FALSE,'Energy Projections'!S13,'Energy Projections'!S30) ->  | T44: =+IF(Aux_Tab!$E$68=FALSE,'Energy Projections'!T13,'Energy Projections'!T30) ->  | U44: =+IF(Aux_Tab!$E$68=FALSE,'Energy Projections'!U13,'Energy Projections'!U30) ->  | V44: =+IF(Aux_Tab!$E$68=FALSE,'Energy Projections'!V13,'Energy Projections'!V30) ->  | W44: =+IF(Aux_Tab!$E$68=FALSE,'Energy Projections'!W13,'Energy Projections'!W30) ->  | X44: =+IF(Aux_Tab!$E$68=FALSE,'Energy Projections'!X13,'Energy Projections'!X30) ->  | Y44: =+IF(Aux_Tab!$E$68=FALSE,'Energy Projections'!Y13,'Energy Projections'!Y30) ->  | Z44: =+IF(Aux_Tab!$E$68=FALSE,'Energy Projections'!Z13,'Energy Projections'!Z30) ->  | AA44: =+IF(Aux_Tab!$E$68=FALSE,'Energy Projections'!AA13,'Energy Projections'!AA30) ->  | AB44: =+IF(Aux_Tab!$E$68=FALSE,'Energy Projections'!AB13,'Energy Projections'!AB30) ->  | AC44: =+IF(Aux_Tab!$E$68=FALSE,'Energy Projections'!AC13,'Energy Projections'!AC30) ->  | AD44: =+IF(Aux_Tab!$E$68=FALSE,'Energy Projections'!AD13,'Energy Projections'!AD30) ->  | AE44: =+IF(Aux_Tab!$E$68=FALSE,'Energy Projections'!AE13,'Energy Projections'!AE30) ->  | AF44: =+IF(Aux_Tab!$E$68=FALSE,'Energy Projections'!AF13,'Energy Projections'!AF30) ->  | AG44: =+IF(Aux_Tab!$E$68=FALSE,'Energy Projections'!AG13,'Energy Projections'!AG30) -> 
B46: =+'Energy Prices'!$U$6 -> Electricity | C46: 2020 | D46: 2021 | E46: 2022 | F46: 2023 | G46: 2024 | H46: 2025 | I46: 2026 | J46: 2027 | K46: 2028 | L46: 2029 | M46: 2030 | N46: 2031 | O46: 2032 | P46: 2033 | Q46: 2034 | R46: 2035 | S46: 2036 | T46: 2037 | U46: 2038 | V46: 2039 | W46: 2040 | X46: 2041 | Y46: 2042 | Z46: 2043 | AA46: 2044 | AB46: 2045 | AC46: 2046 | AD46: 2047 | AE46: 2048 | AF46: 2049 | AG46: 2050
B47: =+B33 -> (USD/kWh) | D47: =+IF(Aux_Tab!$E$69=FALSE,'Energy Projections'!D19,'Energy Projections'!D33) ->  | E47: =+IF(Aux_Tab!$E$69=FALSE,'Energy Projections'!E19,'Energy Projections'!E33) ->  | F47: =+IF(Aux_Tab!$E$69=FALSE,'Energy Projections'!F19,'Energy Projections'!F33) ->  | G47: =+IF(Aux_Tab!$E$69=FALSE,'Energy Projections'!G19,'Energy Projections'!G33) ->  | H47: =+IF(Aux_Tab!$E$69=FALSE,'Energy Projections'!H19,'Energy Projections'!H33) ->  | I47: =+IF(Aux_Tab!$E$69=FALSE,'Energy Projections'!I19,'Energy Projections'!I33) ->  | J47: =+IF(Aux_Tab!$E$69=FALSE,'Energy Projections'!J19,'Energy Projections'!J33) ->  | K47: =+IF(Aux_Tab!$E$69=FALSE,'Energy Projections'!K19,'Energy Projections'!K33) ->  | L47: =+IF(Aux_Tab!$E$69=FALSE,'Energy Projections'!L19,'Energy Projections'!L33) ->  | M47: =+IF(Aux_Tab!$E$69=FALSE,'Energy Projections'!M19,'Energy Projections'!M33) ->  | N47: =+IF(Aux_Tab!$E$69=FALSE,'Energy Projections'!N19,'Energy Projections'!N33) ->  | O47: =+IF(Aux_Tab!$E$69=FALSE,'Energy Projections'!O19,'Energy Projections'!O33) ->  | P47: =+IF(Aux_Tab!$E$69=FALSE,'Energy Projections'!P19,'Energy Projections'!P33) ->  | Q47: =+IF(Aux_Tab!$E$69=FALSE,'Energy Projections'!Q19,'Energy Projections'!Q33) ->  | R47: =+IF(Aux_Tab!$E$69=FALSE,'Energy Projections'!R19,'Energy Projections'!R33) ->  | S47: =+IF(Aux_Tab!$E$69=FALSE,'Energy Projections'!S19,'Energy Projections'!S33) ->  | T47: =+IF(Aux_Tab!$E$69=FALSE,'Energy Projections'!T19,'Energy Projections'!T33) ->  | U47: =+IF(Aux_Tab!$E$69=FALSE,'Energy Projections'!U19,'Energy Projections'!U33) ->  | V47: =+IF(Aux_Tab!$E$69=FALSE,'Energy Projections'!V19,'Energy Projections'!V33) ->  | W47: =+IF(Aux_Tab!$E$69=FALSE,'Energy Projections'!W19,'Energy Projections'!W33) ->  | X47: =+IF(Aux_Tab!$E$69=FALSE,'Energy Projections'!X19,'Energy Projections'!X33) ->  | Y47: =+IF(Aux_Tab!$E$69=FALSE,'Energy Projections'!Y19,'Energy Projections'!Y33) ->  | Z47: =+IF(Aux_Tab!$E$69=FALSE,'Energy Projections'!Z19,'Energy Projections'!Z33) ->  | AA47: =+IF(Aux_Tab!$E$69=FALSE,'Energy Projections'!AA19,'Energy Projections'!AA33) ->  | AB47: =+IF(Aux_Tab!$E$69=FALSE,'Energy Projections'!AB19,'Energy Projections'!AB33) ->  | AC47: =+IF(Aux_Tab!$E$69=FALSE,'Energy Projections'!AC19,'Energy Projections'!AC33) ->  | AD47: =+IF(Aux_Tab!$E$69=FALSE,'Energy Projections'!AD19,'Energy Projections'!AD33) ->  | AE47: =+IF(Aux_Tab!$E$69=FALSE,'Energy Projections'!AE19,'Energy Projections'!AE33) ->  | AF47: =+IF(Aux_Tab!$E$69=FALSE,'Energy Projections'!AF19,'Energy Projections'!AF33) ->  | AG47: =+IF(Aux_Tab!$E$69=FALSE,'Energy Projections'!AG19,'Energy Projections'!AG33) -> 
B49: =+'Energy Prices'!$V$6 -> Biodiesel | C49: 2020 | D49: 2021 | E49: 2022 | F49: 2023 | G49: 2024 | H49: 2025 | I49: 2026 | J49: 2027 | K49: 2028 | L49: 2029 | M49: 2030 | N49: 2031 | O49: 2032 | P49: 2033 | Q49: 2034 | R49: 2035 | S49: 2036 | T49: 2037 | U49: 2038 | V49: 2039 | W49: 2040 | X49: 2041 | Y49: 2042 | Z49: 2043 | AA49: 2044 | AB49: 2045 | AC49: 2046 | AD49: 2047 | AE49: 2048 | AF49: 2049 | AG49: 2050
B50: =+B36 -> (USD/litre) | D50: =+IF(Aux_Tab!$E$69=FALSE,'Energy Projections'!D22,'Energy Projections'!D36) ->  | E50: =+IF(Aux_Tab!$E$69=FALSE,'Energy Projections'!E22,'Energy Projections'!E36) ->  | F50: =+IF(Aux_Tab!$E$69=FALSE,'Energy Projections'!F22,'Energy Projections'!F36) ->  | G50: =+IF(Aux_Tab!$E$69=FALSE,'Energy Projections'!G22,'Energy Projections'!G36) ->  | H50: =+IF(Aux_Tab!$E$69=FALSE,'Energy Projections'!H22,'Energy Projections'!H36) ->  | I50: =+IF(Aux_Tab!$E$69=FALSE,'Energy Projections'!I22,'Energy Projections'!I36) ->  | J50: =+IF(Aux_Tab!$E$69=FALSE,'Energy Projections'!J22,'Energy Projections'!J36) ->  | K50: =+IF(Aux_Tab!$E$69=FALSE,'Energy Projections'!K22,'Energy Projections'!K36) ->  | L50: =+IF(Aux_Tab!$E$69=FALSE,'Energy Projections'!L22,'Energy Projections'!L36) ->  | M50: =+IF(Aux_Tab!$E$69=FALSE,'Energy Projections'!M22,'Energy Projections'!M36) ->  | N50: =+IF(Aux_Tab!$E$69=FALSE,'Energy Projections'!N22,'Energy Projections'!N36) ->  | O50: =+IF(Aux_Tab!$E$69=FALSE,'Energy Projections'!O22,'Energy Projections'!O36) ->  | P50: =+IF(Aux_Tab!$E$69=FALSE,'Energy Projections'!P22,'Energy Projections'!P36) ->  | Q50: =+IF(Aux_Tab!$E$69=FALSE,'Energy Projections'!Q22,'Energy Projections'!Q36) ->  | R50: =+IF(Aux_Tab!$E$69=FALSE,'Energy Projections'!R22,'Energy Projections'!R36) ->  | S50: =+IF(Aux_Tab!$E$69=FALSE,'Energy Projections'!S22,'Energy Projections'!S36) ->  | T50: =+IF(Aux_Tab!$E$69=FALSE,'Energy Projections'!T22,'Energy Projections'!T36) ->  | U50: =+IF(Aux_Tab!$E$69=FALSE,'Energy Projections'!U22,'Energy Projections'!U36) ->  | V50: =+IF(Aux_Tab!$E$69=FALSE,'Energy Projections'!V22,'Energy Projections'!V36) ->  | W50: =+IF(Aux_Tab!$E$69=FALSE,'Energy Projections'!W22,'Energy Projections'!W36) ->  | X50: =+IF(Aux_Tab!$E$69=FALSE,'Energy Projections'!X22,'Energy Projections'!X36) ->  | Y50: =+IF(Aux_Tab!$E$69=FALSE,'Energy Projections'!Y22,'Energy Projections'!Y36) ->  | Z50: =+IF(Aux_Tab!$E$69=FALSE,'Energy Projections'!Z22,'Energy Projections'!Z36) ->  | AA50: =+IF(Aux_Tab!$E$69=FALSE,'Energy Projections'!AA22,'Energy Projections'!AA36) ->  | AB50: =+IF(Aux_Tab!$E$69=FALSE,'Energy Projections'!AB22,'Energy Projections'!AB36) ->  | AC50: =+IF(Aux_Tab!$E$69=FALSE,'Energy Projections'!AC22,'Energy Projections'!AC36) ->  | AD50: =+IF(Aux_Tab!$E$69=FALSE,'Energy Projections'!AD22,'Energy Projections'!AD36) ->  | AE50: =+IF(Aux_Tab!$E$69=FALSE,'Energy Projections'!AE22,'Energy Projections'!AE36) ->  | AF50: =+IF(Aux_Tab!$E$69=FALSE,'Energy Projections'!AF22,'Energy Projections'!AF36) ->  | AG50: =+IF(Aux_Tab!$E$69=FALSE,'Energy Projections'!AG22,'Energy Projections'!AG36) -> 
A53: II. | B53: Investment Cost Projection
A55: II.a | B55: Lithium Ion Battery Unit Cost Projection (USD/kWh)
D57: 2010 | E57: 2011 | F57: 2012 | G57: 2013 | H57: 2014 | I57: 2015 | J57: 2016 | K57: 2017 | L57: 2018 | M57: 2019 | N57: 2020 | O57: 2021 | P57: 2022 | Q57: 2023 | R57: 2024 | S57: 2025 | T57: 2026 | U57: 2027 | V57: 2028 | W57: 2029 | X57: 2030 | Y57: 2031 | Z57: 2032 | AA57: 2033 | AB57: 2034 | AC57: 2035 | AD57: 2036 | AE57: 2037 | AF57: 2038 | AG57: 2039 | AH57: 2040 | AI57: 2041 | AJ57: 2042 | AK57: 2043 | AL57: 2044 | AM57: 2045 | AN57: 2046 | AO57: 2047 | AP57: 2048 | AQ57: 2049 | AR57: 2050
B58: Price (USD/kWh) | D58: 1160 | E58: 899 | F58: 707 | G58: 650 | H58: 577 | I58: 373 | J58: 288 | K58: 214 | L58: 176 | M58: 120.5527145 | N58: 120.5527145 | O58: 120.5527145 | P58: 120.5527145 | Q58: 120.5527145 | R58: 94 | S58: 90.46470459 | T58: 77.65980164 | U58: 66.66737949 | V58: 62 | W58: 62 | X58: 62 | Y58: 62 | Z58: 62 | AA58: 62 | AB58: 62 | AC58: 62 | AD58: 62 | AE58: 62 | AF58: 62 | AG58: 62 | AH58: 62 | AI58: 62 | AJ58: 62 | AK58: 62 | AL58: 62 | AM58: 62 | AN58: 62 | AO58: 62 | AP58: 62 | AQ58: 62 | AR58: 62

Sheet Energy Prices
A1: Prices for diesel, electricity, and natural gas are presented for each country according to Global Petrol Prices and OECD-FAO for biodiesel.
A2: Average prices by continent, region and zone are also calculated. If a country does not have information, the price available for the zone, region, or continent is considered.
A4: ISO3 | B4: Global Petrol Prices | E4: OECD-FAO | F4: Country | G4: Continent | H4: Region | I4: Zone | J4: Continent Average | M4: Region Average | P4: Zone Average | S4: Price used
B5: 2020 | C5: 2020 | D5: 2020 | E5: 2020 | J5: =+$B5 -> 2020 | K5: =+$C5 -> 2020 | L5: =+$D5 -> 2020 | M5: =+$B5 -> 2020 | N5: =+$C5 -> 2020 | O5: =+$D5 -> 2020 | P5: =+$B5 -> 2020 | Q5: =+$C5 -> 2020 | R5: =+$D5 -> 2020 | S5: =+$B5 -> 2020 | T5: =+$C5 -> 2020 | U5: =+$D5 -> 2020 | V5: 2020
B6: Diesel | C6: Natural Gas | D6: Electricity | E6: Biodiesel | J6: =+$B6 -> Diesel | K6: =+$C6 -> Natural Gas | L6: =+$D6 -> Electricity | M6: =+$B6 -> Diesel | N6: =+$C6 -> Natural Gas | O6: =+$D6 -> Electricity | P6: =+$B6 -> Diesel | Q6: =+$C6 -> Natural Gas | R6: =+$D6 -> Electricity | S6: =+$B6 -> Diesel | T6: =+$C6 -> Natural Gas | U6: =+$D6 -> Electricity | V6: =+$E6 -> Biodiesel
B7: (USD/litre) | C7: (USD/kWh) | D7: (USD/kWh) | E7: (USD/litre) | J7: =+$B7 -> (USD/litre) | K7: =+$C7 -> (USD/kWh) | L7: =+$D7 -> (USD/kWh) | M7: =+$B7 -> (USD/litre) | N7: =+$C7 -> (USD/kWh) | O7: =+$D7 -> (USD/kWh) | P7: =+$B7 -> (USD/litre) | Q7: =+$C7 -> (USD/kWh) | R7: =+$D7 -> (USD/kWh) | S7: =+$B7 -> (USD/litre) | T7: =+$C7 -> (USD/kWh) | U7: =+$D7 -> (USD/kWh) | V7: =+$E7 -> (USD/litre)
A8: AFG | B8: 0.49 | C8: S/I | D8: S/I | E8: 0.8 | F8: =+INDEX(Countries!$O$4:$O$197,MATCH('Energy Prices'!$A8,Countries!$A$4:$A$197,0),1) -> Afghanistan | G8: =+INDEX(Countries!$P$4:$P$197,MATCH('Energy Prices'!$A8,Countries!$A$4:$A$197,0),1) -> Asia | H8: =+INDEX(Countries!$Q$4:$Q$197,MATCH('Energy Prices'!$A8,Countries!$A$4:$A$197,0),1) -> Southern Asia | I8: =+INDEX(Countries!$R$4:$R$197,MATCH('Energy Prices'!$A8,Countries!$A$4:$A$197,0),1) -> Southern Asia | J8: =+AVERAGEIFS($B$8:$B$201,$G$8:$G$201,$G8) -> 0.7066666667 | K8: =+AVERAGEIFS($C$8:$C$201,$G$8:$G$201,$G8) -> 0.03533333333 | L8: =+AVERAGEIFS($D$8:$D$201,$G$8:$G$201,$G8) -> 0.09875 | M8: =+AVERAGEIFS($B$8:$B$201,$H$8:$H$201,$H8) -> 0.635 | N8: =+AVERAGEIFS($C$8:$C$201,$H$8:$H$201,$H8) -> 0.012 | O8: =+AVERAGEIFS($D$8:$D$201,$H$8:$H$201,$H8) -> 0.0935 | P8: =+AVERAGEIFS($B$8:$B$201,$I$8:$I$201,$I8) -> 0.635 | Q8: =+AVERAGEIFS($C$8:$C$201,$I$8:$I$201,$I8) -> 0.012 | R8: =+AVERAGEIFS($D$8:$D$201,$I$8:$I$201,$I8) -> 0.0935 | S8: =+IF(ISNUMBER(B8),B8,IF(ISNUMBER(P8),P8,IF(ISNUMBER(M8),M8,IF(ISNUMBER(J8),J8,0)))) -> 0.49 | T8: =+IF(ISNUMBER(C8),C8,IF(ISNUMBER(Q8),Q8,IF(ISNUMBER(N8),N8,IF(ISNUMBER(K8),K8,0)))) -> 0.012 | U8: =+IF(ISNUMBER(D8),D8,IF(ISNUMBER(R8),R8,IF(ISNUMBER(O8),O8,IF(ISNUMBER(L8),L8,0)))) -> 0.0935 | V8: =+E8 -> 0.8
A9: ALB | B9: 1.68 | C9: S/I | D9: 0.13 | E9: 0.8 | F9: =+INDEX(Countries!$O$4:$O$197,MATCH('Energy Prices'!$A9,Countries!$A$4:$A$197,0),1) -> Albania | G9: =+INDEX(Countries!$P$4:$P$197,MATCH('Energy Prices'!$A9,Countries!$A$4:$A$197,0),1) -> Europe | H9: =+INDEX(Countries!$Q$4:$Q$197,MATCH('Energy Prices'!$A9,Countries!$A$4:$A$197,0),1) -> Southern Europe | I9: =+INDEX(Countries!$R$4:$R$197,MATCH('Energy Prices'!$A9,Countries!$A$4:$A$197,0),1) -> Southern Europe | J9: 1.344418605 | K9: 0.05273333333 | L9: 0.1401351351 | M9: 1.382142857 | N9: 0.06433333333 | O9: 0.1463636364 | P9: 1.382142857 | Q9: 0.06433333333 | R9: 0.1463636364 | S9: 1.68 | T9: 0.06433333333 | U9: 0.13 | V9: =+E9 -> 0.8
A10: DEU | B10: 1.4 | C10: 0.043 | D10: 0.23 | E10: 0.8 | F10: =+INDEX(Countries!$O$4:$O$197,MATCH('Energy Prices'!$A10,Countries!$A$4:$A$197,0),1) -> Germany | G10: =+INDEX(Countries!$P$4:$P$197,MATCH('Energy Prices'!$A10,Countries!$A$4:$A$197,0),1) -> Europe | H10: =+INDEX(Countries!$Q$4:$Q$197,MATCH('Energy Prices'!$A10,Countries!$A$4:$A$197,0),1) -> Western Europe | I10: =+INDEX(Countries!$R$4:$R$197,MATCH('Energy Prices'!$A10,Countries!$A$4:$A$197,0),1) -> Western Europe | J10: 1.344418605 | K10: 0.05273333333 | L10: 0.1401351351 | M10: 1.461111111 | N10: 0.061 | O10: 0.165 | P10: 1.461111111 | Q10: 0.061 | R10: 0.165 | S10: 1.4 | T10: 0.043 | U10: 0.23 | V10: 0.8
A11: AND | B11: 1.09 | C11: S/I | D11: S/I | E11: 0.8 | F11: =+INDEX(Countries!$O$4:$O$197,MATCH('Energy Prices'!$A11,Countries!$A$4:$A$197,0),1) -> Andorra | G11: =+INDEX(Countries!$P$4:$P$197,MATCH('Energy Prices'!$A11,Countries!$A$4:$A$197,0),1) -> Europe | H11: =+INDEX(Countries!$Q$4:$Q$197,MATCH('Energy Prices'!$A11,Countries!$A$4:$A$197,0),1) -> Southern Europe | I11: =+INDEX(Countries!$R$4:$R$197,MATCH('Energy Prices'!$A11,Countries!$A$4:$A$197,0),1) -> Southern Europe | J11: 1.344418605 | K11: 0.05273333333 | L11: 0.1401351351 | M11: 1.382142857 | N11: 0.06433333333 | O11: 0.1463636364 | P11: 1.382142857 | Q11: 0.06433333333 | R11: 0.1463636364 | S11: 1.09 | T11: 0.06433333333 | U11: 0.1463636364 | V11: 0.8
A12: AGO | B12: 0.21 | C12: S/I | D12: 0.015 | E12: 0.8 | F12: =+INDEX(Countries!$O$4:$O$197,MATCH('Energy Prices'!$A12,Countries!$A$4:$A$197,0),1) -> Angola | G12: =+INDEX(Countries!$P$4:$P$197,MATCH('Energy Prices'!$A12,Countries!$A$4:$A$197,0),1) -> Africa | H12: =+INDEX(Countries!$Q$4:$Q$197,MATCH('Energy Prices'!$A12,Countries!$A$4:$A$197,0),1) -> Sub-Saharan Africa | I12: =+INDEX(Countries!$R$4:$R$197,MATCH('Energy Prices'!$A12,Countries!$A$4:$A$197,0),1) -> Middle Africa | J12: 0.8643902439 | K12: 0.004 | L12: 0.1132413793 | M12: 0.915 | O12: 0.1228333333 | P12: 1.006666667 | R12: 0.095 | S12: 0.21 | T12: 0.004 | U12: 0.015 | V12: 0.8
A13: ATG | B13: S/I | C13: S/I | D13: S/I | E13: 0.8 | F13: =+INDEX(Countries!$O$4:$O$197,MATCH('Energy Prices'!$A13,Countries!$A$4:$A$197,0),1) -> Antigua and Barbuda | G13: =+INDEX(Countries!$P$4:$P$197,MATCH('Energy Prices'!$A13,Countries!$A$4:$A$197,0),1) -> Americas | H13: =+INDEX(Countries!$Q$4:$Q$197,MATCH('Energy Prices'!$A13,Countries!$A$4:$A$197,0),1) -> Latin America and the Caribbean | I13: =+INDEX(Countries!$R$4:$R$197,MATCH('Energy Prices'!$A13,Countries!$A$4:$A$197,0),1) -> Caribbean | J13: 0.7327272831 | K13: 0.036 | L13: 0.1456000464 | M13: 0.7312903336 | N13: 0.04075 | O13: 0.1495652678 | P13: 0.8127272727 | Q13: 0.082 | R13: 0.19 | S13: 0.8127272727 | T13: 0.082 | U13: 0.19 | V13: 0.8
A14: SAU | B14: 0.14 | C14: S/I | D14: 0.07 | E14: 0.8 | F14: =+INDEX(Countries!$O$4:$O$197,MATCH('Energy Prices'!$A14,Countries!$A$4:$A$197,0),1) -> Saudi Arabia | G14: =+INDEX(Countries!$P$4:$P$197,MATCH('Energy Prices'!$A14,Countries!$A$4:$A$197,0),1) -> Asia | H14: =+INDEX(Countries!$Q$4:$Q$197,MATCH('Energy Prices'!$A14,Countries!$A$4:$A$197,0),1) -> Western Asia | I14: =+INDEX(Countries!$R$4:$R$197,MATCH('Energy Prices'!$A14,Countries!$A$4:$A$197,0),1) -> Western Asia | J14: 0.7066666667 | K14: 0.03533333333 | L14: 0.09875 | M14: 0.7473333333 | N14: 0.01566666667 | O14: 0.099 | P14: 0.7473333333 | Q14: 0.01566666667 | R14: 0.099 | S14: 0.14 | T14: 0.01566666667 | U14: 0.07 | V14: 0.8
A15: DZA | B15: 0.22 | C15: 0.004 | D15: 0.035 | E15: 0.8 | F15: =+INDEX(Countries!$O$4:$O$197,MATCH('Energy Prices'!$A15,Countries!$A$4:$A$197,0),1) -> Algeria | G15: =+INDEX(Countries!$P$4:$P$197,MATCH('Energy Prices'!$A15,Countries!$A$4:$A$197,0),1) -> Africa | H15: =+INDEX(Countries!$Q$4:$Q$197,MATCH('Energy Prices'!$A15,Countries!$A$4:$A$197,0),1) -> Northern Africa | I15: =+INDEX(Countries!$R$4:$R$197,MATCH('Energy Prices'!$A15,Countries!$A$4:$A$197,0),1) -> Northern Africa | J15: 0.8643902439 | K15: 0.004 | L15: 0.1132413793 | M15: 0.5 | N15: 0.004 | O15: 0.0672 | P15: 0.5 | Q15: 0.004 | R15: 0.0672 | S15: 0.22 | T15: 0.004 | U15: 0.035 | V15: 0.8
A16: ARG | B16: 0.77 | C16: 0.015 | D16: 0.05 | E16: 0.8 | F16: =+INDEX(Countries!$O$4:$O$197,MATCH('Energy Prices'!$A16,Countries!$A$4:$A$197,0),1) -> Argentina | G16: =+INDEX(Countries!$P$4:$P$197,MATCH('Energy Prices'!$A16,Countries!$A$4:$A$197,0),1) -> Americas | H16: =+INDEX(Countries!$Q$4:$Q$197,MATCH('Energy Prices'!$A16,Countries!$A$4:$A$197,0),1) -> Latin America and the Caribbean | I16: =+INDEX(Countries!$R$4:$R$197,MATCH('Energy Prices'!$A16,Countries!$A$4:$A$197,0),1) -> South America | J16: 0.7327272831 | K16: 0.036 | L16: 0.1456000464 | M16: 0.7312903336 | N16: 0.04075 | O16: 0.1495652678 | P16: 0.6325000286 | Q16: 0.0295 | R16: 0.09800011602 | S16: 0.77 | T16: 0.015 | U16: 0.05 | V16: 0.8
A17: ARM | B17: S/I | C17: S/I | D17: S/I | E17: 0.8 | F17: =+INDEX(Countries!$O$4:$O$197,MATCH('Energy Prices'!$A17,Countries!$A$4:$A$197,0),1) -> Armenia | G17: =+INDEX(Countries!$P$4:$P$197,MATCH('Energy Prices'!$A17,Countries!$A$4:$A$197,0),1) -> Asia | H17: =+INDEX(Countries!$Q$4:$Q$197,MATCH('Energy Prices'!$A17,Countries!$A$4:$A$197,0),1) -> Western Asia | I17: =+INDEX(Countries!$R$4:$R$197,MATCH('Energy Prices'!$A17,Countries!$A$4:$A$197,0),1) -> Western Asia | J17: 0.7066666667 | K17: 0.03533333333 | L17: 0.09875 | M17: 0.7473333333 | N17: 0.01566666667 | O17: 0.099 | P17: 0.7473333333 | Q17: 0.01566666667 | R17: 0.099 | S17: 0.7473333333 | T17: 0.01566666667 | U17: 0.099 | V17: 0.8
A18: AUS | B18: 0.91 | C18: 0.11 | D18: 0.23 | E18: 0.8 | F18: =+INDEX(Countries!$O$4:$O$197,MATCH('Energy Prices'!$A18,Countries!$A$4:$A$197,0),1) -> Australia | G18: =+INDEX(Countries!$P$4:$P$197,MATCH('Energy Prices'!$A18,Countries!$A$4:$A$197,0),1) -> Oceania | H18: =+INDEX(Countries!$Q$4:$Q$197,MATCH('Energy Prices'!$A18,Countries!$A$4:$A$197,0),1) -> Australia and New Zealand | I18: =+INDEX(Countries!$R$4:$R$197,MATCH('Energy Prices'!$A18,Countries!$A$4:$A$197,0),1) -> Australia and New Zealand | J18: 0.8333333333 | K18: 0.11 | L18: 0.23 | M18: 0.88 | N18: 0.11 | O18: 0.23 | P18: 0.88 | Q18: 0.11 | R18: 0.23 | S18: 0.91 | T18: 0.11 | U18: 0.23 | V18: 0.8
A19: AUT | B19: 1.28 | C19: 0.061 | D19: 0.18 | E19: 0.8 | F19: =+INDEX(Countries!$O$4:$O$197,MATCH('Energy Prices'!$A19,Countries!$A$4:$A$197,0),1) -> Austria | G19: =+INDEX(Countries!$P$4:$P$197,MATCH('Energy Prices'!$A19,Countries!$A$4:$A$197,0),1) -> Europe | H19: =+INDEX(Countries!$Q$4:$Q$197,MATCH('Energy Prices'!$A19,Countries!$A$4:$A$197,0),1) -> Western Europe | I19: =+INDEX(Countries!$R$4:$R$197,MATCH('Energy Prices'!$A19,Countries!$A$4:$A$197,0),1) -> Western Europe | J19: 1.344418605 | K19: 0.05273333333 | L19: 0.1401351351 | M19: 1.461111111 | N19: 0.061 | O19: 0.165 | P19: 1.461111111 | Q19: 0.061 | R19: 0.165 | S19: 1.28 | T19: 0.061 | U19: 0.18 | V19: 0.8
A20: AZE | B20: 0.35 | C20: 0.011 | D20: 0.05 | E20: 0.8 | F20: =+INDEX(Countries!$O$4:$O$197,MATCH('Energy Prices'!$A20,Countries!$A$4:$A$197,0),1) -> Azerbaijan | G20: =+INDEX(Countries!$P$4:$P$197,MATCH('Energy Prices'!$A20,Countries!$A$4:$A$197,0),1) -> Asia | H20: =+INDEX(Countries!$Q$4:$Q$197,MATCH('Energy Prices'!$A20,Countries!$A$4:$A$197,0),1) -> Western Asia | I20: =+INDEX(Countries!$R$4:$R$197,MATCH('Energy Prices'!$A20,Countries!$A$4:$A$197,0),1) -> Western Asia | J20: 0.7066666667 | K20: 0.03533333333 | L20: 0.09875 | M20: 0.7473333333 | N20: 0.01566666667 | O20: 0.099 | P20: 0.7473333333 | Q20: 0.01566666667 | R20: 0.099 | S20: 0.35 | T20: 0.011 | U20: 0.05 | V20: 0.8
A21: BHS | B21: 0.9 | C21: S/I | D21: 0.3 | E21: 0.8 | F21: =+INDEX(Countries!$O$4:$O$197,MATCH('Energy Prices'!$A21,Countries!$A$4:$A$197,0),1) -> Bahamas | G21: =+INDEX(Countries!$P$4:$P$197,MATCH('Energy Prices'!$A21,Countries!$A$4:$A$197,0),1) -> Americas | H21: =+INDEX(Countries!$Q$4:$Q$197,MATCH('Energy Prices'!$A21,Countries!$A$4:$A$197,0),1) -> Latin America and the Caribbean | I21: =+INDEX(Countries!$R$4:$R$197,MATCH('Energy Prices'!$A21,Countries!$A$4:$A$197,0),1) -> Caribbean | J21: 0.7327272831 | K21: 0.036 | L21: 0.1456000464 | M21: 0.7312903336 | N21: 0.04075 | O21: 0.1495652678 | P21: 0.8127272727 | Q21: 0.082 | R21: 0.19 | S21: 0.9 | T21: 0.082 | U21: 0.3 | V21: 0.8
A22: BHR | B22: 0.42 | C22: 0.013 | D22: 0.08 | E22: 0.8 | F22: =+INDEX(Countries!$O$4:$O$197,MATCH('Energy Prices'!$A22,Countries!$A$4:$A$197,0),1) -> Bahrain | G22: =+INDEX(Countries!$P$4:$P$197,MATCH('Energy Prices'!$A22,Countries!$A$4:$A$197,0),1) -> Asia | H22: =+INDEX(Countries!$Q$4:$Q$197,MATCH('Energy Prices'!$A22,Countries!$A$4:$A$197,0),1) -> Western Asia | I22: =+INDEX(Countries!$R$4:$R$197,MATCH('Energy Prices'!$A22,Countries!$A$4:$A$197,0),1) -> Western Asia | J22: 0.7066666667 | K22: 0.03533333333 | L22: 0.09875 | M22: 0.7473333333 | N22: 0.01566666667 | O22: 0.099 | P22: 0.7473333333 | Q22: 0.01566666667 | R22: 0.099 | S22: 0.42 | T22: 0.013 | U22: 0.08 | V22: 0.8
A23: BGD | B23: 0.77 | C23: 0.012 | D23: 0.11 | E23: 0.8 | F23: =+INDEX(Countries!$O$4:$O$197,MATCH('Energy Prices'!$A23,Countries!$A$4:$A$197,0),1) -> Bangladesh | G23: =+INDEX(Countries!$P$4:$P$197,MATCH('Energy Prices'!$A23,Countries!$A$4:$A$197,0),1) -> Asia | H23: =+INDEX(Countries!$Q$4:$Q$197,MATCH('Energy Prices'!$A23,Countries!$A$4:$A$197,0),1) -> Southern Asia | I23: =+INDEX(Countries!$R$4:$R$197,MATCH('Energy Prices'!$A23,Countries!$A$4:$A$197,0),1) -> Southern Asia | J23: 0.7066666667 | K23: 0.03533333333 | L23: 0.09875 | M23: 0.635 | N23: 0.012 | O23: 0.0935 | P23: 0.635 | Q23: 0.012 | R23: 0.0935 | S23: 0.77 | T23: 0.012 | U23: 0.11 | V23: 0.8
A24: BRB | B24: 1.25 | C24: 0.082 | D24: 0.27 | E24: 0.8 | F24: =+INDEX(Countries!$O$4:$O$197,MATCH('Energy Prices'!$A24,Countries!$A$4:$A$197,0),1) -> Barbados | G24: =+INDEX(Countries!$P$4:$P$197,MATCH('Energy Prices'!$A24,Countries!$A$4:$A$197,0),1) -> Americas | H24: =+INDEX(Countries!$Q$4:$Q$197,MATCH('Energy Prices'!$A24,Countries!$A$4:$A$197,0),1) -> Latin America and the Caribbean | I24: =+INDEX(Countries!$R$4:$R$197,MATCH('Energy Prices'!$A24,Countries!$A$4:$A$197,0),1) -> Caribbean | J24: 0.7327272831 | K24: 0.036 | L24: 0.1456000464 | M24: 0.7312903336 | N24: 0.04075 | O24: 0.1495652678 | P24: 0.8127272727 | Q24: 0.082 | R24: 0.19 | S24: 1.25 | T24: 0.082 | U24: 0.27 | V24: 0.8
A25: BEL | B25: 1.62 | C25: 0.034 | D25: 0.13 | E25: 0.8 | F25: =+INDEX(Countries!$O$4:$O$197,MATCH('Energy Prices'!$A25,Countries!$A$4:$A$197,0),1) -> Belgium | G25: =+INDEX(Countries!$P$4:$P$197,MATCH('Energy Prices'!$A25,Countries!$A$4:$A$197,0),1) -> Europe | H25: =+INDEX(Countries!$Q$4:$Q$197,MATCH('Energy Prices'!$A25,Countries!$A$4:$A$197,0),1) -> Western Europe | I25: =+INDEX(Countries!$R$4:$R$197,MATCH('Energy Prices'!$A25,Countries!$A$4:$A$197,0),1) -> Western Europe | J25: 1.344418605 | K25: 0.05273333333 | L25: 0.1401351351 | M25: 1.461111111 | N25: 0.061 | O25: 0.165 | P25: 1.461111111 | Q25: 0.061 | R25: 0.165 | S25: 1.62 | T25: 0.034 | U25: 0.13 | V25: 0.8
A26: BLZ | B26: 1.07 | C26: S/I | D26: 0.18 | E26: 0.8 | F26: =+INDEX(Countries!$O$4:$O$197,MATCH('Energy Prices'!$A26,Countries!$A$4:$A$197,0),1) -> Belize | G26: =+INDEX(Countries!$P$4:$P$197,MATCH('Energy Prices'!$A26,Countries!$A$4:$A$197,0),1) -> Americas | H26: =+INDEX(Countries!$Q$4:$Q$197,MATCH('Energy Prices'!$A26,Countries!$A$4:$A$197,0),1) -> Latin America and the Caribbean | I26: =+INDEX(Countries!$R$4:$R$197,MATCH('Energy Prices'!$A26,Countries!$A$4:$A$197,0),1) -> Central America | J26: 0.7327272831 | K26: 0.036 | L26: 0.1456000464 | M26: 0.7312903336 | N26: 0.04075 | O26: 0.1495652678 | P26: 0.7675 | Q26: 0.022 | R26: 0.18875 | S26: 1.07 | T26: 0.022 | U26: 0.18 | V26: 0.8
A27: BEN | B27: 0.97 | C27: S/I | D27: S/I | E27: 0.8 | F27: =+INDEX(Countries!$O$4:$O$197,MATCH('Energy Prices'!$A27,Countries!$A$4:$A$197,0),1) -> Benin | G27: =+INDEX(Countries!$P$4:$P$197,MATCH('Energy Prices'!$A27,Countries!$A$4:$A$197,0),1) -> Africa | H27: =+INDEX(Countries!$Q$4:$Q$197,MATCH('Energy Prices'!$A27,Countries!$A$4:$A$197,0),1) -> Sub-Saharan Africa | I27: =+INDEX(Countries!$R$4:$R$197,MATCH('Energy Prices'!$A27,Countries!$A$4:$A$197,0),1) -> Western Africa | J27: 0.8643902439 | K27: 0.004 | L27: 0.1132413793 | M27: 0.915 | O27: 0.1228333333 | P27: 0.9241666667 | R27: 0.1871428571 | S27: 0.97 | T27: 0.004 | U27: 0.1871428571 | V27: 0.8
A28: BTN | B28: 0.63 | C28: S/I | D28: 0.031 | E28: 0.8 | F28: =+INDEX(Countries!$O$4:$O$197,MATCH('Energy Prices'!$A28,Countries!$A$4:$A$197,0),1) -> Bhutan | G28: =+INDEX(Countries!$P$4:$P$197,MATCH('Energy Prices'!$A28,Countries!$A$4:$A$197,0),1) -> Asia | H28: =+INDEX(Countries!$Q$4:$Q$197,MATCH('Energy Prices'!$A28,Countries!$A$4:$A$197,0),1) -> Southern Asia | I28: =+INDEX(Countries!$R$4:$R$197,MATCH('Energy Prices'!$A28,Countries!$A$4:$A$197,0),1) -> Southern Asia | J28: 0.7066666667 | K28: 0.03533333333 | L28: 0.09875 | M28: 0.635 | N28: 0.012 | O28: 0.0935 | P28: 0.635 | Q28: 0.012 | R28: 0.0935 | S28: 0.63 | T28: 0.012 | U28: 0.031 | V28: 0.8
A29: BLR | B29: 0.7 | C29: 0.02 | D29: 0.09 | E29: 0.8 | F29: =+INDEX(Countries!$O$4:$O$197,MATCH('Energy Prices'!$A29,Countries!$A$4:$A$197,0),1) -> Belarus | G29: =+INDEX(Countries!$P$4:$P$197,MATCH('Energy Prices'!$A29,Countries!$A$4:$A$197,0),1) -> Europe | H29: =+INDEX(Countries!$Q$4:$Q$197,MATCH('Energy Prices'!$A29,Countries!$A$4:$A$197,0),1) -> Eastern Europe | I29: =+INDEX(Countries!$R$4:$R$197,MATCH('Energy Prices'!$A29,Countries!$A$4:$A$197,0),1) -> Eastern Europe | J29: 1.344418605 | K29: 0.05273333333 | L29: 0.1401351351 | M29: 1.04 | N29: 0.02525 | O29: 0.123 | P29: 1.04 | Q29: 0.02525 | R29: 0.123 | S29: 0.7 | T29: 0.02 | U29: 0.09 | V29: 0.8
A30: BOL | B30: 0.54 | C30: S/I | D30: 0.14 | E30: 0.8 | F30: =+INDEX(Countries!$O$4:$O$197,MATCH('Energy Prices'!$A30,Countries!$A$4:$A$197,0),1) -> Bolivia | G30: =+INDEX(Countries!$P$4:$P$197,MATCH('Energy Prices'!$A30,Countries!$A$4:$A$197,0),1) -> Americas | H30: =+INDEX(Countries!$Q$4:$Q$197,MATCH('Energy Prices'!$A30,Countries!$A$4:$A$197,0),1) -> Latin America and the Caribbean | I30: =+INDEX(Countries!$R$4:$R$197,MATCH('Energy Prices'!$A30,Countries!$A$4:$A$197,0),1) -> South America | J30: 0.7327272831 | K30: 0.036 | L30: 0.1456000464 | M30: 0.7312903336 | N30: 0.04075 | O30: 0.1495652678 | P30: 0.6325000286 | Q30: 0.0295 | R30: 0.09800011602 | S30: 0.54 | T30: 0.0295 | U30: 0.14 | V30: 0.8
A31: BIH | B31: 1.15 | C31: S/I | D31: 0.12 | E31: 0.8 | F31: =+INDEX(Countries!$O$4:$O$197,MATCH('Energy Prices'!$A31,Countries!$A$4:$A$197,0),1) -> Bosnia and Herzegovina | G31: =+INDEX(Countries!$P$4:$P$197,MATCH('Energy Prices'!$A31,Countries!$A$4:$A$197,0),1) -> Europe | H31: =+INDEX(Countries!$Q$4:$Q$197,MATCH('Energy Prices'!$A31,Countries!$A$4:$A$197,0),1) -> Southern Europe | I31: =+INDEX(Countries!$R$4:$R$197,MATCH('Energy Prices'!$A31,Countries!$A$4:$A$197,0),1) -> Southern Europe | J31: 1.344418605 | K31: 0.05273333333 | L31: 0.1401351351 | M31: 1.382142857 | N31: 0.06433333333 | O31: 0.1463636364 | P31: 1.382142857 | Q31: 0.06433333333 | R31: 0.1463636364 | S31: 1.15 | T31: 0.06433333333 | U31: 0.12 | V31: 0.8
A32: BWA | B32: 0.74 | C32: S/I | D32: 0.11 | E32: 0.8 | F32: =+INDEX(Countries!$O$4:$O$197,MATCH('Energy Prices'!$A32,Countries!$A$4:$A$197,0),1) -> Botswana | G32: =+INDEX(Countries!$P$4:$P$197,MATCH('Energy Prices'!$A32,Countries!$A$4:$A$197,0),1) -> Africa | H32: =+INDEX(Countries!$Q$4:$Q$197,MATCH('Energy Prices'!$A32,Countries!$A$4:$A$197,0),1) -> Sub-Saharan Africa | I32: =+INDEX(Countries!$R$4:$R$197,MATCH('Energy Prices'!$A32,Countries!$A$4:$A$197,0),1) -> Southern Africa | J32: 0.8643902439 | K32: 0.004 | L32: 0.1132413793 | M32: 0.915 | O32: 0.1228333333 | P32: 0.814 | R32: 0.0705 | S32: 0.74 | T32: 0.004 | U32: 0.11 | V32: 0.8
A33: BRA | B33: 0.69 | C33: S/I | D33: 0.12 | E33: 0.8 | F33: =+INDEX(Countries!$O$4:$O$197,MATCH('Energy Prices'!$A33,Countries!$A$4:$A$197,0),1) -> Brazil | G33: =+INDEX(Countries!$P$4:$P$197,MATCH('Energy Prices'!$A33,Countries!$A$4:$A$197,0),1) -> Americas | H33: =+INDEX(Countries!$Q$4:$Q$197,MATCH('Energy Prices'!$A33,Countries!$A$4:$A$197,0),1) -> Latin America and the Caribbean | I33: =+INDEX(Countries!$R$4:$R$197,MATCH('Energy Prices'!$A33,Countries!$A$4:$A$197,0),1) -> South America | J33: 0.7327272831 | K33: 0.036 | L33: 0.1456000464 | M33: 0.7312903336 | N33: 0.04075 | O33: 0.1495652678 | P33: 0.6325000286 | Q33: 0.0295 | R33: 0.09800011602 | S33: 0.69 | T33: 0.0295 | U33: 0.12 | V33: 0.8
A34: BRN | B34: S/I | C34: S/I | D34: S/I | E34: 0.8 | F34: =+INDEX(Countries!$O$4:$O$197,MATCH('Energy Prices'!$A34,Countries!$A$4:$A$197,0),1) -> Brunei Darussalam | G34: =+INDEX(Countries!$P$4:$P$197,MATCH('Energy Prices'!$A34,Countries!$A$4:$A$197,0),1) -> Asia | H34: =+INDEX(Countries!$Q$4:$Q$197,MATCH('Energy Prices'!$A34,Countries!$A$4:$A$197,0),1) -> South-eastern Asia | I34: =+INDEX(Countries!$R$4:$R$197,MATCH('Energy Prices'!$A34,Countries!$A$4:$A$197,0),1) -> South-eastern Asia | J34: 0.7066666667 | K34: 0.03533333333 | L34: 0.09875 | M34: 0.7155555556 | N34: 0.0765 | O34: 0.1114285714 | P34: 0.7155555556 | Q34: 0.0765 | R34: 0.1114285714 | S34: 0.7155555556 | T34: 0.0765 | U34: 0.1114285714 | V34: 0.8
A35: BGR | B35: 1.09 | C35: S/I | D35: 0.13 | E35: 0.8 | F35: =+INDEX(Countries!$O$4:$O$197,MATCH('Energy Prices'!$A35,Countries!$A$4:$A$197,0),1) -> Bulgaria | G35: =+INDEX(Countries!$P$4:$P$197,MATCH('Energy Prices'!$A35,Countries!$A$4:$A$197,0),1) -> Europe | H35: =+INDEX(Countries!$Q$4:$Q$197,MATCH('Energy Prices'!$A35,Countries!$A$4:$A$197,0),1) -> Eastern Europe | I35: =+INDEX(Countries!$R$4:$R$197,MATCH('Energy Prices'!$A35,Countries!$A$4:$A$197,0),1) -> Eastern Europe | J35: 1.344418605 | K35: 0.05273333333 | L35: 0.1401351351 | M35: 1.04 | N35: 0.02525 | O35: 0.123 | P35: 1.04 | Q35: 0.02525 | R35: 0.123 | S35: 1.09 | T35: 0.02525 | U35: 0.13 | V35: 0.8
A36: BFA | B36: 1 | C36: S/I | D36: S/I | E36: 0.8 | F36: =+INDEX(Countries!$O$4:$O$197,MATCH('Energy Prices'!$A36,Countries!$A$4:$A$197,0),1) -> Burkina Faso | G36: =+INDEX(Countries!$P$4:$P$197,MATCH('Energy Prices'!$A36,Countries!$A$4:$A$197,0),1) -> Africa | H36: =+INDEX(Countries!$Q$4:$Q$197,MATCH('Energy Prices'!$A36,Countries!$A$4:$A$197,0),1) -> Sub-Saharan Africa | I36: =+INDEX(Countries!$R$4:$R$197,MATCH('Energy Prices'!$A36,Countries!$A$4:$A$197,0),1) -> Western Africa | J36: 0.8643902439 | K36: 0.004 | L36: 0.1132413793 | M36: 0.915 | O36: 0.1228333333 | P36: 0.9241666667 | R36: 0.1871428571 | S36: 1 | T36: 0.004 | U36: 0.1871428571 | V36: 0.8
A37: BDI | B37: 1.21 | C37: S/I | D37: S/I | E37: 0.8 | F37: =+INDEX(Countries!$O$4:$O$197,MATCH('Energy Prices'!$A37,Countries!$A$4:$A$197,0),1) -> Burundi | G37: =+INDEX(Countries!$P$4:$P$197,MATCH('Energy Prices'!$A37,Countries!$A$4:$A$197,0),1) -> Africa | H37: =+INDEX(Countries!$Q$4:$Q$197,MATCH('Energy Prices'!$A37,Countries!$A$4:$A$197,0),1) -> Sub-Saharan Africa | I37: =+INDEX(Countries!$R$4:$R$197,MATCH('Energy Prices'!$A37,Countries!$A$4:$A$197,0),1) -> Eastern Africa | J37: 0.8643902439 | K37: 0.004 | L37: 0.1132413793 | M37: 0.915 | O37: 0.1228333333 | P37: 0.9030769231 | R37: 0.1071 | S37: 1.21 | T37: 0.004 | U37: 0.1071 | V37: 0.8
A38: CPV | B38: 0.85 | C38: S/I | D38: 0.25 | E38: 0.8 | F38: =+INDEX(Countries!$O$4:$O$197,MATCH('Energy Prices'!$A38,Countries!$A$4:$A$197,0),1) -> Cape Verde | G38: =+INDEX(Countries!$P$4:$P$197,MATCH('Energy Prices'!$A38,Countries!$A$4:$A$197,0),1) -> Africa | H38: =+INDEX(Countries!$Q$4:$Q$197,MATCH('Energy Prices'!$A38,Countries!$A$4:$A$197,0),1) -> Sub-Saharan Africa | I38: =+INDEX(Countries!$R$4:$R$197,MATCH('Energy Prices'!$A38,Countries!$A$4:$A$197,0),1) -> Western Africa | J38: 0.8643902439 | K38: 0.004 | L38: 0.1132413793 | M38: 0.915 | O38: 0.1228333333 | P38: 0.9241666667 | R38: 0.1871428571 | S38: 0.85 | T38: 0.004 | U38: 0.25 | V38: 0.8
A39: KHM | B39: 0.65 | C39: S/I | D39: S/I | E39: 0.8 | F39: =+INDEX(Countries!$O$4:$O$197,MATCH('Energy Prices'!$A39,Countries!$A$4:$A$197,0),1) -> Cambodia | G39: =+INDEX(Countries!$P$4:$P$197,MATCH('Energy Prices'!$A39,Countries!$A$4:$A$197,0),1) -> Asia | H39: =+INDEX(Countries!$Q$4:$Q$197,MATCH('Energy Prices'!$A39,Countries!$A$4:$A$197,0),1) -> South-eastern Asia | I39: =+INDEX(Countries!$R$4:$R$197,MATCH('Energy Prices'!$A39,Countries!$A$4:$A$197,0),1) -> South-eastern Asia | J39: 0.7066666667 | K39: 0.03533333333 | L39: 0.09875 | M39: 0.7155555556 | N39: 0.0765 | O39: 0.1114285714 | P39: 0.7155555556 | Q39: 0.0765 | R39: 0.1114285714 | S39: 0.65 | T39: 0.0765 | U39: 0.1114285714 | V39: 0.8
A40: CMR | B40: 1.07 | C40: S/I | D40: 0.17 | E40: 0.8 | F40: =+INDEX(Countries!$O$4:$O$197,MATCH('Energy Prices'!$A40,Countries!$A$4:$A$197,0),1) -> Cameroon | G40: =+INDEX(Countries!$P$4:$P$197,MATCH('Energy Prices'!$A40,Countries!$A$4:$A$197,0),1) -> Africa | H40: =+INDEX(Countries!$Q$4:$Q$197,MATCH('Energy Prices'!$A40,Countries!$A$4:$A$197,0),1) -> Sub-Saharan Africa | I40: =+INDEX(Countries!$R$4:$R$197,MATCH('Energy Prices'!$A40,Countries!$A$4:$A$197,0),1) -> Middle Africa | J40: =+AVERAGEIFS($B$8:$B$201,$G$8:$G$201,$G40) -> 0.8643902439 | K40: =+AVERAGEIFS($C$8:$C$201,$G$8:$G$201,$G40) -> 0.004 | L40: =+AVERAGEIFS($D$8:$D$201,$G$8:$G$201,$G40) -> 0.1132413793 | M40: =+AVERAGEIFS($B$8:$B$201,$H$8:$H$201,$H40) -> 0.915 | N40: =+AVERAGEIFS($C$8:$C$201,$H$8:$H$201,$H40) ->  | O40: =+AVERAGEIFS($D$8:$D$201,$H$8:$H$201,$H40) -> 0.1228333333 | P40: =+AVERAGEIFS($B$8:$B$201,$I$8:$I$201,$I40) -> 1.006666667 | Q40: =+AVERAGEIFS($C$8:$C$201,$I$8:$I$201,$I40) ->  | R40: =+AVERAGEIFS($D$8:$D$201,$I$8:$I$201,$I40) -> 0.095 | S40: =+IF(ISNUMBER(B40),B40,IF(ISNUMBER(P40),P40,IF(ISNUMBER(M40),M40,IF(ISNUMBER(J40),J40,0)))) -> 1.07 | T40: =+IF(ISNUMBER(C40),C40,IF(ISNUMBER(Q40),Q40,IF(ISNUMBER(N40),N40,IF(ISNUMBER(K40),K40,0)))) -> 0.004 | U40: =+IF(ISNUMBER(D40),D40,IF(ISNUMBER(R40),R40,IF(ISNUMBER(O40),O40,IF(ISNUMBER(L40),L40,0)))) -> 0.17 | V40: 0.8
A41: CAN | B41: 0.84 | C41: 0.017 | D41: 0.09 | E41: 0.8 | F41: =+INDEX(Countries!$O$4:$O$197,MATCH('Energy Prices'!$A41,Countries!$A$4:$A$197,0),1) -> Canada | G41: =+INDEX(Countries!$P$4:$P$197,MATCH('Energy Prices'!$A41,Countries!$A$4:$A$197,0),1) -> Americas | H41: =+INDEX(Countries!$Q$4:$Q$197,MATCH('Energy Prices'!$A41,Countries!$A$4:$A$197,0),1) -> Northern America | I41: =+INDEX(Countries!$R$4:$R$197,MATCH('Energy Prices'!$A41,Countries!$A$4:$A$197,0),1) -> Northern America | J41: 0.7327272831 | K41: 0.036 | L41: 0.1456000464 | M41: 0.755 | N41: 0.017 | O41: 0.1 | P41: 0.755 | Q41: 0.017 | R41: 0.1 | S41: 0.84 | T41: 0.017 | U41: 0.09 | V41: 0.8
A42: TCD | B42: 1.02 | C42: S/I | D42: S/I | E42: 0.8 | F42: =+INDEX(Countries!$O$4:$O$197,MATCH('Energy Prices'!$A42,Countries!$A$4:$A$197,0),1) -> Chad | G42: =+INDEX(Countries!$P$4:$P$197,MATCH('Energy Prices'!$A42,Countries!$A$4:$A$197,0),1) -> Africa | H42: =+INDEX(Countries!$Q$4:$Q$197,MATCH('Energy Prices'!$A42,Countries!$A$4:$A$197,0),1) -> Sub-Saharan Africa | I42: =+INDEX(Countries!$R$4:$R$197,MATCH('Energy Prices'!$A42,Countries!$A$4:$A$197,0),1) -> Middle Africa | J42: 0.8643902439 | K42: 0.004 | L42: 0.1132413793 | M42: 0.915 | O42: 0.1228333333 | P42: 1.006666667 | R42: 0.095 | S42: 1.02 | T42: 0.004 | U42: 0.095 | V42: 0.8
A43: CHL | B43: 0.73 | C43: S/I | D43: 0.15 | E43: 0.8 | F43: =+INDEX(Countries!$O$4:$O$197,MATCH('Energy Prices'!$A43,Countries!$A$4:$A$197,0),1) -> Chile | G43: =+INDEX(Countries!$P$4:$P$197,MATCH('Energy Prices'!$A43,Countries!$A$4:$A$197,0),1) -> Americas | H43: =+INDEX(Countries!$Q$4:$Q$197,MATCH('Energy Prices'!$A43,Countries!$A$4:$A$197,0),1) -> Latin America and the Caribbean | I43: =+INDEX(Countries!$R$4:$R$197,MATCH('Energy Prices'!$A43,Countries!$A$4:$A$197,0),1) -> South America | J43: 0.7327272831 | K43: 0.036 | L43: 0.1456000464 | M43: 0.7312903336 | N43: 0.04075 | O43: 0.1495652678 | P43: 0.6325000286 | Q43: 0.0295 | R43: 0.09800011602 | S43: 0.73 | T43: 0.0295 | U43: 0.15 | V43: 0.8
A44: CHN | B44: 0.84 | C44: S/I | D44: 0.1 | E44: 0.8 | F44: =+INDEX(Countries!$O$4:$O$197,MATCH('Energy Prices'!$A44,Countries!$A$4:$A$197,0),1) -> China | G44: =+INDEX(Countries!$P$4:$P$197,MATCH('Energy Prices'!$A44,Countries!$A$4:$A$197,0),1) -> Asia | H44: =+INDEX(Countries!$Q$4:$Q$197,MATCH('Energy Prices'!$A44,Countries!$A$4:$A$197,0),1) -> Eastern Asia | I44: =+INDEX(Countries!$R$4:$R$197,MATCH('Energy Prices'!$A44,Countries!$A$4:$A$197,0),1) -> Eastern Asia | J44: 0.7066666667 | K44: 0.03533333333 | L44: 0.09875 | M44: 0.9966666667 | O44: 0.1366666667 | P44: 0.9966666667 | R44: 0.1366666667 | S44: 0.84 | T44: 0.03533333333 | U44: 0.1 | V44: 0.8
A45: CYP | B45: 1.33 | C45: S/I | D45: 0.26 | E45: 0.8 | F45: =+INDEX(Countries!$O$4:$O$197,MATCH('Energy Prices'!$A45,Countries!$A$4:$A$197,0),1) -> Cyprus | G45: =+INDEX(Countries!$P$4:$P$197,MATCH('Energy Prices'!$A45,Countries!$A$4:$A$197,0),1) -> Asia | H45: =+INDEX(Countries!$Q$4:$Q$197,MATCH('Energy Prices'!$A45,Countries!$A$4:$A$197,0),1) -> Western Asia | I45: =+INDEX(Countries!$R$4:$R$197,MATCH('Energy Prices'!$A45,Countries!$A$4:$A$197,0),1) -> Western Asia | J45: 0.7066666667 | K45: 0.03533333333 | L45: 0.09875 | M45: 0.7473333333 | N45: 0.01566666667 | O45: 0.099 | P45: 0.7473333333 | Q45: 0.01566666667 | R45: 0.099 | S45: 1.33 | T45: 0.01566666667 | U45: 0.26 | V45: 0.8
A46: COL | B46: 0.61 | C46: 0.044 | D46: 0.16 | E46: 0.8 | F46: =+INDEX(Countries!$O$4:$O$197,MATCH('Energy Prices'!$A46,Countries!$A$4:$A$197,0),1) -> Colombia | G46: =+INDEX(Countries!$P$4:$P$197,MATCH('Energy Prices'!$A46,Countries!$A$4:$A$197,0),1) -> Americas | H46: =+INDEX(Countries!$Q$4:$Q$197,MATCH('Energy Prices'!$A46,Countries!$A$4:$A$197,0),1) -> Latin America and the Caribbean | I46: =+INDEX(Countries!$R$4:$R$197,MATCH('Energy Prices'!$A46,Countries!$A$4:$A$197,0),1) -> South America | J46: 0.7327272831 | K46: 0.036 | L46: 0.1456000464 | M46: 0.7312903336 | N46: 0.04075 | O46: 0.1495652678 | P46: 0.6325000286 | Q46: 0.0295 | R46: 0.09800011602 | S46: 0.61 | T46: 0.044 | U46: 0.16 | V46: 0.8
A47: COM | B47: S/I | C47: S/I | D47: S/I | E47: 0.8 | F47: =+INDEX(Countries!$O$4:$O$197,MATCH('Energy Prices'!$A47,Countries!$A$4:$A$197,0),1) -> Comoros | G47: =+INDEX(Countries!$P$4:$P$197,MATCH('Energy Prices'!$A47,Countries!$A$4:$A$197,0),1) -> Africa | H47: =+INDEX(Countries!$Q$4:$Q$197,MATCH('Energy Prices'!$A47,Countries!$A$4:$A$197,0),1) -> Sub-Saharan Africa | I47: =+INDEX(Countries!$R$4:$R$197,MATCH('Energy Prices'!$A47,Countries!$A$4:$A$197,0),1) -> Eastern Africa | J47: 0.8643902439 | K47: 0.004 | L47: 0.1132413793 | M47: 0.915 | O47: 0.1228333333 | P47: 0.9030769231 | R47: 0.1071 | S47: 0.9030769231 | T47: 0.004 | U47: 0.1071 | V47: 0.8
A48: PRK | B48: S/I | C48: S/I | D48: S/I | E48: 0.8 | F48: =+INDEX(Countries!$O$4:$O$197,MATCH('Energy Prices'!$A48,Countries!$A$4:$A$197,0),1) -> North Korea, Democratic People's Republic | G48: =+INDEX(Countries!$P$4:$P$197,MATCH('Energy Prices'!$A48,Countries!$A$4:$A$197,0),1) -> Asia | H48: =+INDEX(Countries!$Q$4:$Q$197,MATCH('Energy Prices'!$A48,Countries!$A$4:$A$197,0),1) -> Eastern Asia | I48: =+INDEX(Countries!$R$4:$R$197,MATCH('Energy Prices'!$A48,Countries!$A$4:$A$197,0),1) -> Eastern Asia | J48: 0.7066666667 | K48: 0.03533333333 | L48: 0.09875 | M48: 0.9966666667 | O48: 0.1366666667 | P48: 0.9966666667 | R48: 0.1366666667 | S48: 0.9966666667 | T48: 0.03533333333 | U48: 0.1366666667 | V48: 0.8
A49: KOR | B49: 1.07 | C49: S/I | D49: 0.09 | E49: 0.8 | F49: =+INDEX(Countries!$O$4:$O$197,MATCH('Energy Prices'!$A49,Countries!$A$4:$A$197,0),1) -> South Korea, Republic of Korea | G49: =+INDEX(Countries!$P$4:$P$197,MATCH('Energy Prices'!$A49,Countries!$A$4:$A$197,0),1) -> Asia | H49: =+INDEX(Countries!$Q$4:$Q$197,MATCH('Energy Prices'!$A49,Countries!$A$4:$A$197,0),1) -> Eastern Asia | I49: =+INDEX(Countries!$R$4:$R$197,MATCH('Energy Prices'!$A49,Countries!$A$4:$A$197,0),1) -> Eastern Asia | J49: 0.7066666667 | K49: 0.03533333333 | L49: 0.09875 | M49: 0.9966666667 | O49: 0.1366666667 | P49: 0.9966666667 | R49: 0.1366666667 | S49: 1.07 | T49: 0.03533333333 | U49: 0.09 | V49: 0.8
A50: CIV | B50: 1.12 | C50: S/I | D50: 0.23 | E50: 0.8 | F50: =+INDEX(Countries!$O$4:$O$197,MATCH('Energy Prices'!$A50,Countries!$A$4:$A$197,0),1) -> Ivory Coast | G50: =+INDEX(Countries!$P$4:$P$197,MATCH('Energy Prices'!$A50,Countries!$A$4:$A$197,0),1) -> Africa | H50: =+INDEX(Countries!$Q$4:$Q$197,MATCH('Energy Prices'!$A50,Countries!$A$4:$A$197,0),1) -> Sub-Saharan Africa | I50: =+INDEX(Countries!$R$4:$R$197,MATCH('Energy Prices'!$A50,Countries!$A$4:$A$197,0),1) -> Western Africa | J50: 0.8643902439 | K50: 0.004 | L50: 0.1132413793 | M50: 0.915 | O50: 0.1228333333 | P50: 0.9241666667 | R50: 0.1871428571 | S50: 1.12 | T50: 0.004 | U50: 0.23 | V50: 0.8
A51: CRI | B51: 0.75 | C51: S/I | D51: 0.2 | E51: 0.8 | F51: =+INDEX(Countries!$O$4:$O$197,MATCH('Energy Prices'!$A51,Countries!$A$4:$A$197,0),1) -> Costa Rica | G51: =+INDEX(Countries!$P$4:$P$197,MATCH('Energy Prices'!$A51,Countries!$A$4:$A$197,0),1) -> Americas | H51: =+INDEX(Countries!$Q$4:$Q$197,MATCH('Energy Prices'!$A51,Countries!$A$4:$A$197,0),1) -> Latin America and the Caribbean | I51: =+INDEX(Countries!$R$4:$R$197,MATCH('Energy Prices'!$A51,Countries!$A$4:$A$197,0),1) -> Central America | J51: 0.7327272831 | K51: 0.036 | L51: 0.1456000464 | M51: 0.7312903336 | N51: 0.04075 | O51: 0.1495652678 | P51: 0.7675 | Q51: 0.022 | R51: 0.18875 | S51: 0.75 | T51: 0.022 | U51: 0.2 | V51: 0.8
A52: HRV | B52: 1.45 | C52: S/I | D52: 0.14 | E52: 0.8 | F52: =+INDEX(Countries!$O$4:$O$197,MATCH('Energy Prices'!$A52,Countries!$A$4:$A$197,0),1) -> Croatia | G52: =+INDEX(Countries!$P$4:$P$197,MATCH('Energy Prices'!$A52,Countries!$A$4:$A$197,0),1) -> Europe | H52: =+INDEX(Countries!$Q$4:$Q$197,MATCH('Energy Prices'!$A52,Countries!$A$4:$A$197,0),1) -> Southern Europe | I52: =+INDEX(Countries!$R$4:$R$197,MATCH('Energy Prices'!$A52,Countries!$A$4:$A$197,0),1) -> Southern Europe | J52: 1.344418605 | K52: 0.05273333333 | L52: 0.1401351351 | M52: 1.382142857 | N52: 0.06433333333 | O52: 0.1463636364 | P52: 1.382142857 | Q52: 0.06433333333 | R52: 0.1463636364 | S52: 1.45 | T52: 0.06433333333 | U52: 0.14 | V52: 0.8
A53: CUB | B53: 1 | C53: S/I | D53: S/I | E53: 0.8 | F53: =+INDEX(Countries!$O$4:$O$197,MATCH('Energy Prices'!$A53,Countries!$A$4:$A$197,0),1) -> Cuba | G53: =+INDEX(Countries!$P$4:$P$197,MATCH('Energy Prices'!$A53,Countries!$A$4:$A$197,0),1) -> Americas | H53: =+INDEX(Countries!$Q$4:$Q$197,MATCH('Energy Prices'!$A53,Countries!$A$4:$A$197,0),1) -> Latin America and the Caribbean | I53: =+INDEX(Countries!$R$4:$R$197,MATCH('Energy Prices'!$A53,Countries!$A$4:$A$197,0),1) -> Caribbean | J53: 0.7327272831 | K53: 0.036 | L53: 0.1456000464 | M53: 0.7312903336 | N53: 0.04075 | O53: 0.1495652678 | P53: 0.8127272727 | Q53: 0.082 | R53: 0.19 | S53: 1 | T53: 0.082 | U53: 0.19 | V53: 0.8
A54: DNK | B54: 1.54 | C54: 0.091 | D54: 0.25 | E54: 0.8 | F54: =+INDEX(Countries!$O$4:$O$197,MATCH('Energy Prices'!$A54,Countries!$A$4:$A$197,0),1) -> Denmark | G54: =+INDEX(Countries!$P$4:$P$197,MATCH('Energy Prices'!$A54,Countries!$A$4:$A$197,0),1) -> Europe | H54: =+INDEX(Countries!$Q$4:$Q$197,MATCH('Energy Prices'!$A54,Countries!$A$4:$A$197,0),1) -> Northern Europe | I54: =+INDEX(Countries!$R$4:$R$197,MATCH('Energy Prices'!$A54,Countries!$A$4:$A$197,0),1) -> Northern Europe | J54: 1.344418605 | K54: 0.05273333333 | L54: 0.1401351351 | M54: 1.491 | N54: 0.0655 | O54: 0.128125 | P54: 1.491 | Q54: 0.0655 | R54: 0.128125 | S54: 1.54 | T54: 0.091 | U54: 0.25 | V54: 0.8
A55: DJI | B55: S/I | C55: S/I | D55: S/I | E55: 0.8 | F55: =+INDEX(Countries!$O$4:$O$197,MATCH('Energy Prices'!$A55,Countries!$A$4:$A$197,0),1) -> Djibouti | G55: =+INDEX(Countries!$P$4:$P$197,MATCH('Energy Prices'!$A55,Countries!$A$4:$A$197,0),1) -> Africa | H55: =+INDEX(Countries!$Q$4:$Q$197,MATCH('Energy Prices'!$A55,Countries!$A$4:$A$197,0),1) -> Sub-Saharan Africa | I55: =+INDEX(Countries!$R$4:$R$197,MATCH('Energy Prices'!$A55,Countries!$A$4:$A$197,0),1) -> Eastern Africa | J55: 0.8643902439 | K55: 0.004 | L55: 0.1132413793 | M55: 0.915 | O55: 0.1228333333 | P55: 0.9030769231 | R55: 0.1071 | S55: 0.9030769231 | T55: 0.004 | U55: 0.1071 | V55: 0.8
A56: DMA | B56: 0.52 | C56: S/I | D56: S/I | E56: 0.8 | F56: =+INDEX(Countries!$O$4:$O$197,MATCH('Energy Prices'!$A56,Countries!$A$4:$A$197,0),1) -> Dominica | G56: =+INDEX(Countries!$P$4:$P$197,MATCH('Energy Prices'!$A56,Countries!$A$4:$A$197,0),1) -> Americas | H56: =+INDEX(Countries!$Q$4:$Q$197,MATCH('Energy Prices'!$A56,Countries!$A$4:$A$197,0),1) -> Latin America and the Caribbean | I56: =+INDEX(Countries!$R$4:$R$197,MATCH('Energy Prices'!$A56,Countries!$A$4:$A$197,0),1) -> Caribbean | J56: 0.7327272831 | K56: 0.036 | L56: 0.1456000464 | M56: 0.7312903336 | N56: 0.04075 | O56: 0.1495652678 | P56: 0.8127272727 | Q56: 0.082 | R56: 0.19 | S56: 0.52 | T56: 0.082 | U56: 0.19 | V56: 0.8
A57: ECU | B57: 0.34 | C57: S/I | D57: 0.09 | E57: 0.8 | F57: =+INDEX(Countries!$O$4:$O$197,MATCH('Energy Prices'!$A57,Countries!$A$4:$A$197,0),1) -> Ecuador | G57: =+INDEX(Countries!$P$4:$P$197,MATCH('Energy Prices'!$A57,Countries!$A$4:$A$197,0),1) -> Americas | H57: =+INDEX(Countries!$Q$4:$Q$197,MATCH('Energy Prices'!$A57,Countries!$A$4:$A$197,0),1) -> Latin America and the Caribbean | I57: =+INDEX(Countries!$R$4:$R$197,MATCH('Energy Prices'!$A57,Countries!$A$4:$A$197,0),1) -> South America | J57: 0.7327272831 | K57: 0.036 | L57: 0.1456000464 | M57: 0.7312903336 | N57: 0.04075 | O57: 0.1495652678 | P57: 0.6325000286 | Q57: 0.0295 | R57: 0.09800011602 | S57: 0.34 | T57: 0.0295 | U57: 0.09 | V57: 0.8
A58: EGY | B58: 0.43 | C58: S/I | D58: 0.07 | E58: 0.8 | F58: =+INDEX(Countries!$O$4:$O$197,MATCH('Energy Prices'!$A58,Countries!$A$4:$A$197,0),1) -> Egypt | G58: =+INDEX(Countries!$P$4:$P$197,MATCH('Energy Prices'!$A58,Countries!$A$4:$A$197,0),1) -> Africa | H58: =+INDEX(Countries!$Q$4:$Q$197,MATCH('Energy Prices'!$A58,Countries!$A$4:$A$197,0),1) -> Northern Africa | I58: =+INDEX(Countries!$R$4:$R$197,MATCH('Energy Prices'!$A58,Countries!$A$4:$A$197,0),1) -> Northern Africa | J58: 0.8643902439 | K58: 0.004 | L58: 0.1132413793 | M58: 0.5 | N58: 0.004 | O58: 0.0672 | P58: 0.5 | Q58: 0.004 | R58: 0.0672 | S58: 0.43 | T58: 0.004 | U58: 0.07 | V58: 0.8
A59: SLV | B59: 0.66 | C59: S/I | D59: 0.16 | E59: 0.8 | F59: =+INDEX(Countries!$O$4:$O$197,MATCH('Energy Prices'!$A59,Countries!$A$4:$A$197,0),1) -> El Salvador | G59: =+INDEX(Countries!$P$4:$P$197,MATCH('Energy Prices'!$A59,Countries!$A$4:$A$197,0),1) -> Americas | H59: =+INDEX(Countries!$Q$4:$Q$197,MATCH('Energy Prices'!$A59,Countries!$A$4:$A$197,0),1) -> Latin America and the Caribbean | I59: =+INDEX(Countries!$R$4:$R$197,MATCH('Energy Prices'!$A59,Countries!$A$4:$A$197,0),1) -> Central America | J59: 0.7327272831 | K59: 0.036 | L59: 0.1456000464 | M59: 0.7312903336 | N59: 0.04075 | O59: 0.1495652678 | P59: 0.7675 | Q59: 0.022 | R59: 0.18875 | S59: 0.66 | T59: 0.022 | U59: 0.16 | V59: 0.8
A60: ARE | B60: 0.56 | C60: S/I | D60: 0.12 | E60: 0.8 | F60: =+INDEX(Countries!$O$4:$O$197,MATCH('Energy Prices'!$A60,Countries!$A$4:$A$197,0),1) -> United Arab Emirates | G60: =+INDEX(Countries!$P$4:$P$197,MATCH('Energy Prices'!$A60,Countries!$A$4:$A$197,0),1) -> Asia | H60: =+INDEX(Countries!$Q$4:$Q$197,MATCH('Energy Prices'!$A60,Countries!$A$4:$A$197,0),1) -> Western Asia | I60: =+INDEX(Countries!$R$4:$R$197,MATCH('Energy Prices'!$A60,Countries!$A$4:$A$197,0),1) -> Western Asia | J60: 0.7066666667 | K60: 0.03533333333 | L60: 0.09875 | M60: 0.7473333333 | N60: 0.01566666667 | O60: 0.099 | P60: 0.7473333333 | Q60: 0.01566666667 | R60: 0.099 | S60: 0.56 | T60: 0.01566666667 | U60: 0.12 | V60: 0.8
A61: ERI | B61: S/I | C61: S/I | D61: S/I | E61: 0.8 | F61: =+INDEX(Countries!$O$4:$O$197,MATCH('Energy Prices'!$A61,Countries!$A$4:$A$197,0),1) -> Eritrea | G61: =+INDEX(Countries!$P$4:$P$197,MATCH('Energy Prices'!$A61,Countries!$A$4:$A$197,0),1) -> Africa | H61: =+INDEX(Countries!$Q$4:$Q$197,MATCH('Energy Prices'!$A61,Countries!$A$4:$A$197,0),1) -> Sub-Saharan Africa | I61: =+INDEX(Countries!$R$4:$R$197,MATCH('Energy Prices'!$A61,Countries!$A$4:$A$197,0),1) -> Eastern Africa | J61: 0.8643902439 | K61: 0.004 | L61: 0.1132413793 | M61: 0.915 | O61: 0.1228333333 | P61: 0.9030769231 | R61: 0.1071 | S61: 0.9030769231 | T61: 0.004 | U61: 0.1071 | V61: 0.8
A62: SVK | B62: 1.3 | C62: S/I | D62: 0.2 | E62: 0.8 | F62: =+INDEX(Countries!$O$4:$O$197,MATCH('Energy Prices'!$A62,Countries!$A$4:$A$197,0),1) -> Slovakia (Slovak Republic) | G62: =+INDEX(Countries!$P$4:$P$197,MATCH('Energy Prices'!$A62,Countries!$A$4:$A$197,0),1) -> Europe | H62: =+INDEX(Countries!$Q$4:$Q$197,MATCH('Energy Prices'!$A62,Countries!$A$4:$A$197,0),1) -> Eastern Europe | I62: =+INDEX(Countries!$R$4:$R$197,MATCH('Energy Prices'!$A62,Countries!$A$4:$A$197,0),1) -> Eastern Europe | J62: 1.344418605 | K62: 0.05273333333 | L62: 0.1401351351 | M62: 1.04 | N62: 0.02525 | O62: 0.123 | P62: 1.04 | Q62: 0.02525 | R62: 0.123 | S62: 1.3 | T62: 0.02525 | U62: 0.2 | V62: 0.8
A63: SVN | B63: 1.32 | C63: S/I | D63: 0.13 | E63: 0.8 | F63: =+INDEX(Countries!$O$4:$O$197,MATCH('Energy Prices'!$A63,Countries!$A$4:$A$197,0),1) -> Slovenia | G63: =+INDEX(Countries!$P$4:$P$197,MATCH('Energy Prices'!$A63,Countries!$A$4:$A$197,0),1) -> Europe | H63: =+INDEX(Countries!$Q$4:$Q$197,MATCH('Energy Prices'!$A63,Countries!$A$4:$A$197,0),1) -> Southern Europe | I63: =+INDEX(Countries!$R$4:$R$197,MATCH('Energy Prices'!$A63,Countries!$A$4:$A$197,0),1) -> Southern Europe | J63: 1.344418605 | K63: 0.05273333333 | L63: 0.1401351351 | M63: 1.382142857 | N63: 0.06433333333 | O63: 0.1463636364 | P63: 1.382142857 | Q63: 0.06433333333 | R63: 0.1463636364 | S63: 1.32 | T63: 0.06433333333 | U63: 0.13 | V63: 0.8
A64: ESP | B64: 1.32 | C64: 0.06 | D64: 0.14 | E64: 0.8 | F64: =+INDEX(Countries!$O$4:$O$197,MATCH('Energy Prices'!$A64,Countries!$A$4:$A$197,0),1) -> Spain | G64: =+INDEX(Countries!$P$4:$P$197,MATCH('Energy Prices'!$A64,Countries!$A$4:$A$197,0),1) -> Europe | H64: =+INDEX(Countries!$Q$4:$Q$197,MATCH('Energy Prices'!$A64,Countries!$A$4:$A$197,0),1) -> Southern Europe | I64: =+INDEX(Countries!$R$4:$R$197,MATCH('Energy Prices'!$A64,Countries!$A$4:$A$197,0),1) -> Southern Europe | J64: 1.344418605 | K64: 0.05273333333 | L64: 0.1401351351 | M64: 1.382142857 | N64: 0.06433333333 | O64: 0.1463636364 | P64: 1.382142857 | Q64: 0.06433333333 | R64: 0.1463636364 | S64: 1.32 | T64: 0.06 | U64: 0.14 | V64: 0.8
A65: USA | B65: 0.67 | C65: S/I | D65: 0.11 | E65: 0.8 | F65: =+INDEX(Countries!$O$4:$O$197,MATCH('Energy Prices'!$A65,Countries!$A$4:$A$197,0),1) -> United States | G65: =+INDEX(Countries!$P$4:$P$197,MATCH('Energy Prices'!$A65,Countries!$A$4:$A$197,0),1) -> Americas | H65: =+INDEX(Countries!$Q$4:$Q$197,MATCH('Energy Prices'!$A65,Countries!$A$4:$A$197,0),1) -> Northern America | I65: =+INDEX(Countries!$R$4:$R$197,MATCH('Energy Prices'!$A65,Countries!$A$4:$A$197,0),1) -> Northern America | J65: 0.7327272831 | K65: 0.036 | L65: 0.1456000464 | M65: 0.755 | N65: 0.017 | O65: 0.1 | P65: 0.755 | Q65: 0.017 | R65: 0.1 | S65: 0.67 | T65: 0.017 | U65: 0.11 | V65: 0.8
A66: EST | B66: 1.22 | C66: S/I | D66: 0.1 | E66: 0.8 | F66: =+INDEX(Countries!$O$4:$O$197,MATCH('Energy Prices'!$A66,Countries!$A$4:$A$197,0),1) -> Estonia | G66: =+INDEX(Countries!$P$4:$P$197,MATCH('Energy Prices'!$A66,Countries!$A$4:$A$197,0),1) -> Europe | H66: =+INDEX(Countries!$Q$4:$Q$197,MATCH('Energy Prices'!$A66,Countries!$A$4:$A$197,0),1) -> Northern Europe | I66: =+INDEX(Countries!$R$4:$R$197,MATCH('Energy Prices'!$A66,Countries!$A$4:$A$197,0),1) -> Northern Europe | J66: 1.344418605 | K66: 0.05273333333 | L66: 0.1401351351 | M66: 1.491 | N66: 0.0655 | O66: 0.128125 | P66: 1.491 | Q66: 0.0655 | R66: 0.128125 | S66: 1.22 | T66: 0.0655 | U66: 0.1 | V66: 0.8
A67: SWZ | B67: 0.83 | C67: S/I | D67: 0.08 | E67: 0.8 | F67: =+INDEX(Countries!$O$4:$O$197,MATCH('Energy Prices'!$A67,Countries!$A$4:$A$197,0),1) -> Eswatini | G67: =+INDEX(Countries!$P$4:$P$197,MATCH('Energy Prices'!$A67,Countries!$A$4:$A$197,0),1) -> Africa | H67: =+INDEX(Countries!$Q$4:$Q$197,MATCH('Energy Prices'!$A67,Countries!$A$4:$A$197,0),1) -> Sub-Saharan Africa | I67: =+INDEX(Countries!$R$4:$R$197,MATCH('Energy Prices'!$A67,Countries!$A$4:$A$197,0),1) -> Southern Africa | J67: 0.8643902439 | K67: 0.004 | L67: 0.1132413793 | M67: 0.915 | O67: 0.1228333333 | P67: 0.814 | R67: 0.0705 | S67: 0.83 | T67: 0.004 | U67: 0.08 | V67: 0.8
A68: ETH | B68: 0.48 | C68: S/I | D68: 0.021 | E68: 0.8 | F68: =+INDEX(Countries!$O$4:$O$197,MATCH('Energy Prices'!$A68,Countries!$A$4:$A$197,0),1) -> Ethiopia | G68: =+INDEX(Countries!$P$4:$P$197,MATCH('Energy Prices'!$A68,Countries!$A$4:$A$197,0),1) -> Africa | H68: =+INDEX(Countries!$Q$4:$Q$197,MATCH('Energy Prices'!$A68,Countries!$A$4:$A$197,0),1) -> Sub-Saharan Africa | I68: =+INDEX(Countries!$R$4:$R$197,MATCH('Energy Prices'!$A68,Countries!$A$4:$A$197,0),1) -> Eastern Africa | J68: 0.8643902439 | K68: 0.004 | L68: 0.1132413793 | M68: 0.915 | O68: 0.1228333333 | P68: 0.9030769231 | R68: 0.1071 | S68: 0.48 | T68: 0.004 | U68: 0.021 | V68: 0.8
A69: FJI | B69: 0.74 | C69: S/I | D69: S/I | E69: 0.8 | F69: =+INDEX(Countries!$O$4:$O$197,MATCH('Energy Prices'!$A69,Countries!$A$4:$A$197,0),1) -> Fiji | G69: =+INDEX(Countries!$P$4:$P$197,MATCH('Energy Prices'!$A69,Countries!$A$4:$A$197,0),1) -> Oceania | H69: =+INDEX(Countries!$Q$4:$Q$197,MATCH('Energy Prices'!$A69,Countries!$A$4:$A$197,0),1) -> Melanesia | I69: =+INDEX(Countries!$R$4:$R$197,MATCH('Energy Prices'!$A69,Countries!$A$4:$A$197,0),1) -> Melanesia | J69: 0.8333333333 | K69: 0.11 | L69: 0.23 | M69: 0.74 | P69: 0.74 | S69: 0.74 | T69: 0.11 | U69: 0.23 | V69: 0.8
A70: PHL | B70: 0.75 | C70: S/I | D70: 0.12 | E70: 0.8 | F70: =+INDEX(Countries!$O$4:$O$197,MATCH('Energy Prices'!$A70,Countries!$A$4:$A$197,0),1) -> Philippines | G70: =+INDEX(Countries!$P$4:$P$197,MATCH('Energy Prices'!$A70,Countries!$A$4:$A$197,0),1) -> Asia | H70: =+INDEX(Countries!$Q$4:$Q$197,MATCH('Energy Prices'!$A70,Countries!$A$4:$A$197,0),1) -> South-eastern Asia | I70: =+INDEX(Countries!$R$4:$R$197,MATCH('Energy Prices'!$A70,Countries!$A$4:$A$197,0),1) -> South-eastern Asia | J70: 0.7066666667 | K70: 0.03533333333 | L70: 0.09875 | M70: 0.7155555556 | N70: 0.0765 | O70: 0.1114285714 | P70: 0.7155555556 | Q70: 0.0765 | R70: 0.1114285714 | S70: 0.75 | T70: 0.0765 | U70: 0.12 | V70: 0.8
A71: FIN | B71: 1.61 | C71: S/I | D71: 0.12 | E71: 0.8 | F71: =+INDEX(Countries!$O$4:$O$197,MATCH('Energy Prices'!$A71,Countries!$A$4:$A$197,0),1) -> Finland | G71: =+INDEX(Countries!$P$4:$P$197,MATCH('Energy Prices'!$A71,Countries!$A$4:$A$197,0),1) -> Europe | H71: =+INDEX(Countries!$Q$4:$Q$197,MATCH('Energy Prices'!$A71,Countries!$A$4:$A$197,0),1) -> Northern Europe | I71: =+INDEX(Countries!$R$4:$R$197,MATCH('Energy Prices'!$A71,Countries!$A$4:$A$197,0),1) -> Northern Europe | J71: 1.344418605 | K71: 0.05273333333 | L71: 0.1401351351 | M71: 1.491 | N71: 0.0655 | O71: 0.128125 | P71: 1.491 | Q71: 0.0655 | R71: 0.128125 | S71: 1.61 | T71: 0.0655 | U71: 0.12 | V71: 0.8
A72: FRA | B72: 1.57 | C72: 0.059 | D72: 0.15 | E72: 0.8 | F72: =+INDEX(Countries!$O$4:$O$197,MATCH('Energy Prices'!$A72,Countries!$A$4:$A$197,0),1) -> France | G72: =+INDEX(Countries!$P$4:$P$197,MATCH('Energy Prices'!$A72,Countries!$A$4:$A$197,0),1) -> Europe | H72: =+INDEX(Countries!$Q$4:$Q$197,MATCH('Energy Prices'!$A72,Countries!$A$4:$A$197,0),1) -> Western Europe | I72: =+INDEX(Countries!$R$4:$R$197,MATCH('Energy Prices'!$A72,Countries!$A$4:$A$197,0),1) -> Western Europe | J72: =+AVERAGEIFS($B$8:$B$201,$G$8:$G$201,$G72) -> 1.344418605 | K72: =+AVERAGEIFS($C$8:$C$201,$G$8:$G$201,$G72) -> 0.05273333333 | L72: =+AVERAGEIFS($D$8:$D$201,$G$8:$G$201,$G72) -> 0.1401351351 | M72: =+AVERAGEIFS($B$8:$B$201,$H$8:$H$201,$H72) -> 1.461111111 | N72: =+AVERAGEIFS($C$8:$C$201,$H$8:$H$201,$H72) -> 0.061 | O72: =+AVERAGEIFS($D$8:$D$201,$H$8:$H$201,$H72) -> 0.165 | P72: =+AVERAGEIFS($B$8:$B$201,$I$8:$I$201,$I72) -> 1.461111111 | Q72: =+AVERAGEIFS($C$8:$C$201,$I$8:$I$201,$I72) -> 0.061 | R72: =+AVERAGEIFS($D$8:$D$201,$I$8:$I$201,$I72) -> 0.165 | S72: =+IF(ISNUMBER(B72),B72,IF(ISNUMBER(P72),P72,IF(ISNUMBER(M72),M72,IF(ISNUMBER(J72),J72,0)))) -> 1.57 | T72: =+IF(ISNUMBER(C72),C72,IF(ISNUMBER(Q72),Q72,IF(ISNUMBER(N72),N72,IF(ISNUMBER(K72),K72,0)))) -> 0.059 | U72: =+IF(ISNUMBER(D72),D72,IF(ISNUMBER(R72),R72,IF(ISNUMBER(O72),O72,IF(ISNUMBER(L72),L72,0)))) -> 0.15 | V72: 0.8
A73: GAB | B73: 1.09 | C73: S/I | D73: S/I | E73: 0.8 | F73: =+INDEX(Countries!$O$4:$O$197,MATCH('Energy Prices'!$A73,Countries!$A$4:$A$197,0),1) -> Gabon | G73: =+INDEX(Countries!$P$4:$P$197,MATCH('Energy Prices'!$A73,Countries!$A$4:$A$197,0),1) -> Africa | H73: =+INDEX(Countries!$Q$4:$Q$197,MATCH('Energy Prices'!$A73,Countries!$A$4:$A$197,0),1) -> Sub-Saharan Africa | I73: =+INDEX(Countries!$R$4:$R$197,MATCH('Energy Prices'!$A73,Countries!$A$4:$A$197,0),1) -> Middle Africa | J73: 0.8643902439 | K73: 0.004 | L73: 0.1132413793 | M73: 0.915 | O73: 0.1228333333 | P73: 1.006666667 | R73: 0.095 | S73: 1.09 | T73: 0.004 | U73: 0.095 | V73: =+E73 -> 0.8
A74: GMB | B74: S/I | C74: S/I | D74: S/I | E74: 0.8 | F74: =+INDEX(Countries!$O$4:$O$197,MATCH('Energy Prices'!$A74,Countries!$A$4:$A$197,0),1) -> The Gambia | G74: =+INDEX(Countries!$P$4:$P$197,MATCH('Energy Prices'!$A74,Countries!$A$4:$A$197,0),1) -> Africa | H74: =+INDEX(Countries!$Q$4:$Q$197,MATCH('Energy Prices'!$A74,Countries!$A$4:$A$197,0),1) -> Sub-Saharan Africa | I74: =+INDEX(Countries!$R$4:$R$197,MATCH('Energy Prices'!$A74,Countries!$A$4:$A$197,0),1) -> Western Africa | J74: 0.8643902439 | K74: 0.004 | L74: 0.1132413793 | M74: 0.915 | O74: 0.1228333333 | P74: 0.9241666667 | R74: 0.1871428571 | S74: 0.9241666667 | T74: 0.004 | U74: 0.1871428571 | V74: 0.8
A75: GEO | B75: 0.72 | C75: S/I | D75: 0.051 | E75: 0.8 | F75: =+INDEX(Countries!$O$4:$O$197,MATCH('Energy Prices'!$A75,Countries!$A$4:$A$197,0),1) -> Georgia | G75: =+INDEX(Countries!$P$4:$P$197,MATCH('Energy Prices'!$A75,Countries!$A$4:$A$197,0),1) -> Asia | H75: =+INDEX(Countries!$Q$4:$Q$197,MATCH('Energy Prices'!$A75,Countries!$A$4:$A$197,0),1) -> Western Asia | I75: =+INDEX(Countries!$R$4:$R$197,MATCH('Energy Prices'!$A75,Countries!$A$4:$A$197,0),1) -> Western Asia | J75: 0.7066666667 | K75: 0.03533333333 | L75: 0.09875 | M75: 0.7473333333 | N75: 0.01566666667 | O75: 0.099 | P75: 0.7473333333 | Q75: 0.01566666667 | R75: 0.099 | S75: 0.72 | T75: 0.01566666667 | U75: 0.051 | V75: 0.8
A76: GHA | B76: 0.85 | C76: S/I | D76: 0.14 | E76: 0.8 | F76: =+INDEX(Countries!$O$4:$O$197,MATCH('Energy Prices'!$A76,Countries!$A$4:$A$197,0),1) -> Ghana | G76: =+INDEX(Countries!$P$4:$P$197,MATCH('Energy Prices'!$A76,Countries!$A$4:$A$197,0),1) -> Africa | H76: =+INDEX(Countries!$Q$4:$Q$197,MATCH('Energy Prices'!$A76,Countries!$A$4:$A$197,0),1) -> Sub-Saharan Africa | I76: =+INDEX(Countries!$R$4:$R$197,MATCH('Energy Prices'!$A76,Countries!$A$4:$A$197,0),1) -> Western Africa | J76: 0.8643902439 | K76: 0.004 | L76: 0.1132413793 | M76: 0.915 | O76: 0.1228333333 | P76: 0.9241666667 | R76: 0.1871428571 | S76: 0.85 | T76: 0.004 | U76: 0.14 | V76: 0.8
A77: GRD | B77: 1.02 | C77: S/I | D77: S/I | E77: 0.8 | F77: =+INDEX(Countries!$O$4:$O$197,MATCH('Energy Prices'!$A77,Countries!$A$4:$A$197,0),1) -> Grenada | G77: =+INDEX(Countries!$P$4:$P$197,MATCH('Energy Prices'!$A77,Countries!$A$4:$A$197,0),1) -> Americas | H77: =+INDEX(Countries!$Q$4:$Q$197,MATCH('Energy Prices'!$A77,Countries!$A$4:$A$197,0),1) -> Latin America and the Caribbean | I77: =+INDEX(Countries!$R$4:$R$197,MATCH('Energy Prices'!$A77,Countries!$A$4:$A$197,0),1) -> Caribbean | J77: 0.7327272831 | K77: 0.036 | L77: 0.1456000464 | M77: 0.7312903336 | N77: 0.04075 | O77: 0.1495652678 | P77: 0.8127272727 | Q77: 0.082 | R77: 0.19 | S77: 1.02 | T77: 0.082 | U77: 0.19 | V77: 0.8
A78: GRC | B78: 1.45 | C78: S/I | D78: 0.14 | E78: 0.8 | F78: =+INDEX(Countries!$O$4:$O$197,MATCH('Energy Prices'!$A78,Countries!$A$4:$A$197,0),1) -> Greece | G78: =+INDEX(Countries!$P$4:$P$197,MATCH('Energy Prices'!$A78,Countries!$A$4:$A$197,0),1) -> Europe | H78: =+INDEX(Countries!$Q$4:$Q$197,MATCH('Energy Prices'!$A78,Countries!$A$4:$A$197,0),1) -> Southern Europe | I78: =+INDEX(Countries!$R$4:$R$197,MATCH('Energy Prices'!$A78,Countries!$A$4:$A$197,0),1) -> Southern Europe | J78: 1.344418605 | K78: 0.05273333333 | L78: 0.1401351351 | M78: 1.382142857 | N78: 0.06433333333 | O78: 0.1463636364 | P78: 1.382142857 | Q78: 0.06433333333 | R78: 0.1463636364 | S78: 1.45 | T78: 0.06433333333 | U78: 0.14 | V78: 0.8
A79: GTM | B79: 0.6 | C79: S/I | D79: 0.16 | E79: 0.8 | F79: =+INDEX(Countries!$O$4:$O$197,MATCH('Energy Prices'!$A79,Countries!$A$4:$A$197,0),1) -> Guatemala | G79: =+INDEX(Countries!$P$4:$P$197,MATCH('Energy Prices'!$A79,Countries!$A$4:$A$197,0),1) -> Americas | H79: =+INDEX(Countries!$Q$4:$Q$197,MATCH('Energy Prices'!$A79,Countries!$A$4:$A$197,0),1) -> Latin America and the Caribbean | I79: =+INDEX(Countries!$R$4:$R$197,MATCH('Energy Prices'!$A79,Countries!$A$4:$A$197,0),1) -> Central America | J79: 0.7327272831 | K79: 0.036 | L79: 0.1456000464 | M79: 0.7312903336 | N79: 0.04075 | O79: 0.1495652678 | P79: 0.7675 | Q79: 0.022 | R79: 0.18875 | S79: 0.6 | T79: 0.022 | U79: 0.16 | V79: 0.8
A80: GIN | B80: 0.9 | C80: S/I | D80: S/I | E80: 0.8 | F80: =+INDEX(Countries!$O$4:$O$197,MATCH('Energy Prices'!$A80,Countries!$A$4:$A$197,0),1) -> Guinea | G80: =+INDEX(Countries!$P$4:$P$197,MATCH('Energy Prices'!$A80,Countries!$A$4:$A$197,0),1) -> Africa | H80: =+INDEX(Countries!$Q$4:$Q$197,MATCH('Energy Prices'!$A80,Countries!$A$4:$A$197,0),1) -> Sub-Saharan Africa | I80: =+INDEX(Countries!$R$4:$R$197,MATCH('Energy Prices'!$A80,Countries!$A$4:$A$197,0),1) -> Western Africa | J80: 0.8643902439 | K80: 0.004 | L80: 0.1132413793 | M80: 0.915 | O80: 0.1228333333 | P80: 0.9241666667 | R80: 0.1871428571 | S80: 0.9 | T80: 0.004 | U80: 0.1871428571 | V80: 0.8
A81: GNB | B81: S/I | C81: S/I | D81: S/I | E81: 0.8 | F81: =+INDEX(Countries!$O$4:$O$197,MATCH('Energy Prices'!$A81,Countries!$A$4:$A$197,0),1) -> Guinea-Bissau | G81: =+INDEX(Countries!$P$4:$P$197,MATCH('Energy Prices'!$A81,Countries!$A$4:$A$197,0),1) -> Africa | H81: =+INDEX(Countries!$Q$4:$Q$197,MATCH('Energy Prices'!$A81,Countries!$A$4:$A$197,0),1) -> Sub-Saharan Africa | I81: =+INDEX(Countries!$R$4:$R$197,MATCH('Energy Prices'!$A81,Countries!$A$4:$A$197,0),1) -> Western Africa | J81: 0.8643902439 | K81: 0.004 | L81: 0.1132413793 | M81: 0.915 | O81: 0.1228333333 | P81: 0.9241666667 | R81: 0.1871428571 | S81: 0.9241666667 | T81: 0.004 | U81: 0.1871428571 | V81: 0.8
A82: GNQ | B82: S/I | C82: S/I | D82: S/I | E82: 0.8 | F82: =+INDEX(Countries!$O$4:$O$197,MATCH('Energy Prices'!$A82,Countries!$A$4:$A$197,0),1) -> Equatorial Guinea | G82: =+INDEX(Countries!$P$4:$P$197,MATCH('Energy Prices'!$A82,Countries!$A$4:$A$197,0),1) -> Africa | H82: =+INDEX(Countries!$Q$4:$Q$197,MATCH('Energy Prices'!$A82,Countries!$A$4:$A$197,0),1) -> Sub-Saharan Africa | I82: =+INDEX(Countries!$R$4:$R$197,MATCH('Energy Prices'!$A82,Countries!$A$4:$A$197,0),1) -> Middle Africa | J82: 0.8643902439 | K82: 0.004 | L82: 0.1132413793 | M82: 0.915 | O82: 0.1228333333 | P82: 1.006666667 | R82: 0.095 | S82: 1.006666667 | T82: 0.004 | U82: 0.095 | V82: 0.8
A83: GUY | B83: 0.7 | C83: S/I | D83: S/I | E83: 0.8 | F83: =+INDEX(Countries!$O$4:$O$197,MATCH('Energy Prices'!$A83,Countries!$A$4:$A$197,0),1) -> Guyana | G83: =+INDEX(Countries!$P$4:$P$197,MATCH('Energy Prices'!$A83,Countries!$A$4:$A$197,0),1) -> Americas | H83: =+INDEX(Countries!$Q$4:$Q$197,MATCH('Energy Prices'!$A83,Countries!$A$4:$A$197,0),1) -> Latin America and the Caribbean | I83: =+INDEX(Countries!$R$4:$R$197,MATCH('Energy Prices'!$A83,Countries!$A$4:$A$197,0),1) -> South America | J83: 0.7327272831 | K83: 0.036 | L83: 0.1456000464 | M83: 0.7312903336 | N83: 0.04075 | O83: 0.1495652678 | P83: 0.6325000286 | Q83: 0.0295 | R83: 0.09800011602 | S83: 0.7 | T83: 0.0295 | U83: 0.09800011602 | V83: 0.8
A84: HTI | B84: 0.62 | C84: S/I | D84: S/I | E84: 0.8 | F84: =+INDEX(Countries!$O$4:$O$197,MATCH('Energy Prices'!$A84,Countries!$A$4:$A$197,0),1) -> Haiti | G84: =+INDEX(Countries!$P$4:$P$197,MATCH('Energy Prices'!$A84,Countries!$A$4:$A$197,0),1) -> Americas | H84: =+INDEX(Countries!$Q$4:$Q$197,MATCH('Energy Prices'!$A84,Countries!$A$4:$A$197,0),1) -> Latin America and the Caribbean | I84: =+INDEX(Countries!$R$4:$R$197,MATCH('Energy Prices'!$A84,Countries!$A$4:$A$197,0),1) -> Caribbean | J84: 0.7327272831 | K84: 0.036 | L84: 0.1456000464 | M84: 0.7312903336 | N84: 0.04075 | O84: 0.1495652678 | P84: 0.8127272727 | Q84: 0.082 | R84: 0.19 | S84: 0.62 | T84: 0.082 | U84: 0.19 | V84: 0.8
A85: HND | B85: 0.74 | C85: S/I | D85: 0.21 | E85: 0.8 | F85: =+INDEX(Countries!$O$4:$O$197,MATCH('Energy Prices'!$A85,Countries!$A$4:$A$197,0),1) -> Honduras | G85: =+INDEX(Countries!$P$4:$P$197,MATCH('Energy Prices'!$A85,Countries!$A$4:$A$197,0),1) -> Americas | H85: =+INDEX(Countries!$Q$4:$Q$197,MATCH('Energy Prices'!$A85,Countries!$A$4:$A$197,0),1) -> Latin America and the Caribbean | I85: =+INDEX(Countries!$R$4:$R$197,MATCH('Energy Prices'!$A85,Countries!$A$4:$A$197,0),1) -> Central America | J85: 0.7327272831 | K85: 0.036 | L85: 0.1456000464 | M85: 0.7312903336 | N85: 0.04075 | O85: 0.1495652678 | P85: 0.7675 | Q85: 0.022 | R85: 0.18875 | S85: 0.74 | T85: 0.022 | U85: 0.21 | V85: 0.8
A86: HUN | B86: 1.31 | C86: 0.049 | D86: 0.15 | E86: 0.8 | F86: =+INDEX(Countries!$O$4:$O$197,MATCH('Energy Prices'!$A86,Countries!$A$4:$A$197,0),1) -> Hungary | G86: =+INDEX(Countries!$P$4:$P$197,MATCH('Energy Prices'!$A86,Countries!$A$4:$A$197,0),1) -> Europe | H86: =+INDEX(Countries!$Q$4:$Q$197,MATCH('Energy Prices'!$A86,Countries!$A$4:$A$197,0),1) -> Eastern Europe | I86: =+INDEX(Countries!$R$4:$R$197,MATCH('Energy Prices'!$A86,Countries!$A$4:$A$197,0),1) -> Eastern Europe | J86: 1.344418605 | K86: 0.05273333333 | L86: 0.1401351351 | M86: 1.04 | N86: 0.02525 | O86: 0.123 | P86: 1.04 | Q86: 0.02525 | R86: 0.123 | S86: 1.31 | T86: 0.049 | U86: 0.15 | V86: 0.8
A87: IND | B87: 1.06 | C87: S/I | D87: 0.11 | E87: 0.8 | F87: =+INDEX(Countries!$O$4:$O$197,MATCH('Energy Prices'!$A87,Countries!$A$4:$A$197,0),1) -> India | G87: =+INDEX(Countries!$P$4:$P$197,MATCH('Energy Prices'!$A87,Countries!$A$4:$A$197,0),1) -> Asia | H87: =+INDEX(Countries!$Q$4:$Q$197,MATCH('Energy Prices'!$A87,Countries!$A$4:$A$197,0),1) -> Southern Asia | I87: =+INDEX(Countries!$R$4:$R$197,MATCH('Energy Prices'!$A87,Countries!$A$4:$A$197,0),1) -> Southern Asia | J87: 0.7066666667 | K87: 0.03533333333 | L87: 0.09875 | M87: 0.635 | N87: 0.012 | O87: 0.0935 | P87: 0.635 | Q87: 0.012 | R87: 0.0935 | S87: 1.06 | T87: 0.012 | U87: 0.11 | V87: 0.8
A88: IDN | B88: 0.7 | C88: S/I | D88: 0.07 | E88: 0.8 | F88: =+INDEX(Countries!$O$4:$O$197,MATCH('Energy Prices'!$A88,Countries!$A$4:$A$197,0),1) -> Indonesia | G88: =+INDEX(Countries!$P$4:$P$197,MATCH('Energy Prices'!$A88,Countries!$A$4:$A$197,0),1) -> Asia | H88: =+INDEX(Countries!$Q$4:$Q$197,MATCH('Energy Prices'!$A88,Countries!$A$4:$A$197,0),1) -> South-eastern Asia | I88: =+INDEX(Countries!$R$4:$R$197,MATCH('Energy Prices'!$A88,Countries!$A$4:$A$197,0),1) -> South-eastern Asia | J88: 0.7066666667 | K88: 0.03533333333 | L88: 0.09875 | M88: 0.7155555556 | N88: 0.0765 | O88: 0.1114285714 | P88: 0.7155555556 | Q88: 0.0765 | R88: 0.1114285714 | S88: 0.7 | T88: 0.0765 | U88: 0.07 | V88: 0.8
A89: IRN | B89: 0.12 | C89: S/I | D89: S/I | E89: 0.8 | F89: =+INDEX(Countries!$O$4:$O$197,MATCH('Energy Prices'!$A89,Countries!$A$4:$A$197,0),1) -> Iran (Islamic Republic of) | G89: =+INDEX(Countries!$P$4:$P$197,MATCH('Energy Prices'!$A89,Countries!$A$4:$A$197,0),1) -> Asia | H89: =+INDEX(Countries!$Q$4:$Q$197,MATCH('Energy Prices'!$A89,Countries!$A$4:$A$197,0),1) -> Southern Asia | I89: =+INDEX(Countries!$R$4:$R$197,MATCH('Energy Prices'!$A89,Countries!$A$4:$A$197,0),1) -> Southern Asia | J89: 0.7066666667 | K89: 0.03533333333 | L89: 0.09875 | M89: 0.635 | N89: 0.012 | O89: 0.0935 | P89: 0.635 | Q89: 0.012 | R89: 0.0935 | S89: 0.12 | T89: 0.012 | U89: 0.0935 | V89: 0.8
A90: IRQ | B90: S/I | C90: S/I | D90: S/I | E90: 0.8 | F90: =+INDEX(Countries!$O$4:$O$197,MATCH('Energy Prices'!$A90,Countries!$A$4:$A$197,0),1) -> Iraq | G90: =+INDEX(Countries!$P$4:$P$197,MATCH('Energy Prices'!$A90,Countries!$A$4:$A$197,0),1) -> Asia | H90: =+INDEX(Countries!$Q$4:$Q$197,MATCH('Energy Prices'!$A90,Countries!$A$4:$A$197,0),1) -> Western Asia | I90: =+INDEX(Countries!$R$4:$R$197,MATCH('Energy Prices'!$A90,Countries!$A$4:$A$197,0),1) -> Western Asia | J90: 0.7066666667 | K90: 0.03533333333 | L90: 0.09875 | M90: 0.7473333333 | N90: 0.01566666667 | O90: 0.099 | P90: 0.7473333333 | Q90: 0.01566666667 | R90: 0.099 | S90: 0.7473333333 | T90: 0.01566666667 | U90: 0.099 | V90: 0.8
A91: IRL | B91: 1.44 | C91: S/I | D91: S/I | E91: 0.8 | F91: =+INDEX(Countries!$O$4:$O$197,MATCH('Energy Prices'!$A91,Countries!$A$4:$A$197,0),1) -> Ireland | G91: =+INDEX(Countries!$P$4:$P$197,MATCH('Energy Prices'!$A91,Countries!$A$4:$A$197,0),1) -> Europe | H91: =+INDEX(Countries!$Q$4:$Q$197,MATCH('Energy Prices'!$A91,Countries!$A$4:$A$197,0),1) -> Northern Europe | I91: =+INDEX(Countries!$R$4:$R$197,MATCH('Energy Prices'!$A91,Countries!$A$4:$A$197,0),1) -> Northern Europe | J91: 1.344418605 | K91: 0.05273333333 | L91: 0.1401351351 | M91: 1.491 | N91: 0.0655 | O91: 0.128125 | P91: 1.491 | Q91: 0.0655 | R91: 0.128125 | S91: 1.44 | T91: 0.0655 | U91: 0.128125 | V91: 0.8
A92: ISL | B92: 1.65 | C92: S/I | D92: 0.055 | E92: 0.8 | F92: =+INDEX(Countries!$O$4:$O$197,MATCH('Energy Prices'!$A92,Countries!$A$4:$A$197,0),1) -> Iceland | G92: =+INDEX(Countries!$P$4:$P$197,MATCH('Energy Prices'!$A92,Countries!$A$4:$A$197,0),1) -> Europe | H92: =+INDEX(Countries!$Q$4:$Q$197,MATCH('Energy Prices'!$A92,Countries!$A$4:$A$197,0),1) -> Northern Europe | I92: =+INDEX(Countries!$R$4:$R$197,MATCH('Energy Prices'!$A92,Countries!$A$4:$A$197,0),1) -> Northern Europe | J92: 1.344418605 | K92: 0.05273333333 | L92: 0.1401351351 | M92: 1.491 | N92: 0.0655 | O92: 0.128125 | P92: 1.491 | Q92: 0.0655 | R92: 0.128125 | S92: 1.65 | T92: 0.0655 | U92: 0.055 | V92: 0.8
A93: MHL | B93: S/I | C93: S/I | D93: S/I | E93: 0.8 | F93: =+INDEX(Countries!$O$4:$O$197,MATCH('Energy Prices'!$A93,Countries!$A$4:$A$197,0),1) -> Marshall Islands | G93: =+INDEX(Countries!$P$4:$P$197,MATCH('Energy Prices'!$A93,Countries!$A$4:$A$197,0),1) -> Oceania | H93: =+INDEX(Countries!$Q$4:$Q$197,MATCH('Energy Prices'!$A93,Countries!$A$4:$A$197,0),1) -> Micronesia | I93: =+INDEX(Countries!$R$4:$R$197,MATCH('Energy Prices'!$A93,Countries!$A$4:$A$197,0),1) -> Micronesia | J93: 0.8333333333 | K93: 0.11 | L93: 0.23 | S93: 0.8333333333 | T93: 0.11 | U93: 0.23 | V93: 0.8
A94: SLB | B94: S/I | C94: S/I | D94: S/I | E94: 0.8 | F94: =+INDEX(Countries!$O$4:$O$197,MATCH('Energy Prices'!$A94,Countries!$A$4:$A$197,0),1) -> Solomon Islands | G94: =+INDEX(Countries!$P$4:$P$197,MATCH('Energy Prices'!$A94,Countries!$A$4:$A$197,0),1) -> Oceania | H94: =+INDEX(Countries!$Q$4:$Q$197,MATCH('Energy Prices'!$A94,Countries!$A$4:$A$197,0),1) -> Melanesia | I94: =+INDEX(Countries!$R$4:$R$197,MATCH('Energy Prices'!$A94,Countries!$A$4:$A$197,0),1) -> Melanesia | J94: 0.8333333333 | K94: 0.11 | L94: 0.23 | M94: 0.74 | P94: 0.74 | S94: 0.74 | T94: 0.11 | U94: 0.23 | V94: 0.8
A95: ISR | B95: 1.66 | C95: S/I | D95: 0.1 | E95: 0.8 | F95: =+INDEX(Countries!$O$4:$O$197,MATCH('Energy Prices'!$A95,Countries!$A$4:$A$197,0),1) -> Israel | G95: =+INDEX(Countries!$P$4:$P$197,MATCH('Energy Prices'!$A95,Countries!$A$4:$A$197,0),1) -> Asia | H95: =+INDEX(Countries!$Q$4:$Q$197,MATCH('Energy Prices'!$A95,Countries!$A$4:$A$197,0),1) -> Western Asia | I95: =+INDEX(Countries!$R$4:$R$197,MATCH('Energy Prices'!$A95,Countries!$A$4:$A$197,0),1) -> Western Asia | J95: 0.7066666667 | K95: 0.03533333333 | L95: 0.09875 | M95: 0.7473333333 | N95: 0.01566666667 | O95: 0.099 | P95: 0.7473333333 | Q95: 0.01566666667 | R95: 0.099 | S95: 1.66 | T95: 0.01566666667 | U95: 0.1 | V95: 0.8
A96: ITA | B96: 1.6 | C96: 0.064 | D96: 0.23 | E96: 0.8 | F96: =+INDEX(Countries!$O$4:$O$197,MATCH('Energy Prices'!$A96,Countries!$A$4:$A$197,0),1) -> Italy | G96: =+INDEX(Countries!$P$4:$P$197,MATCH('Energy Prices'!$A96,Countries!$A$4:$A$197,0),1) -> Europe | H96: =+INDEX(Countries!$Q$4:$Q$197,MATCH('Energy Prices'!$A96,Countries!$A$4:$A$197,0),1) -> Southern Europe | I96: =+INDEX(Countries!$R$4:$R$197,MATCH('Energy Prices'!$A96,Countries!$A$4:$A$197,0),1) -> Southern Europe | J96: 1.344418605 | K96: 0.05273333333 | L96: 0.1401351351 | M96: 1.382142857 | N96: 0.06433333333 | O96: 0.1463636364 | P96: 1.382142857 | Q96: 0.06433333333 | R96: 0.1463636364 | S96: 1.6 | T96: 0.064 | U96: 0.23 | V96: 0.8
A97: JAM | B97: 0.96 | C97: S/I | D97: 0.19 | E97: 0.8 | F97: =+INDEX(Countries!$O$4:$O$197,MATCH('Energy Prices'!$A97,Countries!$A$4:$A$197,0),1) -> Jamaica | G97: =+INDEX(Countries!$P$4:$P$197,MATCH('Energy Prices'!$A97,Countries!$A$4:$A$197,0),1) -> Americas | H97: =+INDEX(Countries!$Q$4:$Q$197,MATCH('Energy Prices'!$A97,Countries!$A$4:$A$197,0),1) -> Latin America and the Caribbean | I97: =+INDEX(Countries!$R$4:$R$197,MATCH('Energy Prices'!$A97,Countries!$A$4:$A$197,0),1) -> Caribbean | J97: 0.7327272831 | K97: 0.036 | L97: 0.1456000464 | M97: 0.7312903336 | N97: 0.04075 | O97: 0.1495652678 | P97: 0.8127272727 | Q97: 0.082 | R97: 0.19 | S97: 0.96 | T97: 0.082 | U97: 0.19 | V97: 0.8
A98: JPN | B98: 1.08 | C98: S/I | D98: 0.22 | E98: 0.8 | F98: =+INDEX(Countries!$O$4:$O$197,MATCH('Energy Prices'!$A98,Countries!$A$4:$A$197,0),1) -> Japan | G98: =+INDEX(Countries!$P$4:$P$197,MATCH('Energy Prices'!$A98,Countries!$A$4:$A$197,0),1) -> Asia | H98: =+INDEX(Countries!$Q$4:$Q$197,MATCH('Energy Prices'!$A98,Countries!$A$4:$A$197,0),1) -> Eastern Asia | I98: =+INDEX(Countries!$R$4:$R$197,MATCH('Energy Prices'!$A98,Countries!$A$4:$A$197,0),1) -> Eastern Asia | J98: 0.7066666667 | K98: 0.03533333333 | L98: 0.09875 | M98: 0.9966666667 | O98: 0.1366666667 | P98: 0.9966666667 | R98: 0.1366666667 | S98: 1.08 | T98: 0.03533333333 | U98: 0.22 | V98: 0.8
A99: JOR | B99: 0.66 | C99: S/I | D99: 0.12 | E99: 0.8 | F99: =+INDEX(Countries!$O$4:$O$197,MATCH('Energy Prices'!$A99,Countries!$A$4:$A$197,0),1) -> Jordan | G99: =+INDEX(Countries!$P$4:$P$197,MATCH('Energy Prices'!$A99,Countries!$A$4:$A$197,0),1) -> Asia | H99: =+INDEX(Countries!$Q$4:$Q$197,MATCH('Energy Prices'!$A99,Countries!$A$4:$A$197,0),1) -> Western Asia | I99: =+INDEX(Countries!$R$4:$R$197,MATCH('Energy Prices'!$A99,Countries!$A$4:$A$197,0),1) -> Western Asia | J99: 0.7066666667 | K99: 0.03533333333 | L99: 0.09875 | M99: 0.7473333333 | N99: 0.01566666667 | O99: 0.099 | P99: 0.7473333333 | Q99: 0.01566666667 | R99: 0.099 | S99: 0.66 | T99: 0.01566666667 | U99: 0.12 | V99: 0.8
A100: KAZ | B100: 0.44 | C100: S/I | D100: 0.049 | E100: 0.8 | F100: =+INDEX(Countries!$O$4:$O$197,MATCH('Energy Prices'!$A100,Countries!$A$4:$A$197,0),1) -> Kazakhstan | G100: =+INDEX(Countries!$P$4:$P$197,MATCH('Energy Prices'!$A100,Countries!$A$4:$A$197,0),1) -> Asia | H100: =+INDEX(Countries!$Q$4:$Q$197,MATCH('Energy Prices'!$A100,Countries!$A$4:$A$197,0),1) -> Central Asia | I100: =+INDEX(Countries!$R$4:$R$197,MATCH('Energy Prices'!$A100,Countries!$A$4:$A$197,0),1) -> Central Asia | J100: 0.7066666667 | K100: 0.03533333333 | L100: 0.09875 | M100: 0.46 | O100: 0.04066666667 | P100: 0.46 | R100: 0.04066666667 | S100: 0.44 | T100: 0.03533333333 | U100: 0.049 | V100: 0.8
A101: KEN | B101: 0.86 | C101: S/I | D101: 0.16 | E101: 0.8 | F101: =+INDEX(Countries!$O$4:$O$197,MATCH('Energy Prices'!$A101,Countries!$A$4:$A$197,0),1) -> Kenya | G101: =+INDEX(Countries!$P$4:$P$197,MATCH('Energy Prices'!$A101,Countries!$A$4:$A$197,0),1) -> Africa | H101: =+INDEX(Countries!$Q$4:$Q$197,MATCH('Energy Prices'!$A101,Countries!$A$4:$A$197,0),1) -> Sub-Saharan Africa | I101: =+INDEX(Countries!$R$4:$R$197,MATCH('Energy Prices'!$A101,Countries!$A$4:$A$197,0),1) -> Eastern Africa | J101: 0.8643902439 | K101: 0.004 | L101: 0.1132413793 | M101: 0.915 | O101: 0.1228333333 | P101: 0.9030769231 | R101: 0.1071 | S101: 0.86 | T101: 0.004 | U101: 0.16 | V101: 0.8
A102: KGZ | B102: 0.43 | C102: S/I | D102: 0.03 | E102: 0.8 | F102: =+INDEX(Countries!$O$4:$O$197,MATCH('Energy Prices'!$A102,Countries!$A$4:$A$197,0),1) -> Kyrgyzstan | G102: =+INDEX(Countries!$P$4:$P$197,MATCH('Energy Prices'!$A102,Countries!$A$4:$A$197,0),1) -> Asia | H102: =+INDEX(Countries!$Q$4:$Q$197,MATCH('Energy Prices'!$A102,Countries!$A$4:$A$197,0),1) -> Central Asia | I102: =+INDEX(Countries!$R$4:$R$197,MATCH('Energy Prices'!$A102,Countries!$A$4:$A$197,0),1) -> Central Asia | J102: 0.7066666667 | K102: 0.03533333333 | L102: 0.09875 | M102: 0.46 | O102: 0.04066666667 | P102: 0.46 | R102: 0.04066666667 | S102: 0.43 | T102: 0.03533333333 | U102: 0.03 | V102: 0.8
A103: KIR | B103: S/I | C103: S/I | D103: S/I | E103: 0.8 | F103: =+INDEX(Countries!$O$4:$O$197,MATCH('Energy Prices'!$A103,Countries!$A$4:$A$197,0),1) -> Kiribati | G103: =+INDEX(Countries!$P$4:$P$197,MATCH('Energy Prices'!$A103,Countries!$A$4:$A$197,0),1) -> Oceania | H103: =+INDEX(Countries!$Q$4:$Q$197,MATCH('Energy Prices'!$A103,Countries!$A$4:$A$197,0),1) -> Micronesia | I103: =+INDEX(Countries!$R$4:$R$197,MATCH('Energy Prices'!$A103,Countries!$A$4:$A$197,0),1) -> Micronesia | J103: 0.8333333333 | K103: 0.11 | L103: 0.23 | S103: 0.8333333333 | T103: 0.11 | U103: 0.23 | V103: 0.8
A104: KWT | B104: 0.38 | C104: S/I | D104: 0.05 | E104: 0.8 | F104: =+INDEX(Countries!$O$4:$O$197,MATCH('Energy Prices'!$A104,Countries!$A$4:$A$197,0),1) -> Kuwait | G104: =+INDEX(Countries!$P$4:$P$197,MATCH('Energy Prices'!$A104,Countries!$A$4:$A$197,0),1) -> Asia | H104: =+INDEX(Countries!$Q$4:$Q$197,MATCH('Energy Prices'!$A104,Countries!$A$4:$A$197,0),1) -> Western Asia | I104: =+INDEX(Countries!$R$4:$R$197,MATCH('Energy Prices'!$A104,Countries!$A$4:$A$197,0),1) -> Western Asia | J104: =+AVERAGEIFS($B$8:$B$201,$G$8:$G$201,$G104) -> 0.7066666667 | K104: =+AVERAGEIFS($C$8:$C$201,$G$8:$G$201,$G104) -> 0.03533333333 | L104: =+AVERAGEIFS($D$8:$D$201,$G$8:$G$201,$G104) -> 0.09875 | M104: =+AVERAGEIFS($B$8:$B$201,$H$8:$H$201,$H104) -> 0.7473333333 | N104: =+AVERAGEIFS($C$8:$C$201,$H$8:$H$201,$H104) -> 0.01566666667 | O104: =+AVERAGEIFS($D$8:$D$201,$H$8:$H$201,$H104) -> 0.099 | P104: =+AVERAGEIFS($B$8:$B$201,$I$8:$I$201,$I104) -> 0.7473333333 | Q104: =+AVERAGEIFS($C$8:$C$201,$I$8:$I$201,$I104) -> 0.01566666667 | R104: =+AVERAGEIFS($D$8:$D$201,$I$8:$I$201,$I104) -> 0.099 | S104: =+IF(ISNUMBER(B104),B104,IF(ISNUMBER(P104),P104,IF(ISNUMBER(M104),M104,IF(ISNUMBER(J104),J104,0)))) -> 0.38 | T104: =+IF(ISNUMBER(C104),C104,IF(ISNUMBER(Q104),Q104,IF(ISNUMBER(N104),N104,IF(ISNUMBER(K104),K104,0)))) -> 0.01566666667 | U104: =+IF(ISNUMBER(D104),D104,IF(ISNUMBER(R104),R104,IF(ISNUMBER(O104),O104,IF(ISNUMBER(L104),L104,0)))) -> 0.05 | V104: 0.8
A105: LAO | B105: 0.84 | C105: S/I | D105: S/I | E105: 0.8 | F105: =+INDEX(Countries!$O$4:$O$197,MATCH('Energy Prices'!$A105,Countries!$A$4:$A$197,0),1) -> Lao, People's Democratic Republic | G105: =+INDEX(Countries!$P$4:$P$197,MATCH('Energy Prices'!$A105,Countries!$A$4:$A$197,0),1) -> Asia | H105: =+INDEX(Countries!$Q$4:$Q$197,MATCH('Energy Prices'!$A105,Countries!$A$4:$A$197,0),1) -> South-eastern Asia | I105: =+INDEX(Countries!$R$4:$R$197,MATCH('Energy Prices'!$A105,Countries!$A$4:$A$197,0),1) -> South-eastern Asia | J105: 0.7066666667 | K105: 0.03533333333 | L105: 0.09875 | M105: 0.7155555556 | N105: 0.0765 | O105: 0.1114285714 | P105: 0.7155555556 | Q105: 0.0765 | R105: 0.1114285714 | S105: 0.84 | T105: 0.0765 | U105: 0.1114285714 | V105: 0.8
A106: LSO | B106: 0.76 | C106: S/I | D106: 0.022 | E106: 0.8 | F106: =+INDEX(Countries!$O$4:$O$197,MATCH('Energy Prices'!$A106,Countries!$A$4:$A$197,0),1) -> Lesotho | G106: =+INDEX(Countries!$P$4:$P$197,MATCH('Energy Prices'!$A106,Countries!$A$4:$A$197,0),1) -> Africa | H106: =+INDEX(Countries!$Q$4:$Q$197,MATCH('Energy Prices'!$A106,Countries!$A$4:$A$197,0),1) -> Sub-Saharan Africa | I106: =+INDEX(Countries!$R$4:$R$197,MATCH('Energy Prices'!$A106,Countries!$A$4:$A$197,0),1) -> Southern Africa | J106: 0.8643902439 | K106: 0.004 | L106: 0.1132413793 | M106: 0.915 | O106: 0.1228333333 | P106: 0.814 | R106: 0.0705 | S106: 0.76 | T106: 0.004 | U106: 0.022 | V106: 0.8
A107: LVA | B107: 1.27 | C107: S/I | D107: 0.13 | E107: 0.8 | F107: =+INDEX(Countries!$O$4:$O$197,MATCH('Energy Prices'!$A107,Countries!$A$4:$A$197,0),1) -> Latvia | G107: =+INDEX(Countries!$P$4:$P$197,MATCH('Energy Prices'!$A107,Countries!$A$4:$A$197,0),1) -> Europe | H107: =+INDEX(Countries!$Q$4:$Q$197,MATCH('Energy Prices'!$A107,Countries!$A$4:$A$197,0),1) -> Northern Europe | I107: =+INDEX(Countries!$R$4:$R$197,MATCH('Energy Prices'!$A107,Countries!$A$4:$A$197,0),1) -> Northern Europe | J107: 1.344418605 | K107: 0.05273333333 | L107: 0.1401351351 | M107: 1.491 | N107: 0.0655 | O107: 0.128125 | P107: 1.491 | Q107: 0.0655 | R107: 0.128125 | S107: 1.27 | T107: 0.0655 | U107: 0.13 | V107: 0.8
A108: LBN | B108: 0.6 | C108: S/I | D108: 0.1 | E108: 0.8 | F108: =+INDEX(Countries!$O$4:$O$197,MATCH('Energy Prices'!$A108,Countries!$A$4:$A$197,0),1) -> Lebanon | G108: =+INDEX(Countries!$P$4:$P$197,MATCH('Energy Prices'!$A108,Countries!$A$4:$A$197,0),1) -> Asia | H108: =+INDEX(Countries!$Q$4:$Q$197,MATCH('Energy Prices'!$A108,Countries!$A$4:$A$197,0),1) -> Western Asia | I108: =+INDEX(Countries!$R$4:$R$197,MATCH('Energy Prices'!$A108,Countries!$A$4:$A$197,0),1) -> Western Asia | J108: 0.7066666667 | K108: 0.03533333333 | L108: 0.09875 | M108: 0.7473333333 | N108: 0.01566666667 | O108: 0.099 | P108: 0.7473333333 | Q108: 0.01566666667 | R108: 0.099 | S108: 0.6 | T108: 0.01566666667 | U108: 0.1 | V108: 0.8
A109: LBR | B109: 0.94 | C109: S/I | D109: S/I | E109: 0.8 | F109: =+INDEX(Countries!$O$4:$O$197,MATCH('Energy Prices'!$A109,Countries!$A$4:$A$197,0),1) -> Liberia | G109: =+INDEX(Countries!$P$4:$P$197,MATCH('Energy Prices'!$A109,Countries!$A$4:$A$197,0),1) -> Africa | H109: =+INDEX(Countries!$Q$4:$Q$197,MATCH('Energy Prices'!$A109,Countries!$A$4:$A$197,0),1) -> Sub-Saharan Africa | I109: =+INDEX(Countries!$R$4:$R$197,MATCH('Energy Prices'!$A109,Countries!$A$4:$A$197,0),1) -> Western Africa | J109: 0.8643902439 | K109: 0.004 | L109: 0.1132413793 | M109: 0.915 | O109: 0.1228333333 | P109: 0.9241666667 | R109: 0.1871428571 | S109: 0.94 | T109: 0.004 | U109: 0.1871428571 | V109: 0.8
A110: LBY | B110: S/I | C110: S/I | D110: S/I | E110: 0.8 | F110: =+INDEX(Countries!$O$4:$O$197,MATCH('Energy Prices'!$A110,Countries!$A$4:$A$197,0),1) -> Libya | G110: =+INDEX(Countries!$P$4:$P$197,MATCH('Energy Prices'!$A110,Countries!$A$4:$A$197,0),1) -> Africa | H110: =+INDEX(Countries!$Q$4:$Q$197,MATCH('Energy Prices'!$A110,Countries!$A$4:$A$197,0),1) -> Northern Africa | I110: =+INDEX(Countries!$R$4:$R$197,MATCH('Energy Prices'!$A110,Countries!$A$4:$A$197,0),1) -> Northern Africa | J110: 0.8643902439 | K110: 0.004 | L110: 0.1132413793 | M110: 0.5 | N110: 0.004 | O110: 0.0672 | P110: 0.5 | Q110: 0.004 | R110: 0.0672 | S110: 0.5 | T110: 0.004 | U110: 0.0672 | V110: 0.8
A111: LIE | B111: 1.32 | C111: S/I | D111: 0.17 | E111: 0.8 | F111: =+INDEX(Countries!$O$4:$O$197,MATCH('Energy Prices'!$A111,Countries!$A$4:$A$197,0),1) -> Liechtenstein | G111: =+INDEX(Countries!$P$4:$P$197,MATCH('Energy Prices'!$A111,Countries!$A$4:$A$197,0),1) -> Europe | H111: =+INDEX(Countries!$Q$4:$Q$197,MATCH('Energy Prices'!$A111,Countries!$A$4:$A$197,0),1) -> Western Europe | I111: =+INDEX(Countries!$R$4:$R$197,MATCH('Energy Prices'!$A111,Countries!$A$4:$A$197,0),1) -> Western Europe | J111: 1.344418605 | K111: 0.05273333333 | L111: 0.1401351351 | M111: 1.461111111 | N111: 0.061 | O111: 0.165 | P111: 1.461111111 | Q111: 0.061 | R111: 0.165 | S111: 1.32 | T111: 0.061 | U111: 0.17 | V111: 0.8
A112: LTU | B112: 1.21 | C112: S/I | D112: 0.09 | E112: 0.8 | F112: =+INDEX(Countries!$O$4:$O$197,MATCH('Energy Prices'!$A112,Countries!$A$4:$A$197,0),1) -> Lithuania | G112: =+INDEX(Countries!$P$4:$P$197,MATCH('Energy Prices'!$A112,Countries!$A$4:$A$197,0),1) -> Europe | H112: =+INDEX(Countries!$Q$4:$Q$197,MATCH('Energy Prices'!$A112,Countries!$A$4:$A$197,0),1) -> Northern Europe | I112: =+INDEX(Countries!$R$4:$R$197,MATCH('Energy Prices'!$A112,Countries!$A$4:$A$197,0),1) -> Northern Europe | J112: 1.344418605 | K112: 0.05273333333 | L112: 0.1401351351 | M112: 1.491 | N112: 0.0655 | O112: 0.128125 | P112: 1.491 | Q112: 0.0655 | R112: 0.128125 | S112: 1.21 | T112: 0.0655 | U112: 0.09 | V112: 0.8
A113: LUX | B113: 1.22 | C113: S/I | D113: 0.14 | E113: 0.8 | F113: =+INDEX(Countries!$O$4:$O$197,MATCH('Energy Prices'!$A113,Countries!$A$4:$A$197,0),1) -> Luxembourg | G113: =+INDEX(Countries!$P$4:$P$197,MATCH('Energy Prices'!$A113,Countries!$A$4:$A$197,0),1) -> Europe | H113: =+INDEX(Countries!$Q$4:$Q$197,MATCH('Energy Prices'!$A113,Countries!$A$4:$A$197,0),1) -> Western Europe | I113: =+INDEX(Countries!$R$4:$R$197,MATCH('Energy Prices'!$A113,Countries!$A$4:$A$197,0),1) -> Western Europe | J113: 1.344418605 | K113: 0.05273333333 | L113: 0.1401351351 | M113: 1.461111111 | N113: 0.061 | O113: 0.165 | P113: 1.461111111 | Q113: 0.061 | R113: 0.165 | S113: 1.22 | T113: 0.061 | U113: 0.14 | V113: 0.8
A114: MKD | B114: 1.05 | C114: S/I | D114: 0.11 | E114: 0.8 | F114: =+INDEX(Countries!$O$4:$O$197,MATCH('Energy Prices'!$A114,Countries!$A$4:$A$197,0),1) -> North Macedonia | G114: =+INDEX(Countries!$P$4:$P$197,MATCH('Energy Prices'!$A114,Countries!$A$4:$A$197,0),1) -> Europe | H114: =+INDEX(Countries!$Q$4:$Q$197,MATCH('Energy Prices'!$A114,Countries!$A$4:$A$197,0),1) -> Southern Europe | I114: =+INDEX(Countries!$R$4:$R$197,MATCH('Energy Prices'!$A114,Countries!$A$4:$A$197,0),1) -> Southern Europe | J114: 1.344418605 | K114: 0.05273333333 | L114: 0.1401351351 | M114: 1.382142857 | N114: 0.06433333333 | O114: 0.1463636364 | P114: 1.382142857 | Q114: 0.06433333333 | R114: 0.1463636364 | S114: 1.05 | T114: 0.06433333333 | U114: 0.11 | V114: 0.8
A115: MDG | B115: 0.87 | C115: S/I | D115: 0.11 | E115: 0.8 | F115: =+INDEX(Countries!$O$4:$O$197,MATCH('Energy Prices'!$A115,Countries!$A$4:$A$197,0),1) -> Madagascar | G115: =+INDEX(Countries!$P$4:$P$197,MATCH('Energy Prices'!$A115,Countries!$A$4:$A$197,0),1) -> Africa | H115: =+INDEX(Countries!$Q$4:$Q$197,MATCH('Energy Prices'!$A115,Countries!$A$4:$A$197,0),1) -> Sub-Saharan Africa | I115: =+INDEX(Countries!$R$4:$R$197,MATCH('Energy Prices'!$A115,Countries!$A$4:$A$197,0),1) -> Eastern Africa | J115: 0.8643902439 | K115: 0.004 | L115: 0.1132413793 | M115: 0.915 | O115: 0.1228333333 | P115: 0.9030769231 | R115: 0.1071 | S115: 0.87 | T115: 0.004 | U115: 0.11 | V115: 0.8
A116: MYS | B116: 0.49 | C116: 0.027 | D116: 0.11 | E116: 0.8 | F116: =+INDEX(Countries!$O$4:$O$197,MATCH('Energy Prices'!$A116,Countries!$A$4:$A$197,0),1) -> Malaysia | G116: =+INDEX(Countries!$P$4:$P$197,MATCH('Energy Prices'!$A116,Countries!$A$4:$A$197,0),1) -> Asia | H116: =+INDEX(Countries!$Q$4:$Q$197,MATCH('Energy Prices'!$A116,Countries!$A$4:$A$197,0),1) -> South-eastern Asia | I116: =+INDEX(Countries!$R$4:$R$197,MATCH('Energy Prices'!$A116,Countries!$A$4:$A$197,0),1) -> South-eastern Asia | J116: 0.7066666667 | K116: 0.03533333333 | L116: 0.09875 | M116: 0.7155555556 | N116: 0.0765 | O116: 0.1114285714 | P116: 0.7155555556 | Q116: 0.0765 | R116: 0.1114285714 | S116: 0.49 | T116: 0.027 | U116: 0.11 | V116: 0.8
A117: MWI | B117: 1.07 | C117: S/I | D117: 0.17 | E117: 0.8 | F117: =+INDEX(Countries!$O$4:$O$197,MATCH('Energy Prices'!$A117,Countries!$A$4:$A$197,0),1) -> Malawi | G117: =+INDEX(Countries!$P$4:$P$197,MATCH('Energy Prices'!$A117,Countries!$A$4:$A$197,0),1) -> Africa | H117: =+INDEX(Countries!$Q$4:$Q$197,MATCH('Energy Prices'!$A117,Countries!$A$4:$A$197,0),1) -> Sub-Saharan Africa | I117: =+INDEX(Countries!$R$4:$R$197,MATCH('Energy Prices'!$A117,Countries!$A$4:$A$197,0),1) -> Eastern Africa | J117: 0.8643902439 | K117: 0.004 | L117: 0.1132413793 | M117: 0.915 | O117: 0.1228333333 | P117: 0.9030769231 | R117: 0.1071 | S117: 1.07 | T117: 0.004 | U117: 0.17 | V117: 0.8
A118: MDV | B118: S/I | C118: S/I | D118: S/I | E118: 0.8 | F118: =+INDEX(Countries!$O$4:$O$197,MATCH('Energy Prices'!$A118,Countries!$A$4:$A$197,0),1) -> Maldives | G118: =+INDEX(Countries!$P$4:$P$197,MATCH('Energy Prices'!$A118,Countries!$A$4:$A$197,0),1) -> Asia | H118: =+INDEX(Countries!$Q$4:$Q$197,MATCH('Energy Prices'!$A118,Countries!$A$4:$A$197,0),1) -> Southern Asia | I118: =+INDEX(Countries!$R$4:$R$197,MATCH('Energy Prices'!$A118,Countries!$A$4:$A$197,0),1) -> Southern Asia | J118: 0.7066666667 | K118: 0.03533333333 | L118: 0.09875 | M118: 0.635 | N118: 0.012 | O118: 0.0935 | P118: 0.635 | Q118: 0.012 | R118: 0.0935 | S118: 0.635 | T118: 0.012 | U118: 0.0935 | V118: 0.8
A119: MLI | B119: 1.12 | C119: S/I | D119: 0.18 | E119: 0.8 | F119: =+INDEX(Countries!$O$4:$O$197,MATCH('Energy Prices'!$A119,Countries!$A$4:$A$197,0),1) -> Mali | G119: =+INDEX(Countries!$P$4:$P$197,MATCH('Energy Prices'!$A119,Countries!$A$4:$A$197,0),1) -> Africa | H119: =+INDEX(Countries!$Q$4:$Q$197,MATCH('Energy Prices'!$A119,Countries!$A$4:$A$197,0),1) -> Sub-Saharan Africa | I119: =+INDEX(Countries!$R$4:$R$197,MATCH('Energy Prices'!$A119,Countries!$A$4:$A$197,0),1) -> Western Africa | J119: 0.8643902439 | K119: 0.004 | L119: 0.1132413793 | M119: 0.915 | O119: 0.1228333333 | P119: 0.9241666667 | R119: 0.1871428571 | S119: 1.12 | T119: 0.004 | U119: 0.18 | V119: 0.8
A120: MLT | B120: 1.48 | C120: S/I | D120: 0.18 | E120: 0.8 | F120: =+INDEX(Countries!$O$4:$O$197,MATCH('Energy Prices'!$A120,Countries!$A$4:$A$197,0),1) -> Malta | G120: =+INDEX(Countries!$P$4:$P$197,MATCH('Energy Prices'!$A120,Countries!$A$4:$A$197,0),1) -> Europe | H120: =+INDEX(Countries!$Q$4:$Q$197,MATCH('Energy Prices'!$A120,Countries!$A$4:$A$197,0),1) -> Southern Europe | I120: =+INDEX(Countries!$R$4:$R$197,MATCH('Energy Prices'!$A120,Countries!$A$4:$A$197,0),1) -> Southern Europe | J120: 1.344418605 | K120: 0.05273333333 | L120: 0.1401351351 | M120: 1.382142857 | N120: 0.06433333333 | O120: 0.1463636364 | P120: 1.382142857 | Q120: 0.06433333333 | R120: 0.1463636364 | S120: 1.48 | T120: 0.06433333333 | U120: 0.18 | V120: 0.8
A121: MAR | B121: 0.92 | C121: S/I | D121: 0.12 | E121: 0.8 | F121: =+INDEX(Countries!$O$4:$O$197,MATCH('Energy Prices'!$A121,Countries!$A$4:$A$197,0),1) -> Morocco | G121: =+INDEX(Countries!$P$4:$P$197,MATCH('Energy Prices'!$A121,Countries!$A$4:$A$197,0),1) -> Africa | H121: =+INDEX(Countries!$Q$4:$Q$197,MATCH('Energy Prices'!$A121,Countries!$A$4:$A$197,0),1) -> Northern Africa | I121: =+INDEX(Countries!$R$4:$R$197,MATCH('Energy Prices'!$A121,Countries!$A$4:$A$197,0),1) -> Northern Africa | J121: 0.8643902439 | K121: 0.004 | L121: 0.1132413793 | M121: 0.5 | N121: 0.004 | O121: 0.0672 | P121: 0.5 | Q121: 0.004 | R121: 0.0672 | S121: 0.92 | T121: 0.004 | U121: 0.12 | V121: 0.8
A122: MUS | B122: 0.89 | C122: S/I | D122: 0.14 | E122: 0.8 | F122: =+INDEX(Countries!$O$4:$O$197,MATCH('Energy Prices'!$A122,Countries!$A$4:$A$197,0),1) -> Mauritius | G122: =+INDEX(Countries!$P$4:$P$197,MATCH('Energy Prices'!$A122,Countries!$A$4:$A$197,0),1) -> Africa | H122: =+INDEX(Countries!$Q$4:$Q$197,MATCH('Energy Prices'!$A122,Countries!$A$4:$A$197,0),1) -> Sub-Saharan Africa | I122: =+INDEX(Countries!$R$4:$R$197,MATCH('Energy Prices'!$A122,Countries!$A$4:$A$197,0),1) -> Eastern Africa | J122: 0.8643902439 | K122: 0.004 | L122: 0.1132413793 | M122: 0.915 | O122: 0.1228333333 | P122: 0.9030769231 | R122: 0.1071 | S122: 0.89 | T122: 0.004 | U122: 0.14 | V122: 0.8
A123: MRT | B123: S/I | C123: S/I | D123: S/I | E123: 0.8 | F123: =+INDEX(Countries!$O$4:$O$197,MATCH('Energy Prices'!$A123,Countries!$A$4:$A$197,0),1) -> Mauritania | G123: =+INDEX(Countries!$P$4:$P$197,MATCH('Energy Prices'!$A123,Countries!$A$4:$A$197,0),1) -> Africa | H123: =+INDEX(Countries!$Q$4:$Q$197,MATCH('Energy Prices'!$A123,Countries!$A$4:$A$197,0),1) -> Sub-Saharan Africa | I123: =+INDEX(Countries!$R$4:$R$197,MATCH('Energy Prices'!$A123,Countries!$A$4:$A$197,0),1) -> Western Africa | J123: 0.8643902439 | K123: 0.004 | L123: 0.1132413793 | M123: 0.915 | O123: 0.1228333333 | P123: 0.9241666667 | R123: 0.1871428571 | S123: 0.9241666667 | T123: 0.004 | U123: 0.1871428571 | V123: 0.8
A124: MEX | B124: 0.97 | C124: 0.022 | D124: 0.17 | E124: 0.8 | F124: =+INDEX(Countries!$O$4:$O$197,MATCH('Energy Prices'!$A124,Countries!$A$4:$A$197,0),1) -> Mexico | G124: =+INDEX(Countries!$P$4:$P$197,MATCH('Energy Prices'!$A124,Countries!$A$4:$A$197,0),1) -> Americas | H124: =+INDEX(Countries!$Q$4:$Q$197,MATCH('Energy Prices'!$A124,Countries!$A$4:$A$197,0),1) -> Latin America and the Caribbean | I124: =+INDEX(Countries!$R$4:$R$197,MATCH('Energy Prices'!$A124,Countries!$A$4:$A$197,0),1) -> Central America | J124: 0.7327272831 | K124: 0.036 | L124: 0.1456000464 | M124: 0.7312903336 | N124: 0.04075 | O124: 0.1495652678 | P124: 0.7675 | Q124: 0.022 | R124: 0.18875 | S124: 0.97 | T124: 0.022 | U124: 0.17 | V124: 0.8
A125: FSM | B125: S/I | C125: S/I | D125: S/I | E125: 0.8 | F125: =+INDEX(Countries!$O$4:$O$197,MATCH('Energy Prices'!$A125,Countries!$A$4:$A$197,0),1) -> Micronesia, Federated States of | G125: =+INDEX(Countries!$P$4:$P$197,MATCH('Energy Prices'!$A125,Countries!$A$4:$A$197,0),1) -> Oceania | H125: =+INDEX(Countries!$Q$4:$Q$197,MATCH('Energy Prices'!$A125,Countries!$A$4:$A$197,0),1) -> Micronesia | I125: =+INDEX(Countries!$R$4:$R$197,MATCH('Energy Prices'!$A125,Countries!$A$4:$A$197,0),1) -> Micronesia | J125: 0.8333333333 | K125: 0.11 | L125: 0.23 | S125: 0.8333333333 | T125: 0.11 | U125: 0.23 | V125: 0.8
A126: MDA | B126: 0.8 | C126: S/I | D126: 0.09 | E126: 0.8 | F126: =+INDEX(Countries!$O$4:$O$197,MATCH('Energy Prices'!$A126,Countries!$A$4:$A$197,0),1) -> Moldova, Republic of | G126: =+INDEX(Countries!$P$4:$P$197,MATCH('Energy Prices'!$A126,Countries!$A$4:$A$197,0),1) -> Europe | H126: =+INDEX(Countries!$Q$4:$Q$197,MATCH('Energy Prices'!$A126,Countries!$A$4:$A$197,0),1) -> Eastern Europe | I126: =+INDEX(Countries!$R$4:$R$197,MATCH('Energy Prices'!$A126,Countries!$A$4:$A$197,0),1) -> Eastern Europe | J126: 1.344418605 | K126: 0.05273333333 | L126: 0.1401351351 | M126: 1.04 | N126: 0.02525 | O126: 0.123 | P126: 1.04 | Q126: 0.02525 | R126: 0.123 | S126: 0.8 | T126: 0.02525 | U126: 0.09 | V126: 0.8
A127: MCO | B127: 1.63 | C127: S/I | D127: S/I | E127: 0.8 | F127: =+INDEX(Countries!$O$4:$O$197,MATCH('Energy Prices'!$A127,Countries!$A$4:$A$197,0),1) -> Monaco | G127: =+INDEX(Countries!$P$4:$P$197,MATCH('Energy Prices'!$A127,Countries!$A$4:$A$197,0),1) -> Europe | H127: =+INDEX(Countries!$Q$4:$Q$197,MATCH('Energy Prices'!$A127,Countries!$A$4:$A$197,0),1) -> Western Europe | I127: =+INDEX(Countries!$R$4:$R$197,MATCH('Energy Prices'!$A127,Countries!$A$4:$A$197,0),1) -> Western Europe | J127: 1.344418605 | K127: 0.05273333333 | L127: 0.1401351351 | M127: 1.461111111 | N127: 0.061 | O127: 0.165 | P127: 1.461111111 | Q127: 0.061 | R127: 0.165 | S127: 1.63 | T127: 0.061 | U127: 0.165 | V127: 0.8
A128: MNG | B128: S/I | C128: S/I | D128: S/I | E128: 0.8 | F128: =+INDEX(Countries!$O$4:$O$197,MATCH('Energy Prices'!$A128,Countries!$A$4:$A$197,0),1) -> Mongolia | G128: =+INDEX(Countries!$P$4:$P$197,MATCH('Energy Prices'!$A128,Countries!$A$4:$A$197,0),1) -> Asia | H128: =+INDEX(Countries!$Q$4:$Q$197,MATCH('Energy Prices'!$A128,Countries!$A$4:$A$197,0),1) -> Eastern Asia | I128: =+INDEX(Countries!$R$4:$R$197,MATCH('Energy Prices'!$A128,Countries!$A$4:$A$197,0),1) -> Eastern Asia | J128: 0.7066666667 | K128: 0.03533333333 | L128: 0.09875 | M128: 0.9966666667 | O128: 0.1366666667 | P128: 0.9966666667 | R128: 0.1366666667 | S128: 0.9966666667 | T128: 0.03533333333 | U128: 0.1366666667 | V128: 0.8
A129: MNE | B129: 1.25 | C129: S/I | D129: S/I | E129: 0.8 | F129: =+INDEX(Countries!$O$4:$O$197,MATCH('Energy Prices'!$A129,Countries!$A$4:$A$197,0),1) -> Montenegro | G129: =+INDEX(Countries!$P$4:$P$197,MATCH('Energy Prices'!$A129,Countries!$A$4:$A$197,0),1) -> Europe | H129: =+INDEX(Countries!$Q$4:$Q$197,MATCH('Energy Prices'!$A129,Countries!$A$4:$A$197,0),1) -> Southern Europe | I129: =+INDEX(Countries!$R$4:$R$197,MATCH('Energy Prices'!$A129,Countries!$A$4:$A$197,0),1) -> Southern Europe | J129: 1.344418605 | K129: 0.05273333333 | L129: 0.1401351351 | M129: 1.382142857 | N129: 0.06433333333 | O129: 0.1463636364 | P129: 1.382142857 | Q129: 0.06433333333 | R129: 0.1463636364 | S129: 1.25 | T129: 0.06433333333 | U129: 0.1463636364 | V129: 0.8
A130: MOZ | B130: 0.77 | C130: S/I | D130: 0.06 | E130: 0.8 | F130: =+INDEX(Countries!$O$4:$O$197,MATCH('Energy Prices'!$A130,Countries!$A$4:$A$197,0),1) -> Mozambique | G130: =+INDEX(Countries!$P$4:$P$197,MATCH('Energy Prices'!$A130,Countries!$A$4:$A$197,0),1) -> Africa | H130: =+INDEX(Countries!$Q$4:$Q$197,MATCH('Energy Prices'!$A130,Countries!$A$4:$A$197,0),1) -> Sub-Saharan Africa | I130: =+INDEX(Countries!$R$4:$R$197,MATCH('Energy Prices'!$A130,Countries!$A$4:$A$197,0),1) -> Eastern Africa | J130: 0.8643902439 | K130: 0.004 | L130: 0.1132413793 | M130: 0.915 | O130: 0.1228333333 | P130: 0.9030769231 | R130: 0.1071 | S130: 0.77 | T130: 0.004 | U130: 0.06 | V130: 0.8
A131: MMR | B131: 0.52 | C131: S/I | D131: 0.12 | E131: 0.8 | F131: =+INDEX(Countries!$O$4:$O$197,MATCH('Energy Prices'!$A131,Countries!$A$4:$A$197,0),1) -> Myanmar, Burma | G131: =+INDEX(Countries!$P$4:$P$197,MATCH('Energy Prices'!$A131,Countries!$A$4:$A$197,0),1) -> Asia | H131: =+INDEX(Countries!$Q$4:$Q$197,MATCH('Energy Prices'!$A131,Countries!$A$4:$A$197,0),1) -> South-eastern Asia | I131: =+INDEX(Countries!$R$4:$R$197,MATCH('Energy Prices'!$A131,Countries!$A$4:$A$197,0),1) -> South-eastern Asia | J131: 0.7066666667 | K131: 0.03533333333 | L131: 0.09875 | M131: 0.7155555556 | N131: 0.0765 | O131: 0.1114285714 | P131: 0.7155555556 | Q131: 0.0765 | R131: 0.1114285714 | S131: 0.52 | T131: 0.0765 | U131: 0.12 | V131: 0.8
A132: NAM | B132: 0.76 | C132: S/I | D132: S/I | E132: 0.8 | F132: =+INDEX(Countries!$O$4:$O$197,MATCH('Energy Prices'!$A132,Countries!$A$4:$A$197,0),1) -> Namibia | G132: =+INDEX(Countries!$P$4:$P$197,MATCH('Energy Prices'!$A132,Countries!$A$4:$A$197,0),1) -> Africa | H132: =+INDEX(Countries!$Q$4:$Q$197,MATCH('Energy Prices'!$A132,Countries!$A$4:$A$197,0),1) -> Sub-Saharan Africa | I132: =+INDEX(Countries!$R$4:$R$197,MATCH('Energy Prices'!$A132,Countries!$A$4:$A$197,0),1) -> Southern Africa | J132: 0.8643902439 | K132: 0.004 | L132: 0.1132413793 | M132: 0.915 | O132: 0.1228333333 | P132: 0.814 | R132: 0.0705 | S132: 0.76 | T132: 0.004 | U132: 0.0705 | V132: 0.8
A133: NRU | B133: S/I | C133: S/I | D133: S/I | E133: 0.8 | F133: =+INDEX(Countries!$O$4:$O$197,MATCH('Energy Prices'!$A133,Countries!$A$4:$A$197,0),1) -> Nauru | G133: =+INDEX(Countries!$P$4:$P$197,MATCH('Energy Prices'!$A133,Countries!$A$4:$A$197,0),1) -> Oceania | H133: =+INDEX(Countries!$Q$4:$Q$197,MATCH('Energy Prices'!$A133,Countries!$A$4:$A$197,0),1) -> Micronesia | I133: =+INDEX(Countries!$R$4:$R$197,MATCH('Energy Prices'!$A133,Countries!$A$4:$A$197,0),1) -> Micronesia | J133: 0.8333333333 | K133: 0.11 | L133: 0.23 | S133: 0.8333333333 | T133: 0.11 | U133: 0.23 | V133: 0.8
A134: NPL | B134: 0.78 | C134: S/I | D134: 0.08 | E134: 0.8 | F134: =+INDEX(Countries!$O$4:$O$197,MATCH('Energy Prices'!$A134,Countries!$A$4:$A$197,0),1) -> Nepal | G134: =+INDEX(Countries!$P$4:$P$197,MATCH('Energy Prices'!$A134,Countries!$A$4:$A$197,0),1) -> Asia | H134: =+INDEX(Countries!$Q$4:$Q$197,MATCH('Energy Prices'!$A134,Countries!$A$4:$A$197,0),1) -> Southern Asia | I134: =+INDEX(Countries!$R$4:$R$197,MATCH('Energy Prices'!$A134,Countries!$A$4:$A$197,0),1) -> Southern Asia | J134: 0.7066666667 | K134: 0.03533333333 | L134: 0.09875 | M134: 0.635 | N134: 0.012 | O134: 0.0935 | P134: 0.635 | Q134: 0.012 | R134: 0.0935 | S134: 0.78 | T134: 0.012 | U134: 0.08 | V134: 0.8
A135: NIC | B135: 0.79 | C135: S/I | D135: 0.24 | E135: 0.8 | F135: =+INDEX(Countries!$O$4:$O$197,MATCH('Energy Prices'!$A135,Countries!$A$4:$A$197,0),1) -> Nicaragua | G135: =+INDEX(Countries!$P$4:$P$197,MATCH('Energy Prices'!$A135,Countries!$A$4:$A$197,0),1) -> Americas | H135: =+INDEX(Countries!$Q$4:$Q$197,MATCH('Energy Prices'!$A135,Countries!$A$4:$A$197,0),1) -> Latin America and the Caribbean | I135: =+INDEX(Countries!$R$4:$R$197,MATCH('Energy Prices'!$A135,Countries!$A$4:$A$197,0),1) -> Central America | J135: 0.7327272831 | K135: 0.036 | L135: 0.1456000464 | M135: 0.7312903336 | N135: 0.04075 | O135: 0.1495652678 | P135: 0.7675 | Q135: 0.022 | R135: 0.18875 | S135: 0.79 | T135: 0.022 | U135: 0.24 | V135: 0.8
A136: NER | B136: S/I | C136: S/I | D136: S/I | E136: 0.8 | F136: =+INDEX(Countries!$O$4:$O$197,MATCH('Energy Prices'!$A136,Countries!$A$4:$A$197,0),1) -> Niger | G136: =+INDEX(Countries!$P$4:$P$197,MATCH('Energy Prices'!$A136,Countries!$A$4:$A$197,0),1) -> Africa | H136: =+INDEX(Countries!$Q$4:$Q$197,MATCH('Energy Prices'!$A136,Countries!$A$4:$A$197,0),1) -> Sub-Saharan Africa | I136: =+INDEX(Countries!$R$4:$R$197,MATCH('Energy Prices'!$A136,Countries!$A$4:$A$197,0),1) -> Western Africa | J136: =+AVERAGEIFS($B$8:$B$201,$G$8:$G$201,$G136) -> 0.8643902439 | K136: =+AVERAGEIFS($C$8:$C$201,$G$8:$G$201,$G136) -> 0.004 | L136: =+AVERAGEIFS($D$8:$D$201,$G$8:$G$201,$G136) -> 0.1132413793 | M136: =+AVERAGEIFS($B$8:$B$201,$H$8:$H$201,$H136) -> 0.915 | N136: =+AVERAGEIFS($C$8:$C$201,$H$8:$H$201,$H136) ->  | O136: =+AVERAGEIFS($D$8:$D$201,$H$8:$H$201,$H136) -> 0.1228333333 | P136: =+AVERAGEIFS($B$8:$B$201,$I$8:$I$201,$I136) -> 0.9241666667 | Q136: =+AVERAGEIFS($C$8:$C$201,$I$8:$I$201,$I136) ->  | R136: =+AVERAGEIFS($D$8:$D$201,$I$8:$I$201,$I136) -> 0.1871428571 | S136: =+IF(ISNUMBER(B136),B136,IF(ISNUMBER(P136),P136,IF(ISNUMBER(M136),M136,IF(ISNUMBER(J136),J136,0)))) -> 0.9241666667 | T136: =+IF(ISNUMBER(C136),C136,IF(ISNUMBER(Q136),Q136,IF(ISNUMBER(N136),N136,IF(ISNUMBER(K136),K136,0)))) -> 0.004 | U136: =+IF(ISNUMBER(D136),D136,IF(ISNUMBER(R136),R136,IF(ISNUMBER(O136),O136,IF(ISNUMBER(L136),L136,0)))) -> 0.1871428571 | V136: 0.8
A137: NGA | B137: 0.59 | C137: S/I | D137: 0.11 | E137: 0.8 | F137: =+INDEX(Countries!$O$4:$O$197,MATCH('Energy Prices'!$A137,Countries!$A$4:$A$197,0),1) -> Nigeria | G137: =+INDEX(Countries!$P$4:$P$197,MATCH('Energy Prices'!$A137,Countries!$A$4:$A$197,0),1) -> Africa | H137: =+INDEX(Countries!$Q$4:$Q$197,MATCH('Energy Prices'!$A137,Countries!$A$4:$A$197,0),1) -> Sub-Saharan Africa | I137: =+INDEX(Countries!$R$4:$R$197,MATCH('Energy Prices'!$A137,Countries!$A$4:$A$197,0),1) -> Western Africa | J137: 0.8643902439 | K137: 0.004 | L137: 0.1132413793 | M137: 0.915 | O137: 0.1228333333 | P137: 0.9241666667 | R137: 0.1871428571 | S137: 0.59 | T137: 0.004 | U137: 0.11 | V137: =+E137 -> 0.8
A138: NOR | B138: 1.63 | C138: S/I | D138: 0.05 | E138: 0.8 | F138: =+INDEX(Countries!$O$4:$O$197,MATCH('Energy Prices'!$A138,Countries!$A$4:$A$197,0),1) -> Norway | G138: =+INDEX(Countries!$P$4:$P$197,MATCH('Energy Prices'!$A138,Countries!$A$4:$A$197,0),1) -> Europe | H138: =+INDEX(Countries!$Q$4:$Q$197,MATCH('Energy Prices'!$A138,Countries!$A$4:$A$197,0),1) -> Northern Europe | I138: =+INDEX(Countries!$R$4:$R$197,MATCH('Energy Prices'!$A138,Countries!$A$4:$A$197,0),1) -> Northern Europe | J138: 1.344418605 | K138: 0.05273333333 | L138: 0.1401351351 | M138: 1.491 | N138: 0.0655 | O138: 0.128125 | P138: 1.491 | Q138: 0.0655 | R138: 0.128125 | S138: 1.63 | T138: 0.0655 | U138: 0.05 | V138: 0.8
A139: NZL | B139: 0.85 | C139: S/I | D139: S/I | E139: 0.8 | F139: =+INDEX(Countries!$O$4:$O$197,MATCH('Energy Prices'!$A139,Countries!$A$4:$A$197,0),1) -> New Zealand | G139: =+INDEX(Countries!$P$4:$P$197,MATCH('Energy Prices'!$A139,Countries!$A$4:$A$197,0),1) -> Oceania | H139: =+INDEX(Countries!$Q$4:$Q$197,MATCH('Energy Prices'!$A139,Countries!$A$4:$A$197,0),1) -> Australia and New Zealand | I139: =+INDEX(Countries!$R$4:$R$197,MATCH('Energy Prices'!$A139,Countries!$A$4:$A$197,0),1) -> Australia and New Zealand | J139: 0.8333333333 | K139: 0.11 | L139: 0.23 | M139: 0.88 | N139: 0.11 | O139: 0.23 | P139: 0.88 | Q139: 0.11 | R139: 0.23 | S139: 0.85 | T139: 0.11 | U139: 0.23 | V139: 0.8
A140: OMN | B140: 0.54 | C140: S/I | D140: 0.15 | E140: 0.8 | F140: =+INDEX(Countries!$O$4:$O$197,MATCH('Energy Prices'!$A140,Countries!$A$4:$A$197,0),1) -> Oman | G140: =+INDEX(Countries!$P$4:$P$197,MATCH('Energy Prices'!$A140,Countries!$A$4:$A$197,0),1) -> Asia | H140: =+INDEX(Countries!$Q$4:$Q$197,MATCH('Energy Prices'!$A140,Countries!$A$4:$A$197,0),1) -> Western Asia | I140: =+INDEX(Countries!$R$4:$R$197,MATCH('Energy Prices'!$A140,Countries!$A$4:$A$197,0),1) -> Western Asia | J140: 0.7066666667 | K140: 0.03533333333 | L140: 0.09875 | M140: 0.7473333333 | N140: 0.01566666667 | O140: 0.099 | P140: 0.7473333333 | Q140: 0.01566666667 | R140: 0.099 | S140: 0.54 | T140: 0.01566666667 | U140: 0.15 | V140: 0.8
A141: NLD | B141: 1.52 | C141: 0.087 | D141: 0.14 | E141: 0.8 | F141: =+INDEX(Countries!$O$4:$O$197,MATCH('Energy Prices'!$A141,Countries!$A$4:$A$197,0),1) -> Netherlands | G141: =+INDEX(Countries!$P$4:$P$197,MATCH('Energy Prices'!$A141,Countries!$A$4:$A$197,0),1) -> Europe | H141: =+INDEX(Countries!$Q$4:$Q$197,MATCH('Energy Prices'!$A141,Countries!$A$4:$A$197,0),1) -> Western Europe | I141: =+INDEX(Countries!$R$4:$R$197,MATCH('Energy Prices'!$A141,Countries!$A$4:$A$197,0),1) -> Western Europe | J141: 1.344418605 | K141: 0.05273333333 | L141: 0.1401351351 | M141: 1.461111111 | N141: 0.061 | O141: 0.165 | P141: 1.461111111 | Q141: 0.061 | R141: 0.165 | S141: 1.52 | T141: 0.087 | U141: 0.14 | V141: 0.8
A142: PAK | B142: 0.68 | C142: S/I | D142: 0.16 | E142: 0.8 | F142: =+INDEX(Countries!$O$4:$O$197,MATCH('Energy Prices'!$A142,Countries!$A$4:$A$197,0),1) -> Pakistan | G142: =+INDEX(Countries!$P$4:$P$197,MATCH('Energy Prices'!$A142,Countries!$A$4:$A$197,0),1) -> Asia | H142: =+INDEX(Countries!$Q$4:$Q$197,MATCH('Energy Prices'!$A142,Countries!$A$4:$A$197,0),1) -> Southern Asia | I142: =+INDEX(Countries!$R$4:$R$197,MATCH('Energy Prices'!$A142,Countries!$A$4:$A$197,0),1) -> Southern Asia | J142: 0.7066666667 | K142: 0.03533333333 | L142: 0.09875 | M142: 0.635 | N142: 0.012 | O142: 0.0935 | P142: 0.635 | Q142: 0.012 | R142: 0.0935 | S142: 0.68 | T142: 0.012 | U142: 0.16 | V142: 0.8
A143: PLW | B143: S/I | C143: S/I | D143: S/I | E143: 0.8 | F143: =+INDEX(Countries!$O$4:$O$197,MATCH('Energy Prices'!$A143,Countries!$A$4:$A$197,0),1) -> Palau | G143: =+INDEX(Countries!$P$4:$P$197,MATCH('Energy Prices'!$A143,Countries!$A$4:$A$197,0),1) -> Oceania | H143: =+INDEX(Countries!$Q$4:$Q$197,MATCH('Energy Prices'!$A143,Countries!$A$4:$A$197,0),1) -> Micronesia | I143: =+INDEX(Countries!$R$4:$R$197,MATCH('Energy Prices'!$A143,Countries!$A$4:$A$197,0),1) -> Micronesia | J143: 0.8333333333 | K143: 0.11 | L143: 0.23 | S143: 0.8333333333 | T143: 0.11 | U143: 0.23 | V143: 0.8
A144: PAN | B144: 0.56 | C144: S/I | D144: 0.19 | E144: 0.8 | F144: =+INDEX(Countries!$O$4:$O$197,MATCH('Energy Prices'!$A144,Countries!$A$4:$A$197,0),1) -> Panama | G144: =+INDEX(Countries!$P$4:$P$197,MATCH('Energy Prices'!$A144,Countries!$A$4:$A$197,0),1) -> Americas | H144: =+INDEX(Countries!$Q$4:$Q$197,MATCH('Energy Prices'!$A144,Countries!$A$4:$A$197,0),1) -> Latin America and the Caribbean | I144: =+INDEX(Countries!$R$4:$R$197,MATCH('Energy Prices'!$A144,Countries!$A$4:$A$197,0),1) -> Central America | J144: 0.7327272831 | K144: 0.036 | L144: 0.1456000464 | M144: 0.7312903336 | N144: 0.04075 | O144: 0.1495652678 | P144: 0.7675 | Q144: 0.022 | R144: 0.18875 | S144: 0.56 | T144: 0.022 | U144: 0.19 | V144: 0.8
A145: PNG | B145: S/I | C145: S/I | D145: S/I | E145: 0.8 | F145: =+INDEX(Countries!$O$4:$O$197,MATCH('Energy Prices'!$A145,Countries!$A$4:$A$197,0),1) -> Papua New Guinea | G145: =+INDEX(Countries!$P$4:$P$197,MATCH('Energy Prices'!$A145,Countries!$A$4:$A$197,0),1) -> Oceania | H145: =+INDEX(Countries!$Q$4:$Q$197,MATCH('Energy Prices'!$A145,Countries!$A$4:$A$197,0),1) -> Melanesia | I145: =+INDEX(Countries!$R$4:$R$197,MATCH('Energy Prices'!$A145,Countries!$A$4:$A$197,0),1) -> Melanesia | J145: 0.8333333333 | K145: 0.11 | L145: 0.23 | M145: 0.74 | P145: 0.74 | S145: 0.74 | T145: 0.11 | U145: 0.23 | V145: 0.8
A146: PRY | B146: 0.68 | C146: S/I | D146: 0.05 | E146: 0.8 | F146: =+INDEX(Countries!$O$4:$O$197,MATCH('Energy Prices'!$A146,Countries!$A$4:$A$197,0),1) -> Paraguay | G146: =+INDEX(Countries!$P$4:$P$197,MATCH('Energy Prices'!$A146,Countries!$A$4:$A$197,0),1) -> Americas | H146: =+INDEX(Countries!$Q$4:$Q$197,MATCH('Energy Prices'!$A146,Countries!$A$4:$A$197,0),1) -> Latin America and the Caribbean | I146: =+INDEX(Countries!$R$4:$R$197,MATCH('Energy Prices'!$A146,Countries!$A$4:$A$197,0),1) -> South America | J146: 0.7327272831 | K146: 0.036 | L146: 0.1456000464 | M146: 0.7312903336 | N146: 0.04075 | O146: 0.1495652678 | P146: 0.6325000286 | Q146: 0.0295 | R146: 0.09800011602 | S146: 0.68 | T146: 0.0295 | U146: 0.05 | V146: 0.8
A147: PER | B147: 0.84 | C147: S/I | D147: 0.13 | E147: 0.8 | F147: =+INDEX(Countries!$O$4:$O$197,MATCH('Energy Prices'!$A147,Countries!$A$4:$A$197,0),1) -> Peru | G147: =+INDEX(Countries!$P$4:$P$197,MATCH('Energy Prices'!$A147,Countries!$A$4:$A$197,0),1) -> Americas | H147: =+INDEX(Countries!$Q$4:$Q$197,MATCH('Energy Prices'!$A147,Countries!$A$4:$A$197,0),1) -> Latin America and the Caribbean | I147: =+INDEX(Countries!$R$4:$R$197,MATCH('Energy Prices'!$A147,Countries!$A$4:$A$197,0),1) -> South America | J147: 0.7327272831 | K147: 0.036 | L147: 0.1456000464 | M147: 0.7312903336 | N147: 0.04075 | O147: 0.1495652678 | P147: 0.6325000286 | Q147: 0.0295 | R147: 0.09800011602 | S147: 0.84 | T147: 0.0295 | U147: 0.13 | V147: 0.8
A148: POL | B148: 1.21 | C148: S/I | D148: 0.16 | E148: 0.8 | F148: =+INDEX(Countries!$O$4:$O$197,MATCH('Energy Prices'!$A148,Countries!$A$4:$A$197,0),1) -> Poland | G148: =+INDEX(Countries!$P$4:$P$197,MATCH('Energy Prices'!$A148,Countries!$A$4:$A$197,0),1) -> Europe | H148: =+INDEX(Countries!$Q$4:$Q$197,MATCH('Energy Prices'!$A148,Countries!$A$4:$A$197,0),1) -> Eastern Europe | I148: =+INDEX(Countries!$R$4:$R$197,MATCH('Energy Prices'!$A148,Countries!$A$4:$A$197,0),1) -> Eastern Europe | J148: 1.344418605 | K148: 0.05273333333 | L148: 0.1401351351 | M148: 1.04 | N148: 0.02525 | O148: 0.123 | P148: 1.04 | Q148: 0.02525 | R148: 0.123 | S148: 1.21 | T148: 0.02525 | U148: 0.16 | V148: 0.8
A149: PRT | B149: 1.55 | C149: 0.069 | D149: 0.18 | E149: 0.8 | F149: =+INDEX(Countries!$O$4:$O$197,MATCH('Energy Prices'!$A149,Countries!$A$4:$A$197,0),1) -> Portugal | G149: =+INDEX(Countries!$P$4:$P$197,MATCH('Energy Prices'!$A149,Countries!$A$4:$A$197,0),1) -> Europe | H149: =+INDEX(Countries!$Q$4:$Q$197,MATCH('Energy Prices'!$A149,Countries!$A$4:$A$197,0),1) -> Southern Europe | I149: =+INDEX(Countries!$R$4:$R$197,MATCH('Energy Prices'!$A149,Countries!$A$4:$A$197,0),1) -> Southern Europe | J149: 1.344418605 | K149: 0.05273333333 | L149: 0.1401351351 | M149: 1.382142857 | N149: 0.06433333333 | O149: 0.1463636364 | P149: 1.382142857 | Q149: 0.06433333333 | R149: 0.1463636364 | S149: 1.55 | T149: 0.069 | U149: 0.18 | V149: 0.8
A150: PRI | B150: 0.55 | C150: S/I | D150: S/I | E150: 0.8 | F150: =+INDEX(Countries!$O$4:$O$197,MATCH('Energy Prices'!$A150,Countries!$A$4:$A$197,0),1) -> Puerto Rico | G150: =+INDEX(Countries!$P$4:$P$197,MATCH('Energy Prices'!$A150,Countries!$A$4:$A$197,0),1) -> Americas | H150: =+INDEX(Countries!$Q$4:$Q$197,MATCH('Energy Prices'!$A150,Countries!$A$4:$A$197,0),1) -> Latin America and the Caribbean | I150: =+INDEX(Countries!$R$4:$R$197,MATCH('Energy Prices'!$A150,Countries!$A$4:$A$197,0),1) -> Caribbean | J150: 0.7327272831 | K150: 0.036 | L150: 0.1456000464 | M150: 0.7312903336 | N150: 0.04075 | O150: 0.1495652678 | P150: 0.8127272727 | Q150: 0.082 | R150: 0.19 | S150: 0.55 | T150: 0.082 | U150: 0.19 | V150: 0.8
A151: QAT | B151: 0.32 | C151: S/I | D151: 0.036 | E151: 0.8 | F151: =+INDEX(Countries!$O$4:$O$197,MATCH('Energy Prices'!$A151,Countries!$A$4:$A$197,0),1) -> Qatar | G151: =+INDEX(Countries!$P$4:$P$197,MATCH('Energy Prices'!$A151,Countries!$A$4:$A$197,0),1) -> Asia | H151: =+INDEX(Countries!$Q$4:$Q$197,MATCH('Energy Prices'!$A151,Countries!$A$4:$A$197,0),1) -> Western Asia | I151: =+INDEX(Countries!$R$4:$R$197,MATCH('Energy Prices'!$A151,Countries!$A$4:$A$197,0),1) -> Western Asia | J151: 0.7066666667 | K151: 0.03533333333 | L151: 0.09875 | M151: 0.7473333333 | N151: 0.01566666667 | O151: 0.099 | P151: 0.7473333333 | Q151: 0.01566666667 | R151: 0.099 | S151: 0.32 | T151: 0.01566666667 | U151: 0.036 | V151: 0.8
A152: GBR | B152: 1.61 | C152: 0.04 | D152: 0.23 | E152: 0.8 | F152: =+INDEX(Countries!$O$4:$O$197,MATCH('Energy Prices'!$A152,Countries!$A$4:$A$197,0),1) -> United Kingdom | G152: =+INDEX(Countries!$P$4:$P$197,MATCH('Energy Prices'!$A152,Countries!$A$4:$A$197,0),1) -> Europe | H152: =+INDEX(Countries!$Q$4:$Q$197,MATCH('Energy Prices'!$A152,Countries!$A$4:$A$197,0),1) -> Northern Europe | I152: =+INDEX(Countries!$R$4:$R$197,MATCH('Energy Prices'!$A152,Countries!$A$4:$A$197,0),1) -> Northern Europe | J152: 1.344418605 | K152: 0.05273333333 | L152: 0.1401351351 | M152: 1.491 | N152: 0.0655 | O152: 0.128125 | P152: 1.491 | Q152: 0.0655 | R152: 0.128125 | S152: 1.61 | T152: 0.04 | U152: 0.23 | V152: 0.8
A153: CAF | B153: 1.65 | C153: S/I | D153: S/I | E153: 0.8 | F153: =+INDEX(Countries!$O$4:$O$197,MATCH('Energy Prices'!$A153,Countries!$A$4:$A$197,0),1) -> Central African Republic | G153: =+INDEX(Countries!$P$4:$P$197,MATCH('Energy Prices'!$A153,Countries!$A$4:$A$197,0),1) -> Africa | H153: =+INDEX(Countries!$Q$4:$Q$197,MATCH('Energy Prices'!$A153,Countries!$A$4:$A$197,0),1) -> Sub-Saharan Africa | I153: =+INDEX(Countries!$R$4:$R$197,MATCH('Energy Prices'!$A153,Countries!$A$4:$A$197,0),1) -> Middle Africa | J153: 0.8643902439 | K153: 0.004 | L153: 0.1132413793 | M153: 0.915 | O153: 0.1228333333 | P153: 1.006666667 | R153: 0.095 | S153: 1.65 | T153: 0.004 | U153: 0.095 | V153: 0.8
A154: CZE | B154: 1.28 | C154: S/I | D154: 0.11 | E154: 0.8 | F154: =+INDEX(Countries!$O$4:$O$197,MATCH('Energy Prices'!$A154,Countries!$A$4:$A$197,0),1) -> Czech Republic | G154: =+INDEX(Countries!$P$4:$P$197,MATCH('Energy Prices'!$A154,Countries!$A$4:$A$197,0),1) -> Europe | H154: =+INDEX(Countries!$Q$4:$Q$197,MATCH('Energy Prices'!$A154,Countries!$A$4:$A$197,0),1) -> Eastern Europe | I154: =+INDEX(Countries!$R$4:$R$197,MATCH('Energy Prices'!$A154,Countries!$A$4:$A$197,0),1) -> Eastern Europe | J154: 1.344418605 | K154: 0.05273333333 | L154: 0.1401351351 | M154: 1.04 | N154: 0.02525 | O154: 0.123 | P154: 1.04 | Q154: 0.02525 | R154: 0.123 | S154: 1.28 | T154: 0.02525 | U154: 0.11 | V154: 0.8
A155: COG | B155: S/I | C155: S/I | D155: S/I | E155: 0.8 | F155: =+INDEX(Countries!$O$4:$O$197,MATCH('Energy Prices'!$A155,Countries!$A$4:$A$197,0),1) -> Congo, Republic of (Brazzaville) | G155: =+INDEX(Countries!$P$4:$P$197,MATCH('Energy Prices'!$A155,Countries!$A$4:$A$197,0),1) -> Africa | H155: =+INDEX(Countries!$Q$4:$Q$197,MATCH('Energy Prices'!$A155,Countries!$A$4:$A$197,0),1) -> Sub-Saharan Africa | I155: =+INDEX(Countries!$R$4:$R$197,MATCH('Energy Prices'!$A155,Countries!$A$4:$A$197,0),1) -> Middle Africa | J155: 0.8643902439 | K155: 0.004 | L155: 0.1132413793 | M155: 0.915 | O155: 0.1228333333 | P155: 1.006666667 | R155: 0.095 | S155: 1.006666667 | T155: 0.004 | U155: 0.095 | V155: 0.8
A156: COD | B156: 1 | C156: S/I | D156: 0.1 | E156: 0.8 | F156: =+INDEX(Countries!$O$4:$O$197,MATCH('Energy Prices'!$A156,Countries!$A$4:$A$197,0),1) -> Democratic Republic of the Congo | G156: =+INDEX(Countries!$P$4:$P$197,MATCH('Energy Prices'!$A156,Countries!$A$4:$A$197,0),1) -> Africa | H156: =+INDEX(Countries!$Q$4:$Q$197,MATCH('Energy Prices'!$A156,Countries!$A$4:$A$197,0),1) -> Sub-Saharan Africa | I156: =+INDEX(Countries!$R$4:$R$197,MATCH('Energy Prices'!$A156,Countries!$A$4:$A$197,0),1) -> Middle Africa | J156: 0.8643902439 | K156: 0.004 | L156: 0.1132413793 | M156: 0.915 | O156: 0.1228333333 | P156: 1.006666667 | R156: 0.095 | S156: 1 | T156: 0.004 | U156: 0.1 | V156: 0.8
A157: DOM | B157: 0.76 | C157: S/I | D157: 0.14 | E157: 0.8 | F157: =+INDEX(Countries!$O$4:$O$197,MATCH('Energy Prices'!$A157,Countries!$A$4:$A$197,0),1) -> Dominican Republic | G157: =+INDEX(Countries!$P$4:$P$197,MATCH('Energy Prices'!$A157,Countries!$A$4:$A$197,0),1) -> Americas | H157: =+INDEX(Countries!$Q$4:$Q$197,MATCH('Energy Prices'!$A157,Countries!$A$4:$A$197,0),1) -> Latin America and the Caribbean | I157: =+INDEX(Countries!$R$4:$R$197,MATCH('Energy Prices'!$A157,Countries!$A$4:$A$197,0),1) -> Caribbean | J157: 0.7327272831 | K157: 0.036 | L157: 0.1456000464 | M157: 0.7312903336 | N157: 0.04075 | O157: 0.1495652678 | P157: 0.8127272727 | Q157: 0.082 | R157: 0.19 | S157: 0.76 | T157: 0.082 | U157: 0.14 | V157: 0.8
A158: RWA | B158: 0.93 | C158: S/I | D158: 0.1 | E158: 0.8 | F158: =+INDEX(Countries!$O$4:$O$197,MATCH('Energy Prices'!$A158,Countries!$A$4:$A$197,0),1) -> Rwanda | G158: =+INDEX(Countries!$P$4:$P$197,MATCH('Energy Prices'!$A158,Countries!$A$4:$A$197,0),1) -> Africa | H158: =+INDEX(Countries!$Q$4:$Q$197,MATCH('Energy Prices'!$A158,Countries!$A$4:$A$197,0),1) -> Sub-Saharan Africa | I158: =+INDEX(Countries!$R$4:$R$197,MATCH('Energy Prices'!$A158,Countries!$A$4:$A$197,0),1) -> Eastern Africa | J158: 0.8643902439 | K158: 0.004 | L158: 0.1132413793 | M158: 0.915 | O158: 0.1228333333 | P158: 0.9030769231 | R158: 0.1071 | S158: 0.93 | T158: 0.004 | U158: 0.1 | V158: 0.8
A159: ROU | B159: 1.2 | C159: S/I | D159: 0.13 | E159: 0.8 | F159: =+INDEX(Countries!$O$4:$O$197,MATCH('Energy Prices'!$A159,Countries!$A$4:$A$197,0),1) -> Romania | G159: =+INDEX(Countries!$P$4:$P$197,MATCH('Energy Prices'!$A159,Countries!$A$4:$A$197,0),1) -> Europe | H159: =+INDEX(Countries!$Q$4:$Q$197,MATCH('Energy Prices'!$A159,Countries!$A$4:$A$197,0),1) -> Eastern Europe | I159: =+INDEX(Countries!$R$4:$R$197,MATCH('Energy Prices'!$A159,Countries!$A$4:$A$197,0),1) -> Eastern Europe | J159: 1.344418605 | K159: 0.05273333333 | L159: 0.1401351351 | M159: 1.04 | N159: 0.02525 | O159: 0.123 | P159: 1.04 | Q159: 0.02525 | R159: 0.123 | S159: 1.2 | T159: 0.02525 | U159: 0.13 | V159: 0.8
A160: RUS | B160: 0.64 | C160: 0.008 | D160: 0.09 | E160: 0.8 | F160: =+INDEX(Countries!$O$4:$O$197,MATCH('Energy Prices'!$A160,Countries!$A$4:$A$197,0),1) -> Russian Federation | G160: =+INDEX(Countries!$P$4:$P$197,MATCH('Energy Prices'!$A160,Countries!$A$4:$A$197,0),1) -> Europe | H160: =+INDEX(Countries!$Q$4:$Q$197,MATCH('Energy Prices'!$A160,Countries!$A$4:$A$197,0),1) -> Eastern Europe | I160: =+INDEX(Countries!$R$4:$R$197,MATCH('Energy Prices'!$A160,Countries!$A$4:$A$197,0),1) -> Eastern Europe | J160: 1.344418605 | K160: 0.05273333333 | L160: 0.1401351351 | M160: 1.04 | N160: 0.02525 | O160: 0.123 | P160: 1.04 | Q160: 0.02525 | R160: 0.123 | S160: 0.64 | T160: 0.008 | U160: 0.09 | V160: 0.8
A161: WSM | B161: S/I | C161: S/I | D161: S/I | E161: 0.8 | F161: =+INDEX(Countries!$O$4:$O$197,MATCH('Energy Prices'!$A161,Countries!$A$4:$A$197,0),1) -> Samoa | G161: =+INDEX(Countries!$P$4:$P$197,MATCH('Energy Prices'!$A161,Countries!$A$4:$A$197,0),1) -> Oceania | H161: =+INDEX(Countries!$Q$4:$Q$197,MATCH('Energy Prices'!$A161,Countries!$A$4:$A$197,0),1) -> Polynesia | I161: =+INDEX(Countries!$R$4:$R$197,MATCH('Energy Prices'!$A161,Countries!$A$4:$A$197,0),1) -> Polynesia | J161: 0.8333333333 | K161: 0.11 | L161: 0.23 | S161: 0.8333333333 | T161: 0.11 | U161: 0.23 | V161: 0.8
A162: KNA | B162: S/I | C162: S/I | D162: S/I | E162: 0.8 | F162: =+INDEX(Countries!$O$4:$O$197,MATCH('Energy Prices'!$A162,Countries!$A$4:$A$197,0),1) -> Saint Kitts and Nevis | G162: =+INDEX(Countries!$P$4:$P$197,MATCH('Energy Prices'!$A162,Countries!$A$4:$A$197,0),1) -> Americas | H162: =+INDEX(Countries!$Q$4:$Q$197,MATCH('Energy Prices'!$A162,Countries!$A$4:$A$197,0),1) -> Latin America and the Caribbean | I162: =+INDEX(Countries!$R$4:$R$197,MATCH('Energy Prices'!$A162,Countries!$A$4:$A$197,0),1) -> Caribbean | J162: 0.7327272831 | K162: 0.036 | L162: 0.1456000464 | M162: 0.7312903336 | N162: 0.04075 | O162: 0.1495652678 | P162: 0.8127272727 | Q162: 0.082 | R162: 0.19 | S162: 0.8127272727 | T162: 0.082 | U162: 0.19 | V162: 0.8
A163: SMR | B163: 1.48 | C163: S/I | D163: S/I | E163: 0.8 | F163: =+INDEX(Countries!$O$4:$O$197,MATCH('Energy Prices'!$A163,Countries!$A$4:$A$197,0),1) -> San Marino | G163: =+INDEX(Countries!$P$4:$P$197,MATCH('Energy Prices'!$A163,Countries!$A$4:$A$197,0),1) -> Europe | H163: =+INDEX(Countries!$Q$4:$Q$197,MATCH('Energy Prices'!$A163,Countries!$A$4:$A$197,0),1) -> Southern Europe | I163: =+INDEX(Countries!$R$4:$R$197,MATCH('Energy Prices'!$A163,Countries!$A$4:$A$197,0),1) -> Southern Europe | J163: 1.344418605 | K163: 0.05273333333 | L163: 0.1401351351 | M163: 1.382142857 | N163: 0.06433333333 | O163: 0.1463636364 | P163: 1.382142857 | Q163: 0.06433333333 | R163: 0.1463636364 | S163: 1.48 | T163: 0.06433333333 | U163: 0.1463636364 | V163: 0.8
A164: VCT | B164: S/I | C164: S/I | D164: S/I | E164: 0.8 | F164: =+INDEX(Countries!$O$4:$O$197,MATCH('Energy Prices'!$A164,Countries!$A$4:$A$197,0),1) -> Saint Vincent and the Grenadines | G164: =+INDEX(Countries!$P$4:$P$197,MATCH('Energy Prices'!$A164,Countries!$A$4:$A$197,0),1) -> Americas | H164: =+INDEX(Countries!$Q$4:$Q$197,MATCH('Energy Prices'!$A164,Countries!$A$4:$A$197,0),1) -> Latin America and the Caribbean | I164: =+INDEX(Countries!$R$4:$R$197,MATCH('Energy Prices'!$A164,Countries!$A$4:$A$197,0),1) -> Caribbean | J164: 0.7327272831 | K164: 0.036 | L164: 0.1456000464 | M164: 0.7312903336 | N164: 0.04075 | O164: 0.1495652678 | P164: 0.8127272727 | Q164: 0.082 | R164: 0.19 | S164: 0.8127272727 | T164: 0.082 | U164: 0.19 | V164: 0.8
A165: LCA | B165: 0.86 | C165: S/I | D165: S/I | E165: 0.8 | F165: =+INDEX(Countries!$O$4:$O$197,MATCH('Energy Prices'!$A165,Countries!$A$4:$A$197,0),1) -> Saint Lucia | G165: =+INDEX(Countries!$P$4:$P$197,MATCH('Energy Prices'!$A165,Countries!$A$4:$A$197,0),1) -> Americas | H165: =+INDEX(Countries!$Q$4:$Q$197,MATCH('Energy Prices'!$A165,Countries!$A$4:$A$197,0),1) -> Latin America and the Caribbean | I165: =+INDEX(Countries!$R$4:$R$197,MATCH('Energy Prices'!$A165,Countries!$A$4:$A$197,0),1) -> Caribbean | J165: 0.7327272831 | K165: 0.036 | L165: 0.1456000464 | M165: 0.7312903336 | N165: 0.04075 | O165: 0.1495652678 | P165: 0.8127272727 | Q165: 0.082 | R165: 0.19 | S165: 0.86 | T165: 0.082 | U165: 0.19 | V165: 0.8
A166: STP | B166: S/I | C166: S/I | D166: S/I | E166: 0.8 | F166: =+INDEX(Countries!$O$4:$O$197,MATCH('Energy Prices'!$A166,Countries!$A$4:$A$197,0),1) -> Sao Tome and Principe | G166: =+INDEX(Countries!$P$4:$P$197,MATCH('Energy Prices'!$A166,Countries!$A$4:$A$197,0),1) -> Africa | H166: =+INDEX(Countries!$Q$4:$Q$197,MATCH('Energy Prices'!$A166,Countries!$A$4:$A$197,0),1) -> Sub-Saharan Africa | I166: =+INDEX(Countries!$R$4:$R$197,MATCH('Energy Prices'!$A166,Countries!$A$4:$A$197,0),1) -> Middle Africa | J166: 0.8643902439 | K166: 0.004 | L166: 0.1132413793 | M166: 0.915 | O166: 0.1228333333 | P166: 1.006666667 | R166: 0.095 | S166: 1.006666667 | T166: 0.004 | U166: 0.095 | V166: 0.8
A167: SEN | B167: 1.22 | C167: S/I | D167: S/I | E167: 0.8 | F167: =+INDEX(Countries!$O$4:$O$197,MATCH('Energy Prices'!$A167,Countries!$A$4:$A$197,0),1) -> Senegal | G167: =+INDEX(Countries!$P$4:$P$197,MATCH('Energy Prices'!$A167,Countries!$A$4:$A$197,0),1) -> Africa | H167: =+INDEX(Countries!$Q$4:$Q$197,MATCH('Energy Prices'!$A167,Countries!$A$4:$A$197,0),1) -> Sub-Saharan Africa | I167: =+INDEX(Countries!$R$4:$R$197,MATCH('Energy Prices'!$A167,Countries!$A$4:$A$197,0),1) -> Western Africa | J167: 0.8643902439 | K167: 0.004 | L167: 0.1132413793 | M167: 0.915 | O167: 0.1228333333 | P167: 0.9241666667 | R167: 0.1871428571 | S167: 1.22 | T167: 0.004 | U167: 0.1871428571 | V167: 0.8
A168: SRB | B168: 1.48 | C168: S/I | D168: 0.11 | E168: 0.8 | F168: =+INDEX(Countries!$O$4:$O$197,MATCH('Energy Prices'!$A168,Countries!$A$4:$A$197,0),1) -> Serbia | G168: =+INDEX(Countries!$P$4:$P$197,MATCH('Energy Prices'!$A168,Countries!$A$4:$A$197,0),1) -> Europe | H168: =+INDEX(Countries!$Q$4:$Q$197,MATCH('Energy Prices'!$A168,Countries!$A$4:$A$197,0),1) -> Southern Europe | I168: =+INDEX(Countries!$R$4:$R$197,MATCH('Energy Prices'!$A168,Countries!$A$4:$A$197,0),1) -> Southern Europe | J168: =+AVERAGEIFS($B$8:$B$201,$G$8:$G$201,$G168) -> 1.344418605 | K168: =+AVERAGEIFS($C$8:$C$201,$G$8:$G$201,$G168) -> 0.05273333333 | L168: =+AVERAGEIFS($D$8:$D$201,$G$8:$G$201,$G168) -> 0.1401351351 | M168: =+AVERAGEIFS($B$8:$B$201,$H$8:$H$201,$H168) -> 1.382142857 | N168: =+AVERAGEIFS($C$8:$C$201,$H$8:$H$201,$H168) -> 0.06433333333 | O168: =+AVERAGEIFS($D$8:$D$201,$H$8:$H$201,$H168) -> 0.1463636364 | P168: =+AVERAGEIFS($B$8:$B$201,$I$8:$I$201,$I168) -> 1.382142857 | Q168: =+AVERAGEIFS($C$8:$C$201,$I$8:$I$201,$I168) -> 0.06433333333 | R168: =+AVERAGEIFS($D$8:$D$201,$I$8:$I$201,$I168) -> 0.1463636364 | S168: =+IF(ISNUMBER(B168),B168,IF(ISNUMBER(P168),P168,IF(ISNUMBER(M168),M168,IF(ISNUMBER(J168),J168,0)))) -> 1.48 | T168: =+IF(ISNUMBER(C168),C168,IF(ISNUMBER(Q168),Q168,IF(ISNUMBER(N168),N168,IF(ISNUMBER(K168),K168,0)))) -> 0.06433333333 | U168: =+IF(ISNUMBER(D168),D168,IF(ISNUMBER(R168),R168,IF(ISNUMBER(O168),O168,IF(ISNUMBER(L168),L168,0)))) -> 0.11 | V168: 0.8
A169: SYC | B169: 0.88 | C169: S/I | D169: S/I | E169: 0.8 | F169: =+INDEX(Countries!$O$4:$O$197,MATCH('Energy Prices'!$A169,Countries!$A$4:$A$197,0),1) -> Seychelles | G169: =+INDEX(Countries!$P$4:$P$197,MATCH('Energy Prices'!$A169,Countries!$A$4:$A$197,0),1) -> Africa | H169: =+INDEX(Countries!$Q$4:$Q$197,MATCH('Energy Prices'!$A169,Countries!$A$4:$A$197,0),1) -> Sub-Saharan Africa | I169: =+INDEX(Countries!$R$4:$R$197,MATCH('Energy Prices'!$A169,Countries!$A$4:$A$197,0),1) -> Eastern Africa | J169: 0.8643902439 | K169: 0.004 | L169: 0.1132413793 | M169: 0.915 | O169: 0.1228333333 | P169: 0.9030769231 | R169: 0.1071 | S169: 0.88 | T169: 0.004 | U169: 0.1071 | V169: 0.8
A170: SLE | B170: 0.69 | C170: S/I | D170: 0.2 | E170: 0.8 | F170: =+INDEX(Countries!$O$4:$O$197,MATCH('Energy Prices'!$A170,Countries!$A$4:$A$197,0),1) -> Sierra Leone | G170: =+INDEX(Countries!$P$4:$P$197,MATCH('Energy Prices'!$A170,Countries!$A$4:$A$197,0),1) -> Africa | H170: =+INDEX(Countries!$Q$4:$Q$197,MATCH('Energy Prices'!$A170,Countries!$A$4:$A$197,0),1) -> Sub-Saharan Africa | I170: =+INDEX(Countries!$R$4:$R$197,MATCH('Energy Prices'!$A170,Countries!$A$4:$A$197,0),1) -> Western Africa | J170: 0.8643902439 | K170: 0.004 | L170: 0.1132413793 | M170: 0.915 | O170: 0.1228333333 | P170: 0.9241666667 | R170: 0.1871428571 | S170: 0.69 | T170: 0.004 | U170: 0.2 | V170: 0.8
A171: SGP | B171: 1.25 | C171: 0.126 | D171: 0.16 | E171: 0.8 | F171: =+INDEX(Countries!$O$4:$O$197,MATCH('Energy Prices'!$A171,Countries!$A$4:$A$197,0),1) -> Singapore | G171: =+INDEX(Countries!$P$4:$P$197,MATCH('Energy Prices'!$A171,Countries!$A$4:$A$197,0),1) -> Asia | H171: =+INDEX(Countries!$Q$4:$Q$197,MATCH('Energy Prices'!$A171,Countries!$A$4:$A$197,0),1) -> South-eastern Asia | I171: =+INDEX(Countries!$R$4:$R$197,MATCH('Energy Prices'!$A171,Countries!$A$4:$A$197,0),1) -> South-eastern Asia | J171: 0.7066666667 | K171: 0.03533333333 | L171: 0.09875 | M171: 0.7155555556 | N171: 0.0765 | O171: 0.1114285714 | P171: 0.7155555556 | Q171: 0.0765 | R171: 0.1114285714 | S171: 1.25 | T171: 0.126 | U171: 0.16 | V171: 0.8
A172: SYR | B172: 1.26 | C172: S/I | D172: S/I | E172: 0.8 | F172: =+INDEX(Countries!$O$4:$O$197,MATCH('Energy Prices'!$A172,Countries!$A$4:$A$197,0),1) -> Syria, Syrian Arab Republic | G172: =+INDEX(Countries!$P$4:$P$197,MATCH('Energy Prices'!$A172,Countries!$A$4:$A$197,0),1) -> Asia | H172: =+INDEX(Countries!$Q$4:$Q$197,MATCH('Energy Prices'!$A172,Countries!$A$4:$A$197,0),1) -> Western Asia | I172: =+INDEX(Countries!$R$4:$R$197,MATCH('Energy Prices'!$A172,Countries!$A$4:$A$197,0),1) -> Western Asia | J172: 0.7066666667 | K172: 0.03533333333 | L172: 0.09875 | M172: 0.7473333333 | N172: 0.01566666667 | O172: 0.099 | P172: 0.7473333333 | Q172: 0.01566666667 | R172: 0.099 | S172: 1.26 | T172: 0.01566666667 | U172: 0.099 | V172: 0.8
A173: SOM | B173: S/I | C173: S/I | D173: S/I | E173: 0.8 | F173: =+INDEX(Countries!$O$4:$O$197,MATCH('Energy Prices'!$A173,Countries!$A$4:$A$197,0),1) -> Somalia | G173: =+INDEX(Countries!$P$4:$P$197,MATCH('Energy Prices'!$A173,Countries!$A$4:$A$197,0),1) -> Africa | H173: =+INDEX(Countries!$Q$4:$Q$197,MATCH('Energy Prices'!$A173,Countries!$A$4:$A$197,0),1) -> Sub-Saharan Africa | I173: =+INDEX(Countries!$R$4:$R$197,MATCH('Energy Prices'!$A173,Countries!$A$4:$A$197,0),1) -> Eastern Africa | J173: 0.8643902439 | K173: 0.004 | L173: 0.1132413793 | M173: 0.915 | O173: 0.1228333333 | P173: 0.9030769231 | R173: 0.1071 | S173: 0.9030769231 | T173: 0.004 | U173: 0.1071 | V173: 0.8
A174: LKA | B174: 0.55 | C174: S/I | D174: 0.07 | E174: 0.8 | F174: =+INDEX(Countries!$O$4:$O$197,MATCH('Energy Prices'!$A174,Countries!$A$4:$A$197,0),1) -> Sri Lanka | G174: =+INDEX(Countries!$P$4:$P$197,MATCH('Energy Prices'!$A174,Countries!$A$4:$A$197,0),1) -> Asia | H174: =+INDEX(Countries!$Q$4:$Q$197,MATCH('Energy Prices'!$A174,Countries!$A$4:$A$197,0),1) -> Southern Asia | I174: =+INDEX(Countries!$R$4:$R$197,MATCH('Energy Prices'!$A174,Countries!$A$4:$A$197,0),1) -> Southern Asia | J174: 0.7066666667 | K174: 0.03533333333 | L174: 0.09875 | M174: 0.635 | N174: 0.012 | O174: 0.0935 | P174: 0.635 | Q174: 0.012 | R174: 0.0935 | S174: 0.55 | T174: 0.012 | U174: 0.07 | V174: 0.8
A175: ZAF | B175: 0.98 | C175: S/I | D175: 0.07 | E175: 0.8 | F175: =+INDEX(Countries!$O$4:$O$197,MATCH('Energy Prices'!$A175,Countries!$A$4:$A$197,0),1) -> South Africa | G175: =+INDEX(Countries!$P$4:$P$197,MATCH('Energy Prices'!$A175,Countries!$A$4:$A$197,0),1) -> Africa | H175: =+INDEX(Countries!$Q$4:$Q$197,MATCH('Energy Prices'!$A175,Countries!$A$4:$A$197,0),1) -> Sub-Saharan Africa | I175: =+INDEX(Countries!$R$4:$R$197,MATCH('Energy Prices'!$A175,Countries!$A$4:$A$197,0),1) -> Southern Africa | J175: 0.8643902439 | K175: 0.004 | L175: 0.1132413793 | M175: 0.915 | O175: 0.1228333333 | P175: 0.814 | R175: 0.0705 | S175: 0.98 | T175: 0.004 | U175: 0.07 | V175: 0.8
A176: SDN | B176: 0.38 | C176: S/I | D176: 0.001 | E176: 0.8 | F176: =+INDEX(Countries!$O$4:$O$197,MATCH('Energy Prices'!$A176,Countries!$A$4:$A$197,0),1) -> Sudan | G176: =+INDEX(Countries!$P$4:$P$197,MATCH('Energy Prices'!$A176,Countries!$A$4:$A$197,0),1) -> Africa | H176: =+INDEX(Countries!$Q$4:$Q$197,MATCH('Energy Prices'!$A176,Countries!$A$4:$A$197,0),1) -> Northern Africa | I176: =+INDEX(Countries!$R$4:$R$197,MATCH('Energy Prices'!$A176,Countries!$A$4:$A$197,0),1) -> Northern Africa | J176: 0.8643902439 | K176: 0.004 | L176: 0.1132413793 | M176: 0.5 | N176: 0.004 | O176: 0.0672 | P176: 0.5 | Q176: 0.004 | R176: 0.0672 | S176: 0.38 | T176: 0.004 | U176: 0.001 | V176: 0.8
A177: SSD | B177: S/I | C177: S/I | D177: S/I | E177: 0.8 | F177: =+INDEX(Countries!$O$4:$O$197,MATCH('Energy Prices'!$A177,Countries!$A$4:$A$197,0),1) -> South Sudan | G177: =+INDEX(Countries!$P$4:$P$197,MATCH('Energy Prices'!$A177,Countries!$A$4:$A$197,0),1) -> Africa | H177: =+INDEX(Countries!$Q$4:$Q$197,MATCH('Energy Prices'!$A177,Countries!$A$4:$A$197,0),1) -> Sub-Saharan Africa | I177: =+INDEX(Countries!$R$4:$R$197,MATCH('Energy Prices'!$A177,Countries!$A$4:$A$197,0),1) -> Eastern Africa | J177: 0.8643902439 | K177: 0.004 | L177: 0.1132413793 | M177: 0.915 | O177: 0.1228333333 | P177: 0.9030769231 | R177: 0.1071 | S177: 0.9030769231 | T177: 0.004 | U177: 0.1071 | V177: 0.8
A178: SWE | B178: 1.73 | C178: S/I | D178: S/I | E178: 0.8 | F178: =+INDEX(Countries!$O$4:$O$197,MATCH('Energy Prices'!$A178,Countries!$A$4:$A$197,0),1) -> Sweden | G178: =+INDEX(Countries!$P$4:$P$197,MATCH('Energy Prices'!$A178,Countries!$A$4:$A$197,0),1) -> Europe | H178: =+INDEX(Countries!$Q$4:$Q$197,MATCH('Energy Prices'!$A178,Countries!$A$4:$A$197,0),1) -> Northern Europe | I178: =+INDEX(Countries!$R$4:$R$197,MATCH('Energy Prices'!$A178,Countries!$A$4:$A$197,0),1) -> Northern Europe | J178: 1.344418605 | K178: 0.05273333333 | L178: 0.1401351351 | M178: 1.491 | N178: 0.0655 | O178: 0.128125 | P178: 1.491 | Q178: 0.0655 | R178: 0.128125 | S178: 1.73 | T178: 0.0655 | U178: 0.128125 | V178: 0.8
A179: CHE | B179: 1.59 | C179: 0.082 | D179: 0.18 | E179: 0.8 | F179: =+INDEX(Countries!$O$4:$O$197,MATCH('Energy Prices'!$A179,Countries!$A$4:$A$197,0),1) -> Switzerland | G179: =+INDEX(Countries!$P$4:$P$197,MATCH('Energy Prices'!$A179,Countries!$A$4:$A$197,0),1) -> Europe | H179: =+INDEX(Countries!$Q$4:$Q$197,MATCH('Energy Prices'!$A179,Countries!$A$4:$A$197,0),1) -> Western Europe | I179: =+INDEX(Countries!$R$4:$R$197,MATCH('Energy Prices'!$A179,Countries!$A$4:$A$197,0),1) -> Western Europe | J179: 1.344418605 | K179: 0.05273333333 | L179: 0.1401351351 | M179: 1.461111111 | N179: 0.061 | O179: 0.165 | P179: 1.461111111 | Q179: 0.061 | R179: 0.165 | S179: 1.59 | T179: 0.082 | U179: 0.18 | V179: 0.8
A180: SUR | B180: 0.73 | C180: S/I | D180: S/I | E180: 0.8 | F180: =+INDEX(Countries!$O$4:$O$197,MATCH('Energy Prices'!$A180,Countries!$A$4:$A$197,0),1) -> Suriname | G180: =+INDEX(Countries!$P$4:$P$197,MATCH('Energy Prices'!$A180,Countries!$A$4:$A$197,0),1) -> Americas | H180: =+INDEX(Countries!$Q$4:$Q$197,MATCH('Energy Prices'!$A180,Countries!$A$4:$A$197,0),1) -> Latin America and the Caribbean | I180: =+INDEX(Countries!$R$4:$R$197,MATCH('Energy Prices'!$A180,Countries!$A$4:$A$197,0),1) -> South America | J180: 0.7327272831 | K180: 0.036 | L180: 0.1456000464 | M180: 0.7312903336 | N180: 0.04075 | O180: 0.1495652678 | P180: 0.6325000286 | Q180: 0.0295 | R180: 0.09800011602 | S180: 0.73 | T180: 0.0295 | U180: 0.09800011602 | V180: 0.8
